Workbook

Sheet Instructions
I2: Validation - Croisement des tables
B3: Instructions:
A4: 1 | B4: Dupliquer votre modèle de détermination avant de passer aux étapes suivantes. | I4: Ovoltotrec | J4: Rapport GTYF | K4: Rapport ECONO
A5: 2 | B5: Coller les OUTPUTs ci-dessous dans votre modèle de détermination. | I5: =VLOOKUP("Ovoltotrec",Output!$C:$AM,8,FALSE) -> 1772500 | J5: =VLOOKUP("OVOLTOTREC",GTYF!$C:$AQ,8,FALSE)=I5 -> TRUE | K5: =VLOOKUP("OVOLTOTREC",Econo!$C:$AQ,8,FALSE)=I5 -> TRUE
B6: Outputs pour Cahier_Détermination_2023
A7: 3 | B7: Ajouter l'agrégat FCIMPROD_SNAT au thème 5 de la section LANSCAPE de votre modèle et les courbes SNAT
B8: *AGGREGATE FCIMPROD_SNAT FCxxxx
A9: 4 | B9: Copier coller la syntaxe TARGET_GTYF_DET, TARGET_ECONO, TARGET AREA, TARGET DETAIL (voir plus bas) dans la section "Reports" du scénario de détermination.
B10: *TARGET GTYF_DET.dbf
B11: *TARGET_ECONO.dbf
B12: *TARGET AREA.dbf et *TARGET DETAIL.dbf
A13: 5 | B13: Insérer la syntaxe économique dans les sections Output, Lanscape, …
A14: 6 | B14: Compiler le scénario (Faire une fleche sur vos scénarios)
A15: 7 | B15: Ouvrir vos rapports Output, GTYF et ECONO directement de WS. Contrôle A --> Contrôle C
A16: 8 | B16: Copier/coller vos rapports Output, GTYF et ECONO dans les onglets appropriés. Attention de respecter le nombres de colonnes. Les onglets Output, GTYF et ECONO sont préformatés et contiennent des formules aux colonnes AM à AP.
A17: 9 | B17: Valider que la cellule I5 indique vrai lorsque vous aurez collé vos données dans les onglets "Output", "GTYF" et ÉCONO" pour s'assurer que les données proviennent de la même optimisation.
A18: 10 | B18: Utiliser le fichier DBF pour copier/coller votre calendrier de COS dans l'onglet Cedule_COS et y ajouter les COS absents (COS fermés ou toujours ouverts) et compléter leur calendrier par des "0" ou des "1".
A19: 11 | B19: Compléter toutes les cellules et onglets de couleur | D19: jaune
A20: 12 | B20: Notez que les tableaux 9, 10, 13, 15 et 17 ont des instructions particulières

Sheet Suivi_modif
B2: Modifications apportées au cahier:
B3: Version originale (v1) | C3: Version de départ
B4: Version modifiée 2 novembre 2021 (v2) | C4: Correction du calcul de % de sapin en P0 (cellule O9)
B5: Version modifiée 4 novembre 2021 (v3) | C5: Correction du % récolte volume sur pied destiné à l'aménagement (Tableau - CelluleV59)
B6: Version modifiée 4 novembre 2021 (v3) | C6: Correction des valideurs Vrai/Faux (Tableau - Cellule W101, W102, W103)
B7: Version modifiée 8 novembre 2021 (v4) | C7: Onglet "UTA" - Amélioration de la syntaxe des rechercheV
B8: Version modifiée 8 novembre 2021 (v4) | C8: Tableau 3 - ligne 50: changé la police de caractère pour du Arial
B9: Version modifiée 9 novembre 2021 (v5) | C9: Onglet "Target_ECONO": La syntaxe du rapport a été corrigée.

Sheet Tableaux
T1: Instructions : Compléter les cellules oranges | AB1: Avec l'utilisation de l'outil à Éric
B2: PROER1 : vous pouvez utiliser l'outil FoxPro pour compléter les cellules oranges : | T2: 1) Cellule V11 : Inscrire la superficie totale brute de la carte WS | AB2: 363909
B3: l'outil intérroge la carte Woodstock et met les valeurs dans un fichier Excel | T3: 2) Cellule V15 : Inscrire la superficie WS des GS RP1 et RP2 (ça ne devrait être que du EXEX et EXTI) | AB3: 0
B4: interroge_carte_WS_pour cahier_analyse.FXP | T4: 3) Cellule V24 : Inscrire la superficie WS des GS RP3 à RP9 sur INC | AB4: 0
B5: T:\Donnees\Courant\CPF_2023-2028\Comite_Vague_2\30_Phase1\32_Sce1\Outils | T5: 4) Cellule V25 : Inscrire la superficie WS des GS SNAT sur INC (qui ne sont pas des RP) | AB5: 1507.3
T6: 5) Cellules L20 à S21 : Inscrire la superficie de la carte WS pour chacune des cases oranges
B7: Catégories | I7: Superficie | Z7: Total | AA7: Sup_aff | AB7: 2346.4
I8: ha | J8: % | V8: Période | Z8: Total | AA8: Sup_empche | AB8: 5959.3
B9: Superficie totale du territoire d'analyse (EXHU exclu) | I9: =V11-V16 -> 333958.4 | J9: =IFERROR(I9/I9,"-") -> 1 | S9: =LEFT(B$25,10) -> Tableau 1. | T9: Output | U9: Superficie | V9: 0 | Z9: Total | AA9: Sup_ecot | AB9: 2807.8
B10: Pertes (emprise chemin, écotone, improductif) | I10: =U20+V20+Y20 -> 9320.2 | J10: =I10/I9 -> 0.02790826642 | S10: =LEFT(B$25,10) -> Tableau 1. | T10: OSUPTOT | U10: WS | V10: =VLOOKUP(T10,Output!$C:$H,6,FALSE) -> 354588.8 | Z10: INC | AA10: Sup_brivAB | AB10: 10910.6
B11: Territoire improductif (EXEX + EXTI) | I11: =SUM(V13:V14) -> 29945.1 | J11: =I11/I9 -> 0.08966715615 | S11: Tableau 1. | U11: Brute | V11: =AB2 -> 363909 | X11: Sup_soustraite : | Y11: =T20+U20+V20+Y20+AA20 -> 52132.2 | Z11: INC | AA11: Sup_brivCD | AB11: 2003.8
B12: sans possibilité de remise en production | I12: =I11-I13 -> 29945.1 | J12: - | S12: Tableau 1. | U12: pertes | V12: =U20+V20+Y20 -> 9320.2 | X12: Sup nette : | Y12: =V11-Y11 -> 311776.8 | Z12: Total | AA12: Sup_impro | AB12: 553.1
B13: avec possibilité de remise en production (RP1 et RP2) | I13: =V15 -> 0 | J13: - | S13: Tableau 1. | T13: OSUPEXEX | U13: EXEX | V13: =VLOOKUP(T13,Output!$C:$H,6,FALSE) -> 23674.2 | Z13: Total | AA13: Sup_pentf | AB13: 40465.6
S14: Tableau 1. | T14: OSUPEXTI | U14: EXTI | V14: =VLOOKUP(T14,Output!$C:$H,6,FALSE) -> 6270.9 | Z14: INC | AA14: Sup_pentf | AB14: 34029.7
B15: Territoire inclus dans l’UA mais exclu des activités d'aménagement (EXIN) | I15: =V17 -> 78374.1 | J15: =I15/I9 -> 0.2346822239 | S15: Tableau 1. | U15: RP1/RP2 | V15: =AB3 -> 0
B16: pentes abruptes et sommets (codes F et S) --> potentiellement récoltables | I16: =AA21 -> 34029.7 | J16: - | S16: Tableau 1. | T16: OSUPEXHU | U16: EXHU | V16: =VLOOKUP(T16,Output!$C:$H,6,FALSE) -> 29950.6
B17: bandes riveraines (densité AB) --> potentiellement récoltables | I17: =W21 -> 10910.6 | J17: - | S17: Tableau 1. | T17: OSUPEXIN | U17: EXIN | V17: =VLOOKUP(T17,Output!$C:$H,6,FALSE) -> 78374.1
B18: bandes riveraines (densité CD) --> potentiellement récoltables | I18: =X21 -> 2003.8 | J18: - | S18: Tableau 1. | T18: ↓ | U18: ↓ | V18: ↓ | Y18: ↓ | AA18: ↓
B19: autres | I19: =I15-I16-I17-I18 -> 31430 | S19: Tableau 1. | T19: Sup_aff | U19: Sup_empche | V19: Sup_ecot | W19: Sup_brivAB | X19: Sup_brivCD | Y19: Sup_impro | Z19: Sup_aut | AA19: Sup_pentf
B20: Territoire destiné à l'aménagement forestier (INC) | I20: =V22 -> 216319 | J20: =I20/I9 -> 0.6477423535 | S20: Tableau 1. | T20: =AB7 -> 2346.4 | U20: =AB8 -> 5959.3 | V20: =AB9 -> 2807.8 | Y20: =AB12 -> 553.1 | AA20: =AB13 -> 40465.6 | AB20: Total
B21: forestier exploitable | I21: =V22-I22-I23 -> 214811.7 | J21: - | S21: Tableau 1. | W21: =AB10 -> 10910.6 | X21: =AB11 -> 2003.8 | AA21: =AB14 -> 34029.7 | AB21: INC
B22: forestier inexploitable avec possibilité de remise en production (RP3 à RP15) | I22: =V24 -> 0 | J22: - | S22: Tableau 1. | T22: OSUPINC | U22: INC | V22: =VLOOKUP(T22,Output!$C:$H,6,FALSE) -> 216319
B23: forestier inexploitable sans possibilité de remise en production (SNAT) | I23: =V25 -> 1507.3 | J23: - | S23: Tableau 1.
S24: Tableau 1. | U24: RP3 à RP9 | V24: =AB4 -> 0
B25: Tableau 1. Répartition de la superficie de l'unité d'aménagement pas catégorie de territoire | S25: Tableau 1. | U25: SNAT | V25: =AB5 -> 1507.3
B26: Catégories | F26: Superficies
F27: Hectares | G27: %
B28: Superficie totale de l’unité d’aménagement | F28: =ROUND(I9,-1) -> 333960 | G28: =F28/F28 -> 1
B29: Retraits de superficie
B30: Territoire non forestier | F30: =ROUND(I10+I11,-1) -> 39270 | G30: =F30/F28 -> 0.1175889328
B31: Territoire forestier peu productif (30 à 50 m³/ha) | F31: =ROUND(I22+I23,-1) -> 1510 | G31: =F31/F28 -> 0.004521499581
B32: Territoire forestier exclu de l’aménagement | F32: =ROUND(F28-F30-F31-F33,-1) -> 78370 | G32: =F32/F28 -> 0.2346688226 | N32: À compléter UA : | O32: UA:
B33: Superficie destinée à l’aménagement forestier | F33: =ROUND(I21,-1) -> 214810 | G33: =F33/F28 -> 0.643220745 | O33: 03771 | T33: Légende | U33: Output | V33: P2@P6
S34: =LEFT(B$46,10) -> Tableau 3. | T34: Sepm | U34: OVOLGSEPMREC | V34: =IFERROR(VLOOKUP($U34,Output!$C:$AM,37,FALSE)/5,0) -> 220807.962
S35: Tableau 3.
S36: Tableau 3. | T36: Tho | U36: OVOLTHOREC | V36: =IFERROR(VLOOKUP($U36,Output!$C:$AM,37,FALSE)/5,0) -> 2562.5104
S37: Tableau 3. | T37: Pru | U37: OVOLPRUREC | V37: =IFERROR(VLOOKUP($U37,Output!$C:$AM,37,FALSE)/5,0) -> 95.7732
S38: Tableau 3. | T38: Pins | U38: OVOLGPINSREC | V38: =IFERROR(VLOOKUP($U38,Output!$C:$AM,37,FALSE)/5,0) -> 1378.9072
S39: Tableau 3. | T39: Peu | U39: OVOLGPEUREC | V39: =IFERROR(VLOOKUP($U39,Output!$C:$AM,37,FALSE)/5,0) -> 9617.4544
S40: Tableau 3. | T40: Bop | U40: OVOLGBPREC | V40: =IFERROR(VLOOKUP($U40,Output!$C:$AM,37,FALSE)/5,0) -> 56774.54
S41: Tableau 3. | T41: Boj | U41: OVOLBOJREC | V41: =IFERROR(VLOOKUP($U41,Output!$C:$AM,37,FALSE)/5,0) -> 40977.668
S42: Tableau 3. | T42: Ers | U42: OVOLERSREC | V42: =IFERROR(VLOOKUP($U42,Output!$C:$AM,37,FALSE)/5,0) -> 8461.5052
S43: Tableau 3. | T43: Err | U43: OVOLGEROREC | V43: =IFERROR(VLOOKUP($U43,Output!$C:$AM,37,FALSE)/5,0) -> 12255.6348
S44: Tableau 3. | T44: Autre .F. (Auf) | V44: =V47-V42-V41 -> 1566.9908
S45: Tableau 3. | T45: résineux | U45: OVOLGRREC | V45: =IFERROR(VLOOKUP($U45,Output!$C:$AM,37,FALSE)/5,0) -> 224845.274
B46: Tableau 3. Possibilités forestières par essence ou par groupe d’essences et écart avec la période 2018-2023 | S46: Tableau 3. | T46: intolérant | U46: OVOLGFIREC | V46: =IFERROR(VLOOKUP($U46,Output!$C:$AM,37,FALSE)/5,0) -> 78648.286
B47: Périodes | C47: ="Possibilités forestières (m"&CHAR(179)&" bruts/an)" -> Possibilités forestières (m³ bruts/an) | S47: Tableau 3. | T47: Tolérant | U47: OVOLGFTREC | V47: =IFERROR(VLOOKUP($U47,Output!$C:$AM,37,FALSE)/5,0) -> 51006.164
C48: SEPM | D48: Thuya | E48: Pruche | F48: Pins blanc et rouge | G48: Peupliers | H48: Bouleau à papier | I48: Bouleau jaune | J48: Érables à sucre et rouge | K48: Autres feuillus durs | L48: Total | N48: Possibilité forestière unitaire (PAC / Sup destinée à l'aménagement) | S48: Tableau 3. | T48: Total récoltés | U48: OVOLTOTREC | V48: =IFERROR(VLOOKUP($U48,Output!$C:$AM,37,FALSE)/5,0) -> 354500
B49: 2023-2028 | C49: =ROUND(V$34,-2) -> 220800 | D49: =ROUND(V$36,-2) -> 2600 | E49: =ROUND(V$37,-2) -> 100 | F49: =ROUND(V$38,-2) -> 1400 | G49: =ROUND(V$39,-2) -> 9600 | H49: =ROUND(V$40,-2) -> 56800 | I49: =ROUND(V$41,-2) -> 41000 | J49: =ROUND(V$50,-2) -> 20600 | K49: =ROUND(V$44,-2) -> 1600 | L49: =SUM(C49:K49) -> 354500 | N49: =V57 -> 1.65029561 | S49: Tableau 3. | T49: FN sur pied | U49: OVOLGFNREC | V49: =IFERROR(VLOOKUP($U49,Output!$C:$AM,37,FALSE)/5,0) -> 1023.5456
C50: =C49/$L$49 -> 0.6228490832 | D50: 0.007334273625 | E50: 0.0002820874471 | F50: 0.00394922426 | G50: 0.02708039492 | H50: 0.16022567 | I50: 0.1156558533 | J50: 0.0581100141 | K50: 0.004513399154 | L50: =SUM(C50:K50) -> 1 | S50: Tableau 3. | T50: ER | V50: 20600 | W50: CORRIGE manuellement PLAFR4
B51: 2018-2023 | C51: =VLOOKUP($O$33,DataLocal!$A$6:$W$35,13,FALSE) -> 149400 | D51: =VLOOKUP($O$33,DataLocal!$A$6:$W$35,14,FALSE) -> 0 | E51: =VLOOKUP($O$33,DataLocal!$A$6:$W$35,15,FALSE) -> 0 | F51: =VLOOKUP($O$33,DataLocal!$A$6:$W$35,16,FALSE) -> 0 | G51: =VLOOKUP($O$33,DataLocal!$A$6:$W$35,17,FALSE) -> 17000 | H51: =VLOOKUP($O$33,DataLocal!$A$6:$W$35,18,FALSE) -> 48000 | I51: =VLOOKUP($O$33,DataLocal!$A$6:$W$35,19,FALSE) -> 33800 | J51: =VLOOKUP($O$33,DataLocal!$A$6:$W$35,20,FALSE) -> 13900 | K51: =VLOOKUP($O$33,DataLocal!$A$6:$W$35,21,FALSE) -> 3500 | L51: =VLOOKUP($O$33,DataLocal!$A$6:$W$35,23,FALSE) -> 265600 | N51: % du volume sur pied initial | S51: Tableau 3. | U51: OVOLSABREC | V51: =IFERROR(VLOOKUP($U51,Output!$C:$AM,37,FALSE)/5,0) -> 133699.3844
B52: Écart | C52: =IFERROR((C49/C$51)-1,0) -> 0.4779116466 | D52: 0 | E52: 0 | F52: 0 | G52: -0.4352941176 | H52: 0.1833333333 | I52: 0.2130177515 | J52: 0.4820143885 | K52: -0.5428571429 | L52: 0.3347138554 | N52: =V59 ->  | S52: Tableau 3. | U52: OVOLGEPXREC | V52: =IFERROR(VLOOKUP($U52,Output!$C:$AM,37,FALSE)/5,0) -> 83308.752
B53: ="Répartition de la composante SEPM des possibilités forestières 2023-2028 : sapin ("&IFERROR(ROUND(V51/V34*100,0),0)&"%), épinettes ("&IFERROR(ROUND(V52/V34*100,0),0)&"%), pin gris ("&IFERROR(ROUND(V53/V34*100,0),0)&"%) et mélèzes ("&IFERROR(ROUND(V54/V34*100,0),0)&"%)." -> Répartition de la composante SEPM des possibilités forestières 2023-2028 : sapin (61%), épinettes (38%), pin gris (2%) et mélèzes (0%). | S53: Tableau 3. | U53: OVOLGPGREC | V53: =IFERROR(VLOOKUP($U53,Output!$C:$AM,37,FALSE)/5,0) -> 3390.906
B54: ="Répartition de la composante Érables à sucre et rouge des possibilités forestières 2023-2028 : érable à sucre("&IFERROR(ROUND(V42/(V42+V43)*100,0),0)&"%) et érable rouge ("&IFERROR(ROUND(V43/(V42+V43)*100,0),0)&"%)." -> Répartition de la composante Érables à sucre et rouge des possibilités forestières 2023-2028 : érable à sucre(41%) et érable rouge (59%). | S54: Tableau 3. | U54: OVOLGMLREC | V54: =IFERROR(VLOOKUP($U54,Output!$C:$AM,37,FALSE)/5,0) -> 408.9528
B55: Copier/Coller le tableau ci-dessus avec les lignes 53 et 54 | S55: Tableau 3. | U55: OSUPINC | V55: =IFERROR(VLOOKUP($U55,Output!$C:$AM,6,FALSE),0) -> 216319
S56: Tableau 3. | U56: OVOLTOTPIEDINC | V56: =IFERROR(VLOOKUP($U56,Output!$C:$AM,7,FALSE),0) -> 23326318.37
S57: Tableau 3. | U57: Possibilité forestière unitaire | V57: =IFERROR(V48/F33,0) -> 1.65029561
S58: Tableau 3. | U58: % récolte volume sur pied
U59: % récolte volume sur pied destiné à l'aménagement | V59: =V48/Figures!V19 -> 
B61: Tableau 4. Répartition des superficies récoltées et des possibilités forestières par grand type de forêt
B62: Grands types de forêt | D62: Superficie récoltée* | H62: Possibilités forestières* | S62: =LEFT(B$61,10) -> Tableau 4. | V62: Output total non arrondi | W62: Écart entre la somme du tableau et le output total
D63: Coupes totales | F63: Coupes partielles | H63: Résineux | J63: Feuillus tolérants | L63: Feuillus intolérants | N63: Total | S63: Tableau 4. | T63: Total | Z63: P2 à P6
D64: ha/an | E64: % | F64: ha/an | G64: % | H64: m³ bruts/an | I64: % | J64: ="m"&CHAR(179)&" bruts/an" -> m³ bruts/an | K64: % | L64: ="m"&CHAR(179)&" bruts/an" -> m³ bruts/an | M64: % | N64: ="m"&CHAR(179)&" bruts/an" -> m³ bruts/an | O64: % | S64: Tableau 4. | T64: ha/an | U64: % | Y64: Famille de courbe | Z64: OSUPINC | AA64: OSUPREALREGAFIN | AB64: OSUPREALREGAPAR | AC64: OSUPREALREGAPRE | AD64: OVOLGRREC | AE64: OVOLGAURREC | AF64: OVOLGFIREC | AG64: OVOLGFTREC | AH64: OVOLTOTREC
B65: Bétulaies blanches | D65: =ROUND(AA65/5,-1) -> 70 | E65: =IFERROR(D65/D$79,0) -> 0.03431372549 | F65: =ROUND(AB65/5,-1) -> 0 | G65: =IFERROR(F65/F$79,0) -> 0 | H65: =ROUND(AD65/5,-2) -> 2100 | I65: =IFERROR(H65/H$79,0) -> 0.009341637011 | J65: =ROUND(AG65/5,-2) -> 1000 | K65: =IFERROR(J65/J$79,0) -> 0.01960784314 | L65: =ROUND(AF65/5,-2) -> 7600 | M65: =L65/L$79 -> 0.09656925032 | N65: =H65+J65+L65 -> 10700 | O65: =N65/$N$79 -> 0.03018335684 | S65: Tableau 4. | T65: =D65+F65 -> 70 | U65: =IFERROR(T65/T$79,0) -> 0.02723735409 | V65: =(AA65+AB65)/5 -> 71.826 | W65: =T65-V65 -> -1.826 | Y65: (FCTYF_BOP) | Z65: =VLOOKUP(Z$64&$Y65,GTYF!$C:$AP,6,FALSE) -> 6590.5 | AA65: =VLOOKUP(AA$64&$Y65,GTYF!$C:$AP,37,FALSE) -> 359.13 | AB65: =VLOOKUP(AB$64&$Y65,GTYF!$C:$AP,37,FALSE) -> 0 | AC65: =VLOOKUP(AC$64&$Y65,GTYF!$C:$AP,37,FALSE) -> 359.13 | AD65: =VLOOKUP(AD$64&$Y65,GTYF!$C:$AP,37,FALSE) -> 10561.38 | AE65: =VLOOKUP(AE$64&$Y65,GTYF!$C:$AP,37,FALSE) -> 405.584 | AF65: =VLOOKUP(AF$64&$Y65,GTYF!$C:$AP,37,FALSE) -> 37798.848 | AG65: =VLOOKUP(AG$64&$Y65,GTYF!$C:$AP,37,FALSE) -> 4976.546 | AH65: =VLOOKUP(AH$64&$Y65,GTYF!$C:$AP,37,FALSE) -> 53336.776
B66: Bétulaies blanches à résineux | D66: 190 | E66: =IFERROR(D66/D$79,0) -> 0.0931372549 | F66: 0 | G66: =IFERROR(F66/F$79,0) -> 0 | H66: =ROUND(AD66/5,-2) -> 12300 | I66: =IFERROR(H66/H$79,0) -> 0.05471530249 | J66: =ROUND(AG66/5,-2) -> 2800 | K66: 0.05490196078 | L66: =ROUND(AF66/5,-2) -> 12200 | M66: =L66/L$79 -> 0.1550190597 | N66: =H66+J66+L66 -> 27300 | O66: 0.07700987306 | S66: Tableau 4. | T66: 190 | U66: =IFERROR(T66/T$79,0) -> 0.07392996109 | V66: =(AA66+AB66)/5 -> 187.0776 | W66: 2.9224 | Y66: (FCTYF_BOPR) | Z66: =VLOOKUP(Z$64&$Y66,GTYF!$C:$AP,6,FALSE) -> 20007.2 | AA66: =VLOOKUP(AA$64&$Y66,GTYF!$C:$AP,37,FALSE) -> 935.388 | AB66: =VLOOKUP(AB$64&$Y66,GTYF!$C:$AP,37,FALSE) -> 0 | AC66: =VLOOKUP(AC$64&$Y66,GTYF!$C:$AP,37,FALSE) -> 935.388 | AD66: =VLOOKUP(AD$64&$Y66,GTYF!$C:$AP,37,FALSE) -> 61710.044 | AE66: =VLOOKUP(AE$64&$Y66,GTYF!$C:$AP,37,FALSE) -> 2323.316 | AF66: =VLOOKUP(AF$64&$Y66,GTYF!$C:$AP,37,FALSE) -> 60861.384 | AG66: =VLOOKUP(AG$64&$Y66,GTYF!$C:$AP,37,FALSE) -> 13872.914 | AH66: =VLOOKUP(AH$64&$Y66,GTYF!$C:$AP,37,FALSE) -> 136444.338
B67: Cédrières | D67: 0 | E67: 0 | F67: 0 | G67: 0 | H67: =ROUND(AD67/5,-2) -> 0 | I67: 0 | J67: 0 | K67: 0 | L67: 0 | M67: 0 | N67: 0 | O67: 0 | S67: Tableau 4. | T67: 0 | U67: 0 | V67: =(AA67+AB67)/5 -> 0 | W67: 0 | Y67: (FCTYF_THO) | Z67: =VLOOKUP(Z$64&$Y67,GTYF!$C:$AP,6,FALSE) -> 0 | AA67: =VLOOKUP(AA$64&$Y67,GTYF!$C:$AP,37,FALSE) -> 0 | AB67: =VLOOKUP(AB$64&$Y67,GTYF!$C:$AP,37,FALSE) -> 0 | AC67: =VLOOKUP(AC$64&$Y67,GTYF!$C:$AP,37,FALSE) -> 0 | AD67: =VLOOKUP(AD$64&$Y67,GTYF!$C:$AP,37,FALSE) -> 0 | AE67: =VLOOKUP(AE$64&$Y67,GTYF!$C:$AP,37,FALSE) -> 0 | AF67: =VLOOKUP(AF$64&$Y67,GTYF!$C:$AP,37,FALSE) -> 0 | AG67: =VLOOKUP(AG$64&$Y67,GTYF!$C:$AP,37,FALSE) -> 0 | AH67: =VLOOKUP(AH$64&$Y67,GTYF!$C:$AP,37,FALSE) -> 0
B68: Érablières rouges | D68: 20 | E68: 0.009803921569 | F68: 0 | G68: 0 | H68: 700 | I68: 0.003113879004 | J68: 500 | K68: 0.009803921569 | L68: 1500 | M68: 0.01905972046 | N68: 2700 | O68: 0.007616361072 | S68: Tableau 4. | T68: 20 | U68: 0.007782101167 | V68: =(AA68+AB68)/5 -> 16.5248 | W68: 3.4752 | Y68: (FCTYF_ERO) | Z68: =VLOOKUP(Z$64&$Y68,GTYF!$C:$AP,6,FALSE) -> 1359.9 | AA68: =VLOOKUP(AA$64&$Y68,GTYF!$C:$AP,37,FALSE) -> 82.624 | AB68: =VLOOKUP(AB$64&$Y68,GTYF!$C:$AP,37,FALSE) -> 0 | AC68: =VLOOKUP(AC$64&$Y68,GTYF!$C:$AP,37,FALSE) -> 82.624 | AD68: =VLOOKUP(AD$64&$Y68,GTYF!$C:$AP,37,FALSE) -> 3261.676 | AE68: =VLOOKUP(AE$64&$Y68,GTYF!$C:$AP,37,FALSE) -> 344.18 | AF68: =VLOOKUP(AF$64&$Y68,GTYF!$C:$AP,37,FALSE) -> 7578.37 | AG68: =VLOOKUP(AG$64&$Y68,GTYF!$C:$AP,37,FALSE) -> 2712.54 | AH68: =VLOOKUP(AH$64&$Y68,GTYF!$C:$AP,37,FALSE) -> 13552.584
B69: Feuillus tolérants | D69: 40 | E69: 0.01960784314 | F69: 300 | G69: 0.5660377358 | H69: 2900 | I69: 0.01290035587 | J69: 19200 | K69: 0.3764705882 | L69: 4400 | M69: 0.05590851334 | N69: 26500 | O69: 0.07475317348 | S69: Tableau 4. | T69: 340 | U69: 0.1322957198 | V69: 339.788 | W69: 0.212 | Y69: (FCTYF_FT) | Z69: =VLOOKUP(Z$64&$Y69,GTYF!$C:$AP,6,FALSE) -> 38489.1 | AA69: =VLOOKUP(AA$64&$Y69,GTYF!$C:$AP,37,FALSE) -> 195.574 | AB69: =VLOOKUP(AB$64&$Y69,GTYF!$C:$AP,37,FALSE) -> 1503.366 | AC69: =VLOOKUP(AC$64&$Y69,GTYF!$C:$AP,37,FALSE) -> 1698.94 | AD69: =VLOOKUP(AD$64&$Y69,GTYF!$C:$AP,37,FALSE) -> 14460.25 | AE69: =VLOOKUP(AE$64&$Y69,GTYF!$C:$AP,37,FALSE) -> 852.566 | AF69: =VLOOKUP(AF$64&$Y69,GTYF!$C:$AP,37,FALSE) -> 21931.03 | AG69: 96010 | AH69: =VLOOKUP(AH$64&$Y69,GTYF!$C:$AP,37,FALSE) -> 132900.246
B70: Feuillus tolérants à résineux | D70: 190 | E70: 0.0931372549 | F70: 120 | G70: 0.2264150943 | H70: 15200 | I70: 0.06761565836 | J70: 19000 | K70: 0.3725490196 | L70: 5800 | M70: 0.07369758577 | N70: 40000 | O70: 0.1128349788 | S70: Tableau 4. | T70: 310 | U70: 0.1206225681 | V70: 317.3632 | W70: -7.3632 | Y70: (FCTYF_FTR) | Z70: =VLOOKUP(Z$64&$Y70,GTYF!$C:$AP,6,FALSE) -> 18467.6 | AA70: =VLOOKUP(AA$64&$Y70,GTYF!$C:$AP,37,FALSE) -> 964.502 | AB70: =VLOOKUP(AB$64&$Y70,GTYF!$C:$AP,37,FALSE) -> 622.314 | AC70: =VLOOKUP(AC$64&$Y70,GTYF!$C:$AP,37,FALSE) -> 1586.814 | AD70: =VLOOKUP(AD$64&$Y70,GTYF!$C:$AP,37,FALSE) -> 75939.604 | AE70: =VLOOKUP(AE$64&$Y70,GTYF!$C:$AP,37,FALSE) -> 6874.424 | AF70: =VLOOKUP(AF$64&$Y70,GTYF!$C:$AP,37,FALSE) -> 28904.754 | AG70: =VLOOKUP(AG$64&$Y70,GTYF!$C:$AP,37,FALSE) -> 94981.88 | AH70: =VLOOKUP(AH$64&$Y70,GTYF!$C:$AP,37,FALSE) -> 199827.626
B71: Pessières | D71: =ROUND(AA71/5,-1) -> 260 | E71: 0.1274509804 | F71: 110 | G71: 0.2075471698 | H71: 40300 | I71: 0.1792704626 | J71: 100 | K71: 0.001960784314 | L71: 3300 | M71: 0.04193138501 | N71: 43700 | O71: 0.1232722144 | S71: Tableau 4. | T71: 370 | U71: 0.1439688716 | V71: 367.0652 | W71: =T71-V71 -> 2.9348 | Y71: (FCTYF_EPX) | Z71: =VLOOKUP(Z$64&$Y71,GTYF!$C:$AP,6,FALSE) -> 28406.1 | AA71: =VLOOKUP(AA$64&$Y71,GTYF!$C:$AP,37,FALSE) -> 1285.56 | AB71: =VLOOKUP(AB$64&$Y71,GTYF!$C:$AP,37,FALSE) -> 549.766 | AC71: =VLOOKUP(AC$64&$Y71,GTYF!$C:$AP,37,FALSE) -> 1835.326 | AD71: =VLOOKUP(AD$64&$Y71,GTYF!$C:$AP,37,FALSE) -> 201731.164 | AE71: =VLOOKUP(AE$64&$Y71,GTYF!$C:$AP,37,FALSE) -> 2726.676 | AF71: =VLOOKUP(AF$64&$Y71,GTYF!$C:$AP,37,FALSE) -> 16378.48 | AG71: =VLOOKUP(AG$64&$Y71,GTYF!$C:$AP,37,FALSE) -> 341.3 | AH71: =VLOOKUP(AH$64&$Y71,GTYF!$C:$AP,37,FALSE) -> 218452.192
B72: Peupleraies | D72: 20 | E72: 0.009803921569 | F72: 0 | G72: 0 | H72: 600 | I72: 0.002669039146 | J72: 100 | K72: 0.001960784314 | L72: 2200 | M72: 0.02795425667 | N72: 2900 | O72: 0.008180535966 | S72: Tableau 4. | T72: 20 | U72: 0.007782101167 | V72: 17.5908 | W72: 2.4092 | Y72: (FCTYF_PEU) | Z72: =VLOOKUP(Z$64&$Y72,GTYF!$C:$AP,6,FALSE) -> 3681.6 | AA72: =VLOOKUP(AA$64&$Y72,GTYF!$C:$AP,37,FALSE) -> 87.954 | AB72: =VLOOKUP(AB$64&$Y72,GTYF!$C:$AP,37,FALSE) -> 0 | AC72: =VLOOKUP(AC$64&$Y72,GTYF!$C:$AP,37,FALSE) -> 87.954 | AD72: =VLOOKUP(AD$64&$Y72,GTYF!$C:$AP,37,FALSE) -> 3007.132 | AE72: =VLOOKUP(AE$64&$Y72,GTYF!$C:$AP,37,FALSE) -> 107.922 | AF72: =VLOOKUP(AF$64&$Y72,GTYF!$C:$AP,37,FALSE) -> 11230.428 | AG72: =VLOOKUP(AG$64&$Y72,GTYF!$C:$AP,37,FALSE) -> 541.382 | AH72: =VLOOKUP(AH$64&$Y72,GTYF!$C:$AP,37,FALSE) -> 14778.942
B73: Peupleraies à résineux | D73: 0 | E73: 0 | F73: 0 | G73: 0 | H73: 0 | I73: 0 | J73: 0 | K73: 0 | L73: 0 | M73: 0 | N73: 0 | O73: 0 | S73: Tableau 4. | T73: 0 | U73: 0 | V73: 0 | W73: 0 | Y73: (FCTYF_PEUR) | Z73: =VLOOKUP(Z$64&$Y73,GTYF!$C:$AP,6,FALSE) -> 0 | AA73: =VLOOKUP(AA$64&$Y73,GTYF!$C:$AP,37,FALSE) -> 0 | AB73: =VLOOKUP(AB$64&$Y73,GTYF!$C:$AP,37,FALSE) -> 0 | AC73: =VLOOKUP(AC$64&$Y73,GTYF!$C:$AP,37,FALSE) -> 0 | AD73: =VLOOKUP(AD$64&$Y73,GTYF!$C:$AP,37,FALSE) -> 0 | AE73: =VLOOKUP(AE$64&$Y73,GTYF!$C:$AP,37,FALSE) -> 0 | AF73: =VLOOKUP(AF$64&$Y73,GTYF!$C:$AP,37,FALSE) -> 0 | AG73: =VLOOKUP(AG$64&$Y73,GTYF!$C:$AP,37,FALSE) -> 0 | AH73: =VLOOKUP(AH$64&$Y73,GTYF!$C:$AP,37,FALSE) -> 0
B74: Pinèdes blanches | D74: 0 | E74: 0 | F74: 0 | G74: 0 | H74: 0 | I74: 0 | J74: 0 | K74: 0 | L74: 0 | M74: 0 | N74: 0 | O74: 0 | S74: Tableau 4. | T74: 0 | U74: 0 | V74: 0 | W74: 0 | Y74: (FCTYF_PIN) | Z74: =VLOOKUP(Z$64&$Y74,GTYF!$C:$AP,6,FALSE) -> 0 | AA74: =VLOOKUP(AA$64&$Y74,GTYF!$C:$AP,37,FALSE) -> 0 | AB74: =VLOOKUP(AB$64&$Y74,GTYF!$C:$AP,37,FALSE) -> 0 | AC74: =VLOOKUP(AC$64&$Y74,GTYF!$C:$AP,37,FALSE) -> 0 | AD74: =VLOOKUP(AD$64&$Y74,GTYF!$C:$AP,37,FALSE) -> 0 | AE74: =VLOOKUP(AE$64&$Y74,GTYF!$C:$AP,37,FALSE) -> 0 | AF74: =VLOOKUP(AF$64&$Y74,GTYF!$C:$AP,37,FALSE) -> 0 | AG74: =VLOOKUP(AG$64&$Y74,GTYF!$C:$AP,37,FALSE) -> 0 | AH74: =VLOOKUP(AH$64&$Y74,GTYF!$C:$AP,37,FALSE) -> 0
B75: Pinèdes grises | D75: 0 | E75: 0 | F75: 0 | G75: 0 | H75: 0 | I75: 0 | J75: 0 | K75: 0 | L75: 0 | M75: 0 | N75: 0 | O75: 0 | S75: Tableau 4. | T75: 0 | U75: 0 | V75: 0 | W75: 0 | Y75: (FCTYF_PIG) | Z75: =VLOOKUP(Z$64&$Y75,GTYF!$C:$AP,6,FALSE) -> 0 | AA75: =VLOOKUP(AA$64&$Y75,GTYF!$C:$AP,37,FALSE) -> 0 | AB75: =VLOOKUP(AB$64&$Y75,GTYF!$C:$AP,37,FALSE) -> 0 | AC75: =VLOOKUP(AC$64&$Y75,GTYF!$C:$AP,37,FALSE) -> 0 | AD75: =VLOOKUP(AD$64&$Y75,GTYF!$C:$AP,37,FALSE) -> 0 | AE75: =VLOOKUP(AE$64&$Y75,GTYF!$C:$AP,37,FALSE) -> 0 | AF75: =VLOOKUP(AF$64&$Y75,GTYF!$C:$AP,37,FALSE) -> 0 | AG75: =VLOOKUP(AG$64&$Y75,GTYF!$C:$AP,37,FALSE) -> 0 | AH75: =VLOOKUP(AH$64&$Y75,GTYF!$C:$AP,37,FALSE) -> 0
B76: Prucheraies | D76: 0 | E76: 0 | F76: 0 | G76: 0 | H76: 0 | I76: 0 | J76: 0 | K76: 0 | L76: 0 | M76: 0 | N76: 0 | O76: 0 | S76: Tableau 4. | T76: 0 | U76: 0 | V76: 0 | W76: 0 | Y76: (FCTYF_PRU) | Z76: =VLOOKUP(Z$64&$Y76,GTYF!$C:$AP,6,FALSE) -> 0 | AA76: =VLOOKUP(AA$64&$Y76,GTYF!$C:$AP,37,FALSE) -> 0 | AB76: =VLOOKUP(AB$64&$Y76,GTYF!$C:$AP,37,FALSE) -> 0 | AC76: =VLOOKUP(AC$64&$Y76,GTYF!$C:$AP,37,FALSE) -> 0 | AD76: =VLOOKUP(AD$64&$Y76,GTYF!$C:$AP,37,FALSE) -> 0 | AE76: =VLOOKUP(AE$64&$Y76,GTYF!$C:$AP,37,FALSE) -> 0 | AF76: =VLOOKUP(AF$64&$Y76,GTYF!$C:$AP,37,FALSE) -> 0 | AG76: =VLOOKUP(AG$64&$Y76,GTYF!$C:$AP,37,FALSE) -> 0 | AH76: =VLOOKUP(AH$64&$Y76,GTYF!$C:$AP,37,FALSE) -> 0
B77: Résineux à feuillus | D77: 590 | E77: 0.2892156863 | F77: 0 | G77: 0 | H77: 61900 | I77: 0.2753558719 | J77: 6100 | K77: 0.1196078431 | L77: 29600 | M77: 0.376111817 | N77: 97600 | O77: 0.2753173484 | S77: Tableau 4. | T77: 590 | U77: 0.2295719844 | V77: 589.5736 | W77: 0.4264 | Y77: (FCTYF_RF) | Z77: =VLOOKUP(Z$64&$Y77,GTYF!$C:$AP,6,FALSE) -> 40930.1 | AA77: =VLOOKUP(AA$64&$Y77,GTYF!$C:$AP,37,FALSE) -> 2947.868 | AB77: =VLOOKUP(AB$64&$Y77,GTYF!$C:$AP,37,FALSE) -> 0 | AC77: =VLOOKUP(AC$64&$Y77,GTYF!$C:$AP,37,FALSE) -> 2947.868 | AD77: =VLOOKUP(AD$64&$Y77,GTYF!$C:$AP,37,FALSE) -> 309564.2 | AE77: =VLOOKUP(AE$64&$Y77,GTYF!$C:$AP,37,FALSE) -> 5769.46 | AF77: =VLOOKUP(AF$64&$Y77,GTYF!$C:$AP,37,FALSE) -> 147879.54 | AG77: =VLOOKUP(AG$64&$Y77,GTYF!$C:$AP,37,FALSE) -> 30303.676 | AH77: =VLOOKUP(AH$64&$Y77,GTYF!$C:$AP,37,FALSE) -> 487747.416
B78: Sapinières | D78: 660 | E78: 0.3235294118 | F78: 0 | G78: 0 | H78: 88800 | I78: 0.3950177936 | J78: =ROUND(AG78/5,-2) -> 2200 | K78: 0.0431372549 | L78: 12100 | M78: 0.1537484117 | N78: 103100 | O78: 0.290832158 | S78: Tableau 4. | T78: 660 | U78: 0.2568093385 | V78: 657.2708 | W78: 2.7292 | Y78: (FCTYF_SAB) | Z78: =VLOOKUP(Z$64&$Y78,GTYF!$C:$AP,6,FALSE) -> 56879.6 | AA78: =VLOOKUP(AA$64&$Y78,GTYF!$C:$AP,37,FALSE) -> 3279.274 | AB78: =VLOOKUP(AB$64&$Y78,GTYF!$C:$AP,37,FALSE) -> 7.08 | AC78: =VLOOKUP(AC$64&$Y78,GTYF!$C:$AP,37,FALSE) -> 3286.354 | AD78: =VLOOKUP(AD$64&$Y78,GTYF!$C:$AP,37,FALSE) -> 443990.92 | AE78: =VLOOKUP(AE$64&$Y78,GTYF!$C:$AP,37,FALSE) -> 781.17 | AF78: =VLOOKUP(AF$64&$Y78,GTYF!$C:$AP,37,FALSE) -> 60678.586 | AG78: =VLOOKUP(AG$64&$Y78,GTYF!$C:$AP,37,FALSE) -> 10790.368 | AH78: =VLOOKUP(AH$64&$Y78,GTYF!$C:$AP,37,FALSE) -> 515459.876
B79: Total | D79: =SUM(D65:D78) -> 2040 | E79: =SUM(E65:E78) -> 1 | F79: =SUM(F65:F78) -> 530 | G79: =SUM(G65:G78) -> 1 | H79: =SUM(H65:H78) -> 224800 | I79: =SUM(I65:I78) -> 1 | J79: 51000 | K79: 1 | L79: 78700 | M79: 1 | N79: =SUM(N65:N78) -> 354500 | O79: 1 | S79: Tableau 4. | T79: =SUM(T65:T78) -> 2570 | U79: =SUM(U65:U78) -> 1 | V79: =SUM(V65:V78) -> 2564.08 | W79: 5.92 | Y79: Somme | Z79: =SUM(Z65:Z78) -> 214811.7 | AA79: =SUM(AA65:AA78) -> 10137.874 | AB79: =SUM(AB65:AB78) -> 2682.526 | AC79: =SUM(AC65:AC78) -> 12820.398
B80: * Les superficies sont arrondies à la dizaine près et les volumes à la centaine près. Cette opération peut engendrer de légères distorsions sur les sommes | S80: Tableau 4. | Y80: Total (Output) | Z80: =VLOOKUP(Z$64,Output!$C:$AP,6,FALSE) -> 216319
Y81: Écart | Z81: =Z79-Z80 -> -1507.3
N82: Écart de possibilité
N83: =Instructions!I5/5-N79 -> 0 | O83: Valideur
B84: Tableau 8. Traitements commerciaux supportant les possibilités forestières
B85: Traitements commerciaux (récolte) | G85: Superficie annuelle moyenne (ha/an) | H85: Superficie antérieure (ha/an) | I85: Écart (ha/an)
T88: Légende | U88: Name | V88: PERIOD2@6
B89: Coupe avec protection de la régénération et des sols (CPRS) | G89: =IFERROR(ROUND(V89,-1),0)-G90-G91 -> 1670 | H89: =IFERROR(ROUND(VLOOKUP(O33,DataLocal!$A:$BH,37,FALSE),-1),0) -> 1310 | I89: =G89-H89 -> 360 | S89: =LEFT(B$84,10) -> Tableau 8. | T89: Coupes avec protection de la régénération et des sols (CPRS) | U89: OSUPCT | V89: =IFERROR(VLOOKUP(U89,Output!$C:$AQ,37,FALSE)/5,"0000") -> 2027.5744
B90: Coupe avec protection des petites tiges marchandes (CPPTM) | G90: =IFERROR(ROUND(V90,-1),0) -> 10 | H90: =IFERROR(ROUND(VLOOKUP(O33,DataLocal!$A:$BH,38,FALSE),-1),0) -> 0 | I90: =G90-H90 -> 10 | S90: Tableau 8. | T90: Coupe avec protection des petites tiges marchandes (CPPTM) | U90: OSUPREALACPPTM | V90: =IFERROR(VLOOKUP(U90,Output!$C:$AQ,37,FALSE)/5,"0000") -> 12.012
B91: Coupe avec réserve de semenciers (CRS) | G91: =IFERROR(ROUND(V91,-1),0) -> 350 | H91: =IFERROR(ROUND(VLOOKUP(33,DataLocal!$A:$BH,39,FALSE),-1),0) -> 0 | I91: 350 | S91: Tableau 8. | T91: Coupe avec réserve de semenciers (CRS) | U91: OSUPREALACRS | V91: =IFERROR(VLOOKUP(U91,Output!$C:$AQ,37,FALSE)/5,"0000") -> 345.4896
B92: Total des coupes finales | G92: =SUM(G89:G91) -> 2030 | H92: =SUM(H89:H91) -> 1310 | I92: 720 | S92: Tableau 8.
B93: Éclaircie commerciale | G93: =IFERROR(ROUND(V93,-1),0) -> 100 | H93: =IFERROR(ROUND(VLOOKUP(O33,DataLocal!$A:$BH,40,FALSE),-1),0) -> 0 | I93: 100 | S93: Tableau 8. | T93: Éclaircie commerciale (EC) | U93: OSUPEC_SEPM | V93: =IFERROR(VLOOKUP(U93,Output!$C:$AQ,37,FALSE)/5,"0000") -> 100.5052
B94: Coupe progressive régulière | G94: =IFERROR(ROUND(V94+V95,-1),0) -> 0 | H94: =IFERROR(ROUND(VLOOKUP(O33,DataLocal!$A:$BH,41,FALSE),-1),0) -> 750 | I94: -750 | S94: Tableau 8. | T94: Coupe progressive régulière initiale (CPROG) | U94: OSUPCPROG_INI | V94: =IFERROR(VLOOKUP(U94,Output!$C:$AQ,37,FALSE)/5,"0000") -> 0000
B95: Coupe progressive irrégulière à régénération lente (CPIL) | G95: =IFERROR(ROUND(V96+V97,-1),0) -> 250 | H95: =IFERROR(ROUND(VLOOKUP(O33,DataLocal!$A:$BH,42,FALSE),-1),0) -> 0 | I95: 250 | S95: Tableau 8. | T95: Coupe progressive régulière finale (CPROG) | U95: OSUPCPROG_FIN | V95: =IFERROR(VLOOKUP(U95,Output!$C:$AQ,37,FALSE)/5,"0000") -> 0000
B96: Coupe progressive irrégulière à couvert permanent (CPICP) | G96: =IFERROR(ROUND(V98,-1),0) -> 180 | H96: =IFERROR(ROUND(VLOOKUP(O33,DataLocal!$A:$BH,43,FALSE),-1),0) -> 0 | I96: 180 | S96: Tableau 8. | T96: Coupe progessive irrégulière initiale (CPIRL) | U96: OSUPCPIRL_INI | V96: =IFERROR(VLOOKUP(U96,Output!$C:$AQ,37,FALSE)/5,"0000") -> 252.2416
B97: Coupes de jardinage ou d'amélioration | G97: =IFERROR(ROUND(V99,-1),0) -> 0 | H97: =IFERROR(ROUND(VLOOKUP(O33,DataLocal!$A:$BH,44,FALSE),-1),0) -> 120 | I97: -120 | T97: Coupe progessive irrégulière finale (CPIRL) | U97: OSUPCPIRL_FIN | V97: =IFERROR(VLOOKUP(U97,Output!$C:$AQ,37,FALSE)/5,"0000") -> 0
B98: Total des coupes partielles | G98: =SUM(G93:G97) -> 530 | H98: =SUM(H93:H97) -> 870 | I98: -340 | S98: =LEFT(B$84,10) -> Tableau 8. | T98: Coupe à couvert permanent (CPICP) | U98: OSUPCPICP | V98: =IFERROR(VLOOKUP(U98,Output!$C:$AQ,37,FALSE)/5,"0000") -> 183.7584
B99: Total des activités de récolte | G99: =G92+G98 -> 2560 | H99: =H98+H92 -> 2180 | I99: 380 | S99: =LEFT(B$84,10) -> Tableau 8. | T99: Coupe de jardinage (CJ) | U99: OSUPCJ | V99: =IFERROR(VLOOKUP(U99,Output!$C:$AQ,37,FALSE)/5,"0000") -> 0000
B100: % des coupes totales / récolte | G100: =IFERROR(G92/G99,0) -> 0.79296875 | H100: =IFERROR(H92/H99,0) -> 0.6009174312 | I100: =ROUND(G100-H100,2) -> 0.19 | W100: Valideur
B101: % des coupes partielles / récolte | G101: =IFERROR(G98/G99,0) -> 0.20703125 | H101: =IFERROR(H98/H99,0) -> 0.3990825688 | I101: =ROUND(G101-H101,2) -> -0.19 | S101: =LEFT(B$84,10) -> Tableau 8. | U101: OSUPREALREGAPAR | V101: =VLOOKUP(U101,Output!$C:$AQ,37,FALSE)/5 -> 536.5052 | W101: =ROUND(SUM(V93:V99),0)=ROUND(V101,0) -> TRUE
B102: Coupes partielles de peuplements résineux | G102: =(AB67+AB71+AB75+AB76+AB77+AB78)/5 -> 111.3692 | H102: =IFERROR(ROUND(VLOOKUP(O33,DataLocal!$A:$BH,45,FALSE),-1),0) -> 300 | I102: -188.6308 | S102: =LEFT(B$84,10) -> Tableau 8. | U102: OSUPREALREGAFIN | V102: =VLOOKUP(U102,Output!$C:$AQ,37,FALSE)/5 -> 2027.5744 | W102: =ROUND((V89),0)=ROUND(V102,0) -> TRUE
B103: Coupes partielles de peuplements de feuillus tolérants et de pins | G103: =(AB69+AB70+AB74)/5 -> 425.136 | H103: =IFERROR(ROUND(VLOOKUP(O33,DataLocal!$A:$BH,46,FALSE),-1),0) -> 580 | I103: -154.864 | S103: =LEFT(B$84,10) -> Tableau 8. | U103: OSUPREALREGAPRE | V103: =VLOOKUP(U103,Output!$C:$AQ,37,FALSE)/5 -> 2564.0804 | W103: =ROUND(V89+SUM(V93:V99),0)=ROUND(V103,0) -> TRUE
B109: Tableau 9. Variables descriptives reliées aux coupes partielles et totales par grand type de forêt | L109: La CRV est-elle compabilisée avec les coupes partielles (regaPar)?
B110: Grands types de forêt | E110: Coupes partielles | H110: Coupes totales | L110: Si Oui - Remplacer alors les valeurs (colonne H et I) par celles-ci
E111: Rotation moyenne | F111: Prélèvement moyen | G111: Surface terrière moyenne avant coupe | H111: Âge moyen des peuplements | I111: Volume moyen toutes essences | J111: Dimension des bois SEPM | M111: Âge moyen des peuplements | N111: Volume moyen toutes essences
S113: Référence Tableau 63 du cahier d'analyse VF
E115: Années | F115: ="m"&CHAR(179)&"/ha" -> m³/ha | G115: ="m"&CHAR(178)&"/ha" -> m²/ha | H115: Années | I115: ="m"&CHAR(179)&"/an" -> m³/an | J115: ="dcm"&CHAR(179)&"/tige" -> dcm³/tige | M115: Années | N115: ="m"&CHAR(179)&"/an" -> m³/an | S115: =LEFT(B$109,10) -> Tableau 9. | V115: OSUPREALREGAPRE | W115: OSUPINC | X115: OVOLGSEPMRECREGAFIN | Y115: ONBTGSEPMRECREGAFIN | Z115: OVOLTOTRECACT | AA115: OVOLTOTRECACFP | AB115: OVOLTOTRECACRS | AC115: OVOLTOTRECACPPTM | AD115: OSUPREALREGAFIN | AE115: OVOLTOTRECACRV | AF115: OAGETOTRECACT | AG115: OAGETOTRECACFP | AH115: OAGETOTRECACRS | AI115: OAGETOTRECACPPTM | AJ115: OSUPREALREGAFIN | AK115: OAGETOTRECACRV | AM115: OVOLTOTRECaEC | AN115: OVOLTOTRECaEC2 | AO115: OVOLTOTRECaEC3 | AP115: OVOLTOTRECaCA | AQ115: OVOLTOTRECaCA2 | AR115: OVOLTOTRECaCPROG | AS115: OVOLTOTRECaCPIL | AT115: OVOLTOTRECaCPIP | AU115: OVOLTOTRECaCPFORT | AV115: OVOLTOTRECaCPFAIBL | AW115: OVOLTOTRECaCP | AX115: OVOLTOTRECaCPJ | AY115: OVOLTOTRECaCJ | AZ115: SOMME | BA115: OSUPREALREGAPAR
B116: =T116 -> Bétulaies blanches | E116: =IFERROR($AZ116/$BA116,"-") -> - | F116: - | G116: - | H116: =IFERROR(($AF116+$AG116+$AH116+$AI116+$AK116)/$AJ116*5,"-") -> 113.2643611 | I116: =IFERROR(($Z116+$AA116+$AB116+$AC116+$AE116)/$AD116,"-") -> 148.5166263 | J116: =(IFERROR(X116/Y116*1000,"-")) -> 135.3963949 | M116: =IFERROR(($AF116+$AG116+$AH116+$AI116)/$AJ116*5,"-") -> 113.2643611 | N116: =IFERROR(($Z116+$AA116+$AB116+$AC116)/$AD116,"-") -> 148.5166263 | S116: =LEFT(B$109,10) -> Tableau 9. | T116: Bétulaies blanches | U116: (FCTYF_BOP) | V116: =VLOOKUP(V$115&$U116,GTYF!$C:$AQ,37,FALSE) -> 359.13 | W116: =VLOOKUP(W$115&$U116,GTYF!$C:$AQ,6,FALSE) -> 6590.5 | X116: =VLOOKUP(X$115&$U116,GTYF!$C:$AQ,37,FALSE) -> 10155.796 | Y116: =VLOOKUP(Y$115&$U116,GTYF!$C:$AQ,37,FALSE) -> 75007.876 | Z116: =VLOOKUP(Z$115&$U116,GTYF!$C:$AQ,37,FALSE) -> 53336.776 | AA116: =VLOOKUP(AA$115&$U116,GTYF!$C:$AQ,37,FALSE) -> 0 | AB116: =VLOOKUP(AB$115&$U116,GTYF!$C:$AQ,37,FALSE) -> 0 | AC116: =VLOOKUP(AC$115&$U116,GTYF!$C:$AQ,37,FALSE) -> 0 | AD116: =VLOOKUP(AD$115&$U116,GTYF!$C:$AQ,37,FALSE) -> 359.13 | AE116: =VLOOKUP(AE$115&$U116,GTYF!$C:$AQ,37,FALSE) -> 0 | AF116: =VLOOKUP(AF$115&$U116,GTYF!$C:$AQ,37,FALSE) -> 8135.326 | AG116: =VLOOKUP(AG$115&$U116,GTYF!$C:$AQ,37,FALSE) -> 0 | AH116: =VLOOKUP(AH$115&$U116,GTYF!$C:$AQ,37,FALSE) -> 0 | AI116: =VLOOKUP(AI$115&$U116,GTYF!$C:$AQ,37,FALSE) -> 0 | AJ116: =VLOOKUP(AJ$115&$U116,GTYF!$C:$AQ,37,FALSE) -> 359.13 | AK116: =VLOOKUP(AK$115&$U116,GTYF!$C:$AQ,37,FALSE) -> 0 | AM116: =VLOOKUP(AM$115&$U116,GTYF!$C:$AQ,37,FALSE) -> 0 | AN116: =VLOOKUP(AN$115&$U116,GTYF!$C:$AQ,37,FALSE) -> 0 | AO116: =VLOOKUP(AO$115&$U116,GTYF!$C:$AQ,37,FALSE) -> 0 | AP116: =VLOOKUP(AP$115&$U116,GTYF!$C:$AQ,37,FALSE) -> 0 | AQ116: =VLOOKUP(AQ$115&$U116,GTYF!$C:$AQ,37,FALSE) -> 0 | AR116: =VLOOKUP(AR$115&$U116,GTYF!$C:$AQ,37,FALSE) -> 0 | AS116: =VLOOKUP(AS$115&$U116,GTYF!$C:$AQ,37,FALSE) -> 0 | AT116: =VLOOKUP(AT$115&$U116,GTYF!$C:$AQ,37,FALSE) -> 0 | AU116: =VLOOKUP(AU$115&$U116,GTYF!$C:$AQ,37,FALSE) -> 0 | AV116: =VLOOKUP(AV$115&$U116,GTYF!$C:$AQ,37,FALSE) -> 0 | AW116: =VLOOKUP(AW$115&$U116,GTYF!$C:$AQ,37,FALSE) -> 0 | AX116: =VLOOKUP(AX$115&$U116,GTYF!$C:$AQ,37,FALSE) -> 0 | AY116: =VLOOKUP(AY$115&$U116,GTYF!$C:$AQ,37,FALSE) -> 0 | AZ116: =SUM(AM116:AY116) -> 0 | BA116: =VLOOKUP(BA$115&$U116,GTYF!$C:$AQ,37,FALSE) -> 0
B117: Bétulaies blanches à résineux | E117: - | F117: - | G117: - | H117: =IFERROR(($AF117+$AG117+$AH117+$AI117+$AK117)/$AJ117*5,"-") -> 104.4740899 | I117: =IFERROR(($Z117+$AA117+$AB117+$AC117+$AE117)/$AD117,"-") -> 145.8692414 | J117: =(IFERROR(X117/Y117*1000,"-")) -> 182.0069814 | M117: =IFERROR(($AF117+$AG117+$AH117+$AI117)/$AJ117*5,"-") -> 104.4740899 | N117: =IFERROR(($Z117+$AA117+$AB117+$AC117)/$AD117,"-") -> 145.8692414 | S117: Tableau 9. | T117: Bétulaies blanches à résineux | U117: (FCTYF_BOPR) | V117: =VLOOKUP(V$115&$U117,GTYF!$C:$AQ,37,FALSE) -> 935.388 | W117: =VLOOKUP(W$115&$U117,GTYF!$C:$AQ,6,FALSE) -> 20007.2 | X117: =VLOOKUP(X$115&$U117,GTYF!$C:$AQ,37,FALSE) -> 59386.73 | Y117: =VLOOKUP(Y$115&$U117,GTYF!$C:$AQ,37,FALSE) -> 326288.198 | Z117: =VLOOKUP(Z$115&$U117,GTYF!$C:$AQ,37,FALSE) -> 83740.574 | AA117: =VLOOKUP(AA$115&$U117,GTYF!$C:$AQ,37,FALSE) -> 0 | AB117: =VLOOKUP(AB$115&$U117,GTYF!$C:$AQ,37,FALSE) -> 52703.764 | AC117: =VLOOKUP(AC$115&$U117,GTYF!$C:$AQ,37,FALSE) -> 0 | AD117: =VLOOKUP(AD$115&$U117,GTYF!$C:$AQ,37,FALSE) -> 935.388 | AE117: =VLOOKUP(AE$115&$U117,GTYF!$C:$AQ,37,FALSE) -> 0 | AF117: =VLOOKUP(AF$115&$U117,GTYF!$C:$AQ,37,FALSE) -> 12955.172 | AG117: =VLOOKUP(AG$115&$U117,GTYF!$C:$AQ,37,FALSE) -> 0 | AH117: =VLOOKUP(AH$115&$U117,GTYF!$C:$AQ,37,FALSE) -> 6589.59 | AI117: =VLOOKUP(AI$115&$U117,GTYF!$C:$AQ,37,FALSE) -> 0 | AJ117: =VLOOKUP(AJ$115&$U117,GTYF!$C:$AQ,37,FALSE) -> 935.388 | AK117: =VLOOKUP(AK$115&$U117,GTYF!$C:$AQ,37,FALSE) -> 0 | AM117: =VLOOKUP(AM$115&$U117,GTYF!$C:$AQ,37,FALSE) -> 0 | AN117: =VLOOKUP(AN$115&$U117,GTYF!$C:$AQ,37,FALSE) -> 0 | AO117: =VLOOKUP(AO$115&$U117,GTYF!$C:$AQ,37,FALSE) -> 0 | AP117: =VLOOKUP(AP$115&$U117,GTYF!$C:$AQ,37,FALSE) -> 0 | AQ117: =VLOOKUP(AQ$115&$U117,GTYF!$C:$AQ,37,FALSE) -> 0 | AR117: =VLOOKUP(AR$115&$U117,GTYF!$C:$AQ,37,FALSE) -> 0 | AS117: =VLOOKUP(AS$115&$U117,GTYF!$C:$AQ,37,FALSE) -> 0 | AT117: =VLOOKUP(AT$115&$U117,GTYF!$C:$AQ,37,FALSE) -> 0 | AU117: =VLOOKUP(AU$115&$U117,GTYF!$C:$AQ,37,FALSE) -> 0 | AV117: =VLOOKUP(AV$115&$U117,GTYF!$C:$AQ,37,FALSE) -> 0 | AW117: =VLOOKUP(AW$115&$U117,GTYF!$C:$AQ,37,FALSE) -> 0 | AX117: =VLOOKUP(AX$115&$U117,GTYF!$C:$AQ,37,FALSE) -> 0 | AY117: =VLOOKUP(AY$115&$U117,GTYF!$C:$AQ,37,FALSE) -> 0 | AZ117: =SUM(AM117:AY117) -> 0 | BA117: =VLOOKUP(BA$115&$U117,GTYF!$C:$AQ,37,FALSE) -> 0
B118: Cédrières | F118: - | H118: =IFERROR(($AF118+$AG118+$AH118+$AI118+$AK118)/$AJ118*5,"-") -> - | I118: - | J118: =(IFERROR(X118/Y118*1000,"-")) -> - | M118: - | N118: - | S118: Tableau 9. | T118: Cédrières | U118: (FCTYF_THO) | V118: =VLOOKUP(V$115&$U118,GTYF!$C:$AQ,37,FALSE) -> 0 | W118: =VLOOKUP(W$115&$U118,GTYF!$C:$AQ,6,FALSE) -> 0 | X118: =VLOOKUP(X$115&$U118,GTYF!$C:$AQ,37,FALSE) -> 0 | Y118: =VLOOKUP(Y$115&$U118,GTYF!$C:$AQ,37,FALSE) -> 0 | Z118: =VLOOKUP(Z$115&$U118,GTYF!$C:$AQ,37,FALSE) -> 0 | AA118: =VLOOKUP(AA$115&$U118,GTYF!$C:$AQ,37,FALSE) -> 0 | AB118: =VLOOKUP(AB$115&$U118,GTYF!$C:$AQ,37,FALSE) -> 0 | AC118: =VLOOKUP(AC$115&$U118,GTYF!$C:$AQ,37,FALSE) -> 0 | AD118: =VLOOKUP(AD$115&$U118,GTYF!$C:$AQ,37,FALSE) -> 0 | AE118: =VLOOKUP(AE$115&$U118,GTYF!$C:$AQ,37,FALSE) -> 0 | AF118: =VLOOKUP(AF$115&$U118,GTYF!$C:$AQ,37,FALSE) -> 0 | AG118: =VLOOKUP(AG$115&$U118,GTYF!$C:$AQ,37,FALSE) -> 0 | AH118: =VLOOKUP(AH$115&$U118,GTYF!$C:$AQ,37,FALSE) -> 0 | AI118: =VLOOKUP(AI$115&$U118,GTYF!$C:$AQ,37,FALSE) -> 0 | AJ118: =VLOOKUP(AJ$115&$U118,GTYF!$C:$AQ,37,FALSE) -> 0 | AK118: =VLOOKUP(AK$115&$U118,GTYF!$C:$AQ,37,FALSE) -> 0 | AM118: =VLOOKUP(AM$115&$U118,GTYF!$C:$AQ,37,FALSE) -> 0 | AN118: =VLOOKUP(AN$115&$U118,GTYF!$C:$AQ,37,FALSE) -> 0 | AO118: =VLOOKUP(AO$115&$U118,GTYF!$C:$AQ,37,FALSE) -> 0 | AP118: =VLOOKUP(AP$115&$U118,GTYF!$C:$AQ,37,FALSE) -> 0 | AQ118: =VLOOKUP(AQ$115&$U118,GTYF!$C:$AQ,37,FALSE) -> 0 | AR118: =VLOOKUP(AR$115&$U118,GTYF!$C:$AQ,37,FALSE) -> 0 | AS118: =VLOOKUP(AS$115&$U118,GTYF!$C:$AQ,37,FALSE) -> 0 | AT118: =VLOOKUP(AT$115&$U118,GTYF!$C:$AQ,37,FALSE) -> 0 | AU118: =VLOOKUP(AU$115&$U118,GTYF!$C:$AQ,37,FALSE) -> 0 | AV118: =VLOOKUP(AV$115&$U118,GTYF!$C:$AQ,37,FALSE) -> 0 | AW118: =VLOOKUP(AW$115&$U118,GTYF!$C:$AQ,37,FALSE) -> 0 | AX118: =VLOOKUP(AX$115&$U118,GTYF!$C:$AQ,37,FALSE) -> 0 | AY118: =VLOOKUP(AY$115&$U118,GTYF!$C:$AQ,37,FALSE) -> 0 | AZ118: 0 | BA118: =VLOOKUP(BA$115&$U118,GTYF!$C:$AQ,37,FALSE) -> 0
B119: Érablières rouges | E119: - | F119: - | G119: - | H119: 103.1139863 | I119: 164.0272076 | J119: 178.0000405 | M119: 103.1139863 | N119: 164.0272076 | S119: Tableau 9. | T119: Érablières rouges | U119: (FCTYF_ERO) | V119: =VLOOKUP(V$115&$U119,GTYF!$C:$AQ,37,FALSE) -> 82.624 | W119: =VLOOKUP(W$115&$U119,GTYF!$C:$AQ,6,FALSE) -> 1359.9 | X119: =VLOOKUP(X$115&$U119,GTYF!$C:$AQ,37,FALSE) -> 2917.494 | Y119: =VLOOKUP(Y$115&$U119,GTYF!$C:$AQ,37,FALSE) -> 16390.412 | Z119: =VLOOKUP(Z$115&$U119,GTYF!$C:$AQ,37,FALSE) -> 13552.584 | AA119: =VLOOKUP(AA$115&$U119,GTYF!$C:$AQ,37,FALSE) -> 0 | AB119: =VLOOKUP(AB$115&$U119,GTYF!$C:$AQ,37,FALSE) -> 0 | AC119: =VLOOKUP(AC$115&$U119,GTYF!$C:$AQ,37,FALSE) -> 0 | AD119: =VLOOKUP(AD$115&$U119,GTYF!$C:$AQ,37,FALSE) -> 82.624 | AE119: =VLOOKUP(AE$115&$U119,GTYF!$C:$AQ,37,FALSE) -> 0 | AF119: =VLOOKUP(AF$115&$U119,GTYF!$C:$AQ,37,FALSE) -> 1703.938 | AG119: =VLOOKUP(AG$115&$U119,GTYF!$C:$AQ,37,FALSE) -> 0 | AH119: =VLOOKUP(AH$115&$U119,GTYF!$C:$AQ,37,FALSE) -> 0 | AI119: =VLOOKUP(AI$115&$U119,GTYF!$C:$AQ,37,FALSE) -> 0 | AJ119: =VLOOKUP(AJ$115&$U119,GTYF!$C:$AQ,37,FALSE) -> 82.624 | AK119: =VLOOKUP(AK$115&$U119,GTYF!$C:$AQ,37,FALSE) -> 0 | AM119: =VLOOKUP(AM$115&$U119,GTYF!$C:$AQ,37,FALSE) -> 0 | AN119: =VLOOKUP(AN$115&$U119,GTYF!$C:$AQ,37,FALSE) -> 0 | AO119: =VLOOKUP(AO$115&$U119,GTYF!$C:$AQ,37,FALSE) -> 0 | AP119: =VLOOKUP(AP$115&$U119,GTYF!$C:$AQ,37,FALSE) -> 0 | AQ119: =VLOOKUP(AQ$115&$U119,GTYF!$C:$AQ,37,FALSE) -> 0 | AR119: =VLOOKUP(AR$115&$U119,GTYF!$C:$AQ,37,FALSE) -> 0 | AS119: =VLOOKUP(AS$115&$U119,GTYF!$C:$AQ,37,FALSE) -> 0 | AT119: =VLOOKUP(AT$115&$U119,GTYF!$C:$AQ,37,FALSE) -> 0 | AU119: =VLOOKUP(AU$115&$U119,GTYF!$C:$AQ,37,FALSE) -> 0 | AV119: =VLOOKUP(AV$115&$U119,GTYF!$C:$AQ,37,FALSE) -> 0 | AW119: =VLOOKUP(AW$115&$U119,GTYF!$C:$AQ,37,FALSE) -> 0 | AX119: =VLOOKUP(AX$115&$U119,GTYF!$C:$AQ,37,FALSE) -> 0 | AY119: =VLOOKUP(AY$115&$U119,GTYF!$C:$AQ,37,FALSE) -> 0 | AZ119: 0 | BA119: =VLOOKUP(BA$115&$U119,GTYF!$C:$AQ,37,FALSE) -> 0
B120: Feuillus tolérants | E120: 61 | F120: 68.93907804 | G120: 25 | H120: 86.79134241 | I120: 149.6087414 | J120: 128.5834486 | M120: 86.79134241 | N120: 149.6087414 | S120: Tableau 9. | T120: Feuillus tolérants | U120: (FCTYF_FT) | V120: =VLOOKUP(V$115&$U120,GTYF!$C:$AQ,37,FALSE) -> 1698.94 | W120: =VLOOKUP(W$115&$U120,GTYF!$C:$AQ,6,FALSE) -> 38489.1 | X120: =VLOOKUP(X$115&$U120,GTYF!$C:$AQ,37,FALSE) -> 4297.004 | Y120: =VLOOKUP(Y$115&$U120,GTYF!$C:$AQ,37,FALSE) -> 33418.018 | Z120: =VLOOKUP(Z$115&$U120,GTYF!$C:$AQ,37,FALSE) -> 0 | AA120: =VLOOKUP(AA$115&$U120,GTYF!$C:$AQ,37,FALSE) -> 0 | AB120: =VLOOKUP(AB$115&$U120,GTYF!$C:$AQ,37,FALSE) -> 29259.58 | AC120: =VLOOKUP(AC$115&$U120,GTYF!$C:$AQ,37,FALSE) -> 0 | AD120: =VLOOKUP(AD$115&$U120,GTYF!$C:$AQ,37,FALSE) -> 195.574 | AE120: =VLOOKUP(AE$115&$U120,GTYF!$C:$AQ,37,FALSE) -> 0 | AF120: =VLOOKUP(AF$115&$U120,GTYF!$C:$AQ,37,FALSE) -> 0 | AG120: =VLOOKUP(AG$115&$U120,GTYF!$C:$AQ,37,FALSE) -> 0 | AH120: =VLOOKUP(AH$115&$U120,GTYF!$C:$AQ,37,FALSE) -> 3394.826 | AI120: =VLOOKUP(AI$115&$U120,GTYF!$C:$AQ,37,FALSE) -> 0 | AJ120: =VLOOKUP(AJ$115&$U120,GTYF!$C:$AQ,37,FALSE) -> 195.574 | AK120: =VLOOKUP(AK$115&$U120,GTYF!$C:$AQ,37,FALSE) -> 0 | AM120: =VLOOKUP(AM$115&$U120,GTYF!$C:$AQ,37,FALSE) -> 0 | AN120: =VLOOKUP(AN$115&$U120,GTYF!$C:$AQ,37,FALSE) -> 0 | AO120: =VLOOKUP(AO$115&$U120,GTYF!$C:$AQ,37,FALSE) -> 0 | AP120: =VLOOKUP(AP$115&$U120,GTYF!$C:$AQ,37,FALSE) -> 0 | AQ120: =VLOOKUP(AQ$115&$U120,GTYF!$C:$AQ,37,FALSE) -> 0 | AR120: =VLOOKUP(AR$115&$U120,GTYF!$C:$AQ,37,FALSE) -> 0 | AS120: =VLOOKUP(AS$115&$U120,GTYF!$C:$AQ,37,FALSE) -> 0 | AT120: =VLOOKUP(AT$115&$U120,GTYF!$C:$AQ,37,FALSE) -> 14537.718 | AU120: =VLOOKUP(AU$115&$U120,GTYF!$C:$AQ,37,FALSE) -> 47622.652 | AV120: =VLOOKUP(AV$115&$U120,GTYF!$C:$AQ,37,FALSE) -> 41480.296 | AW120: =VLOOKUP(AW$115&$U120,GTYF!$C:$AQ,37,FALSE) -> 0 | AX120: =VLOOKUP(AX$115&$U120,GTYF!$C:$AQ,37,FALSE) -> 0 | AY120: =VLOOKUP(AY$115&$U120,GTYF!$C:$AQ,37,FALSE) -> 0 | AZ120: 103640.666 | BA120: =VLOOKUP(BA$115&$U120,GTYF!$C:$AQ,37,FALSE) -> 1503.366
B121: Feuillus tolérants à résineux | E121: 52 | F121: =IFERROR($AZ121/$BA121,"-") -> 76.8523832 | G121: 25 | H121: > 120 | I121: 157.5956442 | J121: 215.7413136 | M121: 125.8280854 | N121: 157.5956442 | S121: Tableau 9. | T121: Feuillus tolérants à résineux | U121: (FCTYF_FTR) | V121: =VLOOKUP(V$115&$U121,GTYF!$C:$AQ,37,FALSE) -> 1586.814 | W121: =VLOOKUP(W$115&$U121,GTYF!$C:$AQ,6,FALSE) -> 18467.6 | X121: =VLOOKUP(X$115&$U121,GTYF!$C:$AQ,37,FALSE) -> 52070.284 | Y121: =VLOOKUP(Y$115&$U121,GTYF!$C:$AQ,37,FALSE) -> 241355.182 | Z121: =VLOOKUP(Z$115&$U121,GTYF!$C:$AQ,37,FALSE) -> 51990.288 | AA121: =VLOOKUP(AA$115&$U121,GTYF!$C:$AQ,37,FALSE) -> 0 | AB121: =VLOOKUP(AB$115&$U121,GTYF!$C:$AQ,37,FALSE) -> 100011.026 | AC121: =VLOOKUP(AC$115&$U121,GTYF!$C:$AQ,37,FALSE) -> 0 | AD121: =VLOOKUP(AD$115&$U121,GTYF!$C:$AQ,37,FALSE) -> 964.502 | AE121: =VLOOKUP(AE$115&$U121,GTYF!$C:$AQ,37,FALSE) -> 0 | AF121: =VLOOKUP(AF$115&$U121,GTYF!$C:$AQ,37,FALSE) -> 9928.66 | AG121: =VLOOKUP(AG$115&$U121,GTYF!$C:$AQ,37,FALSE) -> 0 | AH121: =VLOOKUP(AH$115&$U121,GTYF!$C:$AQ,37,FALSE) -> 14343.628 | AI121: =VLOOKUP(AI$115&$U121,GTYF!$C:$AQ,37,FALSE) -> 0 | AJ121: =VLOOKUP(AJ$115&$U121,GTYF!$C:$AQ,37,FALSE) -> 964.502 | AK121: =VLOOKUP(AK$115&$U121,GTYF!$C:$AQ,37,FALSE) -> 0 | AM121: =VLOOKUP(AM$115&$U121,GTYF!$C:$AQ,37,FALSE) -> 0 | AN121: =VLOOKUP(AN$115&$U121,GTYF!$C:$AQ,37,FALSE) -> 0 | AO121: =VLOOKUP(AO$115&$U121,GTYF!$C:$AQ,37,FALSE) -> 0 | AP121: =VLOOKUP(AP$115&$U121,GTYF!$C:$AQ,37,FALSE) -> 0 | AQ121: =VLOOKUP(AQ$115&$U121,GTYF!$C:$AQ,37,FALSE) -> 0 | AR121: =VLOOKUP(AR$115&$U121,GTYF!$C:$AQ,37,FALSE) -> 0 | AS121: =VLOOKUP(AS$115&$U121,GTYF!$C:$AQ,37,FALSE) -> 64.296 | AT121: =VLOOKUP(AT$115&$U121,GTYF!$C:$AQ,37,FALSE) -> 3527.76 | AU121: =VLOOKUP(AU$115&$U121,GTYF!$C:$AQ,37,FALSE) -> 44234.258 | AV121: =VLOOKUP(AV$115&$U121,GTYF!$C:$AQ,37,FALSE) -> 0 | AW121: =VLOOKUP(AW$115&$U121,GTYF!$C:$AQ,37,FALSE) -> 0 | AX121: =VLOOKUP(AX$115&$U121,GTYF!$C:$AQ,37,FALSE) -> 0 | AY121: =VLOOKUP(AY$115&$U121,GTYF!$C:$AQ,37,FALSE) -> 0 | AZ121: =SUM(AM121:AY121) -> 47826.314 | BA121: =VLOOKUP(BA$115&$U121,GTYF!$C:$AQ,37,FALSE) -> 622.314
B122: Pessières | E122: 30 | F122: 37.72656367 | G122: 30 | H122: > 120 | I122: 153.7939979 | J122: 139.9015798 | M122: 124.6419381 | N122: 153.7939979 | S122: Tableau 9. | T122: Pessières | U122: (FCTYF_EPX) | V122: =VLOOKUP(V$115&$U122,GTYF!$C:$AQ,37,FALSE) -> 1835.326 | W122: =VLOOKUP(W$115&$U122,GTYF!$C:$AQ,6,FALSE) -> 28406.1 | X122: =VLOOKUP(X$115&$U122,GTYF!$C:$AQ,37,FALSE) -> 179491.712 | Y122: =VLOOKUP(Y$115&$U122,GTYF!$C:$AQ,37,FALSE) -> 1282985.598 | Z122: =VLOOKUP(Z$115&$U122,GTYF!$C:$AQ,37,FALSE) -> 197711.412 | AA122: =VLOOKUP(AA$115&$U122,GTYF!$C:$AQ,37,FALSE) -> 0 | AB122: =VLOOKUP(AB$115&$U122,GTYF!$C:$AQ,37,FALSE) -> 0 | AC122: =VLOOKUP(AC$115&$U122,GTYF!$C:$AQ,37,FALSE) -> 0 | AD122: =VLOOKUP(AD$115&$U122,GTYF!$C:$AQ,37,FALSE) -> 1285.56 | AE122: =VLOOKUP(AE$115&$U122,GTYF!$C:$AQ,37,FALSE) -> 0 | AF122: =VLOOKUP(AF$115&$U122,GTYF!$C:$AQ,37,FALSE) -> 32046.938 | AG122: =VLOOKUP(AG$115&$U122,GTYF!$C:$AQ,37,FALSE) -> 0 | AH122: =VLOOKUP(AH$115&$U122,GTYF!$C:$AQ,37,FALSE) -> 0 | AI122: =VLOOKUP(AI$115&$U122,GTYF!$C:$AQ,37,FALSE) -> 0 | AJ122: =VLOOKUP(AJ$115&$U122,GTYF!$C:$AQ,37,FALSE) -> 1285.56 | AK122: =VLOOKUP(AK$115&$U122,GTYF!$C:$AQ,37,FALSE) -> 0 | AM122: =VLOOKUP(AM$115&$U122,GTYF!$C:$AQ,37,FALSE) -> 17137.42 | AN122: =VLOOKUP(AN$115&$U122,GTYF!$C:$AQ,37,FALSE) -> 0 | AO122: =VLOOKUP(AO$115&$U122,GTYF!$C:$AQ,37,FALSE) -> 0 | AP122: =VLOOKUP(AP$115&$U122,GTYF!$C:$AQ,37,FALSE) -> 0 | AQ122: =VLOOKUP(AQ$115&$U122,GTYF!$C:$AQ,37,FALSE) -> 0 | AR122: =VLOOKUP(AR$115&$U122,GTYF!$C:$AQ,37,FALSE) -> 0 | AS122: =VLOOKUP(AS$115&$U122,GTYF!$C:$AQ,37,FALSE) -> 3603.362 | AT122: =VLOOKUP(AT$115&$U122,GTYF!$C:$AQ,37,FALSE) -> 0 | AU122: =VLOOKUP(AU$115&$U122,GTYF!$C:$AQ,37,FALSE) -> 0 | AV122: =VLOOKUP(AV$115&$U122,GTYF!$C:$AQ,37,FALSE) -> 0 | AW122: =VLOOKUP(AW$115&$U122,GTYF!$C:$AQ,37,FALSE) -> 0 | AX122: =VLOOKUP(AX$115&$U122,GTYF!$C:$AQ,37,FALSE) -> 0 | AY122: =VLOOKUP(AY$115&$U122,GTYF!$C:$AQ,37,FALSE) -> 0 | AZ122: 20740.782 | BA122: =VLOOKUP(BA$115&$U122,GTYF!$C:$AQ,37,FALSE) -> 549.766
B123: Peupleraies | E123: - | F123: - | G123: - | H123: 96.58662483 | I123: 168.0303568 | J123: 161.5572219 | M123: 96.58662483 | N123: 168.0303568 | S123: Tableau 9. | T123: Peupleraies | U123: (FCTYF_PEU) | V123: =VLOOKUP(V$115&$U123,GTYF!$C:$AQ,37,FALSE) -> 87.954 | W123: =VLOOKUP(W$115&$U123,GTYF!$C:$AQ,6,FALSE) -> 3681.6 | X123: =VLOOKUP(X$115&$U123,GTYF!$C:$AQ,37,FALSE) -> 2899.208 | Y123: =VLOOKUP(Y$115&$U123,GTYF!$C:$AQ,37,FALSE) -> 17945.394 | Z123: =VLOOKUP(Z$115&$U123,GTYF!$C:$AQ,37,FALSE) -> 14778.942 | AA123: =VLOOKUP(AA$115&$U123,GTYF!$C:$AQ,37,FALSE) -> 0 | AB123: =VLOOKUP(AB$115&$U123,GTYF!$C:$AQ,37,FALSE) -> 0 | AC123: =VLOOKUP(AC$115&$U123,GTYF!$C:$AQ,37,FALSE) -> 0 | AD123: =VLOOKUP(AD$115&$U123,GTYF!$C:$AQ,37,FALSE) -> 87.954 | AE123: =VLOOKUP(AE$115&$U123,GTYF!$C:$AQ,37,FALSE) -> 0 | AF123: =VLOOKUP(AF$115&$U123,GTYF!$C:$AQ,37,FALSE) -> 1699.036 | AG123: =VLOOKUP(AG$115&$U123,GTYF!$C:$AQ,37,FALSE) -> 0 | AH123: =VLOOKUP(AH$115&$U123,GTYF!$C:$AQ,37,FALSE) -> 0 | AI123: =VLOOKUP(AI$115&$U123,GTYF!$C:$AQ,37,FALSE) -> 0 | AJ123: =VLOOKUP(AJ$115&$U123,GTYF!$C:$AQ,37,FALSE) -> 87.954 | AK123: =VLOOKUP(AK$115&$U123,GTYF!$C:$AQ,37,FALSE) -> 0 | AM123: =VLOOKUP(AM$115&$U123,GTYF!$C:$AQ,37,FALSE) -> 0 | AN123: =VLOOKUP(AN$115&$U123,GTYF!$C:$AQ,37,FALSE) -> 0 | AO123: =VLOOKUP(AO$115&$U123,GTYF!$C:$AQ,37,FALSE) -> 0 | AP123: =VLOOKUP(AP$115&$U123,GTYF!$C:$AQ,37,FALSE) -> 0 | AQ123: =VLOOKUP(AQ$115&$U123,GTYF!$C:$AQ,37,FALSE) -> 0 | AR123: =VLOOKUP(AR$115&$U123,GTYF!$C:$AQ,37,FALSE) -> 0 | AS123: =VLOOKUP(AS$115&$U123,GTYF!$C:$AQ,37,FALSE) -> 0 | AT123: =VLOOKUP(AT$115&$U123,GTYF!$C:$AQ,37,FALSE) -> 0 | AU123: =VLOOKUP(AU$115&$U123,GTYF!$C:$AQ,37,FALSE) -> 0 | AV123: =VLOOKUP(AV$115&$U123,GTYF!$C:$AQ,37,FALSE) -> 0 | AW123: =VLOOKUP(AW$115&$U123,GTYF!$C:$AQ,37,FALSE) -> 0 | AX123: =VLOOKUP(AX$115&$U123,GTYF!$C:$AQ,37,FALSE) -> 0 | AY123: =VLOOKUP(AY$115&$U123,GTYF!$C:$AQ,37,FALSE) -> 0 | AZ123: 0 | BA123: =VLOOKUP(BA$115&$U123,GTYF!$C:$AQ,37,FALSE) -> 0
B124: Peupleraies à résineux | F124: - | H124: - | I124: - | J124: - | M124: - | N124: - | S124: Tableau 9. | T124: Peupleraies à résineux | U124: (FCTYF_PEUR) | V124: =VLOOKUP(V$115&$U124,GTYF!$C:$AQ,37,FALSE) -> 0 | W124: =VLOOKUP(W$115&$U124,GTYF!$C:$AQ,6,FALSE) -> 0 | X124: =VLOOKUP(X$115&$U124,GTYF!$C:$AQ,37,FALSE) -> 0 | Y124: =VLOOKUP(Y$115&$U124,GTYF!$C:$AQ,37,FALSE) -> 0 | Z124: =VLOOKUP(Z$115&$U124,GTYF!$C:$AQ,37,FALSE) -> 0 | AA124: =VLOOKUP(AA$115&$U124,GTYF!$C:$AQ,37,FALSE) -> 0 | AB124: =VLOOKUP(AB$115&$U124,GTYF!$C:$AQ,37,FALSE) -> 0 | AC124: =VLOOKUP(AC$115&$U124,GTYF!$C:$AQ,37,FALSE) -> 0 | AD124: =VLOOKUP(AD$115&$U124,GTYF!$C:$AQ,37,FALSE) -> 0 | AE124: =VLOOKUP(AE$115&$U124,GTYF!$C:$AQ,37,FALSE) -> 0 | AF124: =VLOOKUP(AF$115&$U124,GTYF!$C:$AQ,37,FALSE) -> 0 | AG124: =VLOOKUP(AG$115&$U124,GTYF!$C:$AQ,37,FALSE) -> 0 | AH124: =VLOOKUP(AH$115&$U124,GTYF!$C:$AQ,37,FALSE) -> 0 | AI124: =VLOOKUP(AI$115&$U124,GTYF!$C:$AQ,37,FALSE) -> 0 | AJ124: =VLOOKUP(AJ$115&$U124,GTYF!$C:$AQ,37,FALSE) -> 0 | AK124: =VLOOKUP(AK$115&$U124,GTYF!$C:$AQ,37,FALSE) -> 0 | AM124: =VLOOKUP(AM$115&$U124,GTYF!$C:$AQ,37,FALSE) -> 0 | AN124: =VLOOKUP(AN$115&$U124,GTYF!$C:$AQ,37,FALSE) -> 0 | AO124: =VLOOKUP(AO$115&$U124,GTYF!$C:$AQ,37,FALSE) -> 0 | AP124: =VLOOKUP(AP$115&$U124,GTYF!$C:$AQ,37,FALSE) -> 0 | AQ124: =VLOOKUP(AQ$115&$U124,GTYF!$C:$AQ,37,FALSE) -> 0 | AR124: =VLOOKUP(AR$115&$U124,GTYF!$C:$AQ,37,FALSE) -> 0 | AS124: =VLOOKUP(AS$115&$U124,GTYF!$C:$AQ,37,FALSE) -> 0 | AT124: =VLOOKUP(AT$115&$U124,GTYF!$C:$AQ,37,FALSE) -> 0 | AU124: =VLOOKUP(AU$115&$U124,GTYF!$C:$AQ,37,FALSE) -> 0 | AV124: =VLOOKUP(AV$115&$U124,GTYF!$C:$AQ,37,FALSE) -> 0 | AW124: =VLOOKUP(AW$115&$U124,GTYF!$C:$AQ,37,FALSE) -> 0 | AX124: =VLOOKUP(AX$115&$U124,GTYF!$C:$AQ,37,FALSE) -> 0 | AY124: =VLOOKUP(AY$115&$U124,GTYF!$C:$AQ,37,FALSE) -> 0 | AZ124: 0 | BA124: =VLOOKUP(BA$115&$U124,GTYF!$C:$AQ,37,FALSE) -> 0
B125: Pinèdes blanches | F125: - | H125: - | I125: - | J125: - | M125: - | N125: - | S125: Tableau 9. | T125: Pinèdes blanches | U125: (FCTYF_PIN) | V125: =VLOOKUP(V$115&$U125,GTYF!$C:$AQ,37,FALSE) -> 0 | W125: =VLOOKUP(W$115&$U125,GTYF!$C:$AQ,6,FALSE) -> 0 | X125: =VLOOKUP(X$115&$U125,GTYF!$C:$AQ,37,FALSE) -> 0 | Y125: =VLOOKUP(Y$115&$U125,GTYF!$C:$AQ,37,FALSE) -> 0 | Z125: =VLOOKUP(Z$115&$U125,GTYF!$C:$AQ,37,FALSE) -> 0 | AA125: =VLOOKUP(AA$115&$U125,GTYF!$C:$AQ,37,FALSE) -> 0 | AB125: =VLOOKUP(AB$115&$U125,GTYF!$C:$AQ,37,FALSE) -> 0 | AC125: =VLOOKUP(AC$115&$U125,GTYF!$C:$AQ,37,FALSE) -> 0 | AD125: =VLOOKUP(AD$115&$U125,GTYF!$C:$AQ,37,FALSE) -> 0 | AE125: =VLOOKUP(AE$115&$U125,GTYF!$C:$AQ,37,FALSE) -> 0 | AF125: =VLOOKUP(AF$115&$U125,GTYF!$C:$AQ,37,FALSE) -> 0 | AG125: =VLOOKUP(AG$115&$U125,GTYF!$C:$AQ,37,FALSE) -> 0 | AH125: =VLOOKUP(AH$115&$U125,GTYF!$C:$AQ,37,FALSE) -> 0 | AI125: =VLOOKUP(AI$115&$U125,GTYF!$C:$AQ,37,FALSE) -> 0 | AJ125: =VLOOKUP(AJ$115&$U125,GTYF!$C:$AQ,37,FALSE) -> 0 | AK125: =VLOOKUP(AK$115&$U125,GTYF!$C:$AQ,37,FALSE) -> 0 | AM125: =VLOOKUP(AM$115&$U125,GTYF!$C:$AQ,37,FALSE) -> 0 | AN125: =VLOOKUP(AN$115&$U125,GTYF!$C:$AQ,37,FALSE) -> 0 | AO125: =VLOOKUP(AO$115&$U125,GTYF!$C:$AQ,37,FALSE) -> 0 | AP125: =VLOOKUP(AP$115&$U125,GTYF!$C:$AQ,37,FALSE) -> 0 | AQ125: =VLOOKUP(AQ$115&$U125,GTYF!$C:$AQ,37,FALSE) -> 0 | AR125: =VLOOKUP(AR$115&$U125,GTYF!$C:$AQ,37,FALSE) -> 0 | AS125: =VLOOKUP(AS$115&$U125,GTYF!$C:$AQ,37,FALSE) -> 0 | AT125: =VLOOKUP(AT$115&$U125,GTYF!$C:$AQ,37,FALSE) -> 0 | AU125: =VLOOKUP(AU$115&$U125,GTYF!$C:$AQ,37,FALSE) -> 0 | AV125: =VLOOKUP(AV$115&$U125,GTYF!$C:$AQ,37,FALSE) -> 0 | AW125: =VLOOKUP(AW$115&$U125,GTYF!$C:$AQ,37,FALSE) -> 0 | AX125: =VLOOKUP(AX$115&$U125,GTYF!$C:$AQ,37,FALSE) -> 0 | AY125: =VLOOKUP(AY$115&$U125,GTYF!$C:$AQ,37,FALSE) -> 0 | AZ125: 0 | BA125: =VLOOKUP(BA$115&$U125,GTYF!$C:$AQ,37,FALSE) -> 0
B126: Pinèdes grises | F126: - | H126: - | I126: - | J126: - | M126: - | N126: - | S126: Tableau 9. | T126: Pinèdes grises | U126: (FCTYF_PIG) | V126: =VLOOKUP(V$115&$U126,GTYF!$C:$AQ,37,FALSE) -> 0 | W126: =VLOOKUP(W$115&$U126,GTYF!$C:$AQ,6,FALSE) -> 0 | X126: =VLOOKUP(X$115&$U126,GTYF!$C:$AQ,37,FALSE) -> 0 | Y126: =VLOOKUP(Y$115&$U126,GTYF!$C:$AQ,37,FALSE) -> 0 | Z126: =VLOOKUP(Z$115&$U126,GTYF!$C:$AQ,37,FALSE) -> 0 | AA126: =VLOOKUP(AA$115&$U126,GTYF!$C:$AQ,37,FALSE) -> 0 | AB126: =VLOOKUP(AB$115&$U126,GTYF!$C:$AQ,37,FALSE) -> 0 | AC126: =VLOOKUP(AC$115&$U126,GTYF!$C:$AQ,37,FALSE) -> 0 | AD126: =VLOOKUP(AD$115&$U126,GTYF!$C:$AQ,37,FALSE) -> 0 | AE126: =VLOOKUP(AE$115&$U126,GTYF!$C:$AQ,37,FALSE) -> 0 | AF126: =VLOOKUP(AF$115&$U126,GTYF!$C:$AQ,37,FALSE) -> 0 | AG126: =VLOOKUP(AG$115&$U126,GTYF!$C:$AQ,37,FALSE) -> 0 | AH126: =VLOOKUP(AH$115&$U126,GTYF!$C:$AQ,37,FALSE) -> 0 | AI126: =VLOOKUP(AI$115&$U126,GTYF!$C:$AQ,37,FALSE) -> 0 | AJ126: =VLOOKUP(AJ$115&$U126,GTYF!$C:$AQ,37,FALSE) -> 0 | AK126: =VLOOKUP(AK$115&$U126,GTYF!$C:$AQ,37,FALSE) -> 0 | AM126: =VLOOKUP(AM$115&$U126,GTYF!$C:$AQ,37,FALSE) -> 0 | AN126: =VLOOKUP(AN$115&$U126,GTYF!$C:$AQ,37,FALSE) -> 0 | AO126: =VLOOKUP(AO$115&$U126,GTYF!$C:$AQ,37,FALSE) -> 0 | AP126: =VLOOKUP(AP$115&$U126,GTYF!$C:$AQ,37,FALSE) -> 0 | AQ126: =VLOOKUP(AQ$115&$U126,GTYF!$C:$AQ,37,FALSE) -> 0 | AR126: =VLOOKUP(AR$115&$U126,GTYF!$C:$AQ,37,FALSE) -> 0 | AS126: =VLOOKUP(AS$115&$U126,GTYF!$C:$AQ,37,FALSE) -> 0 | AT126: =VLOOKUP(AT$115&$U126,GTYF!$C:$AQ,37,FALSE) -> 0 | AU126: =VLOOKUP(AU$115&$U126,GTYF!$C:$AQ,37,FALSE) -> 0 | AV126: =VLOOKUP(AV$115&$U126,GTYF!$C:$AQ,37,FALSE) -> 0 | AW126: =VLOOKUP(AW$115&$U126,GTYF!$C:$AQ,37,FALSE) -> 0 | AX126: =VLOOKUP(AX$115&$U126,GTYF!$C:$AQ,37,FALSE) -> 0 | AY126: =VLOOKUP(AY$115&$U126,GTYF!$C:$AQ,37,FALSE) -> 0 | AZ126: 0 | BA126: =VLOOKUP(BA$115&$U126,GTYF!$C:$AQ,37,FALSE) -> 0
B127: Prucheraies | F127: - | H127: - | I127: - | J127: - | M127: - | N127: - | S127: Tableau 9. | T127: Prucheraies | U127: (FCTYF_PRU) | V127: =VLOOKUP(V$115&$U127,GTYF!$C:$AQ,37,FALSE) -> 0 | W127: =VLOOKUP(W$115&$U127,GTYF!$C:$AQ,6,FALSE) -> 0 | X127: =VLOOKUP(X$115&$U127,GTYF!$C:$AQ,37,FALSE) -> 0 | Y127: =VLOOKUP(Y$115&$U127,GTYF!$C:$AQ,37,FALSE) -> 0 | Z127: =VLOOKUP(Z$115&$U127,GTYF!$C:$AQ,37,FALSE) -> 0 | AA127: =VLOOKUP(AA$115&$U127,GTYF!$C:$AQ,37,FALSE) -> 0 | AB127: =VLOOKUP(AB$115&$U127,GTYF!$C:$AQ,37,FALSE) -> 0 | AC127: =VLOOKUP(AC$115&$U127,GTYF!$C:$AQ,37,FALSE) -> 0 | AD127: =VLOOKUP(AD$115&$U127,GTYF!$C:$AQ,37,FALSE) -> 0 | AE127: =VLOOKUP(AE$115&$U127,GTYF!$C:$AQ,37,FALSE) -> 0 | AF127: =VLOOKUP(AF$115&$U127,GTYF!$C:$AQ,37,FALSE) -> 0 | AG127: =VLOOKUP(AG$115&$U127,GTYF!$C:$AQ,37,FALSE) -> 0 | AH127: =VLOOKUP(AH$115&$U127,GTYF!$C:$AQ,37,FALSE) -> 0 | AI127: =VLOOKUP(AI$115&$U127,GTYF!$C:$AQ,37,FALSE) -> 0 | AJ127: =VLOOKUP(AJ$115&$U127,GTYF!$C:$AQ,37,FALSE) -> 0 | AK127: =VLOOKUP(AK$115&$U127,GTYF!$C:$AQ,37,FALSE) -> 0 | AM127: =VLOOKUP(AM$115&$U127,GTYF!$C:$AQ,37,FALSE) -> 0 | AN127: =VLOOKUP(AN$115&$U127,GTYF!$C:$AQ,37,FALSE) -> 0 | AO127: =VLOOKUP(AO$115&$U127,GTYF!$C:$AQ,37,FALSE) -> 0 | AP127: =VLOOKUP(AP$115&$U127,GTYF!$C:$AQ,37,FALSE) -> 0 | AQ127: =VLOOKUP(AQ$115&$U127,GTYF!$C:$AQ,37,FALSE) -> 0 | AR127: =VLOOKUP(AR$115&$U127,GTYF!$C:$AQ,37,FALSE) -> 0 | AS127: =VLOOKUP(AS$115&$U127,GTYF!$C:$AQ,37,FALSE) -> 0 | AT127: =VLOOKUP(AT$115&$U127,GTYF!$C:$AQ,37,FALSE) -> 0 | AU127: =VLOOKUP(AU$115&$U127,GTYF!$C:$AQ,37,FALSE) -> 0 | AV127: =VLOOKUP(AV$115&$U127,GTYF!$C:$AQ,37,FALSE) -> 0 | AW127: =VLOOKUP(AW$115&$U127,GTYF!$C:$AQ,37,FALSE) -> 0 | AX127: =VLOOKUP(AX$115&$U127,GTYF!$C:$AQ,37,FALSE) -> 0 | AY127: =VLOOKUP(AY$115&$U127,GTYF!$C:$AQ,37,FALSE) -> 0 | AZ127: 0 | BA127: =VLOOKUP(BA$115&$U127,GTYF!$C:$AQ,37,FALSE) -> 0
B128: Résineux à feuillus | E128: - | F128: - | G128: - | H128: 100.0408499 | I128: 165.457686 | J128: 155.306357 | M128: 100.0408499 | N128: 165.457686 | S128: Tableau 9. | T128: Résineux à feuillus | U128: (FCTYF_RF) | V128: =VLOOKUP(V$115&$U128,GTYF!$C:$AQ,37,FALSE) -> 2947.868 | W128: =VLOOKUP(W$115&$U128,GTYF!$C:$AQ,6,FALSE) -> 40930.1 | X128: =VLOOKUP(X$115&$U128,GTYF!$C:$AQ,37,FALSE) -> 303794.742 | Y128: =VLOOKUP(Y$115&$U128,GTYF!$C:$AQ,37,FALSE) -> 1956099.852 | Z128: =VLOOKUP(Z$115&$U128,GTYF!$C:$AQ,37,FALSE) -> 414472.924 | AA128: =VLOOKUP(AA$115&$U128,GTYF!$C:$AQ,37,FALSE) -> 0 | AB128: =VLOOKUP(AB$115&$U128,GTYF!$C:$AQ,37,FALSE) -> 73274.494 | AC128: =VLOOKUP(AC$115&$U128,GTYF!$C:$AQ,37,FALSE) -> 0 | AD128: =VLOOKUP(AD$115&$U128,GTYF!$C:$AQ,37,FALSE) -> 2947.868 | AE128: =VLOOKUP(AE$115&$U128,GTYF!$C:$AQ,37,FALSE) -> 0 | AF128: =VLOOKUP(AF$115&$U128,GTYF!$C:$AQ,37,FALSE) -> 48579.99 | AG128: =VLOOKUP(AG$115&$U128,GTYF!$C:$AQ,37,FALSE) -> 0 | AH128: =VLOOKUP(AH$115&$U128,GTYF!$C:$AQ,37,FALSE) -> 10401.454 | AI128: =VLOOKUP(AI$115&$U128,GTYF!$C:$AQ,37,FALSE) -> 0 | AJ128: =VLOOKUP(AJ$115&$U128,GTYF!$C:$AQ,37,FALSE) -> 2947.868 | AK128: =VLOOKUP(AK$115&$U128,GTYF!$C:$AQ,37,FALSE) -> 0 | AM128: =VLOOKUP(AM$115&$U128,GTYF!$C:$AQ,37,FALSE) -> 0 | AN128: =VLOOKUP(AN$115&$U128,GTYF!$C:$AQ,37,FALSE) -> 0 | AO128: =VLOOKUP(AO$115&$U128,GTYF!$C:$AQ,37,FALSE) -> 0 | AP128: =VLOOKUP(AP$115&$U128,GTYF!$C:$AQ,37,FALSE) -> 0 | AQ128: =VLOOKUP(AQ$115&$U128,GTYF!$C:$AQ,37,FALSE) -> 0 | AR128: =VLOOKUP(AR$115&$U128,GTYF!$C:$AQ,37,FALSE) -> 0 | AS128: =VLOOKUP(AS$115&$U128,GTYF!$C:$AQ,37,FALSE) -> 0 | AT128: =VLOOKUP(AT$115&$U128,GTYF!$C:$AQ,37,FALSE) -> 0 | AU128: =VLOOKUP(AU$115&$U128,GTYF!$C:$AQ,37,FALSE) -> 0 | AV128: =VLOOKUP(AV$115&$U128,GTYF!$C:$AQ,37,FALSE) -> 0 | AW128: =VLOOKUP(AW$115&$U128,GTYF!$C:$AQ,37,FALSE) -> 0 | AX128: =VLOOKUP(AX$115&$U128,GTYF!$C:$AQ,37,FALSE) -> 0 | AY128: =VLOOKUP(AY$115&$U128,GTYF!$C:$AQ,37,FALSE) -> 0 | AZ128: 0 | BA128: =VLOOKUP(BA$115&$U128,GTYF!$C:$AQ,37,FALSE) -> 0
B129: Sapinières | E129: 25 | F129: 80.0799435 | G129: 28 | H129: 97.09598222 | I129: 157.0142995 | J129: 139.5365476 | M129: =IFERROR(($AF129+$AG129+$AH129+$AI129)/$AJ129*5,"-") -> 97.09598222 | N129: 157.0142995 | S129: Tableau 9. | T129: Sapinières | U129: (FCTYF_SAB) | V129: =VLOOKUP(V$115&$U129,GTYF!$C:$AQ,37,FALSE) -> 3286.354 | W129: =VLOOKUP(W$115&$U129,GTYF!$C:$AQ,6,FALSE) -> 56879.6 | X129: =VLOOKUP(X$115&$U129,GTYF!$C:$AQ,37,FALSE) -> 442656.73 | Y129: =VLOOKUP(Y$115&$U129,GTYF!$C:$AQ,37,FALSE) -> 3172335.404 | Z129: =VLOOKUP(Z$115&$U129,GTYF!$C:$AQ,37,FALSE) -> 507618.928 | AA129: =VLOOKUP(AA$115&$U129,GTYF!$C:$AQ,37,FALSE) -> 0 | AB129: =VLOOKUP(AB$115&$U129,GTYF!$C:$AQ,37,FALSE) -> 0 | AC129: =VLOOKUP(AC$115&$U129,GTYF!$C:$AQ,37,FALSE) -> 7273.982 | AD129: =VLOOKUP(AD$115&$U129,GTYF!$C:$AQ,37,FALSE) -> 3279.274 | AE129: =VLOOKUP(AE$115&$U129,GTYF!$C:$AQ,37,FALSE) -> 0 | AF129: =VLOOKUP(AF$115&$U129,GTYF!$C:$AQ,37,FALSE) -> 61716.428 | AG129: =VLOOKUP(AG$115&$U129,GTYF!$C:$AQ,37,FALSE) -> 0 | AH129: =VLOOKUP(AH$115&$U129,GTYF!$C:$AQ,37,FALSE) -> 0 | AI129: =VLOOKUP(AI$115&$U129,GTYF!$C:$AQ,37,FALSE) -> 1964.438 | AJ129: =VLOOKUP(AJ$115&$U129,GTYF!$C:$AQ,37,FALSE) -> 3279.274 | AK129: =VLOOKUP(AK$115&$U129,GTYF!$C:$AQ,37,FALSE) -> 0 | AM129: =VLOOKUP(AM$115&$U129,GTYF!$C:$AQ,37,FALSE) -> 566.966 | AN129: =VLOOKUP(AN$115&$U129,GTYF!$C:$AQ,37,FALSE) -> 0 | AO129: =VLOOKUP(AO$115&$U129,GTYF!$C:$AQ,37,FALSE) -> 0 | AP129: =VLOOKUP(AP$115&$U129,GTYF!$C:$AQ,37,FALSE) -> 0 | AQ129: =VLOOKUP(AQ$115&$U129,GTYF!$C:$AQ,37,FALSE) -> 0 | AR129: =VLOOKUP(AR$115&$U129,GTYF!$C:$AQ,37,FALSE) -> 0 | AS129: =VLOOKUP(AS$115&$U129,GTYF!$C:$AQ,37,FALSE) -> 0 | AT129: =VLOOKUP(AT$115&$U129,GTYF!$C:$AQ,37,FALSE) -> 0 | AU129: =VLOOKUP(AU$115&$U129,GTYF!$C:$AQ,37,FALSE) -> 0 | AV129: =VLOOKUP(AV$115&$U129,GTYF!$C:$AQ,37,FALSE) -> 0 | AW129: =VLOOKUP(AW$115&$U129,GTYF!$C:$AQ,37,FALSE) -> 0 | AX129: =VLOOKUP(AX$115&$U129,GTYF!$C:$AQ,37,FALSE) -> 0 | AY129: =VLOOKUP(AY$115&$U129,GTYF!$C:$AQ,37,FALSE) -> 0 | AZ129: 566.966 | BA129: =VLOOKUP(BA$115&$U129,GTYF!$C:$AQ,37,FALSE) -> 7.08
B130: Tous les grands types de forêt | S130: Tableau 9. | T130: Tous les GTYF | V130: =SUM(V116:V129) -> 12820.398 | W130: =SUM(W116:W129) -> 214811.7 | X130: 1057669.7 | Y130: 7121825.934 | Z130: 1337202.428 | AA130: 0 | AB130: 255248.864 | AC130: 7273.982 | AD130: 10137.874 | AE130: 0 | AF130: 176765.488 | AG130: 0 | AH130: 34729.498 | AI130: 1964.438 | AJ130: 10137.874 | AK130: 0
L131: Les statistiques portants sur les coupes partielles proviennent d'un Script R et sont disponibles ici:
L132: T:\Donnees\02_Courant\01_CPF\01_UA\0XXXX\70_Determination\72_Rapport\01_Cahier_DET\Tableau_9
B134: Tableau 10. Traitements non commerciaux supportant les possibilités forestières
B135: Traitements non commerciaux | F135: Superficie annuelle moyenne (ha/an) | G135: Superficie antérieure (ha/an) | H135: Écart (ha/an) | X135: Exemple U03772
K138: Le texte en rouge demande à l'analyste de valider la nature exacte du traitement et les superficies - variable selon la vague et l'UA - veuillez ensuite mettre en noir et supprimer la remarque si elle ne s'applique pas (si DEG_1 ne contient pas de regarni)
B139: Ligniculture (essences à croissance rapide) | F139: =ROUND(V139,-1) -> 0 | G139: =IFERROR(ROUND(VLOOKUP(O33,DataLocal!$A:$BH,47,FALSE),-1),0) -> 0 | H139: =F139-G139 -> 0 | S139: =LEFT(B$134,11) -> Tableau 10. | T139: Plantation ligniculture (pins, feuillus) | U139: OSUPPL_PPF | V139: =IFERROR(VLOOKUP(U139,Output!C:AQ,37,FALSE),0)/5 -> 0
B140: Plantation intensive (2 000 plants/ha) | F140: =ROUND(V140,-1) -> 180 | G140: =IFERROR(ROUND(VLOOKUP(O33,DataLocal!$A:$BH,48,FALSE),-1),0) -> 180 | H140: =F140-G140 -> 0 | S140: =LEFT(B$134,11) -> Tableau 10. | T140: Plantation intensive | U140: OSUPPL_SEPM_I | V140: =IFERROR(VLOOKUP(U140,Output!C:AQ,37,FALSE),0)/5 -> 175.4648
B141: Plantation de base (1 600 plants/ha) | F141: =ROUND(V141,-1) -> 190 | G141: =IFERROR(ROUND(VLOOKUP(O33,DataLocal!$A:$BH,49,FALSE),-1),0) -> 50 | H141: 140 | S141: Tableau 10. | T141: Plantation de base | U141: OSUPPL_SEPM_E | V141: =IFERROR(VLOOKUP(U141,Output!C:AQ,37,FALSE),0)/5 -> 192.4036
B142: Regarni | F142: =ROUND(V142,-1) -> 0 | G142: =IFERROR(ROUND(VLOOKUP(O33,DataLocal!$A:$BH,50,FALSE),-1),0) -> 40 | H142: -40 | S142: Tableau 10. | T142: Regarni | U142: OSUPREG | V142: =IFERROR(VLOOKUP(U142,Output!C:AQ,37,FALSE),0)/5 -> 0
B143: % des plantations dans les coupes totales | F143: =IFERROR(SUM(F139:F141)/G92,0) -> 0.1822660099 | G143: =IFERROR(SUM(G139:G141)/H92,0) -> 0.1755725191 | H143: 0.006693490768 | S143: Tableau 10.
B144: Total des travaux de reboisement | F144: =ROUND(SUM(F139:F142),-1) -> 370 | G144: =ROUND(SUM(G139:G142),-1) -> 270 | H144: 100 | S144: Tableau 10.
B145: Nettoiement (régénération naturelle et plantation) | F145: =ROUND(V145,-1) -> 620 | G145: =IFERROR(ROUND(VLOOKUP(O33,DataLocal!$A:$BH,51,FALSE),-1),0) -> 0 | H145: 620 | S145: Tableau 10. | T145: Nettoiement | U145: OSUPREALNET | V145: =IFERROR(VLOOKUP(U145,Output!C:AQ,37,FALSE),0)/5 -> 623.3488
B146: Éclaircie précommerciale | F146: =ROUND(V146,-1) -> 0 | G146: =IFERROR(ROUND(VLOOKUP(O33,DataLocal!$A:$BH,52,FALSE),-1),0) -> 310 | H146: -310 | S146: Tableau 10. | T146: Éclaircie précommerciale de la régénération naturelle | U146: OSUPREALEPC | V146: =IFERROR(VLOOKUP(U146,Output!C:AQ,37,FALSE),0)/5 -> 0 | X146: Exemple U09751
B147: Dégagement de la régénération naturelle | F147: =ROUND(V147,-1) -> 0 | G147: =IFERROR(ROUND(VLOOKUP(O33,DataLocal!$A:$BH,53,FALSE),-1),0) -> 0 | H147: 0 | S147: Tableau 10. | T147: Dégagement de la régénération naturelle | U147: OSUPDEG_2 | V147: =IFERROR(VLOOKUP(U147,Output!C:AQ,37,FALSE),0)/5 -> 0.14
B148: Dégagement des plantations* | F148: =ROUND(V148,-1) -> 320 | G148: =IFERROR(ROUND(VLOOKUP(O33,DataLocal!$A:$BH,54,FALSE),-1),0) -> 210 | H148: 110 | S148: Tableau 10. | T148: Dégagement de plantation | U148: OSUPDEG_1 | V148: =IFERROR(VLOOKUP(U148,Output!C:AQ,37,FALSE),0)/5 -> 320.1628
B149: Élagage | F149: =ROUND(V149,-1) -> 0 | G149: =IFERROR(ROUND(VLOOKUP(O33,DataLocal!$A:$BN,66,FALSE),-1),0) -> 0 | H149: 0 | S149: Tableau 10. | T149: Élagage (plantation) | U149: OSUPELAG | V149: =IFERROR(VLOOKUP(U149,Output!C:AQ,37,FALSE),0)/5 -> 0
B150: Total des travaux d'éducation | F150: =SUM(F145:F149) -> 940 | G150: =SUM(G145:G149) -> 520 | H150: 420 | S150: Tableau 10. | U150: OSUPSCA_LIGN | V150: =IFERROR(VLOOKUP(U150,Output!C:AQ,37,FALSE),0)/5 -> 0
B151: Scarifiage partiel | F151: =ROUND(V152,-1) -> 90 | G151: =IFERROR(ROUND(VLOOKUP(O33,DataLocal!$A:$BH,58,FALSE),-1),0) -> 230 | H151: -140 | S151: Tableau 10. | U151: OSUPSCA_LRD | V151: =IFERROR(VLOOKUP(U151,Output!C:AQ,37,FALSE),0)/5 -> 0
B152: Scarifiage en plein | F152: =ROUND(V153+V150+V151,-1) -> 540 | G152: =IFERROR(ROUND(VLOOKUP(O33,DataLocal!$A:$BH,59,FALSE),-1),0) -> 470 | H152: 70 | S152: Tableau 10. | U152: OSUPSCA_PART | V152: =IFERROR(VLOOKUP(U152,Output!C:AQ,37,FALSE),0)/5 -> 93.5184
B153: Total de la préparation de terrain | F153: =IFERROR(SUM(F151:F152),0) -> 630 | G153: =IFERROR(SUM(G151:G152),0) -> 700 | H153: -70 | S153: Tableau 10. | U153: OSUPSCA_REG | V153: =IFERROR(VLOOKUP(U153,Output!C:AQ,37,FALSE),0)/5 -> 540.6136
B154: Total des travaux sans récolte | F154: =F153+F150+F144 -> 1940 | G154: =G153+G150+G144 -> 1490 | H154: 450
B155: * Peut aussi comprendre du dégagement de regarni
B160: Tableau 13 : Variation du volume sur pied à court, moyen et long terme | L160: % du volume total | U160: colonne | V160: 37 | W160: 38 | X160: 39 | Y160: 40 | AF160: 37 | AG160: 38 | AH160: 39 | AI160: 40
B161: Essences | C161: Volume moyen sur pied (m3) | G161: Volume moyen sur pied (%) | V161: Volume moyen sur pied (m3) | Z161: Volume moyen sur pied (%) | AF161: Volume dans courbe SNAT
C162: 2023 à 2048 | D162: 2048 à 2073 | E162: 2073 à 2118 | F162: 2118 à 2168 | G162: =C162 -> 2023 à 2048 | H162: =D162 -> 2048 à 2073 | I162: 2073 à 2118 | J162: 2118 à 2168 | L162: 2023 à 2048 | T162: Légende | U162: Name | V162: p 2 à 6 | W162: p 7 à 11 | X162: p 12 à 20 | Y162: p 21 à 30 | Z162: p 2 à 6 | AA162: p 7 à 11 | AB162: p 12 à 20 | AC162: p 21 à 30 | AE162: Name | AF162: p 2 à 6 | AG162: p 7 à 11 | AH162: p 12 à 20 | AI162: p 21 à 30
B163: =T163 -> Sapin baumier | C163: =ROUND(V163-AF163,-2) -> 7260500 | D163: =ROUND(W163-AG163,-2) -> 6308900 | E163: 6126700 | F163: 5445800 | G163: =C163/C$177 -> 0.3114797702 | H163: =D163/D$177 -> 0.2708333333 | I163: =E163/E$177 -> 0.2512219325 | J163: =F163/F$177 -> 0.2260859457 | L163: =C163/C$177 -> 0.3114797702 | S163: =LEFT(B$160,11) -> Tableau 13 | T163: Sapin baumier | U163: OVOLSABPIEDINC | V163: =VLOOKUP($U163,Output!$C:$AQ,V$160,FALSE) -> 7260503.42 | W163: =VLOOKUP($U163,Output!$C:$AQ,W$160,FALSE) -> 6308909.022 | X163: =VLOOKUP($U163,Output!$C:$AQ,X$160,FALSE) -> 6126653.983 | Y163: =VLOOKUP($U163,Output!$C:$AQ,Y$160,FALSE) -> 5445849.54 | Z163: =V163/V$178 -> 0.3114800036 | AA163: =W163/W$178 -> 0.2708339417 | AB163: =X163/X$178 -> 0.2512197396 | AC163: =Y163/Y$178 -> 0.2260881006 | AE163: OVOLSABPIEDSNAT | AF163: 0 | AG163: 0 | AH163: 0 | AI163: 0
B164: =T164 -> Épinettes | C164: =ROUND(V164-AF164,-2) -> 4805600 | D164: 5359600 | E164: 6590200 | F164: 7258800 | G164: 0.2061630995 | H164: 0.2300810495 | I164: 0.2702274927 | J164: 0.3013538255 | L164: 0.2061630995 | S164: Tableau 13 | T164: Épinettes | U164: OVOLgEpxPIEDINC | V164: =VLOOKUP($U164,Output!$C:$AQ,V$160,FALSE) -> 4805629.156 | W164: =VLOOKUP($U164,Output!$C:$AQ,W$160,FALSE) -> 5359581.182 | X164: =VLOOKUP($U164,Output!$C:$AQ,X$160,FALSE) -> 6590151.543 | Y164: =VLOOKUP($U164,Output!$C:$AQ,Y$160,FALSE) -> 7258824.112 | Z164: 0.2061644077 | AA164: 0.2300804295 | AB164: 0.2702251766 | AC164: 0.3013549573 | AE164: OVOLgEpxPIEDSNAT | AF164: 0 | AG164: 0 | AH164: 0 | AI164: 0
B165: =T165 -> Pin gris | C165: 248100 | D165: 290900 | E165: 306700 | F165: 273000 | G165: 0.01064363763 | H165: 0.01248797994 | I165: 0.01257606325 | J165: 0.0113337734 | L165: 0.01064363763 | S165: Tableau 13 | T165: Pin gris | U165: OVOLgPgPIEDINC | V165: =VLOOKUP($U165,Output!$C:$AQ,V$160,FALSE) -> 248052.536 | W165: =VLOOKUP($U165,Output!$C:$AQ,W$160,FALSE) -> 290916.834 | X165: =VLOOKUP($U165,Output!$C:$AQ,X$160,FALSE) -> 306726.8822 | Y165: =VLOOKUP($U165,Output!$C:$AQ,Y$160,FALSE) -> 273004.726 | Z165: 0.01064160435 | AA165: 0.0124887128 | AB165: 0.01257715022 | AC165: 0.01133397452 | AE165: OVOLgPgPIEDSNAT | AF165: 0 | AG165: 0 | AH165: 0 | AI165: 0
B166: =T166 -> Mélèzes | C166: 15400 | D166: 15200 | E166: 13800 | F166: 13400 | G166: 0.0006606691635 | H166: 0.0006525173432 | I166: 0.0005658613394 | J166: 0.0005563097566 | L166: 0.0006606691635 | S166: Tableau 13 | T166: Mélèzes | U166: OVOLgMlPIEDINC | V166: =VLOOKUP($U166,Output!$C:$AQ,V$160,FALSE) -> 15415.414 | W166: =VLOOKUP($U166,Output!$C:$AQ,W$160,FALSE) -> 15192.814 | X166: =VLOOKUP($U166,Output!$C:$AQ,X$160,FALSE) -> 13839.85111 | Y166: =VLOOKUP($U166,Output!$C:$AQ,Y$160,FALSE) -> 13409.436 | Z166: 0.0006613306173 | AA166: 0.0006522093894 | AB166: 0.0005674947209 | AC166: 0.00055670174 | AE166: OVOLGMlPIEDSNAT | AF166: 0 | AG166: 0 | AH166: 0 | AI166: 0
B167: Thuya | C167: =ROUND(V167-AF167,-2) -> 174400 | D167: 176000 | E167: 166500 | F167: 186300 | G167: 0.007481863773 | H167: 0.007555463974 | I167: 0.006827240073 | J167: 0.007734366243 | L167: 0.007481863773 | S167: Tableau 13 | T167: Thuya | U167: OVOLTHOPIEDINC | V167: =VLOOKUP($U167,Output!$C:$AQ,V$160,FALSE) -> 174433.534 | W167: =VLOOKUP($U167,Output!$C:$AQ,W$160,FALSE) -> 175984.148 | X167: =VLOOKUP($U167,Output!$C:$AQ,X$160,FALSE) -> 166476.7233 | Y167: =VLOOKUP($U167,Output!$C:$AQ,Y$160,FALSE) -> 186322.632 | Z167: 0.007483304484 | AA167: 0.007554789634 | AB167: 0.006826277312 | AC167: 0.007735309184 | AE167: OVOLTHOPIEDSNAT | AF167: 0 | AG167: 0 | AH167: 0 | AI167: 0
B168: Pruche | C168: 5400 | D168: 6400 | E168: 7700 | F168: 8400 | G168: 0.0002316632132 | H168: 0.0002747441445 | I168: 0.0003157342256 | J168: 0.0003487314892 | L168: 0.0002316632132 | S168: Tableau 13 | T168: Pruche | U168: OVOLPRUPIEDINC | V168: =VLOOKUP($U168,Output!$C:$AQ,V$160,FALSE) -> 5411.686 | W168: =VLOOKUP($U168,Output!$C:$AQ,W$160,FALSE) -> 6367.178 | X168: =VLOOKUP($U168,Output!$C:$AQ,X$160,FALSE) -> 7688.696667 | Y168: =VLOOKUP($U168,Output!$C:$AQ,Y$160,FALSE) -> 8381.128 | Z168: 0.0002321646141 | AA168: 0.0002733353595 | AB168: 0.0003152703547 | AC168: 0.0003479481569 | AE168: OVOLPRUPIEDSNAT | AF168: 0 | AG168: 0 | AH168: 0 | AI168: 0
B169: Pins blanc et rouge | C169: 81300 | D169: 92900 | E169: 98700 | F169: 109600 | G169: 0.003487818376 | H169: 0.003988082973 | I169: 0.00404713871 | J169: 0.004550115621 | L169: 0.003487818376 | S169: Tableau 13 | T169: Pins blanc et rouge | U169: OVOLGPINSPIEDINC | V169: =VLOOKUP($U169,Output!$C:$AQ,V$160,FALSE) -> 81337.196 | W169: =VLOOKUP($U169,Output!$C:$AQ,W$160,FALSE) -> 92893.254 | X169: =VLOOKUP($U169,Output!$C:$AQ,X$160,FALSE) -> 98724.00444 | Y169: =VLOOKUP($U169,Output!$C:$AQ,Y$160,FALSE) -> 109604.142 | Z169: 0.003489415078 | AA169: 0.00398779663 | AB169: 0.004048118068 | AC169: 0.004550289555 | AE169: OVOLGPINSCPIEDSNAT | AF169: 0 | AG169: 0 | AH169: 0 | AI169: 0
B170: Peupliers | C170: 734300 | D170: 757500 | E170: 686500 | F170: 718000 | G170: 0.03150190693 | H170: 0.03251854523 | I170: 0.02814955141 | J170: 0.0298082392 | L170: 0.03150190693 | S170: Tableau 13 | T170: Peupliers | U170: OVOLGPEUPIEDINC | V170: =VLOOKUP($U170,Output!$C:$AQ,V$160,FALSE) -> 734261.194 | W170: =VLOOKUP($U170,Output!$C:$AQ,W$160,FALSE) -> 757493.372 | X170: =VLOOKUP($U170,Output!$C:$AQ,X$160,FALSE) -> 686476.7911 | Y170: =VLOOKUP($U170,Output!$C:$AQ,Y$160,FALSE) -> 717978.885 | Z170: 0.0315002509 | AA170: 0.03251828724 | AB170: 0.02814856546 | AC170: 0.02980737554 | AE170: OVOLPEUPIEDSNAT | AF170: 0 | AG170: 0 | AH170: 0 | AI170: 0
B171: Bouleau à papier | C171: 3238600 | D171: 3154600 | E171: 3064700 | F171: 2826400 | G171: 0.1389378671 | H171: 0.135423106 | I171: 0.1256663222 | J171: 0.117339843 | L171: 0.1389378671 | S171: Tableau 13 | T171: Bouleau à papier | U171: OVOLgBpPIEDINC | V171: =VLOOKUP($U171,Output!$C:$AQ,V$160,FALSE) -> 3238606 | W171: =VLOOKUP($U171,Output!$C:$AQ,W$160,FALSE) -> 3154609.196 | X171: =VLOOKUP($U171,Output!$C:$AQ,X$160,FALSE) -> 3064670.84 | Y171: =VLOOKUP($U171,Output!$C:$AQ,Y$160,FALSE) -> 2826448.438 | Z171: 0.1389381631 | AA171: 0.1354236113 | AB171: 0.1256649735 | AC171: 0.1173419049 | AE171: OVOLgBpPIEDSNAT | AF171: 0 | AG171: 0 | AH171: 0 | AI171: 0
B172: Bouleau jaune | C172: 4061600 | D172: 4064200 | E172: 4107800 | F172: 4070100 | G172: 0.1742450568 | H172: 0.1744711175 | I172: 0.1684380587 | J172: 0.1689728612 | L172: 0.1742450568 | S172: Tableau 13 | T172: Bouleau jaune | U172: OVOLBOJPIEDINC | V172: =VLOOKUP($U172,Output!$C:$AQ,V$160,FALSE) -> 4061608.2 | W172: =VLOOKUP($U172,Output!$C:$AQ,W$160,FALSE) -> 4064179.162 | X172: =VLOOKUP($U172,Output!$C:$AQ,X$160,FALSE) -> 4107820.398 | Y172: =VLOOKUP($U172,Output!$C:$AQ,Y$160,FALSE) -> 4070060.95 | Z172: 0.174245457 | AA172: 0.1744703654 | AB172: 0.1684386899 | AC172: 0.1689713134 | AE172: OVOLBOJPIEDSNAT | AF172: 0 | AG172: 0 | AH172: 0 | AI172: 0
B173: Érable rouge | C173: 976500 | D173: 1070800 | E173: 1093100 | F173: 1086900 | G173: 0.04189243105 | H173: 0.04596812968 | I173: 0.0448219587 | J173: 0.04512336376 | L173: 0.04189243105 | S173: Tableau 13 | T173: Érable rouge | U173: OVOLgEroPIEDINC | V173: =VLOOKUP($U173,Output!$C:$AQ,V$160,FALSE) -> 976523.454 | W173: =VLOOKUP($U173,Output!$C:$AQ,W$160,FALSE) -> 1070809.97 | X173: =VLOOKUP($U173,Output!$C:$AQ,X$160,FALSE) -> 1093062.872 | Y173: =VLOOKUP($U173,Output!$C:$AQ,Y$160,FALSE) -> 1086868.56 | Z173: 0.0418934489 | AA173: 0.0459685952 | AB173: 0.04482038171 | AC173: 0.04512207811 | AE173: OVOLgEroPIEDSNAT | AF173: 0 | AG173: 0 | AH173: 0 | AI173: 0
B174: Érable à sucre | C174: 1558700 | D174: 1823000 | E174: 1933100 | F174: 1893500 | G174: 0.06686915748 | H174: 0.07825915241 | I174: 0.0792656924 | J174: 0.07860988986 | L174: 0.06686915748 | S174: Tableau 13 | T174: Érable à sucre | U174: OVOLERSPIEDINC | V174: =VLOOKUP($U174,Output!$C:$AQ,V$160,FALSE) -> 1558713.408 | W174: =VLOOKUP($U174,Output!$C:$AQ,W$160,FALSE) -> 1822985.978 | X174: =VLOOKUP($U174,Output!$C:$AQ,X$160,FALSE) -> 1933132.44 | Y174: =VLOOKUP($U174,Output!$C:$AQ,Y$160,FALSE) -> 1893509.044 | Z174: 0.06686975129 | AA174: 0.07825861435 | AB174: 0.07926692604 | AC174: 0.07861029946 | AE174: OVOLERSPIEDSNAT | AF174: 0 | AG174: 0 | AH174: 0 | AI174: 0
B175: Autres feuillus durs | C175: =ROUND(V175-AF175,-2) -> 149200 | D175: 174500 | E175: 192200 | F175: 197000 | G175: 0.006400768779 | H175: 0.007491070815 | I175: 0.007881054306 | J175: 0.008178583735 | L175: 0.006400768779 | S175: Tableau 13 | T175: Autres feuillus durs | V175: =V178-V176-V174-V173-V172-V171-V170-V169-V168-V167 -> 149198.314 | W175: =W178-W176-W174-W173-W172-W171-W170-W169-W168-W167 -> 174458.876 | X175: =X178-X176-X174-X173-X172-X171-X170-X169-X168-X167 -> 192204.6789 | Y175: =Y178-Y176-Y174-Y173-Y172-Y171-Y170-Y169-Y168-Y167 -> 197027.944 | Z175: 0.006400698229 | AA175: 0.007489311526 | AB175: 0.007881236562 | AC175: 0.008179747401 | AE175: Autres feuillus durs | AF175: 0 | AG175: 0 | AH175: 0 | AI175: 0
B176: Autres essences | C176: =IF($L$163<0.0095,C163,0)+IF($L$164<0.0095,C164,0)+IF($L$165<0.0095,C165,0)+IF($L$166<0.0095,C166,0)+IF($L$167<0.0095,C167,0)+IF($L$168<0.0095,C168,0)+IF($L$169<0.0095,C169,0)+IF($L$170<0.0095,C170,0)+IF($L$171<0.0095,C171,0)+IF($L$172<0.0095,C172,0)+IF($L$173<0.0095,C173,0)+IF($L$174<0.0095,C174+0)+IF($L$175<0.0095,C175,0) -> 425700 | D176: =IF($L$163<0.0095,D163,0)+IF($L$164<0.0095,D164,0)+IF($L$165<0.0095,D165,0)+IF($L$166<0.0095,D166,0)+IF($L$167<0.0095,D167,0)+IF($L$168<0.0095,D168,0)+IF($L$169<0.0095,D169,0)+IF($L$170<0.0095,D170,0)+IF($L$171<0.0095,D171,0)+IF($L$172<0.0095,D172,0)+IF($L$173<0.0095,D173,0)+IF($L$174<0.0095,D174+0)+IF($L$175<0.0095,D175,0) -> 465000 | E176: =IF($L$163<0.0095,E163,0)+IF($L$164<0.0095,E164,0)+IF($L$165<0.0095,E165,0)+IF($L$166<0.0095,E166,0)+IF($L$167<0.0095,E167,0)+IF($L$168<0.0095,E168,0)+IF($L$169<0.0095,E169,0)+IF($L$170<0.0095,E170,0)+IF($L$171<0.0095,E171,0)+IF($L$172<0.0095,E172,0)+IF($L$173<0.0095,E173,0)+IF($L$174<0.0095,E174+0)+IF($L$175<0.0095,E175,0) -> 478900 | F176: =IF($L$163<0.0095,F163,0)+IF($L$164<0.0095,F164,0)+IF($L$165<0.0095,F165,0)+IF($L$166<0.0095,F166,0)+IF($L$167<0.0095,F167,0)+IF($L$168<0.0095,F168,0)+IF($L$169<0.0095,F169,0)+IF($L$170<0.0095,F170,0)+IF($L$171<0.0095,F171,0)+IF($L$172<0.0095,F172,0)+IF($L$173<0.0095,F173,0)+IF($L$174<0.0095,F174+0)+IF($L$175<0.0095,F175,0) -> 514700 | G176: 0.0182627833 | H176: 0.01996187925 | I176: 0.01963702865 | J176: 0.02136810684 | L176: 0.0182627833 | S176: Tableau 13 | T176: SEPM | U176: OVOLGSEPMPIEDINC | V176: =VLOOKUP($U176,Output!$C:$AQ,V$160,FALSE) -> 12329600.53 | W176: =VLOOKUP($U176,Output!$C:$AQ,W$160,FALSE) -> 11974599.85 | X176: =VLOOKUP($U176,Output!$C:$AQ,X$160,FALSE) -> 13037372.26 | Y176: =VLOOKUP($U176,Output!$C:$AQ,Y$160,FALSE) -> 12991087.82 | Z176: 0.5289473463 | AA176: 0.5140552934 | AB176: 0.5345895611 | AC176: 0.5393337343 | AE176: OVOLgSEPMPIEDSNAT | AF176: 0 | AG176: 0 | AH176: 0 | AI176: 0
B177: Total | C177: =ROUND(V178-AF178,-2) -> 23309700 | D177: =ROUND(W178-AG178,-2) -> 23294400 | E177: =ROUND(X178-AH178,-2) -> 24387600 | F177: =ROUND(Y178-AI178,-2) -> 24087300 | G177: 1 | H177: 1 | I177: 1 | J177: 1 | S177: Tableau 13 | T177: FN - ERS BOJ | U177: OVOLGFNPIEDINC | V177: =VLOOKUP($U177,Output!$C:$AQ,V$160,FALSE) -> 105279.048 | W177: =VLOOKUP($U177,Output!$C:$AQ,W$160,FALSE) -> 119787.786 | X177: =VLOOKUP($U177,Output!$C:$AQ,X$160,FALSE) -> 131058.2989 | Y177: =VLOOKUP($U177,Output!$C:$AQ,Y$160,FALSE) -> 136302.67 | Z177: 0.00451653506 | AA177: 0.005142346821 | AB177: 0.005373966248 | AC177: 0.005658696873 | AE177: OVOLgFnPIEDSNAT | AF177: 0 | AG177: 0 | AH177: 0 | AI177: 0
L178: Masquer les essences du tableau qui sont en surbrillance (< 1%) | S178: Tableau 13 | T178: TOT sur pied | U178: OVOLTOTPIEDINC | V178: =VLOOKUP($U178,Output!$C:$AQ,V$160,FALSE) -> 23309693.51 | W178: =VLOOKUP($U178,Output!$C:$AQ,W$160,FALSE) -> 23294380.99 | X178: =VLOOKUP($U178,Output!$C:$AQ,X$160,FALSE) -> 24387629.7 | Y178: =VLOOKUP($U178,Output!$C:$AQ,Y$160,FALSE) -> 24087289.54 | Z178: 1 | AA178: 1 | AB178: 1 | AC178: 1 | AE178: OVOLTOTPIEDSNAT | AF178: 0 | AG178: 0 | AH178: 0 | AI178: 0
L179: Ces volumes sont comptabilisés dans "Autres essences" | S179: Tableau 13 | T179: Érables à sucre et rouge
D182: P2 | E182: P3 | F182: P4 | G182: P5 | H182: P6
B183: Tableau 15 Statistiques sur les compartiments d’organisation spatiale admissibles à la récolte par période
B184: Compartiments d'organisation spatiale | D184: 2023-2028 | E184: 2028-2033 | F184: 2033-2038 | G184: 2038-2043 | H184: 2043-2048
B185: Nombre total | F185: =Cedule_COS!G6 -> 151
B186: En pessière | F186: 0 | J186: Fait la sommation automatique des COS débutant par la lettre "P" ou par "C", valider et corriger si nécessaire
B187: En sapinière | F187: 151 | J187: Fait la sommation automatique des COS débutant par la lettre "S", valider et corriger si nécessaire
B188: Admissibles à la récolte | D188: =Cedule_COS!C7 -> 33 | E188: =Cedule_COS!D7 -> 37 | F188: =Cedule_COS!E7 -> 29 | G188: =Cedule_COS!F7 -> 27 | H188: =Cedule_COS!G7 -> 22
B189: % de compartiments admissibles | D189: =Cedule_COS!C8 -> 0.2185430464 | E189: =Cedule_COS!D8 -> 0.2450331126 | F189: =Cedule_COS!E8 -> 0.1920529801 | G189: =Cedule_COS!F8 -> 0.178807947 | H189: =Cedule_COS!G8 -> 0.1456953642
B193: Tableau 17 Superficies considérées pour l'analyse de la mortalité d'ici la période 2023-2028 | S193: =LEFT(B$193,11) -> Tableau 17 | T193: Légende | V193: Output | W193: Valeur | X193: Période | Y193: Année
F194: ha | G194: % | S194: =LEFT(B$193,11) -> Tableau 17 | T194: Incluses aux activités de récolte | V194: OSUPINC | W194: =VLOOKUP($V194,Output!$C:$AQ,6,FALSE) -> 216319 | X194: P0 | Y194: 2018
B195: Épidémie sévère confirmée à la photo-interprétation | G195: =F195/W$194 -> 0 | J195: Faire une sélection sur le thème 8 = "INC" et seulement les années correspondant à l'épidémie actuelle | S195: =LEFT(B$193,11) -> Tableau 17 | T195: Épidémie sévère confirmée à la photo-interprétation | V195: Requete dans la table d'attribut
B196: Défoliation cumulative (cote ≥ 15) | F196: =ROUND(W196,-1) ->  | G196: =F196/W$194 ->  | J196: Des champs avaient été ajoutés par l'analyste à la fin de table d'attribut de la carte woodstock | S196: =LEFT(B$193,11) -> Tableau 17 | T196: Défoliation cumulative projetée 2023 ≥ 15 | V196: OSUPINC15+ | W196: =VLOOKUP($V196,Output!$C:$AQ,7,FALSE) ->  | X196: P1 | Y196: 2023
B197: Mortalité projetée | F197: =ROUND(SUM(W197:W198),-1) ->  | G197: =F197/W$194 ->  | J197: et c'est sur ces derniers que doivent se réaliser les requêtes | S197: =LEFT(B$193,11) -> Tableau 17 | T197: Mortalité projetée (sommation des 2 actions) | V197: osupaTBEmort | W197: =VLOOKUP($V197,Output!$C:$AQ,8,FALSE) ->  | X197: P2 | Y197: 2028
B198: Récupération prévue 2018-2023 | F198: =-ROUND(W199,-1) ->  | G198: =F198/W$194 ->  | V198: Osupactiontberetard | W198: =VLOOKUP($V198,Output!$C:$AQ,8,FALSE) ->  | X198: P2 | Y198: 2028
S199: =LEFT(B$193,11) -> Tableau 17 | T199: Récolte prévue à court terme (récupération) | V199: osuprealregapre_15+ | W199: =VLOOKUP($V199,Output!$C:$AQ,7,FALSE) ->  | X199: P1 | Y199: 2023

Sheet Figures
B2: Figure 2. Répartition du volume de bois marchand sur pied en début de calcul (m3). | N2: Volume sur pied en P0 | S2: Source: CahierDetermination_2018-2023 | V2: Volume sur pied en P0 - volume en SNAT | Z2: Volume dans courbe SNAT
L3: Conserver les GTYF même s'ils sont absents de l'UA | S3: Intrants | T3: Légende | U3: Name | V3: PERIOD0 | W3: % | X3: PERIOD0 | Z3: Name | AB3: PERIOD0
N4: Total | O4: =V19 ->  | S4: =LEFT(B$2,10) -> Figure 2. | T4: Autres feuillus durs | V4: =ROUND(V19-V17-V11-V12-V10-V8-V9-V6-V5-V7,-2) ->  | W4: =IFERROR(V4/$V$19,0) -> 0 | X4: =X19-X17-X11-X12-X10-X8-X9-X6-X5-X7 -> 130167.14 | Z4: Autres feuillus durs | AB4: =ROUND(AB19-AB17-AB11-AB12-AB10-AB8-AB9-AB6-AB5-AB7,-2) -> 
N5: % R | O5: =(V17+V12+V11+V10)/V19 ->  | S5: Figure 2. | T5: Érable à sucre | U5: OVOLERSPIEDINC | V5: =ROUND(X5-AB5,-2) ->  | W5: 0 | X5: =VLOOKUP(U5,Output!$C:$AQ,6,FALSE) -> 1302354.15 | Z5: OVOLERSPIEDSNAT | AB5: =VLOOKUP(Z5,Output!$C:$AQ,6,FALSE) -> 
N6: %SEPM | O6: =V17/V19 ->  | S6: Figure 2. | T6: Érable rouge | U6: OVOLgEroPIEDINC | W6: 0 | X6: =VLOOKUP(U6,Output!$C:$AQ,6,FALSE) -> 879625.51 | Z6: OVOLgEroPIEDSNAT | AB6: =VLOOKUP(Z6,Output!$C:$AQ,6,FALSE) -> 
N7: % Fi | O7: =W21 -> 0 | P7: =O7*O4 ->  | S7: Figure 2. | T7: Bouleau jaune | U7: OVOLBOJPIEDINC | W7: 0 | X7: =VLOOKUP(U7,Output!$C:$AQ,6,FALSE) -> 4067041.86 | Z7: OVOLBOJPIEDSNAT | AB7: =VLOOKUP(Z7,Output!$C:$AQ,6,FALSE) -> 
N8: % FT | O8: =W22 -> 0 | S8: Figure 2. | T8: Bouleau à papier | U8: OVOLgBpPIEDINC | W8: 0 | X8: =VLOOKUP(U8,Output!$C:$AQ,6,FALSE) -> 3310933.16 | Z8: OVOLgBpPIEDSNAT | AB8: =VLOOKUP(Z8,Output!$C:$AQ,6,FALSE) -> 
N9: %Sapin | O9: =V16/V17 ->  | S9: Figure 2. | T9: Peupliers | U9: OVOLGPEUPIEDINC | W9: 0 | X9: =VLOOKUP(U9,Output!$C:$AQ,6,FALSE) -> 679684.49 | Z9: OVOLPEUPIEDSNAT | AB9: =VLOOKUP(Z9,Output!$C:$AQ,6,FALSE) -> 
N10: %ERR | O10: =IFERROR(V6/(V5+V6),0) -> 0 | S10: Figure 2. | T10: Pins blanc et rouge | U10: OVOLGPINSPIEDINC | W10: 0 | X10: =VLOOKUP(U10,Output!$C:$AQ,6,FALSE) -> 77271.14 | Z10: OVOLGPINSCPIEDSNAT | AB10: =VLOOKUP(Z10,Output!$C:$AQ,6,FALSE) -> 
S11: Figure 2. | T11: Pruche | U11: OVOLPRUPIEDINC | W11: 0 | X11: =VLOOKUP(U11,Output!$C:$AQ,6,FALSE) -> 6339.07 | Z11: OVOLPRUPIEDSNAT | AB11: =VLOOKUP(Z11,Output!$C:$AQ,6,FALSE) -> 
N12: Volume sur pied au calcul 2015-2018 | P12: UA | S12: Figure 2. | T12: Thuya | U12: OVOLTHOPIEDINC | W12: 0 | X12: =VLOOKUP(U12,Output!$C:$AQ,6,FALSE) -> 177458.08 | Z12: OVOLTHOPIEDSNAT | AB12: =VLOOKUP(Z12,Output!$C:$AQ,6,FALSE) -> 
P13: =Tableaux!O33 -> 03771 | S13: Figure 2. | T13: Mélèzes | U13: OVOLgMlPIEDINC | W13: 0 | X13: =VLOOKUP(U13,Output!$C:$AQ,6,FALSE) -> 18284.31 | Z13: OVOLGMlPIEDSNAT | AB13: =VLOOKUP(Z13,Output!$C:$AQ,6,FALSE) -> 
N14: Total | O14: =VLOOKUP(P13,DataLocal!$A:$BM,61,FALSE) -> 0 | S14: Figure 2. | T14: Pin gris | U14: OVOLgPgPIEDINC | W14: 0 | X14: =VLOOKUP(U14,Output!$C:$AQ,6,FALSE) -> 196457.96 | Z14: OVOLgPgPIEDSNAT | AB14: =VLOOKUP(Z14,Output!$C:$AQ,6,FALSE) -> 
N15: % R | O15: =VLOOKUP(P13,DataLocal!$A:$BM,62,FALSE) -> 0 | S15: Figure 2. | T15: Épinettes | U15: OVOLgEpxPIEDINC | W15: 0 | X15: =VLOOKUP(U15,Output!$C:$AQ,6,FALSE) -> 4042860.04 | Z15: OVOLgEpxPIEDSNAT | AB15: =VLOOKUP(Z15,Output!$C:$AQ,6,FALSE) -> 
N16: % SEPM | O16: =VLOOKUP(P13,DataLocal!$A:$BM,63,FALSE) -> 0 | S16: Figure 2. | T16: Sapin baumier | U16: OVOLSABPIEDINC | V16: =ROUND(X16-AB16,-2) ->  | W16: 0 | X16: =VLOOKUP(U16,Output!$C:$AQ,6,FALSE) -> 7833277.18 | Z16: OVOLSABPIEDSNAT | AB16: =VLOOKUP(Z16,Output!$C:$AQ,6,FALSE) -> 
N17: % Fi | O17: =VLOOKUP(P13,DataLocal!$A:$BM,64,FALSE) -> 0 | S17: Figure 2. | T17: SEPM | U17: OVOLGSEPMPIEDINC | V17: =ROUND(X17-AB17,-2) ->  | W17: =IFERROR(V17/$V$19,0) -> 0 | X17: =VLOOKUP(U17,Output!$C:$AQ,6,FALSE) -> 12090879.5 | Z17: OVOLgSEPMPIEDSNAT | AB17: =VLOOKUP(Z17,Output!$C:$AQ,6,FALSE) -> 
N18: % Ft | O18: =VLOOKUP(P13,DataLocal!$A:$BM,65,FALSE) -> 0 | S18: Figure 2. | T18: FN - ERS BOJ | U18: OVOLGFNPIEDINC | W18: 0 | X18: =VLOOKUP(U18,Output!$C:$AQ,6,FALSE) -> 94927.48 | Z18: OVOLgFnPIEDSNAT | AB18: =VLOOKUP(Z18,Output!$C:$AQ,6,FALSE) -> 
S19: Figure 2. | T19: TOT sur pied | U19: OVOLTOTPIEDINC | V19: =ROUND(X19-AB19,-2) ->  | W19: 0 | X19: =VLOOKUP(U19,Output!$C:$AQ,6,FALSE) -> 22721754.1 | Z19: OVOLTOTPIEDSNAT | AB19: =VLOOKUP(Z19,Output!$C:$AQ,6,FALSE) -> 
N20: Vol R | O20: =ROUND(O15*$O$14,-2) -> 0 | T20: Érables à sucre et rouge | U20: Érables à sucre et rouge | V20: =V5+V6 ->  | W20: 0 | X20: =X5+X6 -> 2181979.66 | Z20: Érables à sucre et rouge | AB20: =AB5+AB6 -> 
N21: Vol SEPM | O21: =ROUND(O16*$O$14,-2) -> 0 | P21: Traduits en m3 | T21: gFi | U21: OVOLgFiPIEDINC | V21: =ROUND(X21-AB21,-2) ->  | W21: 0 | X21: =VLOOKUP(U21,Output!$C:$AQ,6,FALSE) -> 4870243.16 | Z21: OVOLgFiPIEDSNAT | AB21: =VLOOKUP(Z21,Output!$C:$AQ,6,FALSE) -> 
N22: Vol Fi | O22: =ROUND(O17*$O$14,-2) -> 0 | P22: approximativement | T22: gFt | U22: OVOLgFtPIEDINC | W22: 0 | X22: =VLOOKUP(U22,Output!$C:$AQ,6,FALSE) -> 5499563.16 | Z22: OVOLgFtPIEDSNAT | AB22: =VLOOKUP(Z22,Output!$C:$AQ,6,FALSE) -> 
N23: Vol Ft | O23: =ROUND(O18*$O$14,-2) -> 0
B27: Type de couvert : | C27: =#REF! -> 
B28: Figure 3. Répartition de la superficie par grand type de forêt en début de calcul (ha). | S28: Intrants | T28: Légende | V28: PERIOD0 | W28: % | X28: PERIOD0
S29: =LEFT(B$28,10) -> Figure 3. | T29: Sapinières | U29: (FCTYF_SAB) | V29: =ROUND(X29,-1) -> 56880 | W29: =V29/V$44 -> 0.2635310304 | X29: =VLOOKUP("OSUPINC"&$U29,GTYF!$C:$AP,6,FALSE) -> 56879.6
S30: Figure 3. | T30: Résineux à feuillus | U30: (FCTYF_RF) | V30: =ROUND(X30,-1) -> 40930 | W30: 0.1896330006 | X30: =VLOOKUP("OSUPINC"&$U30,GTYF!$C:$AP,6,FALSE) -> 40930.1
S31: Figure 3. | T31: Prucheraies | U31: (FCTYF_PRU) | V31: 0 | W31: 0 | X31: =VLOOKUP("OSUPINC"&$U31,GTYF!$C:$AP,6,FALSE) -> 0
S32: Figure 3. | T32: Pinèdes grises | U32: (FCTYF_PIG) | V32: 0 | W32: 0 | X32: =VLOOKUP("OSUPINC"&$U32,GTYF!$C:$AP,6,FALSE) -> 0
L33: Conserver les GTYF même s'ils sont absents de l'UA | S33: Figure 3. | T33: Pinèdes blanches | U33: (FCTYF_PIN) | V33: 0 | W33: 0 | X33: =VLOOKUP("OSUPINC"&$U33,GTYF!$C:$AP,6,FALSE) -> 0
S34: Figure 3. | T34: Peupleraies à résineux | U34: (FCTYF_PEUR) | V34: 0 | W34: 0 | X34: =VLOOKUP("OSUPINC"&$U34,GTYF!$C:$AP,6,FALSE) -> 0
S35: Figure 3. | T35: Peupleraies | U35: (FCTYF_PEU) | V35: 3680 | W35: 0.01704982757 | X35: =VLOOKUP("OSUPINC"&$U35,GTYF!$C:$AP,6,FALSE) -> 3681.6
S36: Figure 3. | T36: Pessières | U36: (FCTYF_EPX) | V36: 28410 | W36: 0.131626522 | X36: =VLOOKUP("OSUPINC"&$U36,GTYF!$C:$AP,6,FALSE) -> 28406.1
S37: Figure 3. | T37: Feuillus tolérants à résineux | U37: (FCTYF_FTR) | V37: 18470 | W37: 0.0855734552 | X37: =VLOOKUP("OSUPINC"&$U37,GTYF!$C:$AP,6,FALSE) -> 18467.6
S38: Figure 3. | T38: Feuillus tolérants | U38: (FCTYF_FT) | V38: 38490 | W38: 0.1783282236 | X38: =VLOOKUP("OSUPINC"&$U38,GTYF!$C:$AP,6,FALSE) -> 38489.1
S39: Figure 3. | T39: Érablières rouges | U39: (FCTYF_ERO) | V39: 1360 | W39: 0.006301023231 | X39: =VLOOKUP("OSUPINC"&$U39,GTYF!$C:$AP,6,FALSE) -> 1359.9
S40: Figure 3. | T40: Cédrières | U40: (FCTYF_THO) | V40: 0 | W40: 0 | X40: =VLOOKUP("OSUPINC"&$U40,GTYF!$C:$AP,6,FALSE) -> 0
S41: Figure 3. | T41: Bétulaies blanches à résineux | U41: (FCTYF_BOPR) | V41: 20010 | W41: 0.09270843739 | X41: =VLOOKUP("OSUPINC"&$U41,GTYF!$C:$AP,6,FALSE) -> 20007.2
S42: Figure 3. | T42: Bétulaies blanches | U42: (FCTYF_BOP) | V42: 6590 | W42: 0.03053216404 | X42: =VLOOKUP("OSUPINC"&$U42,GTYF!$C:$AP,6,FALSE) -> 6590.5
U43: Somme: | V43: =SUM(V29:V42) -> 214820 | X43: =SUM(X29:X42) -> 214811.7
T44: OSUPINC | U44: Tous | V44: =VLOOKUP("OSUPINC",Output!$C:$AP,7,FALSE) -> 215837.96
V45: =V43-V44 -> -1017.96 | W45: Écart
V49: 2018
B50: Figure 4. Superficie destinée à l'aménagement forestier par classe d'âge en début de calcul (ha). | S50: Intrants | U50: Name | V50: PERIOD0 | X50: Classe d'âge | Y50: OUTPUT | Z50: Superficie (ha) | AA50: Pourcentage (%)
S51: =LEFT(B$50,10) -> Figure 4. | T51: 10 ans | U51: OSUP_INC_CLASSEAGEFCAGEAGE1 | V51: =VLOOKUP(U51,Output!$C:$AQ,6,FALSE) -> 8833.5 | X51: 10 | Z51: =ROUND(SUM(V51:V54),-1) -> 24640 | AA51: =IFERROR(Z51/$V$89,0) -> 0.113905852
S52: Figure 4. | T52: 10 ans | U52: OSUP_INC_CLASSEAGEFCAGEAGE2 | V52: =VLOOKUP(U52,Output!$C:$AQ,6,FALSE) -> 3436.7 | X52: 30 | Z52: =ROUND(SUM(V55:V58),-1) -> 22620 | AA52: 0.1045677911
S53: Figure 4. | T53: 10 ans | U53: OSUP_INC_CLASSEAGEFCAGEAGE3 | V53: =VLOOKUP(U53,Output!$C:$AQ,6,FALSE) -> 6319.7 | X53: 50 | Z53: =ROUND(SUM(V59:V62),-1) -> 55070 | AA53: 0.2545777301
S54: Figure 4. | T54: 10 ans | U54: OSUP_INC_CLASSEAGEFCAGEAGE4 | V54: =VLOOKUP(U54,Output!$C:$AQ,6,FALSE) -> 6049.8 | X54: 70 | Z54: =ROUND(SUM(V63:V66),-1) -> 27760 | AA54: 0.1283289956
S55: Figure 4. | T55: 30 ans | U55: OSUP_INC_CLASSEAGEFCAGEAGE5 | V55: =VLOOKUP(U55,Output!$C:$AQ,6,FALSE) -> 3635.1 | X55: 90 | Z55: =ROUND(SUM(V67:V70),-1) -> 12570 | AA55: 0.05810862661
S56: Figure 4. | T56: 30 ans | U56: OSUP_INC_CLASSEAGEFCAGEAGE6 | V56: =VLOOKUP(U56,Output!$C:$AQ,6,FALSE) -> 8416.7 | X56: 120 et plus | Z56: =ROUND(SUM(V71:V80),-1) -> 15340 | AA56: 0.07091378936
S57: Figure 4. | T57: 30 ans | U57: OSUP_INC_CLASSEAGEFCAGEAGE7 | V57: =VLOOKUP(U57,Output!$C:$AQ,6,FALSE) -> 2328.4
S58: Figure 4. | T58: 30 ans | U58: OSUP_INC_CLASSEAGEFCAGEAGE8 | V58: =VLOOKUP(U58,Output!$C:$AQ,6,FALSE) -> 8242.7
S59: Figure 4. | T59: 50 ans | U59: OSUP_INC_CLASSEAGEFCAGEAGE9 | V59: =VLOOKUP(U59,Output!$C:$AQ,6,FALSE) -> 12733.3
S60: Figure 4. | T60: 50 ans | U60: OSUP_INC_CLASSEAGEFCAGEAGE10 | V60: =VLOOKUP(U60,Output!$C:$AQ,6,FALSE) -> 22680.5
S61: Figure 4. | T61: 50 ans | U61: OSUP_INC_CLASSEAGEFCAGEAGE11 | V61: =VLOOKUP(U61,Output!$C:$AQ,6,FALSE) -> 11121.1
N62: Proportion de la superficie dont l'évolution est suivi en âge: | S62: Figure 4. | T62: 50 ans | U62: OSUP_INC_CLASSEAGEFCAGEAGE12 | V62: =VLOOKUP(U62,Output!$C:$AQ,6,FALSE) -> 8531
N63: =IF(AND($W$81>=99.5%,$W$81<100%),"> 99%",IF(AND($W$81>=0.1%,$W$81<0.5%),"< 1%",$W$81)) -> 0.7304138795 | S63: Figure 4. | T63: 70 ans | U63: OSUP_INC_CLASSEAGEFCAGEAGE13 | V63: =VLOOKUP(U63,Output!$C:$AQ,6,FALSE) -> 11257.8
S64: Figure 4. | T64: 70 ans | U64: OSUP_INC_CLASSEAGEFCAGEAGE14 | V64: =VLOOKUP(U64,Output!$C:$AQ,6,FALSE) -> 9032.3
S65: Figure 4. | T65: 70 ans | U65: OSUP_INC_CLASSEAGEFCAGEAGE15 | V65: =VLOOKUP(U65,Output!$C:$AQ,6,FALSE) -> 4716.7
S66: Figure 4. | T66: 70 ans | U66: OSUP_INC_CLASSEAGEFCAGEAGE16 | V66: =VLOOKUP(U66,Output!$C:$AQ,6,FALSE) -> 2757.3
S67: Figure 4. | T67: 90 ans | U67: OSUP_INC_CLASSEAGEFCAGEAGE17 | V67: =VLOOKUP(U67,Output!$C:$AQ,6,FALSE) -> 3674.2
S68: Figure 4. | T68: 90 ans | U68: OSUP_INC_CLASSEAGEFCAGEAGE18 | V68: =VLOOKUP(U68,Output!$C:$AQ,6,FALSE) -> 4836.6
B69: Figure 5. Superficie destinée à l'aménagement forestier par classe de surface terrière en début de calcul (ha) | S69: Figure 4. | T69: 90 ans | U69: OSUP_INC_CLASSEAGEFCAGEAGE19 | V69: =VLOOKUP(U69,Output!$C:$AQ,6,FALSE) -> 2962.5
S70: Figure 4. | T70: 90 ans | U70: OSUP_INC_CLASSEAGEFCAGEAGE20 | V70: =VLOOKUP(U70,Output!$C:$AQ,6,FALSE) -> 1095.7
S71: Figure 4. | T71: 120 et plus | U71: OSUP_INC_CLASSEAGEFCAGEAGE21 | V71: =VLOOKUP(U71,Output!$C:$AQ,6,FALSE) -> 762.7
S72: Figure 4. | T72: 120 et plus | U72: OSUP_INC_CLASSEAGEFCAGEAGE22 | V72: =VLOOKUP(U72,Output!$C:$AQ,6,FALSE) -> 2142.5
S73: Figure 4. | T73: 120 et plus | U73: OSUP_INC_CLASSEAGEFCAGEAGE23 | V73: =VLOOKUP(U73,Output!$C:$AQ,6,FALSE) -> 1014.2
S74: Figure 4. | T74: 120 et plus | U74: OSUP_INC_CLASSEAGEFCAGEAGE24 | V74: =VLOOKUP(U74,Output!$C:$AQ,6,FALSE) -> 0
S75: Figure 4. | T75: 120 et plus | U75: OSUP_INC_CLASSEAGEFCAGEAGE25 | V75: =VLOOKUP(U75,Output!$C:$AQ,6,FALSE) -> 0
N76: Proportion de la superficie dont l'évolution est suivi en surface terrière: | S76: Figure 4. | T76: 120 et plus | U76: OSUP_INC_CLASSEAGEFCAGEAGE26 | V76: =VLOOKUP(U76,Output!$C:$AQ,6,FALSE) -> 0
N77: =IF(AND($W$88>=99.5%,$W$88<100%),"> 99%",IF(AND($W$88>=0.1%,$W$88<0.5%),"< 1%",$W$88)) -> 0.2695861205 | S77: Figure 4. | T77: 120 et plus | U77: OSUP_INC_CLASSEAGEFCAGEAGE27 | V77: =VLOOKUP(U77,Output!$C:$AQ,6,FALSE) -> 988.1
S78: Figure 4. | T78: 120 et plus | U78: OSUP_INC_CLASSEAGEFCAGEAGE28 | V78: =VLOOKUP(U78,Output!$C:$AQ,6,FALSE) -> 0
S79: Figure 4. | T79: 120 et plus | U79: OSUP_INC_CLASSEAGEFCAGEAGE29 | V79: =VLOOKUP(U79,Output!$C:$AQ,6,FALSE) -> 0
S80: Figure 4. | T80: 120 et plus | U80: OSUP_INC_CLASSEAGEFCAGEAGE30+ | V80: =VLOOKUP(U80,Output!$C:$AQ,6,FALSE) -> 10433.3
U81: Sous-total | V81: =SUM(V51:V80) -> 158002.4 | W81: =V81/V89 -> 0.7304138795
S82: =LEFT(B$69,10) -> Figure 5. | T82: <16 | U82: OSUPINC_ST016(FCST) | V82: =VLOOKUP(U82,GTYF!$C:$AQ,6,FALSE) -> 13664.6 | W82: =IFERROR(V82/$V$88,0) -> 0.2343175014
S83: Figure 5. | T83: 16 à 18 | U83: OSUPINC_ST1619(FCST) | V83: =VLOOKUP(U83,GTYF!$C:$AQ,6,FALSE) -> 10170.9 | W83: 0.174408316
S84: Figure 5. | T84: 19 à 21 | U84: OSUPINC_ST1922(FCST) | V84: =VLOOKUP(U84,GTYF!$C:$AQ,6,FALSE) -> 9858.9 | W84: 0.1690582098
S85: Figure 5. | T85: 22 à 24 | U85: OSUPINC_ST2225(FCST) | V85: =VLOOKUP(U85,GTYF!$C:$AQ,6,FALSE) -> 20465.3 | W85: 0.3509343823
S86: Figure 5. | T86: 25 à 28 | U86: OSUPINC_ST2528(FCST) | V86: =VLOOKUP(U86,GTYF!$C:$AQ,6,FALSE) -> 3510.1 | W86: 0.06019040891
S87: Figure 5. | T87: 29+ | U87: OSUPINC_ST29+(FCST) | V87: =VLOOKUP(U87,GTYF!$C:$AQ,6,FALSE) -> 646.8 | W87: 0.01109118158
S88: Figure 5. | T88: Total 0-29+ | U88: Sous-total | V88: =SUM(V82:V87) -> 58316.6 | W88: =V88/V89 -> 0.2695861205
U89: OSUPINC | V89: =VLOOKUP(U89,Output!$C:$AQ,6,FALSE) -> 216319
A91: 80 | B91: Figure 6. Évolution des volumes et des possibilités forestières à rendement non-décroissant
U93: Période | V93: P0 | W93: P1 | X93: P2 | Y93: P3 | Z93: P4 | AA93: P5 | AB93: P6 | AC93: P7 | AD93: P8 | AE93: P9 | AF93: P10 | AG93: P11 | AH93: P12 | AI93: P13 | AJ93: P14 | AK93: P15 | AL93: P16 | AM93: P17 | AN93: P18 | AO93: P19 | AP93: P20 | AQ93: P21 | AR93: P22 | AS93: P23 | AT93: P24 | AU93: P25 | AV93: P26 | AW93: P27 | AX93: P28 | AY93: P29 | AZ93: P30
U94: Colonne | V94: 6 | W94: 7 | X94: 8 | Y94: 9 | Z94: 10 | AA94: 11 | AB94: 12 | AC94: 13 | AD94: 14 | AE94: 15 | AF94: 16 | AG94: 17 | AH94: 18 | AI94: 19 | AJ94: 20 | AK94: 21 | AL94: 22 | AM94: 23 | AN94: 24 | AO94: 25 | AP94: 26 | AQ94: 27 | AR94: 28 | AS94: 29 | AT94: 30 | AU94: 31 | AV94: 32 | AW94: 33 | AX94: 34 | AY94: 35 | AZ94: 36
S95: =LEFT(B$91,10) -> Figure 6. | T95: Légende | U95: Axe des "X" Début de période | W95: 2018 | X95: 2023 | Y95: 2028 | Z95: 2033 | AA95: 2038 | AB95: 2043 | AC95: 2048 | AD95: 2053 | AE95: 2058 | AF95: 2063 | AG95: 2068 | AH95: 2073 | AI95: 2078 | AJ95: 2083 | AK95: 2088 | AL95: 2093 | AM95: 2098 | AN95: 2103 | AO95: 2108 | AP95: 2113 | AQ95: 2118 | AR95: 2123 | AS95: 2128 | AT95: 2133 | AU95: 2138 | AV95: 2143 | AW95: 2148 | AX95: 2153 | AY95: 2158 | AZ95: 2163
S96: =LEFT(B$91,10) -> Figure 6. | T96: Possibilités forestières quinquennales | U96: OVOLTOTREC | V96: =VLOOKUP($U96,Output!$C:$AM,V$94,FALSE) -> 0 | W96: =VLOOKUP($U96,Output!$C:$AM,W$94,FALSE) -> 1341280 | X96: =VLOOKUP($U96,Output!$C:$AM,X$94,FALSE) -> 1772500 | Y96: =VLOOKUP($U96,Output!$C:$AM,Y$94,FALSE) -> 1772500 | Z96: =VLOOKUP($U96,Output!$C:$AM,Z$94,FALSE) -> 1772500 | AA96: =VLOOKUP($U96,Output!$C:$AM,AA$94,FALSE) -> 1772500 | AB96: =VLOOKUP($U96,Output!$C:$AM,AB$94,FALSE) -> 1772500 | AC96: =VLOOKUP($U96,Output!$C:$AM,AC$94,FALSE) -> 1772500 | AD96: =VLOOKUP($U96,Output!$C:$AM,AD$94,FALSE) -> 1772500 | AE96: =VLOOKUP($U96,Output!$C:$AM,AE$94,FALSE) -> 1772507.64 | AF96: =VLOOKUP($U96,Output!$C:$AM,AF$94,FALSE) -> 1780467.54 | AG96: =VLOOKUP($U96,Output!$C:$AM,AG$94,FALSE) -> 1783559.53 | AH96: =VLOOKUP($U96,Output!$C:$AM,AH$94,FALSE) -> 1783565.4 | AI96: =VLOOKUP($U96,Output!$C:$AM,AI$94,FALSE) -> 1783565.4 | AJ96: =VLOOKUP($U96,Output!$C:$AM,AJ$94,FALSE) -> 1783566.93 | AK96: =VLOOKUP($U96,Output!$C:$AM,AK$94,FALSE) -> 1783570.73 | AL96: =VLOOKUP($U96,Output!$C:$AM,AL$94,FALSE) -> 1791034.62 | AM96: =VLOOKUP($U96,Output!$C:$AM,AM$94,FALSE) -> 1804967.87 | AN96: =VLOOKUP($U96,Output!$C:$AM,AN$94,FALSE) -> 1810055.28 | AO96: =VLOOKUP($U96,Output!$C:$AM,AO$94,FALSE) -> 1810059.02 | AP96: =VLOOKUP($U96,Output!$C:$AM,AP$94,FALSE) -> 1810062.53 | AQ96: =VLOOKUP($U96,Output!$C:$AM,AQ$94,FALSE) -> 2229289.81 | AR96: =VLOOKUP($U96,Output!$C:$AM,AR$94,FALSE) -> 2288740.37 | AS96: =VLOOKUP($U96,Output!$C:$AM,AS$94,FALSE) -> 2288740.37 | AT96: =VLOOKUP($U96,Output!$C:$AM,AT$94,FALSE) -> 2288757.8 | AU96: =VLOOKUP($U96,Output!$C:$AM,AU$94,FALSE) -> 2288758.69 | AV96: =VLOOKUP($U96,Output!$C:$AM,AV$94,FALSE) -> 2288758.69 | AW96: =VLOOKUP($U96,Output!$C:$AM,AW$94,FALSE) -> 2367390.7 | AX96: =VLOOKUP($U96,Output!$C:$AM,AX$94,FALSE) -> 2367398.01 | AY96: =VLOOKUP($U96,Output!$C:$AM,AY$94,FALSE) -> 2367398.01 | AZ96: =VLOOKUP($U96,Output!$C:$AM,AZ$94,FALSE) -> 2367398.17
S97: =LEFT(B$91,10) -> Figure 6. | T97: Volume à maturité | U97: OVOLMATUREADM | V97: =VLOOKUP($U97,Output!$C:$AM,V$94,FALSE) -> 12435230.05 | W97: =VLOOKUP($U97,Output!$C:$AM,W$94,FALSE) -> 14255953.79 | X97: =VLOOKUP($U97,Output!$C:$AM,X$94,FALSE) -> 14832530.78 | Y97: =VLOOKUP($U97,Output!$C:$AM,Y$94,FALSE) -> 16107833.59 | Z97: =VLOOKUP($U97,Output!$C:$AM,Z$94,FALSE) -> 16293386.32 | AA97: =VLOOKUP($U97,Output!$C:$AM,AA$94,FALSE) -> 17375001.5 | AB97: =VLOOKUP($U97,Output!$C:$AM,AB$94,FALSE) -> 17388246.96 | AC97: =VLOOKUP($U97,Output!$C:$AM,AC$94,FALSE) -> 17432290.94 | AD97: =VLOOKUP($U97,Output!$C:$AM,AD$94,FALSE) -> 17333269.71 | AE97: =VLOOKUP($U97,Output!$C:$AM,AE$94,FALSE) -> 17513416.36 | AF97: =VLOOKUP($U97,Output!$C:$AM,AF$94,FALSE) -> 16604922.89 | AG97: =VLOOKUP($U97,Output!$C:$AM,AG$94,FALSE) -> 17024897.36 | AH97: =VLOOKUP($U97,Output!$C:$AM,AH$94,FALSE) -> 16329835.29 | AI97: =VLOOKUP($U97,Output!$C:$AM,AI$94,FALSE) -> 15603686 | AJ97: =VLOOKUP($U97,Output!$C:$AM,AJ$94,FALSE) -> 15615452.99 | AK97: =VLOOKUP($U97,Output!$C:$AM,AK$94,FALSE) -> 16381237.03 | AL97: =VLOOKUP($U97,Output!$C:$AM,AL$94,FALSE) -> 17419672.19 | AM97: =VLOOKUP($U97,Output!$C:$AM,AM$94,FALSE) -> 17850088.67 | AN97: =VLOOKUP($U97,Output!$C:$AM,AN$94,FALSE) -> 17741955.31 | AO97: =VLOOKUP($U97,Output!$C:$AM,AO$94,FALSE) -> 18123754.06 | AP97: =VLOOKUP($U97,Output!$C:$AM,AP$94,FALSE) -> 18435308.83 | AQ97: =VLOOKUP($U97,Output!$C:$AM,AQ$94,FALSE) -> 18675703.47 | AR97: =VLOOKUP($U97,Output!$C:$AM,AR$94,FALSE) -> 17701326.73 | AS97: =VLOOKUP($U97,Output!$C:$AM,AS$94,FALSE) -> 17099808.96 | AT97: =VLOOKUP($U97,Output!$C:$AM,AT$94,FALSE) -> 16758512.45 | AU97: =VLOOKUP($U97,Output!$C:$AM,AU$94,FALSE) -> 16708675.11 | AV97: =VLOOKUP($U97,Output!$C:$AM,AV$94,FALSE) -> 16797956.01 | AW97: =VLOOKUP($U97,Output!$C:$AM,AW$94,FALSE) -> 15802126.97 | AX97: =VLOOKUP($U97,Output!$C:$AM,AX$94,FALSE) -> 15219676.22 | AY97: =VLOOKUP($U97,Output!$C:$AM,AY$94,FALSE) -> 15093810.09 | AZ97: =VLOOKUP($U97,Output!$C:$AM,AZ$94,FALSE) -> 14643067.84
S98: =LEFT(B$91,10) -> Figure 6. | T98: Volume sur pied | U98: OVOLTOTPIEDINC | V98: =VLOOKUP($U98,Output!$C:$AM,V$94,FALSE) -> 22721754.1 | W98: =VLOOKUP($U98,Output!$C:$AM,W$94,FALSE) -> 23326318.37 | X98: =VLOOKUP($U98,Output!$C:$AM,X$94,FALSE) -> 23268061.9 | Y98: =VLOOKUP($U98,Output!$C:$AM,Y$94,FALSE) -> 23314615.79 | Z98: =VLOOKUP($U98,Output!$C:$AM,Z$94,FALSE) -> 23315938.77 | AA98: =VLOOKUP($U98,Output!$C:$AM,AA$94,FALSE) -> 23319327.65 | AB98: =VLOOKUP($U98,Output!$C:$AM,AB$94,FALSE) -> 23330523.46 | AC98: =VLOOKUP($U98,Output!$C:$AM,AC$94,FALSE) -> 23288345.08 | AD98: =VLOOKUP($U98,Output!$C:$AM,AD$94,FALSE) -> 23268061.9 | AE98: =VLOOKUP($U98,Output!$C:$AM,AE$94,FALSE) -> 23268061.9 | AF98: =VLOOKUP($U98,Output!$C:$AM,AF$94,FALSE) -> 23304680.86 | AG98: =VLOOKUP($U98,Output!$C:$AM,AG$94,FALSE) -> 23342755.19 | AH98: =VLOOKUP($U98,Output!$C:$AM,AH$94,FALSE) -> 23452841.44 | AI98: =VLOOKUP($U98,Output!$C:$AM,AI$94,FALSE) -> 23636964.28 | AJ98: =VLOOKUP($U98,Output!$C:$AM,AJ$94,FALSE) -> 23872315.39 | AK98: =VLOOKUP($U98,Output!$C:$AM,AK$94,FALSE) -> 24167666.83 | AL98: =VLOOKUP($U98,Output!$C:$AM,AL$94,FALSE) -> 24391171.2 | AM98: =VLOOKUP($U98,Output!$C:$AM,AM$94,FALSE) -> 24627701.39 | AN98: =VLOOKUP($U98,Output!$C:$AM,AN$94,FALSE) -> 24906080.3 | AO98: =VLOOKUP($U98,Output!$C:$AM,AO$94,FALSE) -> 25124135.56 | AP98: =VLOOKUP($U98,Output!$C:$AM,AP$94,FALSE) -> 25309790.94 | AQ98: =VLOOKUP($U98,Output!$C:$AM,AQ$94,FALSE) -> 25013695.84 | AR98: =VLOOKUP($U98,Output!$C:$AM,AR$94,FALSE) -> 24695065.34 | AS98: =VLOOKUP($U98,Output!$C:$AM,AS$94,FALSE) -> 24388723.33 | AT98: =VLOOKUP($U98,Output!$C:$AM,AT$94,FALSE) -> 24278441.38 | AU98: =VLOOKUP($U98,Output!$C:$AM,AU$94,FALSE) -> 24218662.91 | AV98: =VLOOKUP($U98,Output!$C:$AM,AV$94,FALSE) -> 23983919.3 | AW98: =VLOOKUP($U98,Output!$C:$AM,AW$94,FALSE) -> 23774161.97 | AX98: =VLOOKUP($U98,Output!$C:$AM,AX$94,FALSE) -> 23704776.77 | AY98: =VLOOKUP($U98,Output!$C:$AM,AY$94,FALSE) -> 23547386.66 | AZ98: =VLOOKUP($U98,Output!$C:$AM,AZ$94,FALSE) -> 23268061.9
S99: =LEFT(B$91,10) -> Figure 6. | T99: Volume récoltable | U99: OVOLTOTADMREGAPRE | V99: =VLOOKUP($U99,Output!$C:$AM,V$94,FALSE) -> 0 | W99: =VLOOKUP($U99,Output!$C:$AM,W$94,FALSE) -> 9847012.81 | X99: =VLOOKUP($U99,Output!$C:$AM,X$94,FALSE) -> 3640228.01 | Y99: =VLOOKUP($U99,Output!$C:$AM,Y$94,FALSE) -> 4413064.7 | Z99: =VLOOKUP($U99,Output!$C:$AM,Z$94,FALSE) -> 3624598.48 | AA99: =VLOOKUP($U99,Output!$C:$AM,AA$94,FALSE) -> 4114523.24 | AB99: =VLOOKUP($U99,Output!$C:$AM,AB$94,FALSE) -> 3702267.48 | AC99: =VLOOKUP($U99,Output!$C:$AM,AC$94,FALSE) -> 3886269.09 | AD99: =VLOOKUP($U99,Output!$C:$AM,AD$94,FALSE) -> 5438857.44 | AE99: =VLOOKUP($U99,Output!$C:$AM,AE$94,FALSE) -> 4217572.61 | AF99: =VLOOKUP($U99,Output!$C:$AM,AF$94,FALSE) -> 4260810.12 | AG99: =VLOOKUP($U99,Output!$C:$AM,AG$94,FALSE) -> 3460318.71 | AH99: =VLOOKUP($U99,Output!$C:$AM,AH$94,FALSE) -> 3921147.42 | AI99: =VLOOKUP($U99,Output!$C:$AM,AI$94,FALSE) -> 5903507.11 | AJ99: =VLOOKUP($U99,Output!$C:$AM,AJ$94,FALSE) -> 3505357.67 | AK99: =VLOOKUP($U99,Output!$C:$AM,AK$94,FALSE) -> 3536480.06 | AL99: =VLOOKUP($U99,Output!$C:$AM,AL$94,FALSE) -> 2986360.99 | AM99: =VLOOKUP($U99,Output!$C:$AM,AM$94,FALSE) -> 3982460.51 | AN99: =VLOOKUP($U99,Output!$C:$AM,AN$94,FALSE) -> 5760764.88 | AO99: =VLOOKUP($U99,Output!$C:$AM,AO$94,FALSE) -> 3500780.81 | AP99: =VLOOKUP($U99,Output!$C:$AM,AP$94,FALSE) -> 3413169.54 | AQ99: =VLOOKUP($U99,Output!$C:$AM,AQ$94,FALSE) -> 3124053.84 | AR99: =VLOOKUP($U99,Output!$C:$AM,AR$94,FALSE) -> 4383167.89 | AS99: =VLOOKUP($U99,Output!$C:$AM,AS$94,FALSE) -> 5979325.46 | AT99: =VLOOKUP($U99,Output!$C:$AM,AT$94,FALSE) -> 3499587.11 | AU99: =VLOOKUP($U99,Output!$C:$AM,AU$94,FALSE) -> 3135131.71 | AV99: =VLOOKUP($U99,Output!$C:$AM,AV$94,FALSE) -> 2862142.13 | AW99: =VLOOKUP($U99,Output!$C:$AM,AW$94,FALSE) -> 3974558 | AX99: =VLOOKUP($U99,Output!$C:$AM,AX$94,FALSE) -> 5514720.66 | AY99: =VLOOKUP($U99,Output!$C:$AM,AY$94,FALSE) -> 3408654.65 | AZ99: =VLOOKUP($U99,Output!$C:$AM,AZ$94,FALSE) -> 3253878.36
T116: * Source: Cahier_analyse, Tableau 13, onglet Budget | X116: Moyenne P2 à P6
B117: Figure 7. Répartition du budget annuel par familles de traitements prévus à la stratégie d’aménagement et coût moyen à l’hectare par famille de traitements
S118: =LEFT(B$117,10) -> Figure 7. | T118: Légende | U118: Output taux | V118: Output superficie | W118: $/ha | X118: ha | Y118: $
S119: =LEFT(B$117,10) -> Figure 7. | T119: Coupes avec protection de la régénération et des sols (CPRS) | U119: OTAUXCT_100 | V119: OSUPCT | W119: =IFERROR(VLOOKUP(U119,Output!$C:$AQ,37,FALSE),0) -> 0 | X119: =IFERROR(VLOOKUP(V119,Output!$C:$AQ,37,FALSE),"0000")/5 -> 2027.5744 | Y119: =W119*X119 -> 0
S120: =LEFT(B$117,10) -> Figure 7. | T120: Coupe avec protection des petites tiges marchandes (CPPTM) | V120: OSUPREALaCPPTM | W120: =IFERROR(VLOOKUP(U120,Output!$C:$AQ,8,FALSE),0) -> 0 | X120: =IFERROR(VLOOKUP(V120,Output!$C:$AQ,37,FALSE),"0000")/5 -> 12.012 | Y120: =W120*X120 -> 0
S121: =LEFT(B$117,10) -> Figure 7. | T121: Coupe avec réserve de semenciers (CRS) | V121: OSUPREALaCRS | W121: =IFERROR(VLOOKUP(U121,Output!$C:$AQ,8,FALSE),0) -> 0 | X121: =IFERROR(VLOOKUP(V121,Output!$C:$AQ,37,FALSE),"0000")/5 -> 345.4896 | Y121: 0
T122: Coupe à rétention variable (CRV, CPPTM, CPPTM, CPHR, CDL)
S123: =LEFT(B$117,10) -> Figure 7. | T123: Coupes finales | W123: =(ROUND(Y123/X123,0))&"$/ha" -> 0$/ha | X123: =SUM(X119:X121) -> 2385.076 | Y123: =SUM(Y119:Y121) -> 0
S124: Figure 7. | T124: Éclaircie commerciale (EC) | U124: OTAUXEC_SEPM_100 | V124: OSUPEC_SEPM | W124: =IFERROR(VLOOKUP(U124,Output!$C:$AQ,37,FALSE),0) -> 1280 | X124: =IFERROR(VLOOKUP(V124,Output!$C:$AQ,37,FALSE),"0000")/5 -> 100.5052 | Y124: 128646.656
S125: Figure 7. | T125: Coupe progressive régulière initiale (CPROG) | U125: OTAUXCPROG_INI_100 | V125: OSUPCPROG_INI | W125: =IFERROR(VLOOKUP(U125,Output!$C:$AQ,37,FALSE),0) -> 480 | X125: =IFERROR(VLOOKUP(V125,Output!$C:$AQ,37,FALSE),"0000")/5 -> 0 | Y125: 0
S126: Figure 7. | T126: Coupe progressive régulière finale (CPROG) | U126: OTAUXCPROG_FIN_100 | V126: OSUPCPROG_FIN | W126: =IFERROR(VLOOKUP(U126,Output!$C:$AQ,37,FALSE),0) -> 0 | X126: =IFERROR(VLOOKUP(V126,Output!$C:$AQ,37,FALSE),"0000")/5 -> 0 | Y126: 0
S127: Figure 7. | T127: Coupe progessive irrégulière initiale (CPIRL) | U127: OTAUXCPIRL_INI_100 | V127: OSUPCPIRL_INI | W127: =IFERROR(VLOOKUP(U127,Output!$C:$AQ,37,FALSE),0) -> 400 | X127: =IFERROR(VLOOKUP(V127,Output!$C:$AQ,37,FALSE),"0000")/5 -> 252.2416 | Y127: 100896.64
S128: Figure 7. | T128: Coupe progessive irrégulière finale (CPIRL) | U128: OTAUXCPIRL_FIN_100 | V128: OSUPCPIRL_FIN | W128: =IFERROR(VLOOKUP(U128,Output!$C:$AQ,37,FALSE),0) -> 0 | X128: =IFERROR(VLOOKUP(V128,Output!$C:$AQ,37,FALSE),"0000")/5 -> 0 | Y128: 0
S129: Figure 7. | T129: Coupe à couvert permanent (CPICP) | U129: OTAUXCPICP_100 | V129: OSUPCPICP | W129: =IFERROR(VLOOKUP(U129,Output!$C:$AQ,37,FALSE),0) -> 430 | X129: =IFERROR(VLOOKUP(V129,Output!$C:$AQ,37,FALSE),"0000")/5 -> 183.7584 | Y129: 79016.112
S130: Figure 7. | T130: Coupe de jardinage (CJ) | U130: OTAUXCJ_100 | V130: OSUPCJ | W130: =IFERROR(VLOOKUP(U130,Output!$C:$AQ,37,FALSE),0) -> 679.91 | X130: =IFERROR(VLOOKUP(V130,Output!$C:$AQ,37,FALSE),"0000")/5 -> 0 | Y130: 0
S131: Figure 7. | T131: Coupes partielles | W131: =(ROUND(Y131/X131,0))&"$/ha" -> 575$/ha | X131: =SUM(X124:X130) -> 536.5052 | Y131: =SUM(Y124:Y130) -> 308559.408
S132: Figure 7. | T132: Plantation ligniculture (pins, feuillus) | U132: OTAUXPL_PPF_100 | V132: OSUPPL_PPF | W132: =IFERROR(VLOOKUP(U132,Output!$C:$AQ,37,FALSE),0) -> 1640 | X132: =IFERROR(VLOOKUP(V132,Output!$C:$AQ,37,FALSE),"0000")/5 -> 0 | Y132: 0
S133: Figure 7. | T133: Plantation intensive | U133: OTAUXPL_SEPM_I_100 | V133: OSUPPL_SEPM_I | W133: =IFERROR(VLOOKUP(U133,Output!$C:$AQ,37,FALSE),0) -> 1610 | X133: =IFERROR(VLOOKUP(V133,Output!$C:$AQ,37,FALSE),"0000")/5 -> 175.4648 | Y133: 282498.328
S134: Figure 7. | T134: Plantation de base | U134: OTAUXPL_SEPM_E_100 | V134: OSUPPL_SEPM_E | W134: =IFERROR(VLOOKUP(U134,Output!$C:$AQ,37,FALSE),0) -> 1280 | X134: =IFERROR(VLOOKUP(V134,Output!$C:$AQ,37,FALSE),"0000")/5 -> 192.4036 | Y134: 246276.608
S135: Figure 7. | T135: Regarni | U135: OTAUXREG_100 | V135: OSUPREG | W135: =IFERROR(VLOOKUP(U135,Output!$C:$AQ,37,FALSE),0) -> 530 | X135: =IFERROR(VLOOKUP(V135,Output!$C:$AQ,37,FALSE),"0000")/5 -> 0 | Y135: 0
S136: Figure 7. | T136: Ensemencement (ENS) | U136: OTAUXENS_100 | V136: OSUPENS | W136: =IFERROR(VLOOKUP(U136,Output!$C:$AQ,37,FALSE),0) -> 130 | X136: =IFERROR(VLOOKUP(V136,Output!$C:$AQ,37,FALSE),"0000")/5 -> 0 | Y136: =W136*X136 -> 0
S137: Figure 7. | T137: Reboisement | W137: =(ROUND(Y137/X137,0))&"$/ha" -> 1437$/ha | X137: =SUM(X132:X136) -> 367.8684 | Y137: =SUM(Y132:Y136) -> 528774.936
S138: Figure 7. | T138: Dégagement de la régénération naturelle | U138: OTAUXDEG_2_100 | V138: OSUPDEG_2 | W138: =IFERROR(VLOOKUP(U138,Output!$C:$AQ,37,FALSE),0) -> 1720 | X138: =IFERROR(VLOOKUP(V138,Output!$C:$AQ,37,FALSE),"0000")/5 -> 0.14 | Y138: 240.8
S139: Figure 7. | T139: Dégagement de plantation | U139: OTAUXDEG_1_100 | V139: OSUPDEG_1 | W139: =IFERROR(VLOOKUP(U139,Output!$C:$AQ,37,FALSE),0) -> 1720 | X139: =IFERROR(VLOOKUP(V139,Output!$C:$AQ,37,FALSE),"0000")/5 -> 320.1628 | Y139: 550680.016
S140: Figure 7. | T140: Nettoiement de la régénération naturelle | U140: OTAUXNETT_100 | V140: OSUPREALNET | W140: =IFERROR(VLOOKUP(U140,Output!$C:$AQ,37,FALSE),0) -> 1230 | X140: =IFERROR(VLOOKUP(V140,Output!$C:$AQ,37,FALSE),"0000")/5-X141 -> 412.4272 | Y140: 507285.456
C141: $ /m3 | E141: $ /ha | S141: Figure 7. | T141: Nettoiement de plantation | U141: OTAUXNETT_100 | V141: OSUPTCADNETT_T100% | W141: =IFERROR(VLOOKUP(U141,Output!$C:$AQ,37,FALSE),0) -> 1230 | X141: =IFERROR(VLOOKUP(V141,Output!$C:$AQ,37,FALSE),"0000")/5 -> 210.9216 | Y141: 259433.568
C142: =Y151/(Instructions!I5/5) -> 7.125489422 | E142: =Y151/Tableaux!F33 -> 11.75916391 | S142: Figure 7. | T142: Éclaircie précommerciale (EPC_1) | U142: OTAUXEPC_1_100 | V142: OSUPEPC_1 | W142: =IFERROR(VLOOKUP(U142,Output!$C:$AQ,37,FALSE),0) -> 1560 | X142: =IFERROR(VLOOKUP(V142,Output!$C:$AQ,37,FALSE),"0000")/5 -> 0 | Y142: 0
S143: Figure 7. | T143: Éclaircie précommerciale (EPC_2) | U143: OTAUXEPC_2_100 | V143: OSUPEPC_2 | W143: =IFERROR(VLOOKUP(U143,Output!$C:$AQ,37,FALSE),0) -> 1560 | X143: =IFERROR(VLOOKUP(V143,Output!$C:$AQ,37,FALSE),"0000")/5 -> 0 | Y143: 0
S144: Figure 7. | T144: Éclaircie précommerciale de la régénération naturelle | V144: OSUPREALEPC | W144: =IFERROR(VLOOKUP(U144,Output!$C:$AQ,37,FALSE),0) -> 0 | X144: =IFERROR(VLOOKUP(V144,Output!$C:$AQ,37,FALSE),"0000")/5 -> 0 | Y144: 0
S145: Figure 7. | T145: Élagage (plantation) | U145: OTAUXELAG_100 | V145: OSUPELAG | W145: =IFERROR(VLOOKUP(U145,Output!$C:$AQ,37,FALSE),0) -> 1630 | X145: =IFERROR(VLOOKUP(V145,Output!$C:$AQ,37,FALSE),"0000")/5 -> 0 | Y145: 0
S146: Figure 7. | T146: Travaux d'éducation | W146: =(ROUND(Y146/X146,0))&"$/ha" -> 1396$/ha | X146: =SUM(X138:X143)+X145 -> 943.6516 | Y146: =SUM(Y138:Y143)+Y145 -> 1317639.84
S147: Figure 7. | T147: Préparation terrain lignicult. + ferti + élagage (SCA_LIGN) | U147: OTAUXSCA_LIGN_100 | V147: OSUPSCA_LIGN | W147: =IFERROR(VLOOKUP(U147,Output!$C:$AQ,37,FALSE),0) -> 1760 | X147: =IFERROR(VLOOKUP(V147,Output!$C:$AQ,37,FALSE),"0000")/5 -> 0 | Y147: 0
S148: Figure 7. | T148: Préparation de terrain partielle (SCA_PART) | U148: OTAUXSCA_PART_100 | V148: OSUPSCA_PART | W148: =IFERROR(VLOOKUP(U148,Output!$C:$AQ,37,FALSE),0) -> 730 | X148: =IFERROR(VLOOKUP(V148,Output!$C:$AQ,37,FALSE),"0000")/5 -> 93.5184 | Y148: 68268.432
S149: Figure 7. | T149: Préparation de terrain régulière, 1 passage (SCA_REG) | U149: OTAUXSCA_REG_100 | V149: OSUPSCA_REG | W149: =IFERROR(VLOOKUP(U149,Output!$C:$AQ,37,FALSE),0) -> 560 | X149: =IFERROR(VLOOKUP(V149,Output!$C:$AQ,37,FALSE),"0000")/5 -> 540.6136 | Y149: 302743.616 | AA149: Valideur
B150: Figure 9b Évolution de la superficie des vieilles forêts selon leur degré d'altération | S150: Figure 7. | T150: Préparation de terrain | W150: =(ROUND(Y150/X150,0))&"$/ha" -> 585$/ha | X150: =SUM(X147:X149) -> 634.132 | Y150: =SUM(Y147:Y149) -> 371012.048 | Z150: =Y123+Y131+Y137+Y146+Y150 -> 2525986.232 | AA150: =Y151-Z150 -> -0.2319999998
S151: Figure 7. | T151: Investissement sylvicole annuel (O$INVESTISTS)* | V151: O$INVESTISTS | Y151: =IFERROR(VLOOKUP(V151,Output!$C:$AQ,37,FALSE),"0000")/5 -> 2525986
S155: =LEFT(B$117,10) -> Figure 7. | T155: =T123 -> Coupes finales | U155: =Y123 -> 0 | V155: =W123 -> 0$/ha
S156: =LEFT(B$117,10) -> Figure 7. | T156: =T131 -> Coupes partielles | U156: =Y131 -> 308559.408 | V156: =W131 -> 575$/ha
S157: =LEFT(B$117,10) -> Figure 7. | T157: =T137 -> Reboisement | U157: =Y137 -> 528774.936 | V157: =W137 -> 1437$/ha
S158: =LEFT(B$117,10) -> Figure 7. | T158: =T146 -> Travaux d'éducation | U158: =Y146 -> 1317639.84 | V158: =W146 -> 1396$/ha
S159: =LEFT(B$117,10) -> Figure 7. | T159: =T150 -> Préparation de terrain | U159: =Y150 -> 371012.048 | V159: =W150 -> 585$/ha
U161: Période | V161: P0 | W161: P1 | X161: P2 | Y161: P3 | Z161: P4 | AA161: P5 | AB161: P6 | AC161: P7 | AD161: P8 | AE161: P9 | AF161: P10 | AG161: P11 | AH161: P12 | AI161: P13 | AJ161: P14 | AK161: P15 | AL161: P16 | AM161: P17 | AN161: P18 | AO161: P19 | AP161: P20 | AQ161: P21 | AR161: P22 | AS161: P23 | AT161: P24 | AU161: P25 | AV161: P26 | AW161: P27 | AX161: P28 | AY161: P29 | AZ161: P30
S162: =LEFT(B$150,10) -> Figure 9b | U162: Axe des "X" Fin de période | V162: 2018 | W162: 2023 | X162: 2028 | Y162: 2033 | Z162: 2038 | AA162: 2043 | AB162: 2048 | AC162: 2053 | AD162: 2058 | AE162: 2063 | AF162: 2068 | AG162: 2073 | AH162: 2078 | AI162: 2083 | AJ162: 2088 | AK162: 2093 | AL162: 2098 | AM162: 2103 | AN162: 2108 | AO162: 2113 | AP162: 2118 | AQ162: 2123 | AR162: 2128 | AS162: 2133 | AT162: 2138 | AU162: 2143 | AV162: 2148 | AW162: 2153 | AX162: 2158 | AY162: 2163 | AZ162: 2168
S163: Figure 9b | U163: Colonne | V163: 6 | W163: 7 | X163: 8 | Y163: 9 | Z163: 10 | AA163: 11 | AB163: 12 | AC163: 13 | AD163: 14 | AE163: 15 | AF163: 16 | AG163: 17 | AH163: 18 | AI163: 19 | AJ163: 20 | AK163: 21 | AL163: 22 | AM163: 23 | AN163: 24 | AO163: 25 | AP163: 26 | AQ163: 27 | AR163: 28 | AS163: 29 | AT163: 30 | AU163: 31 | AV163: 32 | AW163: 33 | AX163: 34 | AY163: 35 | AZ163: 36
S164: Figure 9b | U164: OSUPREGECO | V164: =VLOOKUP($U164,Output!$C:$AL,V$163,FALSE) -> 294693.1 | W164: =VLOOKUP($U164,Output!$C:$AL,W$163,FALSE) -> 294212.06 | X164: =VLOOKUP($U164,Output!$C:$AL,X$163,FALSE) -> 293614.73 | Y164: =VLOOKUP($U164,Output!$C:$AL,Y$163,FALSE) -> 293008.29 | Z164: =VLOOKUP($U164,Output!$C:$AL,Z$163,FALSE) -> 292435.44 | AA164: =VLOOKUP($U164,Output!$C:$AL,AA$163,FALSE) -> 291959.43 | AB164: =VLOOKUP($U164,Output!$C:$AL,AB$163,FALSE) -> 291517.44 | AC164: =VLOOKUP($U164,Output!$C:$AL,AC$163,FALSE) -> 291024.48 | AD164: =VLOOKUP($U164,Output!$C:$AL,AD$163,FALSE) -> 290563.78 | AE164: =VLOOKUP($U164,Output!$C:$AL,AE$163,FALSE) -> 290251.28 | AF164: =VLOOKUP($U164,Output!$C:$AL,AF$163,FALSE) -> 289953.61 | AG164: =VLOOKUP($U164,Output!$C:$AL,AG$163,FALSE) -> 289719.38 | AH164: =VLOOKUP($U164,Output!$C:$AL,AH$163,FALSE) -> 289372.82 | AI164: =VLOOKUP($U164,Output!$C:$AL,AI$163,FALSE) -> 289151.43 | AJ164: =VLOOKUP($U164,Output!$C:$AL,AJ$163,FALSE) -> 288972.09 | AK164: =VLOOKUP($U164,Output!$C:$AL,AK$163,FALSE) -> 288790.93 | AL164: =VLOOKUP($U164,Output!$C:$AL,AL$163,FALSE) -> 288665.4 | AM164: =VLOOKUP($U164,Output!$C:$AL,AM$163,FALSE) -> 288524.99 | AN164: =VLOOKUP($U164,Output!$C:$AL,AN$163,FALSE) -> 288359.5 | AO164: =VLOOKUP($U164,Output!$C:$AL,AO$163,FALSE) -> 288297.86 | AP164: =VLOOKUP($U164,Output!$C:$AL,AP$163,FALSE) -> 288267.99 | AQ164: =VLOOKUP($U164,Output!$C:$AL,AQ$163,FALSE) -> 288257.97 | AR164: =VLOOKUP($U164,Output!$C:$AL,AR$163,FALSE) -> 288251.98 | AS164: =VLOOKUP($U164,Output!$C:$AL,AS$163,FALSE) -> 288232.62 | AT164: =VLOOKUP($U164,Output!$C:$AL,AT$163,FALSE) -> 288219.12 | AU164: =VLOOKUP($U164,Output!$C:$AL,AU$163,FALSE) -> 288184.35 | AV164: =VLOOKUP($U164,Output!$C:$AL,AV$163,FALSE) -> 288179.05 | AW164: =VLOOKUP($U164,Output!$C:$AL,AW$163,FALSE) -> 288165.09 | AX164: =VLOOKUP($U164,Output!$C:$AL,AX$163,FALSE) -> 288071.85 | AY164: =VLOOKUP($U164,Output!$C:$AL,AY$163,FALSE) -> 288054.75 | AZ164: =VLOOKUP($U164,Output!$C:$AL,AZ$163,FALSE) -> 288041.64
S165: Figure 9b | T165: Élevé | U165: OSUPVIEUXALERTEREGECO | V165: =VLOOKUP($U165,Output!$C:$AL,V$163,FALSE) -> 64856.49 | W165: =VLOOKUP($U165,Output!$C:$AL,W$163,FALSE) -> 64750.98 | X165: =VLOOKUP($U165,Output!$C:$AL,X$163,FALSE) -> 64615.74 | Y165: =VLOOKUP($U165,Output!$C:$AL,Y$163,FALSE) -> 64486.14 | Z165: =VLOOKUP($U165,Output!$C:$AL,Z$163,FALSE) -> 64361.99 | AA165: =VLOOKUP($U165,Output!$C:$AL,AA$163,FALSE) -> 64262.29 | AB165: =VLOOKUP($U165,Output!$C:$AL,AB$163,FALSE) -> 64163.4 | AC165: =VLOOKUP($U165,Output!$C:$AL,AC$163,FALSE) -> 64051.77 | AD165: =VLOOKUP($U165,Output!$C:$AL,AD$163,FALSE) -> 63954.55 | AE165: =VLOOKUP($U165,Output!$C:$AL,AE$163,FALSE) -> 63886.99 | AF165: =VLOOKUP($U165,Output!$C:$AL,AF$163,FALSE) -> 63822.9 | AG165: =VLOOKUP($U165,Output!$C:$AL,AG$163,FALSE) -> 63770.11 | AH165: =VLOOKUP($U165,Output!$C:$AL,AH$163,FALSE) -> 63692.41 | AI165: =VLOOKUP($U165,Output!$C:$AL,AI$163,FALSE) -> 63645.06 | AJ165: =VLOOKUP($U165,Output!$C:$AL,AJ$163,FALSE) -> 63605.17 | AK165: =VLOOKUP($U165,Output!$C:$AL,AK$163,FALSE) -> 63566.56 | AL165: =VLOOKUP($U165,Output!$C:$AL,AL$163,FALSE) -> 63538.01 | AM165: =VLOOKUP($U165,Output!$C:$AL,AM$163,FALSE) -> 63506.17 | AN165: =VLOOKUP($U165,Output!$C:$AL,AN$163,FALSE) -> 63470.79 | AO165: =VLOOKUP($U165,Output!$C:$AL,AO$163,FALSE) -> 63456.97 | AP165: =VLOOKUP($U165,Output!$C:$AL,AP$163,FALSE) -> 63450.44 | AQ165: =VLOOKUP($U165,Output!$C:$AL,AQ$163,FALSE) -> 63448.15 | AR165: =VLOOKUP($U165,Output!$C:$AL,AR$163,FALSE) -> 63446.83 | AS165: =VLOOKUP($U165,Output!$C:$AL,AS$163,FALSE) -> 63442.93 | AT165: =VLOOKUP($U165,Output!$C:$AL,AT$163,FALSE) -> 63439.99 | AU165: =VLOOKUP($U165,Output!$C:$AL,AU$163,FALSE) -> 63432.35 | AV165: =VLOOKUP($U165,Output!$C:$AL,AV$163,FALSE) -> 63431.14 | AW165: =VLOOKUP($U165,Output!$C:$AL,AW$163,FALSE) -> 63428.06 | AX165: =VLOOKUP($U165,Output!$C:$AL,AX$163,FALSE) -> 63408.55 | AY165: =VLOOKUP($U165,Output!$C:$AL,AY$163,FALSE) -> 63404.79 | AZ165: =VLOOKUP($U165,Output!$C:$AL,AZ$163,FALSE) -> 63401.82
S166: Figure 9b | U166: OSUPVIEUXACCEPTREGECO | V166: =VLOOKUP($U166,Output!$C:$AL,V$163,FALSE) -> 108094.15 | W166: =VLOOKUP($U166,Output!$C:$AL,W$163,FALSE) -> 107918.29 | X166: =VLOOKUP($U166,Output!$C:$AL,X$163,FALSE) -> 107692.9 | Y166: =VLOOKUP($U166,Output!$C:$AL,Y$163,FALSE) -> 107476.9 | Z166: =VLOOKUP($U166,Output!$C:$AL,Z$163,FALSE) -> 107269.98 | AA166: =VLOOKUP($U166,Output!$C:$AL,AA$163,FALSE) -> 107103.82 | AB166: =VLOOKUP($U166,Output!$C:$AL,AB$163,FALSE) -> 106939 | AC166: =VLOOKUP($U166,Output!$C:$AL,AC$163,FALSE) -> 106752.95 | AD166: =VLOOKUP($U166,Output!$C:$AL,AD$163,FALSE) -> 106590.92 | AE166: =VLOOKUP($U166,Output!$C:$AL,AE$163,FALSE) -> 106478.31 | AF166: =VLOOKUP($U166,Output!$C:$AL,AF$163,FALSE) -> 106371.5 | AG166: =VLOOKUP($U166,Output!$C:$AL,AG$163,FALSE) -> 106283.52 | AH166: =VLOOKUP($U166,Output!$C:$AL,AH$163,FALSE) -> 106154.02 | AI166: =VLOOKUP($U166,Output!$C:$AL,AI$163,FALSE) -> 106075.1 | AJ166: =VLOOKUP($U166,Output!$C:$AL,AJ$163,FALSE) -> 106008.61 | AK166: =VLOOKUP($U166,Output!$C:$AL,AK$163,FALSE) -> 105944.27 | AL166: =VLOOKUP($U166,Output!$C:$AL,AL$163,FALSE) -> 105896.68 | AM166: =VLOOKUP($U166,Output!$C:$AL,AM$163,FALSE) -> 105843.62 | AN166: =VLOOKUP($U166,Output!$C:$AL,AN$163,FALSE) -> 105784.66 | AO166: =VLOOKUP($U166,Output!$C:$AL,AO$163,FALSE) -> 105761.62 | AP166: =VLOOKUP($U166,Output!$C:$AL,AP$163,FALSE) -> 105750.73 | AQ166: =VLOOKUP($U166,Output!$C:$AL,AQ$163,FALSE) -> 105746.92 | AR166: =VLOOKUP($U166,Output!$C:$AL,AR$163,FALSE) -> 105744.72 | AS166: =VLOOKUP($U166,Output!$C:$AL,AS$163,FALSE) -> 105738.22 | AT166: =VLOOKUP($U166,Output!$C:$AL,AT$163,FALSE) -> 105733.31 | AU166: =VLOOKUP($U166,Output!$C:$AL,AU$163,FALSE) -> 105720.58 | AV166: =VLOOKUP($U166,Output!$C:$AL,AV$163,FALSE) -> 105718.57 | AW166: =VLOOKUP($U166,Output!$C:$AL,AW$163,FALSE) -> 105713.43 | AX166: =VLOOKUP($U166,Output!$C:$AL,AX$163,FALSE) -> 105680.92 | AY166: =VLOOKUP($U166,Output!$C:$AL,AY$163,FALSE) -> 105674.64 | AZ166: =VLOOKUP($U166,Output!$C:$AL,AZ$163,FALSE) -> 105669.69
S167: Figure 9b | T167: Moyen | V167: =V166-V165 -> 43237.66 | W167: =W166-W165 -> 43167.31 | X167: 43077.16 | Y167: 42990.76 | Z167: 42907.99 | AA167: 42841.53 | AB167: 42775.6 | AC167: 42701.18 | AD167: 42636.37 | AE167: 42591.32 | AF167: 42548.6 | AG167: 42513.41 | AH167: 42461.61 | AI167: 42430.04 | AJ167: 42403.44 | AK167: 42377.71 | AL167: 42358.67 | AM167: 42337.45 | AN167: 42313.87 | AO167: 42304.65 | AP167: 42300.29 | AQ167: 42298.77 | AR167: 42297.89 | AS167: 42295.29 | AT167: 42293.32 | AU167: 42288.23 | AV167: 42287.43 | AW167: 42285.37 | AX167: 42272.37 | AY167: 42269.85 | AZ167: 42267.87
S168: Figure 9b | T168: Faible | V168: =$V$164-V165-V167 -> 186598.95 | W168: 186774.81 | X168: 187000.2 | Y168: 187216.2 | Z168: 187423.12 | AA168: 187589.28 | AB168: 187754.1 | AC168: 187940.15 | AD168: 188102.18 | AE168: 188214.79 | AF168: 188321.6 | AG168: 188409.58 | AH168: 188539.08 | AI168: 188618 | AJ168: 188684.49 | AK168: 188748.83 | AL168: 188796.42 | AM168: 188849.48 | AN168: 188908.44 | AO168: 188931.48 | AP168: 188942.37 | AQ168: 188946.18 | AR168: 188948.38 | AS168: 188954.88 | AT168: 188959.79 | AU168: 188972.52 | AV168: 188974.53 | AW168: 188979.67 | AX168: 189012.18 | AY168: 189018.46 | AZ168: 189023.41
S169: Figure 9b | T169: Niveau prédit | U169: OSUPVIEUXTOTREGECO | V169: =VLOOKUP($U169,Output!$C:$AL,V$163,FALSE) -> 60898.9 | W169: =VLOOKUP($U169,Output!$C:$AL,W$163,FALSE) -> 84175.65 | X169: =VLOOKUP($U169,Output!$C:$AL,X$163,FALSE) -> 98512.52 | Y169: =VLOOKUP($U169,Output!$C:$AL,Y$163,FALSE) -> 105441.07 | Z169: =VLOOKUP($U169,Output!$C:$AL,Z$163,FALSE) -> 117202.03 | AA169: =VLOOKUP($U169,Output!$C:$AL,AA$163,FALSE) -> 122516.63 | AB169: =VLOOKUP($U169,Output!$C:$AL,AB$163,FALSE) -> 150153.37 | AC169: =VLOOKUP($U169,Output!$C:$AL,AC$163,FALSE) -> 155359 | AD169: =VLOOKUP($U169,Output!$C:$AL,AD$163,FALSE) -> 154192.26 | AE169: =VLOOKUP($U169,Output!$C:$AL,AE$163,FALSE) -> 153130.73 | AF169: =VLOOKUP($U169,Output!$C:$AL,AF$163,FALSE) -> 152425.66 | AG169: =VLOOKUP($U169,Output!$C:$AL,AG$163,FALSE) -> 148911.02 | AH169: =VLOOKUP($U169,Output!$C:$AL,AH$163,FALSE) -> 147136.11 | AI169: =VLOOKUP($U169,Output!$C:$AL,AI$163,FALSE) -> 143269.84 | AJ169: =VLOOKUP($U169,Output!$C:$AL,AJ$163,FALSE) -> 139829.89 | AK169: =VLOOKUP($U169,Output!$C:$AL,AK$163,FALSE) -> 140077.47 | AL169: =VLOOKUP($U169,Output!$C:$AL,AL$163,FALSE) -> 141473.74 | AM169: =VLOOKUP($U169,Output!$C:$AL,AM$163,FALSE) -> 141295.05 | AN169: =VLOOKUP($U169,Output!$C:$AL,AN$163,FALSE) -> 142135.86 | AO169: =VLOOKUP($U169,Output!$C:$AL,AO$163,FALSE) -> 145281.76 | AP169: =VLOOKUP($U169,Output!$C:$AL,AP$163,FALSE) -> 148791.21 | AQ169: =VLOOKUP($U169,Output!$C:$AL,AQ$163,FALSE) -> 149445.66 | AR169: =VLOOKUP($U169,Output!$C:$AL,AR$163,FALSE) -> 147732.95 | AS169: =VLOOKUP($U169,Output!$C:$AL,AS$163,FALSE) -> 143864.18 | AT169: =VLOOKUP($U169,Output!$C:$AL,AT$163,FALSE) -> 142518.38 | AU169: =VLOOKUP($U169,Output!$C:$AL,AU$163,FALSE) -> 141220.49 | AV169: =VLOOKUP($U169,Output!$C:$AL,AV$163,FALSE) -> 143518.84 | AW169: =VLOOKUP($U169,Output!$C:$AL,AW$163,FALSE) -> 142519.56 | AX169: =VLOOKUP($U169,Output!$C:$AL,AX$163,FALSE) -> 138441.23 | AY169: =VLOOKUP($U169,Output!$C:$AL,AY$163,FALSE) -> 136993.55 | AZ169: =VLOOKUP($U169,Output!$C:$AL,AZ$163,FALSE) -> 135644.78
S170: Figure 9b | T170: Portrait préindustriel
B176: Figure 9c Évolution de la superficie des peuplements en régénération selon leur degré d'altération
U177: Période | V177: P0 | W177: P1 | X177: P2 | Y177: P3 | Z177: P4 | AA177: P5 | AB177: P6 | AC177: P7 | AD177: P8 | AE177: P9 | AF177: P10 | AG177: P11 | AH177: P12 | AI177: P13 | AJ177: P14 | AK177: P15 | AL177: P16 | AM177: P17 | AN177: P18 | AO177: P19 | AP177: P20 | AQ177: P21 | AR177: P22 | AS177: P23 | AT177: P24 | AU177: P25 | AV177: P26 | AW177: P27 | AX177: P28 | AY177: P29 | AZ177: P30
U178: Axe des "X" Fin de période | V178: 2018 | W178: 2023 | X178: 2028 | Y178: 2033 | Z178: 2038 | AA178: 2043 | AB178: 2048 | AC178: 2053 | AD178: 2058 | AE178: 2063 | AF178: 2068 | AG178: 2073 | AH178: 2078 | AI178: 2083 | AJ178: 2088 | AK178: 2093 | AL178: 2098 | AM178: 2103 | AN178: 2108 | AO178: 2113 | AP178: 2118 | AQ178: 2123 | AR178: 2128 | AS178: 2133 | AT178: 2138 | AU178: 2143 | AV178: 2148 | AW178: 2153 | AX178: 2158 | AY178: 2163 | AZ178: 2168
S179: =LEFT(B$176,10) -> Figure 9c | U179: Colonne | V179: 6 | W179: 7 | X179: 8 | Y179: 9 | Z179: 10 | AA179: 11 | AB179: 12 | AC179: 13 | AD179: 14 | AE179: 15 | AF179: 16 | AG179: 17 | AH179: 18 | AI179: 19 | AJ179: 20 | AK179: 21 | AL179: 22 | AM179: 23 | AN179: 24 | AO179: 25 | AP179: 26 | AQ179: 27 | AR179: 28 | AS179: 29 | AT179: 30 | AU179: 31 | AV179: 32 | AW179: 33 | AX179: 34 | AY179: 35 | AZ179: 36
S180: Figure 9c | T180: Niveau prédit | U180: OSUPJEUNEREGECO | V180: =VLOOKUP($U180,Output!$C:$AL,V$179,FALSE) -> 20208.8 | W180: =VLOOKUP($U180,Output!$C:$AL,W$179,FALSE) -> 18998.75 | X180: =VLOOKUP($U180,Output!$C:$AL,X$179,FALSE) -> 22114.09 | Y180: =VLOOKUP($U180,Output!$C:$AL,Y$179,FALSE) -> 20186.17 | Z180: =VLOOKUP($U180,Output!$C:$AL,Z$179,FALSE) -> 22763.38 | AA180: =VLOOKUP($U180,Output!$C:$AL,AA$179,FALSE) -> 23973.17 | AB180: =VLOOKUP($U180,Output!$C:$AL,AB$179,FALSE) -> 25210.66 | AC180: =VLOOKUP($U180,Output!$C:$AL,AC$179,FALSE) -> 25464.61 | AD180: =VLOOKUP($U180,Output!$C:$AL,AD$179,FALSE) -> 25746.75 | AE180: =VLOOKUP($U180,Output!$C:$AL,AE$179,FALSE) -> 24744.25 | AF180: =VLOOKUP($U180,Output!$C:$AL,AF$179,FALSE) -> 23937 | AG180: =VLOOKUP($U180,Output!$C:$AL,AG$179,FALSE) -> 22914.01 | AH180: =VLOOKUP($U180,Output!$C:$AL,AH$179,FALSE) -> 23348 | AI180: =VLOOKUP($U180,Output!$C:$AL,AI$179,FALSE) -> 23770.69 | AJ180: =VLOOKUP($U180,Output!$C:$AL,AJ$179,FALSE) -> 23387.54 | AK180: =VLOOKUP($U180,Output!$C:$AL,AK$179,FALSE) -> 21785.99 | AL180: =VLOOKUP($U180,Output!$C:$AL,AL$179,FALSE) -> 20289.92 | AM180: =VLOOKUP($U180,Output!$C:$AL,AM$179,FALSE) -> 20529.77 | AN180: =VLOOKUP($U180,Output!$C:$AL,AN$179,FALSE) -> 20538.17 | AO180: =VLOOKUP($U180,Output!$C:$AL,AO$179,FALSE) -> 21161.33 | AP180: =VLOOKUP($U180,Output!$C:$AL,AP$179,FALSE) -> 20880.63 | AQ180: =VLOOKUP($U180,Output!$C:$AL,AQ$179,FALSE) -> 20890.75 | AR180: =VLOOKUP($U180,Output!$C:$AL,AR$179,FALSE) -> 23252.47 | AS180: =VLOOKUP($U180,Output!$C:$AL,AS$179,FALSE) -> 26270.55 | AT180: =VLOOKUP($U180,Output!$C:$AL,AT$179,FALSE) -> 27846.35 | AU180: =VLOOKUP($U180,Output!$C:$AL,AU$179,FALSE) -> 28056.31 | AV180: =VLOOKUP($U180,Output!$C:$AL,AV$179,FALSE) -> 26008.87 | AW180: =VLOOKUP($U180,Output!$C:$AL,AW$179,FALSE) -> 26042.95 | AX180: =VLOOKUP($U180,Output!$C:$AL,AX$179,FALSE) -> 26240.04 | AY180: =VLOOKUP($U180,Output!$C:$AL,AY$179,FALSE) -> 28880.63 | AZ180: =VLOOKUP($U180,Output!$C:$AL,AZ$179,FALSE) -> 30209.31
S181: Figure 9c | U181: OSUPREGECO | V181: =VLOOKUP($U181,Output!$C:$AL,V$179,FALSE) -> 294693.1 | W181: =VLOOKUP($U181,Output!$C:$AL,W$179,FALSE) -> 294212.06 | X181: =VLOOKUP($U181,Output!$C:$AL,X$179,FALSE) -> 293614.73 | Y181: =VLOOKUP($U181,Output!$C:$AL,Y$179,FALSE) -> 293008.29 | Z181: =VLOOKUP($U181,Output!$C:$AL,Z$179,FALSE) -> 292435.44 | AA181: =VLOOKUP($U181,Output!$C:$AL,AA$179,FALSE) -> 291959.43 | AB181: =VLOOKUP($U181,Output!$C:$AL,AB$179,FALSE) -> 291517.44 | AC181: =VLOOKUP($U181,Output!$C:$AL,AC$179,FALSE) -> 291024.48 | AD181: =VLOOKUP($U181,Output!$C:$AL,AD$179,FALSE) -> 290563.78 | AE181: =VLOOKUP($U181,Output!$C:$AL,AE$179,FALSE) -> 290251.28 | AF181: =VLOOKUP($U181,Output!$C:$AL,AF$179,FALSE) -> 289953.61 | AG181: =VLOOKUP($U181,Output!$C:$AL,AG$179,FALSE) -> 289719.38 | AH181: =VLOOKUP($U181,Output!$C:$AL,AH$179,FALSE) -> 289372.82 | AI181: =VLOOKUP($U181,Output!$C:$AL,AI$179,FALSE) -> 289151.43 | AJ181: =VLOOKUP($U181,Output!$C:$AL,AJ$179,FALSE) -> 288972.09 | AK181: =VLOOKUP($U181,Output!$C:$AL,AK$179,FALSE) -> 288790.93 | AL181: =VLOOKUP($U181,Output!$C:$AL,AL$179,FALSE) -> 288665.4 | AM181: =VLOOKUP($U181,Output!$C:$AL,AM$179,FALSE) -> 288524.99 | AN181: =VLOOKUP($U181,Output!$C:$AL,AN$179,FALSE) -> 288359.5 | AO181: =VLOOKUP($U181,Output!$C:$AL,AO$179,FALSE) -> 288297.86 | AP181: =VLOOKUP($U181,Output!$C:$AL,AP$179,FALSE) -> 288267.99 | AQ181: =VLOOKUP($U181,Output!$C:$AL,AQ$179,FALSE) -> 288257.97 | AR181: =VLOOKUP($U181,Output!$C:$AL,AR$179,FALSE) -> 288251.98 | AS181: =VLOOKUP($U181,Output!$C:$AL,AS$179,FALSE) -> 288232.62 | AT181: =VLOOKUP($U181,Output!$C:$AL,AT$179,FALSE) -> 288219.12 | AU181: =VLOOKUP($U181,Output!$C:$AL,AU$179,FALSE) -> 288184.35 | AV181: =VLOOKUP($U181,Output!$C:$AL,AV$179,FALSE) -> 288179.05 | AW181: =VLOOKUP($U181,Output!$C:$AL,AW$179,FALSE) -> 288165.09 | AX181: =VLOOKUP($U181,Output!$C:$AL,AX$179,FALSE) -> 288071.85 | AY181: =VLOOKUP($U181,Output!$C:$AL,AY$179,FALSE) -> 288054.75 | AZ181: =VLOOKUP($U181,Output!$C:$AL,AZ$179,FALSE) -> 288041.64
S182: Figure 9c | V182: =IFERROR(V180/V181,"0000") -> 0.0685757488 | W182: 0.06457502116 | X182: 0.07531669137 | Y182: 0.06889282894 | Z182: 0.07784070221 | AA182: 0.08211130567 | AB182: 0.08648079511 | AC182: 0.08749989004 | AD182: 0.08860963331 | AE182: 0.08525113136 | AF182: 0.0825545852 | AG182: 0.07909035978 | AH182: 0.0806848411 | AI182: 0.08220844697 | AJ182: 0.08093356005 | AK182: 0.07543862267 | AL182: 0.07028871489 | AM182: 0.07115421787 | AN182: 0.0712241837 | AO182: 0.07340092639 | AP182: 0.07243478542 | AQ182: 0.07247241074 | AR182: 0.08066716489 | AS182: 0.09114357008 | AT182: 0.09661520721 | AU182: 0.09735542544 | AV182: 0.09025246631 | AW182: 0.09037510408 | AX182: 0.09108852531 | AY182: 0.1002609053 | AZ182: 0.1048782738
S183: Figure 9c
S184: Figure 9c | U184: OSUPJEUNEALERTEREGECO | V184: =VLOOKUP($U184,Output!$C:$AL,V$179,FALSE) -> 88488.47 | W184: =VLOOKUP($U184,Output!$C:$AL,W$179,FALSE) -> 88344.12 | X184: =VLOOKUP($U184,Output!$C:$AL,X$179,FALSE) -> 88164.79 | Y184: =VLOOKUP($U184,Output!$C:$AL,Y$179,FALSE) -> 87982.85 | Z184: =VLOOKUP($U184,Output!$C:$AL,Z$179,FALSE) -> 87810.99 | AA184: =VLOOKUP($U184,Output!$C:$AL,AA$179,FALSE) -> 87668.11 | AB184: =VLOOKUP($U184,Output!$C:$AL,AB$179,FALSE) -> 87535.47 | AC184: =VLOOKUP($U184,Output!$C:$AL,AC$179,FALSE) -> 87387.58 | AD184: =VLOOKUP($U184,Output!$C:$AL,AD$179,FALSE) -> 87249.37 | AE184: =VLOOKUP($U184,Output!$C:$AL,AE$179,FALSE) -> 87155.62 | AF184: =VLOOKUP($U184,Output!$C:$AL,AF$179,FALSE) -> 87066.32 | AG184: =VLOOKUP($U184,Output!$C:$AL,AG$179,FALSE) -> 86996.02 | AH184: =VLOOKUP($U184,Output!$C:$AL,AH$179,FALSE) -> 86892.04 | AI184: =VLOOKUP($U184,Output!$C:$AL,AI$179,FALSE) -> 86825.62 | AJ184: =VLOOKUP($U184,Output!$C:$AL,AJ$179,FALSE) -> 86771.82 | AK184: =VLOOKUP($U184,Output!$C:$AL,AK$179,FALSE) -> 86717.47 | AL184: =VLOOKUP($U184,Output!$C:$AL,AL$179,FALSE) -> 86679.77 | AM184: =VLOOKUP($U184,Output!$C:$AL,AM$179,FALSE) -> 86637.65 | AN184: =VLOOKUP($U184,Output!$C:$AL,AN$179,FALSE) -> 86588 | AO184: =VLOOKUP($U184,Output!$C:$AL,AO$179,FALSE) -> 86569.51 | AP184: =VLOOKUP($U184,Output!$C:$AL,AP$179,FALSE) -> 86560.55 | AQ184: =VLOOKUP($U184,Output!$C:$AL,AQ$179,FALSE) -> 86557.54 | AR184: =VLOOKUP($U184,Output!$C:$AL,AR$179,FALSE) -> 86555.75 | AS184: =VLOOKUP($U184,Output!$C:$AL,AS$179,FALSE) -> 86549.94 | AT184: =VLOOKUP($U184,Output!$C:$AL,AT$179,FALSE) -> 86545.89 | AU184: =VLOOKUP($U184,Output!$C:$AL,AU$179,FALSE) -> 86535.46 | AV184: =VLOOKUP($U184,Output!$C:$AL,AV$179,FALSE) -> 86533.87 | AW184: =VLOOKUP($U184,Output!$C:$AL,AW$179,FALSE) -> 86529.68 | AX184: =VLOOKUP($U184,Output!$C:$AL,AX$179,FALSE) -> 86501.71 | AY184: =VLOOKUP($U184,Output!$C:$AL,AY$179,FALSE) -> 86496.58 | AZ184: =VLOOKUP($U184,Output!$C:$AL,AZ$179,FALSE) -> 86492.65
S185: Figure 9c | T185: Faible | U185: OSUPJEUNEACCEPTREGECO | V185: =VLOOKUP($U185,Output!$C:$AL,V$179,FALSE) -> 59019.16 | W185: =VLOOKUP($U185,Output!$C:$AL,W$179,FALSE) -> 58922.91 | X185: =VLOOKUP($U185,Output!$C:$AL,X$179,FALSE) -> 58803.31 | Y185: =VLOOKUP($U185,Output!$C:$AL,Y$179,FALSE) -> 58682.02 | Z185: =VLOOKUP($U185,Output!$C:$AL,Z$179,FALSE) -> 58567.45 | AA185: =VLOOKUP($U185,Output!$C:$AL,AA$179,FALSE) -> 58472.17 | AB185: =VLOOKUP($U185,Output!$C:$AL,AB$179,FALSE) -> 58383.73 | AC185: =VLOOKUP($U185,Output!$C:$AL,AC$179,FALSE) -> 58285.13 | AD185: =VLOOKUP($U185,Output!$C:$AL,AD$179,FALSE) -> 58192.99 | AE185: =VLOOKUP($U185,Output!$C:$AL,AE$179,FALSE) -> 58130.49 | AF185: =VLOOKUP($U185,Output!$C:$AL,AF$179,FALSE) -> 58070.96 | AG185: =VLOOKUP($U185,Output!$C:$AL,AG$179,FALSE) -> 58024.09 | AH185: =VLOOKUP($U185,Output!$C:$AL,AH$179,FALSE) -> 57954.76 | AI185: =VLOOKUP($U185,Output!$C:$AL,AI$179,FALSE) -> 57910.48 | AJ185: =VLOOKUP($U185,Output!$C:$AL,AJ$179,FALSE) -> 57874.61 | AK185: =VLOOKUP($U185,Output!$C:$AL,AK$179,FALSE) -> 57838.38 | AL185: =VLOOKUP($U185,Output!$C:$AL,AL$179,FALSE) -> 57813.23 | AM185: =VLOOKUP($U185,Output!$C:$AL,AM$179,FALSE) -> 57785.15 | AN185: =VLOOKUP($U185,Output!$C:$AL,AN$179,FALSE) -> 57752.05 | AO185: =VLOOKUP($U185,Output!$C:$AL,AO$179,FALSE) -> 57739.73 | AP185: =VLOOKUP($U185,Output!$C:$AL,AP$179,FALSE) -> 57733.75 | AQ185: =VLOOKUP($U185,Output!$C:$AL,AQ$179,FALSE) -> 57731.75 | AR185: =VLOOKUP($U185,Output!$C:$AL,AR$179,FALSE) -> 57730.55 | AS185: =VLOOKUP($U185,Output!$C:$AL,AS$179,FALSE) -> 57726.68 | AT185: =VLOOKUP($U185,Output!$C:$AL,AT$179,FALSE) -> 57723.98 | AU185: =VLOOKUP($U185,Output!$C:$AL,AU$179,FALSE) -> 57717.02 | AV185: =VLOOKUP($U185,Output!$C:$AL,AV$179,FALSE) -> 57715.96 | AW185: =VLOOKUP($U185,Output!$C:$AL,AW$179,FALSE) -> 57713.17 | AX185: =VLOOKUP($U185,Output!$C:$AL,AX$179,FALSE) -> 57694.52 | AY185: =VLOOKUP($U185,Output!$C:$AL,AY$179,FALSE) -> 57691.1 | AZ185: =VLOOKUP($U185,Output!$C:$AL,AZ$179,FALSE) -> 57688.48
S186: Figure 9c | T186: Moyen | V186: =V184-V185 -> 29469.31 | W186: 29421.21 | X186: 29361.48 | Y186: 29300.83 | Z186: 29243.54 | AA186: 29195.94 | AB186: 29151.74 | AC186: 29102.45 | AD186: 29056.38 | AE186: 29025.13 | AF186: 28995.36 | AG186: 28971.93 | AH186: 28937.28 | AI186: 28915.14 | AJ186: 28897.21 | AK186: 28879.09 | AL186: 28866.54 | AM186: 28852.5 | AN186: 28835.95 | AO186: 28829.78 | AP186: 28826.8 | AQ186: 28825.79 | AR186: 28825.2 | AS186: 28823.26 | AT186: 28821.91 | AU186: 28818.44 | AV186: 28817.91 | AW186: 28816.51 | AX186: 28807.19 | AY186: 28805.48 | AZ186: 28804.17
S187: Figure 9c | T187: Élevé | V187: =$V$181-V184 -> 206204.63 | W187: 206348.98 | X187: 206528.31 | Y187: 206710.25 | Z187: 206882.11 | AA187: 207024.99 | AB187: 207157.63 | AC187: 207305.52 | AD187: 207443.73 | AE187: 207537.48 | AF187: 207626.78 | AG187: 207697.08 | AH187: 207801.06 | AI187: 207867.48 | AJ187: 207921.28 | AK187: 207975.63 | AL187: 208013.33 | AM187: 208055.45 | AN187: 208105.1 | AO187: 208123.59 | AP187: 208132.55 | AQ187: 208135.56 | AR187: 208137.35 | AS187: 208143.16 | AT187: 208147.21 | AU187: 208157.64 | AV187: 208159.23 | AW187: 208163.42 | AX187: 208191.39 | AY187: 208196.52 | AZ187: 208200.45
U199: Période | V199: P0 | W199: P1 | X199: P2 | Y199: P3 | Z199: P4 | AA199: P5 | AB199: P6 | AC199: P7 | AD199: P8 | AE199: P9 | AF199: P10 | AG199: P11 | AH199: P12 | AI199: P13 | AJ199: P14 | AK199: P15 | AL199: P16 | AM199: P17 | AN199: P18 | AO199: P19 | AP199: P20 | AQ199: P21 | AR199: P22 | AS199: P23 | AT199: P24 | AU199: P25 | AV199: P26 | AW199: P27 | AX199: P28 | AY199: P29 | AZ199: P30
U200: Axe des "X" Fin de période | V200: 2018 | W200: 2023 | X200: 2028 | Y200: 2033 | Z200: 2038 | AA200: 2043 | AB200: 2048 | AC200: 2053 | AD200: 2058 | AE200: 2063 | AF200: 2068 | AG200: 2073 | AH200: 2078 | AI200: 2083 | AJ200: 2088 | AK200: 2093 | AL200: 2098 | AM200: 2103 | AN200: 2108 | AO200: 2113 | AP200: 2118 | AQ200: 2123 | AR200: 2128 | AS200: 2133 | AT200: 2138 | AU200: 2143 | AV200: 2148 | AW200: 2153 | AX200: 2158 | AY200: 2163 | AZ200: 2168
U201: Colonne | V201: 6 | W201: 7 | X201: 8 | Y201: 9 | Z201: 10 | AA201: 11 | AB201: 12 | AC201: 13 | AD201: 14 | AE201: 15 | AF201: 16 | AG201: 17 | AH201: 18 | AI201: 19 | AJ201: 20 | AK201: 21 | AL201: 22 | AM201: 23 | AN201: 24 | AO201: 25 | AP201: 26 | AQ201: 27 | AR201: 28 | AS201: 29 | AT201: 30 | AU201: 31 | AV201: 32 | AW201: 33 | AX201: 34 | AY201: 35 | AZ201: 36
B202: Figure 10a Évolution de la superficie selon le type de couvert | S202: =LEFT(B$202,10) -> Figure 10a | U202: OSUPINC
S203: Figure 10a | U203: Résineux | V203: =SUM(V214,V220,V221,V222,V224,V225) -> 85285.7 | W203: =SUM(W214,W220,W221,W222,W224,W225) -> 81983.38 | X203: 77885.77 | Y203: 78663.73 | Z203: 79182.92 | AA203: 78578.76 | AB203: 77885.77 | AC203: 78076.85 | AD203: 78189.74 | AE203: 78665.59 | AF203: 79129.97 | AG203: 77885.76 | AH203: 77885.76 | AI203: 79355 | AJ203: 78980.3 | AK203: 78159.47 | AL203: 77885.77 | AM203: 77885.76 | AN203: 77885.76 | AO203: 79347.63 | AP203: 80482.2 | AQ203: 78390.7 | AR203: 77885.76 | AS203: 79064.28 | AT203: 79219.97 | AU203: 79697.28 | AV203: 77885.76 | AW203: 77885.76 | AX203: 78046.04 | AY203: 78406.57 | AZ203: 77885.77
S204: Figure 10a | U204: Mixtes résineux | V204: =V223 -> 40930.1 | W204: =W223 -> 43756.13 | X204: 48981.55 | Y204: 47295.86 | Z204: 46640.47 | AA204: 47014.04 | AB204: 47560.34 | AC204: 47385.45 | AD204: 46953.53 | AE204: 46461.03 | AF204: 46257.77 | AG204: 47831.28 | AH204: 47141.12 | AI204: 45283.75 | AJ204: 46116.76 | AK204: 47268.47 | AL204: 46782.87 | AM204: 46745.8 | AN204: 46589.23 | AO204: 45133.36 | AP204: 43581.11 | AQ204: 44245.83 | AR204: 43937.5 | AS204: 42243.12 | AT204: 41579.05 | AU204: 40157.99 | AV204: 40386.48 | AW204: 39501.07 | AX204: 38323.56 | AY204: 37383.97 | AZ204: 37411.22
S205: Figure 10a | U205: Mixtes feuillus intolérants | V205: =V213+V219 -> 20007.2 | W205: =W213+W219 -> 19111.02 | X205: =X213+X219 -> 16399.24 | Y205: =Y213+Y219 -> 15551.28 | Z205: 15422.8 | AA205: 15275.14 | AB205: 15797.54 | AC205: 15853.08 | AD205: 16154.4 | AE205: 15959.94 | AF205: 15540.71 | AG205: 15713.38 | AH205: 16413.37 | AI205: 17185.7 | AJ205: 16765.79 | AK205: 16402.46 | AL205: 16400.37 | AM205: 16010.21 | AN205: 15994.58 | AO205: 16111.81 | AP205: 16431.32 | AQ205: 17632.28 | AR205: 18011.15 | AS205: 18101.93 | AT205: 18900.08 | AU205: 19926.55 | AV205: 20197.28 | AW205: 20626.94 | AX205: 20980.98 | AY205: 22236.08 | AZ205: 23031.77
S206: Figure 10a | U206: Mixtes feuillus tolérants | V206: =V217 -> 18467.6 | W206: =W217 -> 18877.51 | X206: 19713.88 | Y206: 21089.89 | Z206: 20694.45 | AA206: 20082.3 | AB206: 19109.88 | AC206: 18762.67 | AD206: 18333.88 | AE206: 17861.73 | AF206: 17424.29 | AG206: 17506.16 | AH206: 17315.87 | AI206: 17352.27 | AJ206: 18215.93 | AK206: 18244.67 | AL206: 19285.15 | AM206: 19592.32 | AN206: 19882.03 | AO206: 19820.73 | AP206: 20181.87 | AQ206: 21422.55 | AR206: 21674.23 | AS206: 21824.93 | AT206: 21775.1 | AU206: 22032.71 | AV206: 22030.13 | AW206: 21853.34 | AX206: 21844.61 | AY206: 21460.21 | AZ206: 20875.56
S207: Figure 10a | U207: Feuillus intolérants | V207: =V212+V215+V218 -> 11632 | W207: =W212+W215+W218 -> 11525.79 | X207: =X212+X215+X218 -> 11174.16 | Y207: 10917.3 | Z207: 10626.84 | AA207: 10530.75 | AB207: 10495.93 | AC207: 10039.19 | AD207: 9584.47 | AE207: 9575.7 | AF207: 9552.3 | AG207: 9096.1 | AH207: 8742.23 | AI207: 8127.33 | AJ207: 7918.9 | AK207: 7770.2 | AL207: 7726.09 | AM207: 8043.75 | AN207: 8084.69 | AO207: 8082.24 | AP207: 8156.29 | AQ207: 8183.99 | AR207: 8614.06 | AS207: 9019.78 | AT207: 9018.9 | AU207: 9032.68 | AV207: 9483.22 | AW207: 9823.13 | AX207: 10401.71 | AY207: 10442.33 | AZ207: 10348.34
S208: Figure 10a | U208: Feuillus tolérants | V208: =V216 -> 38489.1 | W208: =W216 -> 39076.83 | X208: 39578.73 | Y208: 39608.84 | Z208: 39986.56 | AA208: 40597.04 | AB208: 40786.6 | AC208: 41025.84 | AD208: 41466.36 | AE208: 41845.89 | AF208: 42167.16 | AG208: 41805.3 | AH208: 41993.07 | AI208: 41965.97 | AJ208: 41093.01 | AK208: 41064.28 | AL208: 40703.76 | AM208: 40365.74 | AN208: 40041.82 | AO208: 39920.69 | AP208: 39553.8 | AQ208: 38501.21 | AR208: 38247.87 | AS208: 38097.17 | AT208: 37844.61 | AU208: 37455.75 | AV208: 38314.78 | AW208: 38593.46 | AX208: 38593.46 | AY208: 38244.11 | AZ208: 38607.51
S209: Figure 10a | U209: Total | V209: =SUM(V203:V208) -> 214811.7 | W209: =SUM(W203:W208) -> 214330.66 | X209: =SUM(X203:X208) -> 213733.33 | Y209: 213126.9 | Z209: 212554.04 | AA209: 212078.03 | AB209: 211636.06 | AC209: 211143.08 | AD209: 210682.38 | AE209: 210369.88 | AF209: 210072.2 | AG209: 209837.98 | AH209: 209491.42 | AI209: 209270.02 | AJ209: 209090.69 | AK209: 208909.55 | AL209: 208784.01 | AM209: 208643.58 | AN209: 208478.11 | AO209: 208416.46 | AP209: 208386.59 | AQ209: 208376.56 | AR209: 208370.57 | AS209: 208351.21 | AT209: 208337.71 | AU209: 208302.96 | AV209: 208297.65 | AW209: 208283.7 | AX209: 208190.36 | AY209: 208173.27 | AZ209: 208160.17
S210: Figure 10a
S211: Figure 10a
S212: Figure 10a | T212: Bétulaies blanches | U212: (FCTYF_BOP) | V212: =VLOOKUP($U$202&$U212,GTYF!$C:$AP,V$201,FALSE) -> 6590.5 | W212: =VLOOKUP($U$202&$U212,GTYF!$C:$AP,W$201,FALSE) -> 6548.19 | X212: =VLOOKUP($U$202&$U212,GTYF!$C:$AP,X$201,FALSE) -> 6318.25 | Y212: =VLOOKUP($U$202&$U212,GTYF!$C:$AP,Y$201,FALSE) -> 6155.85 | Z212: =VLOOKUP($U$202&$U212,GTYF!$C:$AP,Z$201,FALSE) -> 5975.63 | AA212: =VLOOKUP($U$202&$U212,GTYF!$C:$AP,AA$201,FALSE) -> 5972.44 | AB212: =VLOOKUP($U$202&$U212,GTYF!$C:$AP,AB$201,FALSE) -> 5965.34 | AC212: =VLOOKUP($U$202&$U212,GTYF!$C:$AP,AC$201,FALSE) -> 5693.51 | AD212: =VLOOKUP($U$202&$U212,GTYF!$C:$AP,AD$201,FALSE) -> 5451.46 | AE212: =VLOOKUP($U$202&$U212,GTYF!$C:$AP,AE$201,FALSE) -> 5442.92 | AF212: =VLOOKUP($U$202&$U212,GTYF!$C:$AP,AF$201,FALSE) -> 5433.88 | AG212: =VLOOKUP($U$202&$U212,GTYF!$C:$AP,AG$201,FALSE) -> 5014.78 | AH212: =VLOOKUP($U$202&$U212,GTYF!$C:$AP,AH$201,FALSE) -> 4665.16 | AI212: =VLOOKUP($U$202&$U212,GTYF!$C:$AP,AI$201,FALSE) -> 4050.26 | AJ212: =VLOOKUP($U$202&$U212,GTYF!$C:$AP,AJ$201,FALSE) -> 4050.08 | AK212: =VLOOKUP($U$202&$U212,GTYF!$C:$AP,AK$201,FALSE) -> 3901.38 | AL212: =VLOOKUP($U$202&$U212,GTYF!$C:$AP,AL$201,FALSE) -> 3896.88 | AM212: =VLOOKUP($U$202&$U212,GTYF!$C:$AP,AM$201,FALSE) -> 4099.31 | AN212: =VLOOKUP($U$202&$U212,GTYF!$C:$AP,AN$201,FALSE) -> 4052.1 | AO212: =VLOOKUP($U$202&$U212,GTYF!$C:$AP,AO$201,FALSE) -> 4052.1 | AP212: =VLOOKUP($U$202&$U212,GTYF!$C:$AP,AP$201,FALSE) -> 4042.18 | AQ212: =VLOOKUP($U$202&$U212,GTYF!$C:$AP,AQ$201,FALSE) -> 4042.18 | AR212: =VLOOKUP($U$202&$U212,GTYF!$C:$AP,AR$201,FALSE) -> 4299.06 | AS212: =VLOOKUP($U$202&$U212,GTYF!$C:$AP,AS$201,FALSE) -> 4504.33 | AT212: =VLOOKUP($U$202&$U212,GTYF!$C:$AP,AT$201,FALSE) -> 4504.33 | AU212: =VLOOKUP($U$202&$U212,GTYF!$C:$AP,AU$201,FALSE) -> 4504.51 | AV212: =VLOOKUP($U$202&$U212,GTYF!$C:$AP,AV$201,FALSE) -> 4917.95 | AW212: =VLOOKUP($U$202&$U212,GTYF!$C:$AP,AW$201,FALSE) -> 5257.86 | AX212: =VLOOKUP($U$202&$U212,GTYF!$C:$AP,AX$201,FALSE) -> 5841.41 | AY212: =VLOOKUP($U$202&$U212,GTYF!$C:$AP,AY$201,FALSE) -> 5682.38 | AZ212: =VLOOKUP($U$202&$U212,GTYF!$C:$AP,AZ$201,FALSE) -> 5654.19
S213: Figure 10a | T213: Bétulaies blanches à résineux | U213: (FCTYF_BOPR) | V213: =VLOOKUP($U$202&$U213,GTYF!$C:$AP,V$201,FALSE) -> 20007.2 | W213: =VLOOKUP($U$202&$U213,GTYF!$C:$AP,W$201,FALSE) -> 19111.02 | X213: =VLOOKUP($U$202&$U213,GTYF!$C:$AP,X$201,FALSE) -> 16399.24 | Y213: =VLOOKUP($U$202&$U213,GTYF!$C:$AP,Y$201,FALSE) -> 15551.28 | Z213: =VLOOKUP($U$202&$U213,GTYF!$C:$AP,Z$201,FALSE) -> 15422.8 | AA213: =VLOOKUP($U$202&$U213,GTYF!$C:$AP,AA$201,FALSE) -> 15275.14 | AB213: =VLOOKUP($U$202&$U213,GTYF!$C:$AP,AB$201,FALSE) -> 15797.54 | AC213: =VLOOKUP($U$202&$U213,GTYF!$C:$AP,AC$201,FALSE) -> 15853.08 | AD213: =VLOOKUP($U$202&$U213,GTYF!$C:$AP,AD$201,FALSE) -> 16154.4 | AE213: =VLOOKUP($U$202&$U213,GTYF!$C:$AP,AE$201,FALSE) -> 15959.94 | AF213: =VLOOKUP($U$202&$U213,GTYF!$C:$AP,AF$201,FALSE) -> 15540.71 | AG213: =VLOOKUP($U$202&$U213,GTYF!$C:$AP,AG$201,FALSE) -> 15713.38 | AH213: =VLOOKUP($U$202&$U213,GTYF!$C:$AP,AH$201,FALSE) -> 16413.37 | AI213: =VLOOKUP($U$202&$U213,GTYF!$C:$AP,AI$201,FALSE) -> 17185.7 | AJ213: =VLOOKUP($U$202&$U213,GTYF!$C:$AP,AJ$201,FALSE) -> 16765.79 | AK213: =VLOOKUP($U$202&$U213,GTYF!$C:$AP,AK$201,FALSE) -> 16402.46 | AL213: =VLOOKUP($U$202&$U213,GTYF!$C:$AP,AL$201,FALSE) -> 16400.37 | AM213: =VLOOKUP($U$202&$U213,GTYF!$C:$AP,AM$201,FALSE) -> 16010.21 | AN213: =VLOOKUP($U$202&$U213,GTYF!$C:$AP,AN$201,FALSE) -> 15994.58 | AO213: =VLOOKUP($U$202&$U213,GTYF!$C:$AP,AO$201,FALSE) -> 16111.81 | AP213: =VLOOKUP($U$202&$U213,GTYF!$C:$AP,AP$201,FALSE) -> 16431.32 | AQ213: =VLOOKUP($U$202&$U213,GTYF!$C:$AP,AQ$201,FALSE) -> 17632.28 | AR213: =VLOOKUP($U$202&$U213,GTYF!$C:$AP,AR$201,FALSE) -> 18011.15 | AS213: =VLOOKUP($U$202&$U213,GTYF!$C:$AP,AS$201,FALSE) -> 18101.93 | AT213: =VLOOKUP($U$202&$U213,GTYF!$C:$AP,AT$201,FALSE) -> 18900.08 | AU213: =VLOOKUP($U$202&$U213,GTYF!$C:$AP,AU$201,FALSE) -> 19926.55 | AV213: =VLOOKUP($U$202&$U213,GTYF!$C:$AP,AV$201,FALSE) -> 20197.28 | AW213: =VLOOKUP($U$202&$U213,GTYF!$C:$AP,AW$201,FALSE) -> 20626.94 | AX213: =VLOOKUP($U$202&$U213,GTYF!$C:$AP,AX$201,FALSE) -> 20980.98 | AY213: =VLOOKUP($U$202&$U213,GTYF!$C:$AP,AY$201,FALSE) -> 22236.08 | AZ213: =VLOOKUP($U$202&$U213,GTYF!$C:$AP,AZ$201,FALSE) -> 23031.77
S214: Figure 10a | T214: Pessières | U214: (FCTYF_EPX) | V214: =VLOOKUP($U$202&$U214,GTYF!$C:$AP,V$201,FALSE) -> 28406.1 | W214: =VLOOKUP($U$202&$U214,GTYF!$C:$AP,W$201,FALSE) -> 28507.54 | X214: =VLOOKUP($U$202&$U214,GTYF!$C:$AP,X$201,FALSE) -> 27893.72 | Y214: =VLOOKUP($U$202&$U214,GTYF!$C:$AP,Y$201,FALSE) -> 28529.39 | Z214: =VLOOKUP($U$202&$U214,GTYF!$C:$AP,Z$201,FALSE) -> 29665.08 | AA214: =VLOOKUP($U$202&$U214,GTYF!$C:$AP,AA$201,FALSE) -> 30132.93 | AB214: =VLOOKUP($U$202&$U214,GTYF!$C:$AP,AB$201,FALSE) -> 31415.5 | AC214: =VLOOKUP($U$202&$U214,GTYF!$C:$AP,AC$201,FALSE) -> 32292.72 | AD214: =VLOOKUP($U$202&$U214,GTYF!$C:$AP,AD$201,FALSE) -> 32363.93 | AE214: =VLOOKUP($U$202&$U214,GTYF!$C:$AP,AE$201,FALSE) -> 32819.19 | AF214: =VLOOKUP($U$202&$U214,GTYF!$C:$AP,AF$201,FALSE) -> 33590.08 | AG214: =VLOOKUP($U$202&$U214,GTYF!$C:$AP,AG$201,FALSE) -> 34260.3 | AH214: =VLOOKUP($U$202&$U214,GTYF!$C:$AP,AH$201,FALSE) -> 34821.24 | AI214: =VLOOKUP($U$202&$U214,GTYF!$C:$AP,AI$201,FALSE) -> 35561.93 | AJ214: =VLOOKUP($U$202&$U214,GTYF!$C:$AP,AJ$201,FALSE) -> 35929.25 | AK214: =VLOOKUP($U$202&$U214,GTYF!$C:$AP,AK$201,FALSE) -> 36270.88 | AL214: =VLOOKUP($U$202&$U214,GTYF!$C:$AP,AL$201,FALSE) -> 35650.4 | AM214: =VLOOKUP($U$202&$U214,GTYF!$C:$AP,AM$201,FALSE) -> 35723.53 | AN214: =VLOOKUP($U$202&$U214,GTYF!$C:$AP,AN$201,FALSE) -> 36113.29 | AO214: =VLOOKUP($U$202&$U214,GTYF!$C:$AP,AO$201,FALSE) -> 36208.88 | AP214: =VLOOKUP($U$202&$U214,GTYF!$C:$AP,AP$201,FALSE) -> 36491.77 | AQ214: =VLOOKUP($U$202&$U214,GTYF!$C:$AP,AQ$201,FALSE) -> 36064.98 | AR214: =VLOOKUP($U$202&$U214,GTYF!$C:$AP,AR$201,FALSE) -> 35600.73 | AS214: =VLOOKUP($U$202&$U214,GTYF!$C:$AP,AS$201,FALSE) -> 35375.19 | AT214: =VLOOKUP($U$202&$U214,GTYF!$C:$AP,AT$201,FALSE) -> 34706.18 | AU214: =VLOOKUP($U$202&$U214,GTYF!$C:$AP,AU$201,FALSE) -> 34282.18 | AV214: =VLOOKUP($U$202&$U214,GTYF!$C:$AP,AV$201,FALSE) -> 33193.74 | AW214: =VLOOKUP($U$202&$U214,GTYF!$C:$AP,AW$201,FALSE) -> 32800.06 | AX214: =VLOOKUP($U$202&$U214,GTYF!$C:$AP,AX$201,FALSE) -> 31703.5 | AY214: =VLOOKUP($U$202&$U214,GTYF!$C:$AP,AY$201,FALSE) -> 31560.36 | AZ214: =VLOOKUP($U$202&$U214,GTYF!$C:$AP,AZ$201,FALSE) -> 31593.21
S215: Figure 10a | T215: Érablières rouges | U215: (FCTYF_ERO) | V215: =VLOOKUP($U$202&$U215,GTYF!$C:$AP,V$201,FALSE) -> 1359.9 | W215: =VLOOKUP($U$202&$U215,GTYF!$C:$AP,W$201,FALSE) -> 1359.9 | X215: =VLOOKUP($U$202&$U215,GTYF!$C:$AP,X$201,FALSE) -> 1350.68 | Y215: =VLOOKUP($U$202&$U215,GTYF!$C:$AP,Y$201,FALSE) -> 1349.5 | Z215: =VLOOKUP($U$202&$U215,GTYF!$C:$AP,Z$201,FALSE) -> 1346.51 | AA215: =VLOOKUP($U$202&$U215,GTYF!$C:$AP,AA$201,FALSE) -> 1341.81 | AB215: =VLOOKUP($U$202&$U215,GTYF!$C:$AP,AB$201,FALSE) -> 1341.79 | AC215: =VLOOKUP($U$202&$U215,GTYF!$C:$AP,AC$201,FALSE) -> 1340.15 | AD215: =VLOOKUP($U$202&$U215,GTYF!$C:$AP,AD$201,FALSE) -> 1339.59 | AE215: =VLOOKUP($U$202&$U215,GTYF!$C:$AP,AE$201,FALSE) -> 1339.36 | AF215: =VLOOKUP($U$202&$U215,GTYF!$C:$AP,AF$201,FALSE) -> 1338.6 | AG215: =VLOOKUP($U$202&$U215,GTYF!$C:$AP,AG$201,FALSE) -> 1338.6 | AH215: =VLOOKUP($U$202&$U215,GTYF!$C:$AP,AH$201,FALSE) -> 1334.35 | AI215: =VLOOKUP($U$202&$U215,GTYF!$C:$AP,AI$201,FALSE) -> 1334.35 | AJ215: =VLOOKUP($U$202&$U215,GTYF!$C:$AP,AJ$201,FALSE) -> 1334.35 | AK215: =VLOOKUP($U$202&$U215,GTYF!$C:$AP,AK$201,FALSE) -> 1334.35 | AL215: =VLOOKUP($U$202&$U215,GTYF!$C:$AP,AL$201,FALSE) -> 1328.74 | AM215: =VLOOKUP($U$202&$U215,GTYF!$C:$AP,AM$201,FALSE) -> 1328.74 | AN215: =VLOOKUP($U$202&$U215,GTYF!$C:$AP,AN$201,FALSE) -> 1328.74 | AO215: =VLOOKUP($U$202&$U215,GTYF!$C:$AP,AO$201,FALSE) -> 1326.29 | AP215: =VLOOKUP($U$202&$U215,GTYF!$C:$AP,AP$201,FALSE) -> 1326.29 | AQ215: =VLOOKUP($U$202&$U215,GTYF!$C:$AP,AQ$201,FALSE) -> 1326.29 | AR215: =VLOOKUP($U$202&$U215,GTYF!$C:$AP,AR$201,FALSE) -> 1326.29 | AS215: =VLOOKUP($U$202&$U215,GTYF!$C:$AP,AS$201,FALSE) -> 1326.29 | AT215: =VLOOKUP($U$202&$U215,GTYF!$C:$AP,AT$201,FALSE) -> 1325.41 | AU215: =VLOOKUP($U$202&$U215,GTYF!$C:$AP,AU$201,FALSE) -> 1325.41 | AV215: =VLOOKUP($U$202&$U215,GTYF!$C:$AP,AV$201,FALSE) -> 1325.41 | AW215: =VLOOKUP($U$202&$U215,GTYF!$C:$AP,AW$201,FALSE) -> 1325.41 | AX215: =VLOOKUP($U$202&$U215,GTYF!$C:$AP,AX$201,FALSE) -> 1320.44 | AY215: =VLOOKUP($U$202&$U215,GTYF!$C:$AP,AY$201,FALSE) -> 1317.41 | AZ215: =VLOOKUP($U$202&$U215,GTYF!$C:$AP,AZ$201,FALSE) -> 1317.41
S216: Figure 10a | T216: Feuillus tolérants | U216: (FCTYF_FT) | V216: =VLOOKUP($U$202&$U216,GTYF!$C:$AP,V$201,FALSE) -> 38489.1 | W216: =VLOOKUP($U$202&$U216,GTYF!$C:$AP,W$201,FALSE) -> 39076.83 | X216: =VLOOKUP($U$202&$U216,GTYF!$C:$AP,X$201,FALSE) -> 39578.73 | Y216: =VLOOKUP($U$202&$U216,GTYF!$C:$AP,Y$201,FALSE) -> 39608.84 | Z216: =VLOOKUP($U$202&$U216,GTYF!$C:$AP,Z$201,FALSE) -> 39986.56 | AA216: =VLOOKUP($U$202&$U216,GTYF!$C:$AP,AA$201,FALSE) -> 40597.04 | AB216: =VLOOKUP($U$202&$U216,GTYF!$C:$AP,AB$201,FALSE) -> 40786.6 | AC216: =VLOOKUP($U$202&$U216,GTYF!$C:$AP,AC$201,FALSE) -> 41025.84 | AD216: =VLOOKUP($U$202&$U216,GTYF!$C:$AP,AD$201,FALSE) -> 41466.36 | AE216: =VLOOKUP($U$202&$U216,GTYF!$C:$AP,AE$201,FALSE) -> 41845.89 | AF216: =VLOOKUP($U$202&$U216,GTYF!$C:$AP,AF$201,FALSE) -> 42167.16 | AG216: =VLOOKUP($U$202&$U216,GTYF!$C:$AP,AG$201,FALSE) -> 41805.3 | AH216: =VLOOKUP($U$202&$U216,GTYF!$C:$AP,AH$201,FALSE) -> 41993.07 | AI216: =VLOOKUP($U$202&$U216,GTYF!$C:$AP,AI$201,FALSE) -> 41965.97 | AJ216: =VLOOKUP($U$202&$U216,GTYF!$C:$AP,AJ$201,FALSE) -> 41093.01 | AK216: =VLOOKUP($U$202&$U216,GTYF!$C:$AP,AK$201,FALSE) -> 41064.28 | AL216: =VLOOKUP($U$202&$U216,GTYF!$C:$AP,AL$201,FALSE) -> 40703.76 | AM216: =VLOOKUP($U$202&$U216,GTYF!$C:$AP,AM$201,FALSE) -> 40365.74 | AN216: =VLOOKUP($U$202&$U216,GTYF!$C:$AP,AN$201,FALSE) -> 40041.82 | AO216: =VLOOKUP($U$202&$U216,GTYF!$C:$AP,AO$201,FALSE) -> 39920.69 | AP216: =VLOOKUP($U$202&$U216,GTYF!$C:$AP,AP$201,FALSE) -> 39553.8 | AQ216: =VLOOKUP($U$202&$U216,GTYF!$C:$AP,AQ$201,FALSE) -> 38501.21 | AR216: =VLOOKUP($U$202&$U216,GTYF!$C:$AP,AR$201,FALSE) -> 38247.87 | AS216: =VLOOKUP($U$202&$U216,GTYF!$C:$AP,AS$201,FALSE) -> 38097.17 | AT216: =VLOOKUP($U$202&$U216,GTYF!$C:$AP,AT$201,FALSE) -> 37844.61 | AU216: =VLOOKUP($U$202&$U216,GTYF!$C:$AP,AU$201,FALSE) -> 37455.75 | AV216: =VLOOKUP($U$202&$U216,GTYF!$C:$AP,AV$201,FALSE) -> 38314.78 | AW216: =VLOOKUP($U$202&$U216,GTYF!$C:$AP,AW$201,FALSE) -> 38593.46 | AX216: =VLOOKUP($U$202&$U216,GTYF!$C:$AP,AX$201,FALSE) -> 38593.46 | AY216: =VLOOKUP($U$202&$U216,GTYF!$C:$AP,AY$201,FALSE) -> 38244.11 | AZ216: =VLOOKUP($U$202&$U216,GTYF!$C:$AP,AZ$201,FALSE) -> 38607.51
S217: Figure 10a | T217: Feuillus tolérants à résineux | U217: (FCTYF_FTR) | V217: =VLOOKUP($U$202&$U217,GTYF!$C:$AP,V$201,FALSE) -> 18467.6 | W217: =VLOOKUP($U$202&$U217,GTYF!$C:$AP,W$201,FALSE) -> 18877.51 | X217: =VLOOKUP($U$202&$U217,GTYF!$C:$AP,X$201,FALSE) -> 19713.88 | Y217: =VLOOKUP($U$202&$U217,GTYF!$C:$AP,Y$201,FALSE) -> 21089.89 | Z217: =VLOOKUP($U$202&$U217,GTYF!$C:$AP,Z$201,FALSE) -> 20694.45 | AA217: =VLOOKUP($U$202&$U217,GTYF!$C:$AP,AA$201,FALSE) -> 20082.3 | AB217: =VLOOKUP($U$202&$U217,GTYF!$C:$AP,AB$201,FALSE) -> 19109.88 | AC217: =VLOOKUP($U$202&$U217,GTYF!$C:$AP,AC$201,FALSE) -> 18762.67 | AD217: =VLOOKUP($U$202&$U217,GTYF!$C:$AP,AD$201,FALSE) -> 18333.88 | AE217: =VLOOKUP($U$202&$U217,GTYF!$C:$AP,AE$201,FALSE) -> 17861.73 | AF217: =VLOOKUP($U$202&$U217,GTYF!$C:$AP,AF$201,FALSE) -> 17424.29 | AG217: =VLOOKUP($U$202&$U217,GTYF!$C:$AP,AG$201,FALSE) -> 17506.16 | AH217: =VLOOKUP($U$202&$U217,GTYF!$C:$AP,AH$201,FALSE) -> 17315.87 | AI217: =VLOOKUP($U$202&$U217,GTYF!$C:$AP,AI$201,FALSE) -> 17352.27 | AJ217: =VLOOKUP($U$202&$U217,GTYF!$C:$AP,AJ$201,FALSE) -> 18215.93 | AK217: =VLOOKUP($U$202&$U217,GTYF!$C:$AP,AK$201,FALSE) -> 18244.67 | AL217: =VLOOKUP($U$202&$U217,GTYF!$C:$AP,AL$201,FALSE) -> 19285.15 | AM217: =VLOOKUP($U$202&$U217,GTYF!$C:$AP,AM$201,FALSE) -> 19592.32 | AN217: =VLOOKUP($U$202&$U217,GTYF!$C:$AP,AN$201,FALSE) -> 19882.03 | AO217: =VLOOKUP($U$202&$U217,GTYF!$C:$AP,AO$201,FALSE) -> 19820.73 | AP217: =VLOOKUP($U$202&$U217,GTYF!$C:$AP,AP$201,FALSE) -> 20181.87 | AQ217: =VLOOKUP($U$202&$U217,GTYF!$C:$AP,AQ$201,FALSE) -> 21422.55 | AR217: =VLOOKUP($U$202&$U217,GTYF!$C:$AP,AR$201,FALSE) -> 21674.23 | AS217: =VLOOKUP($U$202&$U217,GTYF!$C:$AP,AS$201,FALSE) -> 21824.93 | AT217: =VLOOKUP($U$202&$U217,GTYF!$C:$AP,AT$201,FALSE) -> 21775.1 | AU217: =VLOOKUP($U$202&$U217,GTYF!$C:$AP,AU$201,FALSE) -> 22032.71 | AV217: =VLOOKUP($U$202&$U217,GTYF!$C:$AP,AV$201,FALSE) -> 22030.13 | AW217: =VLOOKUP($U$202&$U217,GTYF!$C:$AP,AW$201,FALSE) -> 21853.34 | AX217: =VLOOKUP($U$202&$U217,GTYF!$C:$AP,AX$201,FALSE) -> 21844.61 | AY217: =VLOOKUP($U$202&$U217,GTYF!$C:$AP,AY$201,FALSE) -> 21460.21 | AZ217: =VLOOKUP($U$202&$U217,GTYF!$C:$AP,AZ$201,FALSE) -> 20875.56
S218: Figure 10a | T218: Peupleraies | U218: (FCTYF_PEU) | V218: =VLOOKUP($U$202&$U218,GTYF!$C:$AP,V$201,FALSE) -> 3681.6 | W218: =VLOOKUP($U$202&$U218,GTYF!$C:$AP,W$201,FALSE) -> 3617.7 | X218: =VLOOKUP($U$202&$U218,GTYF!$C:$AP,X$201,FALSE) -> 3505.23 | Y218: =VLOOKUP($U$202&$U218,GTYF!$C:$AP,Y$201,FALSE) -> 3411.95 | Z218: =VLOOKUP($U$202&$U218,GTYF!$C:$AP,Z$201,FALSE) -> 3304.7 | AA218: =VLOOKUP($U$202&$U218,GTYF!$C:$AP,AA$201,FALSE) -> 3216.5 | AB218: =VLOOKUP($U$202&$U218,GTYF!$C:$AP,AB$201,FALSE) -> 3188.8 | AC218: =VLOOKUP($U$202&$U218,GTYF!$C:$AP,AC$201,FALSE) -> 3005.53 | AD218: =VLOOKUP($U$202&$U218,GTYF!$C:$AP,AD$201,FALSE) -> 2793.42 | AE218: =VLOOKUP($U$202&$U218,GTYF!$C:$AP,AE$201,FALSE) -> 2793.42 | AF218: =VLOOKUP($U$202&$U218,GTYF!$C:$AP,AF$201,FALSE) -> 2779.82 | AG218: =VLOOKUP($U$202&$U218,GTYF!$C:$AP,AG$201,FALSE) -> 2742.72 | AH218: =VLOOKUP($U$202&$U218,GTYF!$C:$AP,AH$201,FALSE) -> 2742.72 | AI218: =VLOOKUP($U$202&$U218,GTYF!$C:$AP,AI$201,FALSE) -> 2742.72 | AJ218: =VLOOKUP($U$202&$U218,GTYF!$C:$AP,AJ$201,FALSE) -> 2534.47 | AK218: =VLOOKUP($U$202&$U218,GTYF!$C:$AP,AK$201,FALSE) -> 2534.47 | AL218: =VLOOKUP($U$202&$U218,GTYF!$C:$AP,AL$201,FALSE) -> 2500.47 | AM218: =VLOOKUP($U$202&$U218,GTYF!$C:$AP,AM$201,FALSE) -> 2615.7 | AN218: =VLOOKUP($U$202&$U218,GTYF!$C:$AP,AN$201,FALSE) -> 2703.85 | AO218: =VLOOKUP($U$202&$U218,GTYF!$C:$AP,AO$201,FALSE) -> 2703.85 | AP218: =VLOOKUP($U$202&$U218,GTYF!$C:$AP,AP$201,FALSE) -> 2787.82 | AQ218: =VLOOKUP($U$202&$U218,GTYF!$C:$AP,AQ$201,FALSE) -> 2815.52 | AR218: =VLOOKUP($U$202&$U218,GTYF!$C:$AP,AR$201,FALSE) -> 2988.71 | AS218: =VLOOKUP($U$202&$U218,GTYF!$C:$AP,AS$201,FALSE) -> 3189.16 | AT218: =VLOOKUP($U$202&$U218,GTYF!$C:$AP,AT$201,FALSE) -> 3189.16 | AU218: =VLOOKUP($U$202&$U218,GTYF!$C:$AP,AU$201,FALSE) -> 3202.76 | AV218: =VLOOKUP($U$202&$U218,GTYF!$C:$AP,AV$201,FALSE) -> 3239.86 | AW218: =VLOOKUP($U$202&$U218,GTYF!$C:$AP,AW$201,FALSE) -> 3239.86 | AX218: =VLOOKUP($U$202&$U218,GTYF!$C:$AP,AX$201,FALSE) -> 3239.86 | AY218: =VLOOKUP($U$202&$U218,GTYF!$C:$AP,AY$201,FALSE) -> 3442.54 | AZ218: =VLOOKUP($U$202&$U218,GTYF!$C:$AP,AZ$201,FALSE) -> 3376.74
S219: Figure 10a | T219: Peupleraies à résineux | U219: (FCTYF_PEUR) | V219: =VLOOKUP($U$202&$U219,GTYF!$C:$AP,V$201,FALSE) -> 0 | W219: =VLOOKUP($U$202&$U219,GTYF!$C:$AP,W$201,FALSE) -> 0 | X219: =VLOOKUP($U$202&$U219,GTYF!$C:$AP,X$201,FALSE) -> 0 | Y219: =VLOOKUP($U$202&$U219,GTYF!$C:$AP,Y$201,FALSE) -> 0 | Z219: =VLOOKUP($U$202&$U219,GTYF!$C:$AP,Z$201,FALSE) -> 0 | AA219: =VLOOKUP($U$202&$U219,GTYF!$C:$AP,AA$201,FALSE) -> 0 | AB219: =VLOOKUP($U$202&$U219,GTYF!$C:$AP,AB$201,FALSE) -> 0 | AC219: =VLOOKUP($U$202&$U219,GTYF!$C:$AP,AC$201,FALSE) -> 0 | AD219: =VLOOKUP($U$202&$U219,GTYF!$C:$AP,AD$201,FALSE) -> 0 | AE219: =VLOOKUP($U$202&$U219,GTYF!$C:$AP,AE$201,FALSE) -> 0 | AF219: =VLOOKUP($U$202&$U219,GTYF!$C:$AP,AF$201,FALSE) -> 0 | AG219: =VLOOKUP($U$202&$U219,GTYF!$C:$AP,AG$201,FALSE) -> 0 | AH219: =VLOOKUP($U$202&$U219,GTYF!$C:$AP,AH$201,FALSE) -> 0 | AI219: =VLOOKUP($U$202&$U219,GTYF!$C:$AP,AI$201,FALSE) -> 0 | AJ219: =VLOOKUP($U$202&$U219,GTYF!$C:$AP,AJ$201,FALSE) -> 0 | AK219: =VLOOKUP($U$202&$U219,GTYF!$C:$AP,AK$201,FALSE) -> 0 | AL219: =VLOOKUP($U$202&$U219,GTYF!$C:$AP,AL$201,FALSE) -> 0 | AM219: =VLOOKUP($U$202&$U219,GTYF!$C:$AP,AM$201,FALSE) -> 0 | AN219: =VLOOKUP($U$202&$U219,GTYF!$C:$AP,AN$201,FALSE) -> 0 | AO219: =VLOOKUP($U$202&$U219,GTYF!$C:$AP,AO$201,FALSE) -> 0 | AP219: =VLOOKUP($U$202&$U219,GTYF!$C:$AP,AP$201,FALSE) -> 0 | AQ219: =VLOOKUP($U$202&$U219,GTYF!$C:$AP,AQ$201,FALSE) -> 0 | AR219: =VLOOKUP($U$202&$U219,GTYF!$C:$AP,AR$201,FALSE) -> 0 | AS219: =VLOOKUP($U$202&$U219,GTYF!$C:$AP,AS$201,FALSE) -> 0 | AT219: =VLOOKUP($U$202&$U219,GTYF!$C:$AP,AT$201,FALSE) -> 0 | AU219: =VLOOKUP($U$202&$U219,GTYF!$C:$AP,AU$201,FALSE) -> 0 | AV219: =VLOOKUP($U$202&$U219,GTYF!$C:$AP,AV$201,FALSE) -> 0 | AW219: =VLOOKUP($U$202&$U219,GTYF!$C:$AP,AW$201,FALSE) -> 0 | AX219: =VLOOKUP($U$202&$U219,GTYF!$C:$AP,AX$201,FALSE) -> 0 | AY219: =VLOOKUP($U$202&$U219,GTYF!$C:$AP,AY$201,FALSE) -> 0 | AZ219: =VLOOKUP($U$202&$U219,GTYF!$C:$AP,AZ$201,FALSE) -> 0
S220: Figure 10a | T220: Pinèdes grises | U220: (FCTYF_PIG) | V220: =VLOOKUP($U$202&$U220,GTYF!$C:$AP,V$201,FALSE) -> 0 | W220: =VLOOKUP($U$202&$U220,GTYF!$C:$AP,W$201,FALSE) -> 0 | X220: =VLOOKUP($U$202&$U220,GTYF!$C:$AP,X$201,FALSE) -> 0 | Y220: =VLOOKUP($U$202&$U220,GTYF!$C:$AP,Y$201,FALSE) -> 0 | Z220: =VLOOKUP($U$202&$U220,GTYF!$C:$AP,Z$201,FALSE) -> 0 | AA220: =VLOOKUP($U$202&$U220,GTYF!$C:$AP,AA$201,FALSE) -> 0 | AB220: =VLOOKUP($U$202&$U220,GTYF!$C:$AP,AB$201,FALSE) -> 0 | AC220: =VLOOKUP($U$202&$U220,GTYF!$C:$AP,AC$201,FALSE) -> 0 | AD220: =VLOOKUP($U$202&$U220,GTYF!$C:$AP,AD$201,FALSE) -> 0 | AE220: =VLOOKUP($U$202&$U220,GTYF!$C:$AP,AE$201,FALSE) -> 0 | AF220: =VLOOKUP($U$202&$U220,GTYF!$C:$AP,AF$201,FALSE) -> 0 | AG220: =VLOOKUP($U$202&$U220,GTYF!$C:$AP,AG$201,FALSE) -> 0 | AH220: =VLOOKUP($U$202&$U220,GTYF!$C:$AP,AH$201,FALSE) -> 0 | AI220: =VLOOKUP($U$202&$U220,GTYF!$C:$AP,AI$201,FALSE) -> 0 | AJ220: =VLOOKUP($U$202&$U220,GTYF!$C:$AP,AJ$201,FALSE) -> 0 | AK220: =VLOOKUP($U$202&$U220,GTYF!$C:$AP,AK$201,FALSE) -> 0 | AL220: =VLOOKUP($U$202&$U220,GTYF!$C:$AP,AL$201,FALSE) -> 0 | AM220: =VLOOKUP($U$202&$U220,GTYF!$C:$AP,AM$201,FALSE) -> 0 | AN220: =VLOOKUP($U$202&$U220,GTYF!$C:$AP,AN$201,FALSE) -> 0 | AO220: =VLOOKUP($U$202&$U220,GTYF!$C:$AP,AO$201,FALSE) -> 0 | AP220: =VLOOKUP($U$202&$U220,GTYF!$C:$AP,AP$201,FALSE) -> 0 | AQ220: =VLOOKUP($U$202&$U220,GTYF!$C:$AP,AQ$201,FALSE) -> 0 | AR220: =VLOOKUP($U$202&$U220,GTYF!$C:$AP,AR$201,FALSE) -> 0 | AS220: =VLOOKUP($U$202&$U220,GTYF!$C:$AP,AS$201,FALSE) -> 0 | AT220: =VLOOKUP($U$202&$U220,GTYF!$C:$AP,AT$201,FALSE) -> 0 | AU220: =VLOOKUP($U$202&$U220,GTYF!$C:$AP,AU$201,FALSE) -> 0 | AV220: =VLOOKUP($U$202&$U220,GTYF!$C:$AP,AV$201,FALSE) -> 0 | AW220: =VLOOKUP($U$202&$U220,GTYF!$C:$AP,AW$201,FALSE) -> 0 | AX220: =VLOOKUP($U$202&$U220,GTYF!$C:$AP,AX$201,FALSE) -> 0 | AY220: =VLOOKUP($U$202&$U220,GTYF!$C:$AP,AY$201,FALSE) -> 0 | AZ220: =VLOOKUP($U$202&$U220,GTYF!$C:$AP,AZ$201,FALSE) -> 0
S221: Figure 10a | T221: Pinèdes blanches | U221: (FCTYF_PIN) | V221: =VLOOKUP($U$202&$U221,GTYF!$C:$AP,V$201,FALSE) -> 0 | W221: =VLOOKUP($U$202&$U221,GTYF!$C:$AP,W$201,FALSE) -> 0 | X221: =VLOOKUP($U$202&$U221,GTYF!$C:$AP,X$201,FALSE) -> 0 | Y221: =VLOOKUP($U$202&$U221,GTYF!$C:$AP,Y$201,FALSE) -> 0 | Z221: =VLOOKUP($U$202&$U221,GTYF!$C:$AP,Z$201,FALSE) -> 0 | AA221: =VLOOKUP($U$202&$U221,GTYF!$C:$AP,AA$201,FALSE) -> 0 | AB221: =VLOOKUP($U$202&$U221,GTYF!$C:$AP,AB$201,FALSE) -> 0 | AC221: =VLOOKUP($U$202&$U221,GTYF!$C:$AP,AC$201,FALSE) -> 0 | AD221: =VLOOKUP($U$202&$U221,GTYF!$C:$AP,AD$201,FALSE) -> 0 | AE221: =VLOOKUP($U$202&$U221,GTYF!$C:$AP,AE$201,FALSE) -> 0 | AF221: =VLOOKUP($U$202&$U221,GTYF!$C:$AP,AF$201,FALSE) -> 0 | AG221: =VLOOKUP($U$202&$U221,GTYF!$C:$AP,AG$201,FALSE) -> 0 | AH221: =VLOOKUP($U$202&$U221,GTYF!$C:$AP,AH$201,FALSE) -> 0 | AI221: =VLOOKUP($U$202&$U221,GTYF!$C:$AP,AI$201,FALSE) -> 0 | AJ221: =VLOOKUP($U$202&$U221,GTYF!$C:$AP,AJ$201,FALSE) -> 0 | AK221: =VLOOKUP($U$202&$U221,GTYF!$C:$AP,AK$201,FALSE) -> 0 | AL221: =VLOOKUP($U$202&$U221,GTYF!$C:$AP,AL$201,FALSE) -> 0 | AM221: =VLOOKUP($U$202&$U221,GTYF!$C:$AP,AM$201,FALSE) -> 0 | AN221: =VLOOKUP($U$202&$U221,GTYF!$C:$AP,AN$201,FALSE) -> 0 | AO221: =VLOOKUP($U$202&$U221,GTYF!$C:$AP,AO$201,FALSE) -> 0 | AP221: =VLOOKUP($U$202&$U221,GTYF!$C:$AP,AP$201,FALSE) -> 0 | AQ221: =VLOOKUP($U$202&$U221,GTYF!$C:$AP,AQ$201,FALSE) -> 0 | AR221: =VLOOKUP($U$202&$U221,GTYF!$C:$AP,AR$201,FALSE) -> 0 | AS221: =VLOOKUP($U$202&$U221,GTYF!$C:$AP,AS$201,FALSE) -> 0 | AT221: =VLOOKUP($U$202&$U221,GTYF!$C:$AP,AT$201,FALSE) -> 0 | AU221: =VLOOKUP($U$202&$U221,GTYF!$C:$AP,AU$201,FALSE) -> 0 | AV221: =VLOOKUP($U$202&$U221,GTYF!$C:$AP,AV$201,FALSE) -> 0 | AW221: =VLOOKUP($U$202&$U221,GTYF!$C:$AP,AW$201,FALSE) -> 0 | AX221: =VLOOKUP($U$202&$U221,GTYF!$C:$AP,AX$201,FALSE) -> 0 | AY221: =VLOOKUP($U$202&$U221,GTYF!$C:$AP,AY$201,FALSE) -> 0 | AZ221: =VLOOKUP($U$202&$U221,GTYF!$C:$AP,AZ$201,FALSE) -> 0
S222: Figure 10a | T222: Prucheraies | U222: (FCTYF_PRU) | V222: =VLOOKUP($U$202&$U222,GTYF!$C:$AP,V$201,FALSE) -> 0 | W222: =VLOOKUP($U$202&$U222,GTYF!$C:$AP,W$201,FALSE) -> 0 | X222: =VLOOKUP($U$202&$U222,GTYF!$C:$AP,X$201,FALSE) -> 0 | Y222: =VLOOKUP($U$202&$U222,GTYF!$C:$AP,Y$201,FALSE) -> 0 | Z222: =VLOOKUP($U$202&$U222,GTYF!$C:$AP,Z$201,FALSE) -> 0 | AA222: =VLOOKUP($U$202&$U222,GTYF!$C:$AP,AA$201,FALSE) -> 0 | AB222: =VLOOKUP($U$202&$U222,GTYF!$C:$AP,AB$201,FALSE) -> 0 | AC222: =VLOOKUP($U$202&$U222,GTYF!$C:$AP,AC$201,FALSE) -> 0 | AD222: =VLOOKUP($U$202&$U222,GTYF!$C:$AP,AD$201,FALSE) -> 0 | AE222: =VLOOKUP($U$202&$U222,GTYF!$C:$AP,AE$201,FALSE) -> 0 | AF222: =VLOOKUP($U$202&$U222,GTYF!$C:$AP,AF$201,FALSE) -> 0 | AG222: =VLOOKUP($U$202&$U222,GTYF!$C:$AP,AG$201,FALSE) -> 0 | AH222: =VLOOKUP($U$202&$U222,GTYF!$C:$AP,AH$201,FALSE) -> 0 | AI222: =VLOOKUP($U$202&$U222,GTYF!$C:$AP,AI$201,FALSE) -> 0 | AJ222: =VLOOKUP($U$202&$U222,GTYF!$C:$AP,AJ$201,FALSE) -> 0 | AK222: =VLOOKUP($U$202&$U222,GTYF!$C:$AP,AK$201,FALSE) -> 0 | AL222: =VLOOKUP($U$202&$U222,GTYF!$C:$AP,AL$201,FALSE) -> 0 | AM222: =VLOOKUP($U$202&$U222,GTYF!$C:$AP,AM$201,FALSE) -> 0 | AN222: =VLOOKUP($U$202&$U222,GTYF!$C:$AP,AN$201,FALSE) -> 0 | AO222: =VLOOKUP($U$202&$U222,GTYF!$C:$AP,AO$201,FALSE) -> 0 | AP222: =VLOOKUP($U$202&$U222,GTYF!$C:$AP,AP$201,FALSE) -> 0 | AQ222: =VLOOKUP($U$202&$U222,GTYF!$C:$AP,AQ$201,FALSE) -> 0 | AR222: =VLOOKUP($U$202&$U222,GTYF!$C:$AP,AR$201,FALSE) -> 0 | AS222: =VLOOKUP($U$202&$U222,GTYF!$C:$AP,AS$201,FALSE) -> 0 | AT222: =VLOOKUP($U$202&$U222,GTYF!$C:$AP,AT$201,FALSE) -> 0 | AU222: =VLOOKUP($U$202&$U222,GTYF!$C:$AP,AU$201,FALSE) -> 0 | AV222: =VLOOKUP($U$202&$U222,GTYF!$C:$AP,AV$201,FALSE) -> 0 | AW222: =VLOOKUP($U$202&$U222,GTYF!$C:$AP,AW$201,FALSE) -> 0 | AX222: =VLOOKUP($U$202&$U222,GTYF!$C:$AP,AX$201,FALSE) -> 0 | AY222: =VLOOKUP($U$202&$U222,GTYF!$C:$AP,AY$201,FALSE) -> 0 | AZ222: =VLOOKUP($U$202&$U222,GTYF!$C:$AP,AZ$201,FALSE) -> 0
S223: Figure 10a | T223: Résineux à feuillus | U223: (FCTYF_RF) | V223: =VLOOKUP($U$202&$U223,GTYF!$C:$AP,V$201,FALSE) -> 40930.1 | W223: =VLOOKUP($U$202&$U223,GTYF!$C:$AP,W$201,FALSE) -> 43756.13 | X223: =VLOOKUP($U$202&$U223,GTYF!$C:$AP,X$201,FALSE) -> 48981.55 | Y223: =VLOOKUP($U$202&$U223,GTYF!$C:$AP,Y$201,FALSE) -> 47295.86 | Z223: =VLOOKUP($U$202&$U223,GTYF!$C:$AP,Z$201,FALSE) -> 46640.47 | AA223: =VLOOKUP($U$202&$U223,GTYF!$C:$AP,AA$201,FALSE) -> 47014.04 | AB223: =VLOOKUP($U$202&$U223,GTYF!$C:$AP,AB$201,FALSE) -> 47560.34 | AC223: =VLOOKUP($U$202&$U223,GTYF!$C:$AP,AC$201,FALSE) -> 47385.45 | AD223: =VLOOKUP($U$202&$U223,GTYF!$C:$AP,AD$201,FALSE) -> 46953.53 | AE223: =VLOOKUP($U$202&$U223,GTYF!$C:$AP,AE$201,FALSE) -> 46461.03 | AF223: =VLOOKUP($U$202&$U223,GTYF!$C:$AP,AF$201,FALSE) -> 46257.77 | AG223: =VLOOKUP($U$202&$U223,GTYF!$C:$AP,AG$201,FALSE) -> 47831.28 | AH223: =VLOOKUP($U$202&$U223,GTYF!$C:$AP,AH$201,FALSE) -> 47141.12 | AI223: =VLOOKUP($U$202&$U223,GTYF!$C:$AP,AI$201,FALSE) -> 45283.75 | AJ223: =VLOOKUP($U$202&$U223,GTYF!$C:$AP,AJ$201,FALSE) -> 46116.76 | AK223: =VLOOKUP($U$202&$U223,GTYF!$C:$AP,AK$201,FALSE) -> 47268.47 | AL223: =VLOOKUP($U$202&$U223,GTYF!$C:$AP,AL$201,FALSE) -> 46782.87 | AM223: =VLOOKUP($U$202&$U223,GTYF!$C:$AP,AM$201,FALSE) -> 46745.8 | AN223: =VLOOKUP($U$202&$U223,GTYF!$C:$AP,AN$201,FALSE) -> 46589.23 | AO223: =VLOOKUP($U$202&$U223,GTYF!$C:$AP,AO$201,FALSE) -> 45133.36 | AP223: =VLOOKUP($U$202&$U223,GTYF!$C:$AP,AP$201,FALSE) -> 43581.11 | AQ223: =VLOOKUP($U$202&$U223,GTYF!$C:$AP,AQ$201,FALSE) -> 44245.83 | AR223: =VLOOKUP($U$202&$U223,GTYF!$C:$AP,AR$201,FALSE) -> 43937.5 | AS223: =VLOOKUP($U$202&$U223,GTYF!$C:$AP,AS$201,FALSE) -> 42243.12 | AT223: =VLOOKUP($U$202&$U223,GTYF!$C:$AP,AT$201,FALSE) -> 41579.05 | AU223: =VLOOKUP($U$202&$U223,GTYF!$C:$AP,AU$201,FALSE) -> 40157.99 | AV223: =VLOOKUP($U$202&$U223,GTYF!$C:$AP,AV$201,FALSE) -> 40386.48 | AW223: =VLOOKUP($U$202&$U223,GTYF!$C:$AP,AW$201,FALSE) -> 39501.07 | AX223: =VLOOKUP($U$202&$U223,GTYF!$C:$AP,AX$201,FALSE) -> 38323.56 | AY223: =VLOOKUP($U$202&$U223,GTYF!$C:$AP,AY$201,FALSE) -> 37383.97 | AZ223: =VLOOKUP($U$202&$U223,GTYF!$C:$AP,AZ$201,FALSE) -> 37411.22
S224: Figure 10a | T224: Sapinières | U224: (FCTYF_SAB) | V224: =VLOOKUP($U$202&$U224,GTYF!$C:$AP,V$201,FALSE) -> 56879.6 | W224: =VLOOKUP($U$202&$U224,GTYF!$C:$AP,W$201,FALSE) -> 53475.84 | X224: =VLOOKUP($U$202&$U224,GTYF!$C:$AP,X$201,FALSE) -> 49992.05 | Y224: =VLOOKUP($U$202&$U224,GTYF!$C:$AP,Y$201,FALSE) -> 50134.34 | Z224: =VLOOKUP($U$202&$U224,GTYF!$C:$AP,Z$201,FALSE) -> 49517.84 | AA224: =VLOOKUP($U$202&$U224,GTYF!$C:$AP,AA$201,FALSE) -> 48445.83 | AB224: =VLOOKUP($U$202&$U224,GTYF!$C:$AP,AB$201,FALSE) -> 46470.27 | AC224: =VLOOKUP($U$202&$U224,GTYF!$C:$AP,AC$201,FALSE) -> 45784.13 | AD224: =VLOOKUP($U$202&$U224,GTYF!$C:$AP,AD$201,FALSE) -> 45825.81 | AE224: =VLOOKUP($U$202&$U224,GTYF!$C:$AP,AE$201,FALSE) -> 45846.4 | AF224: =VLOOKUP($U$202&$U224,GTYF!$C:$AP,AF$201,FALSE) -> 45539.89 | AG224: =VLOOKUP($U$202&$U224,GTYF!$C:$AP,AG$201,FALSE) -> 43625.46 | AH224: =VLOOKUP($U$202&$U224,GTYF!$C:$AP,AH$201,FALSE) -> 43064.52 | AI224: =VLOOKUP($U$202&$U224,GTYF!$C:$AP,AI$201,FALSE) -> 43793.07 | AJ224: =VLOOKUP($U$202&$U224,GTYF!$C:$AP,AJ$201,FALSE) -> 43051.05 | AK224: =VLOOKUP($U$202&$U224,GTYF!$C:$AP,AK$201,FALSE) -> 41888.59 | AL224: =VLOOKUP($U$202&$U224,GTYF!$C:$AP,AL$201,FALSE) -> 42235.37 | AM224: =VLOOKUP($U$202&$U224,GTYF!$C:$AP,AM$201,FALSE) -> 42162.23 | AN224: =VLOOKUP($U$202&$U224,GTYF!$C:$AP,AN$201,FALSE) -> 41772.47 | AO224: =VLOOKUP($U$202&$U224,GTYF!$C:$AP,AO$201,FALSE) -> 43138.75 | AP224: =VLOOKUP($U$202&$U224,GTYF!$C:$AP,AP$201,FALSE) -> 43990.43 | AQ224: =VLOOKUP($U$202&$U224,GTYF!$C:$AP,AQ$201,FALSE) -> 42325.72 | AR224: =VLOOKUP($U$202&$U224,GTYF!$C:$AP,AR$201,FALSE) -> 42285.03 | AS224: =VLOOKUP($U$202&$U224,GTYF!$C:$AP,AS$201,FALSE) -> 43689.09 | AT224: =VLOOKUP($U$202&$U224,GTYF!$C:$AP,AT$201,FALSE) -> 44513.79 | AU224: =VLOOKUP($U$202&$U224,GTYF!$C:$AP,AU$201,FALSE) -> 45415.1 | AV224: =VLOOKUP($U$202&$U224,GTYF!$C:$AP,AV$201,FALSE) -> 44692.02 | AW224: =VLOOKUP($U$202&$U224,GTYF!$C:$AP,AW$201,FALSE) -> 45085.7 | AX224: =VLOOKUP($U$202&$U224,GTYF!$C:$AP,AX$201,FALSE) -> 46342.54 | AY224: =VLOOKUP($U$202&$U224,GTYF!$C:$AP,AY$201,FALSE) -> 46846.21 | AZ224: =VLOOKUP($U$202&$U224,GTYF!$C:$AP,AZ$201,FALSE) -> 46292.56
B225: * Attention, étant donné que le graphique fait appel aux GTYF, certains TYF ne paraissent pas dans les bons types de couvert (ex: EoRx, PbFx, PuFx, ToFx) | S225: Figure 10a | T225: Cédrières | U225: (FCTYF_THO) | V225: =VLOOKUP($U$202&$U225,GTYF!$C:$AP,V$201,FALSE) -> 0 | W225: =VLOOKUP($U$202&$U225,GTYF!$C:$AP,W$201,FALSE) -> 0 | X225: =VLOOKUP($U$202&$U225,GTYF!$C:$AP,X$201,FALSE) -> 0 | Y225: =VLOOKUP($U$202&$U225,GTYF!$C:$AP,Y$201,FALSE) -> 0 | Z225: =VLOOKUP($U$202&$U225,GTYF!$C:$AP,Z$201,FALSE) -> 0 | AA225: =VLOOKUP($U$202&$U225,GTYF!$C:$AP,AA$201,FALSE) -> 0 | AB225: =VLOOKUP($U$202&$U225,GTYF!$C:$AP,AB$201,FALSE) -> 0 | AC225: =VLOOKUP($U$202&$U225,GTYF!$C:$AP,AC$201,FALSE) -> 0 | AD225: =VLOOKUP($U$202&$U225,GTYF!$C:$AP,AD$201,FALSE) -> 0 | AE225: =VLOOKUP($U$202&$U225,GTYF!$C:$AP,AE$201,FALSE) -> 0 | AF225: =VLOOKUP($U$202&$U225,GTYF!$C:$AP,AF$201,FALSE) -> 0 | AG225: =VLOOKUP($U$202&$U225,GTYF!$C:$AP,AG$201,FALSE) -> 0 | AH225: =VLOOKUP($U$202&$U225,GTYF!$C:$AP,AH$201,FALSE) -> 0 | AI225: =VLOOKUP($U$202&$U225,GTYF!$C:$AP,AI$201,FALSE) -> 0 | AJ225: =VLOOKUP($U$202&$U225,GTYF!$C:$AP,AJ$201,FALSE) -> 0 | AK225: =VLOOKUP($U$202&$U225,GTYF!$C:$AP,AK$201,FALSE) -> 0 | AL225: =VLOOKUP($U$202&$U225,GTYF!$C:$AP,AL$201,FALSE) -> 0 | AM225: =VLOOKUP($U$202&$U225,GTYF!$C:$AP,AM$201,FALSE) -> 0 | AN225: =VLOOKUP($U$202&$U225,GTYF!$C:$AP,AN$201,FALSE) -> 0 | AO225: =VLOOKUP($U$202&$U225,GTYF!$C:$AP,AO$201,FALSE) -> 0 | AP225: =VLOOKUP($U$202&$U225,GTYF!$C:$AP,AP$201,FALSE) -> 0 | AQ225: =VLOOKUP($U$202&$U225,GTYF!$C:$AP,AQ$201,FALSE) -> 0 | AR225: =VLOOKUP($U$202&$U225,GTYF!$C:$AP,AR$201,FALSE) -> 0 | AS225: =VLOOKUP($U$202&$U225,GTYF!$C:$AP,AS$201,FALSE) -> 0 | AT225: =VLOOKUP($U$202&$U225,GTYF!$C:$AP,AT$201,FALSE) -> 0 | AU225: =VLOOKUP($U$202&$U225,GTYF!$C:$AP,AU$201,FALSE) -> 0 | AV225: =VLOOKUP($U$202&$U225,GTYF!$C:$AP,AV$201,FALSE) -> 0 | AW225: =VLOOKUP($U$202&$U225,GTYF!$C:$AP,AW$201,FALSE) -> 0 | AX225: =VLOOKUP($U$202&$U225,GTYF!$C:$AP,AX$201,FALSE) -> 0 | AY225: =VLOOKUP($U$202&$U225,GTYF!$C:$AP,AY$201,FALSE) -> 0 | AZ225: =VLOOKUP($U$202&$U225,GTYF!$C:$AP,AZ$201,FALSE) -> 0
U228: Colonne | V228: 6 | W228: 7 | X228: 8 | Y228: 9 | Z228: 10 | AA228: 11 | AB228: 12 | AC228: 13 | AD228: 14 | AE228: 15 | AF228: 16 | AG228: 17 | AH228: 18 | AI228: 19 | AJ228: 20 | AK228: 21 | AL228: 22 | AM228: 23 | AN228: 24 | AO228: 25 | AP228: 26 | AQ228: 27 | AR228: 28 | AS228: 29 | AT228: 30 | AU228: 31 | AV228: 32 | AW228: 33 | AX228: 34 | AY228: 35 | AZ228: 36
B229: Figure 10c Évolution des superficies de hêtraie et d'érablière à hêtre | U229: Période | V229: P0 | W229: P1 | X229: P2 | Y229: P3 | Z229: P4 | AA229: P5 | AB229: P6 | AC229: P7 | AD229: P8 | AE229: P9 | AF229: P10 | AG229: P11 | AH229: P12 | AI229: P13 | AJ229: P14 | AK229: P15 | AL229: P16 | AM229: P17 | AN229: P18 | AO229: P19 | AP229: P20 | AQ229: P21 | AR229: P22 | AS229: P23 | AT229: P24 | AU229: P25 | AV229: P26 | AW229: P27 | AX229: P28 | AY229: P29 | AZ229: P30
U230: Axe des "X" Fin de période | V230: 2018 | W230: 2023 | X230: 2028 | Y230: 2033 | Z230: 2038 | AA230: 2043 | AB230: 2048 | AC230: 2053 | AD230: 2058 | AE230: 2063 | AF230: 2068 | AG230: 2073 | AH230: 2078 | AI230: 2083 | AJ230: 2088 | AK230: 2093 | AL230: 2098 | AM230: 2103 | AN230: 2108 | AO230: 2113 | AP230: 2118 | AQ230: 2123 | AR230: 2128 | AS230: 2133 | AT230: 2138 | AU230: 2143 | AV230: 2148 | AW230: 2153 | AX230: 2158 | AY230: 2163 | AZ230: 2168
S231: =LEFT(B$229,10) -> Figure 10c | T231: Hêtraie | U231: OSUPESHG_FX | V231: =VLOOKUP($U231,Output!$C:$AQ,V$228,FALSE) ->  | W231: =VLOOKUP($U231,Output!$C:$AQ,W$228,FALSE) ->  | X231: =VLOOKUP($U231,Output!$C:$AQ,X$228,FALSE) ->  | Y231: =VLOOKUP($U231,Output!$C:$AQ,Y$228,FALSE) ->  | Z231: =VLOOKUP($U231,Output!$C:$AQ,Z$228,FALSE) ->  | AA231: =VLOOKUP($U231,Output!$C:$AQ,AA$228,FALSE) ->  | AB231: =VLOOKUP($U231,Output!$C:$AQ,AB$228,FALSE) ->  | AC231: =VLOOKUP($U231,Output!$C:$AQ,AC$228,FALSE) ->  | AD231: =VLOOKUP($U231,Output!$C:$AQ,AD$228,FALSE) ->  | AE231: =VLOOKUP($U231,Output!$C:$AQ,AE$228,FALSE) ->  | AF231: =VLOOKUP($U231,Output!$C:$AQ,AF$228,FALSE) ->  | AG231: =VLOOKUP($U231,Output!$C:$AQ,AG$228,FALSE) ->  | AH231: =VLOOKUP($U231,Output!$C:$AQ,AH$228,FALSE) ->  | AI231: =VLOOKUP($U231,Output!$C:$AQ,AI$228,FALSE) ->  | AJ231: =VLOOKUP($U231,Output!$C:$AQ,AJ$228,FALSE) ->  | AK231: =VLOOKUP($U231,Output!$C:$AQ,AK$228,FALSE) ->  | AL231: =VLOOKUP($U231,Output!$C:$AQ,AL$228,FALSE) ->  | AM231: =VLOOKUP($U231,Output!$C:$AQ,AM$228,FALSE) ->  | AN231: =VLOOKUP($U231,Output!$C:$AQ,AN$228,FALSE) ->  | AO231: =VLOOKUP($U231,Output!$C:$AQ,AO$228,FALSE) ->  | AP231: =VLOOKUP($U231,Output!$C:$AQ,AP$228,FALSE) ->  | AQ231: =VLOOKUP($U231,Output!$C:$AQ,AQ$228,FALSE) ->  | AR231: =VLOOKUP($U231,Output!$C:$AQ,AR$228,FALSE) ->  | AS231: =VLOOKUP($U231,Output!$C:$AQ,AS$228,FALSE) ->  | AT231: =VLOOKUP($U231,Output!$C:$AQ,AT$228,FALSE) ->  | AU231: =VLOOKUP($U231,Output!$C:$AQ,AU$228,FALSE) ->  | AV231: =VLOOKUP($U231,Output!$C:$AQ,AV$228,FALSE) ->  | AW231: =VLOOKUP($U231,Output!$C:$AQ,AW$228,FALSE) ->  | AX231: =VLOOKUP($U231,Output!$C:$AQ,AX$228,FALSE) ->  | AY231: =VLOOKUP($U231,Output!$C:$AQ,AY$228,FALSE) ->  | AZ231: =VLOOKUP($U231,Output!$C:$AQ,AZ$228,FALSE) -> 
S232: =LEFT(B$229,10) -> Figure 10c | T232: Érablière à hêtre | U232: OSUPESHG | V232: =VLOOKUP($U232,Output!$C:$AQ,V$228,FALSE) ->  | W232: =VLOOKUP($U232,Output!$C:$AQ,W$228,FALSE) ->  | X232: =VLOOKUP($U232,Output!$C:$AQ,X$228,FALSE) ->  | Y232: =VLOOKUP($U232,Output!$C:$AQ,Y$228,FALSE) ->  | Z232: =VLOOKUP($U232,Output!$C:$AQ,Z$228,FALSE) ->  | AA232: =VLOOKUP($U232,Output!$C:$AQ,AA$228,FALSE) ->  | AB232: =VLOOKUP($U232,Output!$C:$AQ,AB$228,FALSE) ->  | AC232: =VLOOKUP($U232,Output!$C:$AQ,AC$228,FALSE) ->  | AD232: =VLOOKUP($U232,Output!$C:$AQ,AD$228,FALSE) ->  | AE232: =VLOOKUP($U232,Output!$C:$AQ,AE$228,FALSE) ->  | AF232: =VLOOKUP($U232,Output!$C:$AQ,AF$228,FALSE) ->  | AG232: =VLOOKUP($U232,Output!$C:$AQ,AG$228,FALSE) ->  | AH232: =VLOOKUP($U232,Output!$C:$AQ,AH$228,FALSE) ->  | AI232: =VLOOKUP($U232,Output!$C:$AQ,AI$228,FALSE) ->  | AJ232: =VLOOKUP($U232,Output!$C:$AQ,AJ$228,FALSE) ->  | AK232: =VLOOKUP($U232,Output!$C:$AQ,AK$228,FALSE) ->  | AL232: =VLOOKUP($U232,Output!$C:$AQ,AL$228,FALSE) ->  | AM232: =VLOOKUP($U232,Output!$C:$AQ,AM$228,FALSE) ->  | AN232: =VLOOKUP($U232,Output!$C:$AQ,AN$228,FALSE) ->  | AO232: =VLOOKUP($U232,Output!$C:$AQ,AO$228,FALSE) ->  | AP232: =VLOOKUP($U232,Output!$C:$AQ,AP$228,FALSE) ->  | AQ232: =VLOOKUP($U232,Output!$C:$AQ,AQ$228,FALSE) ->  | AR232: =VLOOKUP($U232,Output!$C:$AQ,AR$228,FALSE) ->  | AS232: =VLOOKUP($U232,Output!$C:$AQ,AS$228,FALSE) ->  | AT232: =VLOOKUP($U232,Output!$C:$AQ,AT$228,FALSE) ->  | AU232: =VLOOKUP($U232,Output!$C:$AQ,AU$228,FALSE) ->  | AV232: =VLOOKUP($U232,Output!$C:$AQ,AV$228,FALSE) ->  | AW232: =VLOOKUP($U232,Output!$C:$AQ,AW$228,FALSE) ->  | AX232: =VLOOKUP($U232,Output!$C:$AQ,AX$228,FALSE) ->  | AY232: =VLOOKUP($U232,Output!$C:$AQ,AY$228,FALSE) ->  | AZ232: =VLOOKUP($U232,Output!$C:$AQ,AZ$228,FALSE) -> 
S233: =LEFT(B$229,10) -> Figure 10c | T233: Total | U233: Total | V233: =SUM(V231:V232) ->  | W233: =SUM(W231:W232) -> 
B255: Figure 11b Évolution du volume de sapin et d'épinettes sur pied dans la composante SEPM
U262: Colonne | V262: 6 | W262: 7 | X262: 8 | Y262: 9 | Z262: 10 | AA262: 11 | AB262: 12 | AC262: 13 | AD262: 14 | AE262: 15 | AF262: 16 | AG262: 17 | AH262: 18 | AI262: 19 | AJ262: 20 | AK262: 21 | AL262: 22 | AM262: 23 | AN262: 24 | AO262: 25 | AP262: 26 | AQ262: 27 | AR262: 28 | AS262: 29 | AT262: 30 | AU262: 31 | AV262: 32 | AW262: 33 | AX262: 34 | AY262: 35 | AZ262: 36
U263: Axe des "X" Fin de période | V263: 2018 | W263: 2023 | X263: 2028 | Y263: 2033 | Z263: 2038 | AA263: 2043 | AB263: 2048 | AC263: 2053 | AD263: 2058 | AE263: 2063 | AF263: 2068 | AG263: 2073 | AH263: 2078 | AI263: 2083 | AJ263: 2088 | AK263: 2093 | AL263: 2098 | AM263: 2103 | AN263: 2108 | AO263: 2113 | AP263: 2118 | AQ263: 2123 | AR263: 2128 | AS263: 2133 | AT263: 2138 | AU263: 2143 | AV263: 2148 | AW263: 2153 | AX263: 2158 | AY263: 2163 | AZ263: 2168
S264: =LEFT(B$255,10) -> Figure 11b | U264: Période | V264: P0 | W264: P1 | X264: P2 | Y264: P3 | Z264: P4 | AA264: P5 | AB264: P6 | AC264: P7 | AD264: P8 | AE264: P9 | AF264: P10 | AG264: P11 | AH264: P12 | AI264: P13 | AJ264: P14 | AK264: P15 | AL264: P16 | AM264: P17 | AN264: P18 | AO264: P19 | AP264: P20 | AQ264: P21 | AR264: P22 | AS264: P23 | AT264: P24 | AU264: P25 | AV264: P26 | AW264: P27 | AX264: P28 | AY264: P29 | AZ264: P30
S265: Figure 11b | T265: Légende | Y265: PERIOD3 | Z265: PERIOD4 | AA265: PERIOD5 | AB265: PERIOD6 | AC265: PERIOD7 | AD265: PERIOD8 | AE265: PERIOD9 | AF265: PERIOD10 | AG265: PERIOD11 | AH265: PERIOD12 | AI265: PERIOD13 | AJ265: PERIOD14 | AK265: PERIOD15 | AL265: PERIOD16 | AM265: PERIOD17 | AN265: PERIOD18 | AO265: PERIOD19 | AP265: PERIOD20 | AQ265: PERIOD21 | AR265: PERIOD22 | AS265: PERIOD23 | AT265: PERIOD24 | AU265: PERIOD25 | AV265: PERIOD26 | AW265: PERIOD27 | AX265: PERIOD28 | AY265: PERIOD29 | AZ265: PERIOD30
S266: Figure 11b | T266: Volume Sapin | U266: OVOLSABPIEDINC(FCTYF_SEPM) | V266: =VLOOKUP($U266,GTYF!$C:$AL,Figures!V$262,FALSE) -> 4791010.08 | W266: =VLOOKUP($U266,GTYF!$C:$AL,Figures!W$262,FALSE) -> 4729888.9 | X266: =VLOOKUP($U266,GTYF!$C:$AL,Figures!X$262,FALSE) -> 4559173.96 | Y266: =VLOOKUP($U266,GTYF!$C:$AL,Figures!Y$262,FALSE) -> 4458328.32 | Z266: =VLOOKUP($U266,GTYF!$C:$AL,Figures!Z$262,FALSE) -> 4240264.82 | AA266: =VLOOKUP($U266,GTYF!$C:$AL,Figures!AA$262,FALSE) -> 4043997.37 | AB266: =VLOOKUP($U266,GTYF!$C:$AL,Figures!AB$262,FALSE) -> 3751582 | AC266: =VLOOKUP($U266,GTYF!$C:$AL,Figures!AC$262,FALSE) -> 3504092.04 | AD266: =VLOOKUP($U266,GTYF!$C:$AL,Figures!AD$262,FALSE) -> 3393422.35 | AE266: =VLOOKUP($U266,GTYF!$C:$AL,Figures!AE$262,FALSE) -> 3318719.06 | AF266: =VLOOKUP($U266,GTYF!$C:$AL,Figures!AF$262,FALSE) -> 3291204.14 | AG266: =VLOOKUP($U266,GTYF!$C:$AL,Figures!AG$262,FALSE) -> 3157251.9 | AH266: =VLOOKUP($U266,GTYF!$C:$AL,Figures!AH$262,FALSE) -> 3036575.38 | AI266: =VLOOKUP($U266,GTYF!$C:$AL,Figures!AI$262,FALSE) -> 3006310.02 | AJ266: =VLOOKUP($U266,GTYF!$C:$AL,Figures!AJ$262,FALSE) -> 2859675.88 | AK266: =VLOOKUP($U266,GTYF!$C:$AL,Figures!AK$262,FALSE) -> 2739885.13 | AL266: =VLOOKUP($U266,GTYF!$C:$AL,Figures!AL$262,FALSE) -> 2720821.34 | AM266: =VLOOKUP($U266,GTYF!$C:$AL,Figures!AM$262,FALSE) -> 2645980.71 | AN266: =VLOOKUP($U266,GTYF!$C:$AL,Figures!AN$262,FALSE) -> 2540399.56 | AO266: =VLOOKUP($U266,GTYF!$C:$AL,Figures!AO$262,FALSE) -> 2663587.58 | AP266: =VLOOKUP($U266,GTYF!$C:$AL,Figures!AP$262,FALSE) -> 2830205.52 | AQ266: =VLOOKUP($U266,GTYF!$C:$AL,Figures!AQ$262,FALSE) -> 2724526.47 | AR266: =VLOOKUP($U266,GTYF!$C:$AL,Figures!AR$262,FALSE) -> 2624526.66 | AS266: =VLOOKUP($U266,GTYF!$C:$AL,Figures!AS$262,FALSE) -> 2620494.95 | AT266: =VLOOKUP($U266,GTYF!$C:$AL,Figures!AT$262,FALSE) -> 2629286.58 | AU266: =VLOOKUP($U266,GTYF!$C:$AL,Figures!AU$262,FALSE) -> 2685989.72 | AV266: =VLOOKUP($U266,GTYF!$C:$AL,Figures!AV$262,FALSE) -> 2714781.19 | AW266: =VLOOKUP($U266,GTYF!$C:$AL,Figures!AW$262,FALSE) -> 2848694.68 | AX266: =VLOOKUP($U266,GTYF!$C:$AL,Figures!AX$262,FALSE) -> 2846971.62 | AY266: =VLOOKUP($U266,GTYF!$C:$AL,Figures!AY$262,FALSE) -> 2870331.11 | AZ266: =VLOOKUP($U266,GTYF!$C:$AL,Figures!AZ$262,FALSE) -> 2748056.42
S267: Figure 11b | T267: Volume Épinettes | U267: OVOLGEPXPIEDINC(FCTYF_SEPM) | V267: =VLOOKUP($U267,GTYF!$C:$AL,Figures!V$262,FALSE) -> 2469071.72 | W267: =VLOOKUP($U267,GTYF!$C:$AL,Figures!W$262,FALSE) -> 2663680.98 | X267: =VLOOKUP($U267,GTYF!$C:$AL,Figures!X$262,FALSE) -> 2780055.51 | Y267: =VLOOKUP($U267,GTYF!$C:$AL,Figures!Y$262,FALSE) -> 3001453.41 | Z267: =VLOOKUP($U267,GTYF!$C:$AL,Figures!Z$262,FALSE) -> 3226491.19 | AA267: =VLOOKUP($U267,GTYF!$C:$AL,Figures!AA$262,FALSE) -> 3366483.42 | AB267: =VLOOKUP($U267,GTYF!$C:$AL,Figures!AB$262,FALSE) -> 3548473.96 | AC267: =VLOOKUP($U267,GTYF!$C:$AL,Figures!AC$262,FALSE) -> 3744454.07 | AD267: =VLOOKUP($U267,GTYF!$C:$AL,Figures!AD$262,FALSE) -> 3790020.85 | AE267: =VLOOKUP($U267,GTYF!$C:$AL,Figures!AE$262,FALSE) -> 3837848.89 | AF267: =VLOOKUP($U267,GTYF!$C:$AL,Figures!AF$262,FALSE) -> 3946101.64 | AG267: =VLOOKUP($U267,GTYF!$C:$AL,Figures!AG$262,FALSE) -> 4028774.43 | AH267: =VLOOKUP($U267,GTYF!$C:$AL,Figures!AH$262,FALSE) -> 4181621.23 | AI267: =VLOOKUP($U267,GTYF!$C:$AL,Figures!AI$262,FALSE) -> 4376366.07 | AJ267: =VLOOKUP($U267,GTYF!$C:$AL,Figures!AJ$262,FALSE) -> 4587014.15 | AK267: =VLOOKUP($U267,GTYF!$C:$AL,Figures!AK$262,FALSE) -> 4870544.5 | AL267: =VLOOKUP($U267,GTYF!$C:$AL,Figures!AL$262,FALSE) -> 4997754.9 | AM267: =VLOOKUP($U267,GTYF!$C:$AL,Figures!AM$262,FALSE) -> 5309784.15 | AN267: =VLOOKUP($U267,GTYF!$C:$AL,Figures!AN$262,FALSE) -> 5613669.11 | AO267: =VLOOKUP($U267,GTYF!$C:$AL,Figures!AO$262,FALSE) -> 5850314.28 | AP267: =VLOOKUP($U267,GTYF!$C:$AL,Figures!AP$262,FALSE) -> 6046471.05 | AQ267: =VLOOKUP($U267,GTYF!$C:$AL,Figures!AQ$262,FALSE) -> 5874685.53 | AR267: =VLOOKUP($U267,GTYF!$C:$AL,Figures!AR$262,FALSE) -> 5858971.67 | AS267: =VLOOKUP($U267,GTYF!$C:$AL,Figures!AS$262,FALSE) -> 5934839.76 | AT267: =VLOOKUP($U267,GTYF!$C:$AL,Figures!AT$262,FALSE) -> 5816806.21 | AU267: =VLOOKUP($U267,GTYF!$C:$AL,Figures!AU$262,FALSE) -> 5789843.79 | AV267: =VLOOKUP($U267,GTYF!$C:$AL,Figures!AV$262,FALSE) -> 5670657.63 | AW267: =VLOOKUP($U267,GTYF!$C:$AL,Figures!AW$262,FALSE) -> 5745999.63 | AX267: =VLOOKUP($U267,GTYF!$C:$AL,Figures!AX$262,FALSE) -> 5789755.46 | AY267: =VLOOKUP($U267,GTYF!$C:$AL,Figures!AY$262,FALSE) -> 5909845.45 | AZ267: =VLOOKUP($U267,GTYF!$C:$AL,Figures!AZ$262,FALSE) -> 5997274.11
S268: Figure 11b
S269: Figure 11b | T269: SEPM sur pied | U269: OVOLGSEPMPIEDINC(FCTYF_SEPM) | V269: =VLOOKUP($U269,GTYF!$C:$AL,Figures!V$262,FALSE) -> 7428068.35 | W269: =VLOOKUP($U269,GTYF!$C:$AL,Figures!W$262,FALSE) -> 7574713.39 | X269: =VLOOKUP($U269,GTYF!$C:$AL,Figures!X$262,FALSE) -> 7525323.19 | Y269: =VLOOKUP($U269,GTYF!$C:$AL,Figures!Y$262,FALSE) -> 7659344.62 | Z269: =VLOOKUP($U269,GTYF!$C:$AL,Figures!Z$262,FALSE) -> 7685068.12 | AA269: =VLOOKUP($U269,GTYF!$C:$AL,Figures!AA$262,FALSE) -> 7635391.04 | AB269: =VLOOKUP($U269,GTYF!$C:$AL,Figures!AB$262,FALSE) -> 7537940.53 | AC269: =VLOOKUP($U269,GTYF!$C:$AL,Figures!AC$262,FALSE) -> 7508821.11 | AD269: =VLOOKUP($U269,GTYF!$C:$AL,Figures!AD$262,FALSE) -> 7444867.99 | AE269: =VLOOKUP($U269,GTYF!$C:$AL,Figures!AE$262,FALSE) -> 7415597.29 | AF269: =VLOOKUP($U269,GTYF!$C:$AL,Figures!AF$262,FALSE) -> 7509419.02 | AG269: =VLOOKUP($U269,GTYF!$C:$AL,Figures!AG$262,FALSE) -> 7449256.81 | AH269: =VLOOKUP($U269,GTYF!$C:$AL,Figures!AH$262,FALSE) -> 7483182.05 | AI269: =VLOOKUP($U269,GTYF!$C:$AL,Figures!AI$262,FALSE) -> 7660876.34 | AJ269: =VLOOKUP($U269,GTYF!$C:$AL,Figures!AJ$262,FALSE) -> 7733615.23 | AK269: =VLOOKUP($U269,GTYF!$C:$AL,Figures!AK$262,FALSE) -> 7910380.08 | AL269: =VLOOKUP($U269,GTYF!$C:$AL,Figures!AL$262,FALSE) -> 8007500.1 | AM269: =VLOOKUP($U269,GTYF!$C:$AL,Figures!AM$262,FALSE) -> 8254486.64 | AN269: =VLOOKUP($U269,GTYF!$C:$AL,Figures!AN$262,FALSE) -> 8462223.4 | AO269: =VLOOKUP($U269,GTYF!$C:$AL,Figures!AO$262,FALSE) -> 8827409.98 | AP269: =VLOOKUP($U269,GTYF!$C:$AL,Figures!AP$262,FALSE) -> 9192005.59 | AQ269: =VLOOKUP($U269,GTYF!$C:$AL,Figures!AQ$262,FALSE) -> 8919779.89 | AR269: =VLOOKUP($U269,GTYF!$C:$AL,Figures!AR$262,FALSE) -> 8790870.62 | AS269: =VLOOKUP($U269,GTYF!$C:$AL,Figures!AS$262,FALSE) -> 8845949.21 | AT269: =VLOOKUP($U269,GTYF!$C:$AL,Figures!AT$262,FALSE) -> 8727888.27 | AU269: =VLOOKUP($U269,GTYF!$C:$AL,Figures!AU$262,FALSE) -> 8759354.95 | AV269: =VLOOKUP($U269,GTYF!$C:$AL,Figures!AV$262,FALSE) -> 8630469 | AW269: =VLOOKUP($U269,GTYF!$C:$AL,Figures!AW$262,FALSE) -> 8829976.17 | AX269: =VLOOKUP($U269,GTYF!$C:$AL,Figures!AX$262,FALSE) -> 8862022.04 | AY269: =VLOOKUP($U269,GTYF!$C:$AL,Figures!AY$262,FALSE) -> 9002573.84 | AZ269: =VLOOKUP($U269,GTYF!$C:$AL,Figures!AZ$262,FALSE) -> 8966287.19
S270: Figure 11b
S271: Figure 11b | T271: % Sapin | V271: =IF(ISERROR(V266),0,V266/V269) -> 0.6449873445 | W271: 0.6244314018 | X271: 0.6058442734 | Y271: 0.5820769976 | Z271: 0.5517537065 | AA271: 0.5296385409 | AB271: 0.497693234 | AC271: 0.4666634068 | AD271: 0.4558069202 | AE271: 0.4475322661 | AF271: 0.4382768003 | AG271: 0.4238344818 | AH271: 0.4057866506 | AI271: 0.3924237759 | AJ271: 0.3697721951 | AK271: 0.3463658007 | AL271: 0.3397841156 | AM271: 0.3205506079 | AN271: 0.3002047382 | AO271: 0.3017405543 | AP271: 0.3078985856 | AQ271: 0.3054477245 | AR271: 0.2985513919 | AS271: 0.2962367167 | AT271: 0.3012511731 | AU271: 0.3066424109 | AV271: 0.3145577824 | AW271: 0.3226163497 | AX271: 0.321255308 | AY271: 0.3188344979 | AZ271: 0.3064876645
S272: Figure 11b | T272: % Épinettes | V272: =IF(ISERROR(V267),0,V267/V269) -> 0.3323975499 | W272: =IF(ISERROR(W267),0,W267/W269) -> 0.3516543588 | X272: 0.3694267262 | Y272: 0.3918681766 | Z272: 0.4198389838 | AA272: 0.4409051746 | AB272: 0.4707484685 | AC272: 0.4986740282 | AD272: 0.5090783148 | AE272: 0.5175373931 | AF272: 0.5254869424 | AG272: 0.5408290428 | AH272: 0.5588025525 | AI272: 0.5712618081 | AJ272: 0.5931267607 | AK272: 0.6157156105 | AL272: 0.6241342289 | AM272: 0.6432603724 | AN272: 0.6633799233 | AO272: 0.662744145 | AP272: 0.6577967116 | AQ272: 0.6586132845 | AR272: 0.6664836651 | AS272: 0.6709104494 | AT272: 0.6664620387 | AU272: 0.6609897445 | AV272: 0.6570509239 | AW272: 0.6507378411 | AX272: 0.6533221689 | AY272: 0.6564617581 | AZ272: 0.6688692859
S273: Figure 11b | T273: % Volume autre | V273: =1-(V272+V271) -> 0.02261510558 | W273: 0.02391423948 | X273: 0.02472900038 | Y273: 0.02605482582 | Z273: 0.02840730968 | AA273: 0.0294562844 | AB273: 0.03155829753 | AC273: 0.03466256503 | AD273: 0.03511476501 | AE273: 0.03493034072 | AF273: 0.03623625733 | AG273: 0.0353364754 | AH273: 0.03541079693 | AI273: 0.03631441596 | AJ273: 0.03710104414 | AK273: 0.03791858886 | AL273: 0.0360816555 | AM273: 0.03618901975 | AN273: 0.03641533855 | AO273: 0.03551530072 | AP273: 0.03430470281 | AQ273: 0.03593899109 | AR273: 0.03496494298 | AS273: 0.03285283389 | AT273: 0.0322867882 | AU273: 0.03236784462 | AV273: 0.02839129368 | AW273: 0.02664580917 | AX273: 0.0254225231 | AY273: 0.02470374406 | AZ273: 0.02464304961
B278: Figure 14 Indicateur de productivité
... 188 more rows

Sheet UTA
M1: Jeune forêt | R1: Niveau d'altération des vieilles forêts | W1: Niveau d'altération combiné | AA1: Info à récupérer par le SSP Niveau d'altération des vieilles forêts
A2: Inscrire la liste des numéros d'UTA de l'UA: | B2: VieuxAlerte (%) | C2: VieuxAccept (%) | D2: RegeAlerte (%) | E2: RegeAccept (%) | G2: VieuxAlerte (ha) | H2: VieuxAccept (ha) | I2: RegeAlerte (ha) | J2: RegeAccept (ha) | K2: SupUTA | M2: OSUPJEUNEREGECO PERIOD1 (%) | N2: État Jeune 2023 | O2: OSUPJEUNEREGECO PERIOD6 (%) | P2: État Jeune 2048 | R2: OSUPVIEUXTOTREGECO PERIOD1 (%) | S2: État Vielle 2023 | T2: OSUPVIEUXTOTREGECO PERIOD6 (%) | U2: État Vielle 2048 | W2: UTA | X2: 2023 | Y2: 2048 | AA2: UA | AB2: UTA | AC2: 2023 | AD2: 2048 | AE2: Mode de répartition spatiale | AP2: Mode de répartition spatiale
A3: UTA001 | B3: =ROUND(G3/$K3,3) -> 0.228 | C3: =ROUND(H3/$K3,3) -> 0.38 | D3: =ROUND(I3/$K3,3) -> 0.3 | E3: =ROUND(J3/$K3,3) -> 0.2 | G3: =VLOOKUP(CONCATENATE("OSUPVIEUXALERTEREGECO_"&A3),Output!$C:$AQ,6,FALSE) -> 4126.57 | H3: =VLOOKUP(CONCATENATE("OSUPVIEUXACCEPTREGECO_"&A3),Output!$C:$AQ,6,FALSE) -> 6877.62 | I3: =VLOOKUP(CONCATENATE("OSUPJEUNEALERTEREGECO_"&A3),Output!$C:$AQ,6,FALSE) -> 5429.7 | J3: =VLOOKUP(CONCATENATE("OSUPJEUNEACCEPTREGECO_"&A3),Output!$C:$AQ,6,FALSE) -> 3619.8 | K3: =VLOOKUP(CONCATENATE("OSUPREGECO_"&A3),Output!$C:$AQ,6,FALSE) -> 18099 | M3: =ROUND(VLOOKUP("OSUPJEUNEREGECO_"&A3,Output!$C:$AQ,7,FALSE)/VLOOKUP("OSUPREGECO_"&A3,Output!$C:$AQ,6,FALSE),3) -> 0.004 | N3: =IF(M3<=$E3,"Faible",IF(M3<$D3,"Modéré","Supérieur")) -> Faible | O3: =ROUND(VLOOKUP("OSUPJEUNEREGECO_"&$A3,Output!$C:$AQ,12,FALSE)/VLOOKUP("OSUPREGECO_"&A3,Output!$C:$AQ,6,FALSE),3) -> 0 | P3: =IF(O3<=$E3,"Faible",IF(O3<$D3,"Modéré","Supérieur")) -> Faible | R3: =ROUND(VLOOKUP("OSUPVIEUXTOTREGECO_"&$A3,Output!$C:$AQ,7,FALSE)/VLOOKUP("OSUPREGECO_"&A3,Output!$C:$AQ,6,FALSE),3) -> 0.572 | S3: =IF(R3<$B3,"Supérieur",IF(R3<$C3,"Modéré","Faible")) -> Faible | T3: =ROUND(VLOOKUP("OSUPVIEUXTOTREGECO_"&$A3,Output!$C:$AQ,12,FALSE)/VLOOKUP("OSUPREGECO_"&A3,Output!$C:$AQ,6,FALSE),3) -> 0.864 | U3: =IF(T3<$B3,"Supérieur",IF(T3<$C3,"Modéré","Faible")) -> Faible | W3: =A3 -> UTA001 | X3: =IF(S3>N3,S3,N3) -> Faible | Y3: =IF(U3>P3,U3,P3) -> Faible | AA3: =Tableaux!$O$33 -> 03771 | AB3: =W3 -> UTA001 | AC3: =S3 -> Faible | AD3: =U3 -> Faible | AE3: COS sapinière | AG3: Note: "Élevé" a été renommé "Supérieur" pour le bon fonctionnement des formules. | AP3: COS sapinière
A4: UTA100 | B4: =ROUND(G4/$K4,3) -> 0.228 | C4: 0.38 | D4: 0.3 | E4: 0.2 | G4: =VLOOKUP(CONCATENATE("OSUPVIEUXALERTEREGECO_"&A4),Output!$C:$AQ,6,FALSE) -> 1612.44 | H4: =VLOOKUP(CONCATENATE("OSUPVIEUXACCEPTREGECO_"&A4),Output!$C:$AQ,6,FALSE) -> 2687.4 | I4: =VLOOKUP(CONCATENATE("OSUPJEUNEALERTEREGECO_"&A4),Output!$C:$AQ,6,FALSE) -> 2121.63 | J4: =VLOOKUP(CONCATENATE("OSUPJEUNEACCEPTREGECO_"&A4),Output!$C:$AQ,6,FALSE) -> 1414.42 | K4: =VLOOKUP(CONCATENATE("OSUPREGECO_"&A4),Output!$C:$AQ,6,FALSE) -> 7072.1 | M4: =ROUND(VLOOKUP("OSUPJEUNEREGECO_"&A4,Output!$C:$AQ,7,FALSE)/VLOOKUP("OSUPREGECO_"&A4,Output!$C:$AQ,6,FALSE),3) -> 0.027 | N4: =IF(M4<=$E4,"Faible",IF(M4<$D4,"Modéré","Supérieur")) -> Faible | O4: =ROUND(VLOOKUP("OSUPJEUNEREGECO_"&$A4,Output!$C:$AQ,12,FALSE)/VLOOKUP("OSUPREGECO_"&A4,Output!$C:$AQ,6,FALSE),3) -> 0.018 | P4: =IF(O4<=$E4,"Faible",IF(O4<$D4,"Modéré","Supérieur")) -> Faible | R4: =ROUND(VLOOKUP("OSUPVIEUXTOTREGECO_"&$A4,Output!$C:$AQ,7,FALSE)/VLOOKUP("OSUPREGECO_"&A4,Output!$C:$AQ,6,FALSE),3) -> 0.284 | S4: =IF(R4<$B4,"Supérieur",IF(R4<$C4,"Modéré","Faible")) -> Modéré | T4: =ROUND(VLOOKUP("OSUPVIEUXTOTREGECO_"&$A4,Output!$C:$AQ,12,FALSE)/VLOOKUP("OSUPREGECO_"&A4,Output!$C:$AQ,6,FALSE),3) -> 0.54 | U4: =IF(T4<$B4,"Supérieur",IF(T4<$C4,"Modéré","Faible")) -> Faible | W4: =A4 -> UTA100 | X4: =IF(S4>N4,S4,N4) -> Modéré | Y4: =IF(U4>P4,U4,P4) -> Faible | AA4: =Tableaux!$O$33 -> 03771 | AB4: =W4 -> UTA100 | AC4: =S4 -> Modéré | AD4: =U4 -> Faible | AE4: COS sapinière | AP4: COS pessière
A5: UTA101 | B5: 0.228 | C5: 0.38 | D5: 0.3 | E5: 0.2 | G5: =VLOOKUP(CONCATENATE("OSUPVIEUXALERTEREGECO_"&A5),Output!$C:$AQ,6,FALSE) -> 1639.82 | H5: =VLOOKUP(CONCATENATE("OSUPVIEUXACCEPTREGECO_"&A5),Output!$C:$AQ,6,FALSE) -> 2733.04 | I5: =VLOOKUP(CONCATENATE("OSUPJEUNEALERTEREGECO_"&A5),Output!$C:$AQ,6,FALSE) -> 2157.66 | J5: =VLOOKUP(CONCATENATE("OSUPJEUNEACCEPTREGECO_"&A5),Output!$C:$AQ,6,FALSE) -> 1438.44 | K5: =VLOOKUP(CONCATENATE("OSUPREGECO_"&A5),Output!$C:$AQ,6,FALSE) -> 7192.2 | M5: =ROUND(VLOOKUP("OSUPJEUNEREGECO_"&A5,Output!$C:$AQ,7,FALSE)/VLOOKUP("OSUPREGECO_"&A5,Output!$C:$AQ,6,FALSE),3) -> 0.038 | N5: Faible | O5: =ROUND(VLOOKUP("OSUPJEUNEREGECO_"&$A5,Output!$C:$AQ,12,FALSE)/VLOOKUP("OSUPREGECO_"&A5,Output!$C:$AQ,6,FALSE),3) -> 0.095 | P5: Faible | R5: =ROUND(VLOOKUP("OSUPVIEUXTOTREGECO_"&$A5,Output!$C:$AQ,7,FALSE)/VLOOKUP("OSUPREGECO_"&A5,Output!$C:$AQ,6,FALSE),3) -> 0.297 | S5: Modéré | T5: =ROUND(VLOOKUP("OSUPVIEUXTOTREGECO_"&$A5,Output!$C:$AQ,12,FALSE)/VLOOKUP("OSUPREGECO_"&A5,Output!$C:$AQ,6,FALSE),3) -> 0.497 | U5: Faible | W5: UTA101 | X5: Modéré | Y5: Faible | AA5: =Tableaux!$O$33 -> 03771 | AB5: =W5 -> UTA101 | AC5: =S5 -> Modéré | AD5: =U5 -> Faible | AE5: COS sapinière | AP5: CMO
A6: UTA102 | B6: 0.228 | C6: 0.38 | D6: 0.3 | E6: 0.2 | G6: =VLOOKUP(CONCATENATE("OSUPVIEUXALERTEREGECO_"&A6),Output!$C:$AQ,6,FALSE) -> 1999.86 | H6: =VLOOKUP(CONCATENATE("OSUPVIEUXACCEPTREGECO_"&A6),Output!$C:$AQ,6,FALSE) -> 3333.09 | I6: =VLOOKUP(CONCATENATE("OSUPJEUNEALERTEREGECO_"&A6),Output!$C:$AQ,6,FALSE) -> 2631.39 | J6: =VLOOKUP(CONCATENATE("OSUPJEUNEACCEPTREGECO_"&A6),Output!$C:$AQ,6,FALSE) -> 1754.26 | K6: =VLOOKUP(CONCATENATE("OSUPREGECO_"&A6),Output!$C:$AQ,6,FALSE) -> 8771.3 | M6: =ROUND(VLOOKUP("OSUPJEUNEREGECO_"&A6,Output!$C:$AQ,7,FALSE)/VLOOKUP("OSUPREGECO_"&A6,Output!$C:$AQ,6,FALSE),3) -> 0.044 | N6: Faible | O6: =ROUND(VLOOKUP("OSUPJEUNEREGECO_"&$A6,Output!$C:$AQ,12,FALSE)/VLOOKUP("OSUPREGECO_"&A6,Output!$C:$AQ,6,FALSE),3) -> 0.067 | P6: Faible | R6: =ROUND(VLOOKUP("OSUPVIEUXTOTREGECO_"&$A6,Output!$C:$AQ,7,FALSE)/VLOOKUP("OSUPREGECO_"&A6,Output!$C:$AQ,6,FALSE),3) -> 0.369 | S6: Modéré | T6: =ROUND(VLOOKUP("OSUPVIEUXTOTREGECO_"&$A6,Output!$C:$AQ,12,FALSE)/VLOOKUP("OSUPREGECO_"&A6,Output!$C:$AQ,6,FALSE),3) -> 0.427 | U6: Faible | W6: UTA102 | X6: Modéré | Y6: Faible | AA6: =Tableaux!$O$33 -> 03771 | AB6: UTA102 | AC6: Modéré | AD6: =U6 -> Faible | AE6: COS sapinière | AP6: CMO entente Cris
A7: UTA103 | B7: 0.228 | C7: 0.38 | D7: 0.3 | E7: 0.2 | G7: =VLOOKUP(CONCATENATE("OSUPVIEUXALERTEREGECO_"&A7),Output!$C:$AQ,6,FALSE) -> 1415.22 | H7: =VLOOKUP(CONCATENATE("OSUPVIEUXACCEPTREGECO_"&A7),Output!$C:$AQ,6,FALSE) -> 2358.7 | I7: =VLOOKUP(CONCATENATE("OSUPJEUNEALERTEREGECO_"&A7),Output!$C:$AQ,6,FALSE) -> 1862.13 | J7: =VLOOKUP(CONCATENATE("OSUPJEUNEACCEPTREGECO_"&A7),Output!$C:$AQ,6,FALSE) -> 1241.42 | K7: =VLOOKUP(CONCATENATE("OSUPREGECO_"&A7),Output!$C:$AQ,6,FALSE) -> 6207.1 | M7: =ROUND(VLOOKUP("OSUPJEUNEREGECO_"&A7,Output!$C:$AQ,7,FALSE)/VLOOKUP("OSUPREGECO_"&A7,Output!$C:$AQ,6,FALSE),3) -> 0.013 | N7: Faible | O7: =ROUND(VLOOKUP("OSUPJEUNEREGECO_"&$A7,Output!$C:$AQ,12,FALSE)/VLOOKUP("OSUPREGECO_"&A7,Output!$C:$AQ,6,FALSE),3) -> 0.058 | P7: Faible | R7: =ROUND(VLOOKUP("OSUPVIEUXTOTREGECO_"&$A7,Output!$C:$AQ,7,FALSE)/VLOOKUP("OSUPREGECO_"&A7,Output!$C:$AQ,6,FALSE),3) -> 0.299 | S7: Modéré | T7: =ROUND(VLOOKUP("OSUPVIEUXTOTREGECO_"&$A7,Output!$C:$AQ,12,FALSE)/VLOOKUP("OSUPREGECO_"&A7,Output!$C:$AQ,6,FALSE),3) -> 0.498 | U7: Faible | W7: UTA103 | X7: Modéré | Y7: Faible | AA7: =Tableaux!$O$33 -> 03771 | AB7: UTA103 | AC7: =S7 -> Modéré | AD7: =U7 -> Faible | AE7: COS sapinière | AG7: Voir à renommer "Élevé" dans la légende des figures | AP7: CMO entente BM
A8: UTA104 | B8: 0.228 | C8: 0.38 | D8: 0.3 | E8: 0.2 | G8: =VLOOKUP(CONCATENATE("OSUPVIEUXALERTEREGECO_"&A8),Output!$C:$AQ,6,FALSE) -> 7026.8 | H8: =VLOOKUP(CONCATENATE("OSUPVIEUXACCEPTREGECO_"&A8),Output!$C:$AQ,6,FALSE) -> 11711.33 | I8: =VLOOKUP(CONCATENATE("OSUPJEUNEALERTEREGECO_"&A8),Output!$C:$AQ,6,FALSE) -> 9245.79 | J8: =VLOOKUP(CONCATENATE("OSUPJEUNEACCEPTREGECO_"&A8),Output!$C:$AQ,6,FALSE) -> 6163.86 | K8: =VLOOKUP(CONCATENATE("OSUPREGECO_"&A8),Output!$C:$AQ,6,FALSE) -> 30819.3 | M8: =ROUND(VLOOKUP("OSUPJEUNEREGECO_"&A8,Output!$C:$AQ,7,FALSE)/VLOOKUP("OSUPREGECO_"&A8,Output!$C:$AQ,6,FALSE),3) -> 0.059 | N8: Faible | O8: =ROUND(VLOOKUP("OSUPJEUNEREGECO_"&$A8,Output!$C:$AQ,12,FALSE)/VLOOKUP("OSUPREGECO_"&A8,Output!$C:$AQ,6,FALSE),3) -> 0.094 | P8: Faible | R8: =ROUND(VLOOKUP("OSUPVIEUXTOTREGECO_"&$A8,Output!$C:$AQ,7,FALSE)/VLOOKUP("OSUPREGECO_"&A8,Output!$C:$AQ,6,FALSE),3) -> 0.203 | S8: Supérieur | T8: =ROUND(VLOOKUP("OSUPVIEUXTOTREGECO_"&$A8,Output!$C:$AQ,12,FALSE)/VLOOKUP("OSUPREGECO_"&A8,Output!$C:$AQ,6,FALSE),3) -> 0.472 | U8: Faible | W8: UTA104 | X8: Supérieur | Y8: Faible | AA8: =Tableaux!$O$33 -> 03771 | AB8: UTA104 | AC8: Supérieur | AD8: Faible | AE8: COS sapinière
A9: UTA105 | B9: 0.228 | C9: 0.38 | D9: 0.3 | E9: 0.2 | G9: =VLOOKUP(CONCATENATE("OSUPVIEUXALERTEREGECO_"&A9),Output!$C:$AQ,6,FALSE) -> 6009.35 | H9: =VLOOKUP(CONCATENATE("OSUPVIEUXACCEPTREGECO_"&A9),Output!$C:$AQ,6,FALSE) -> 10015.58 | I9: =VLOOKUP(CONCATENATE("OSUPJEUNEALERTEREGECO_"&A9),Output!$C:$AQ,6,FALSE) -> 7907.04 | J9: =VLOOKUP(CONCATENATE("OSUPJEUNEACCEPTREGECO_"&A9),Output!$C:$AQ,6,FALSE) -> 5271.36 | K9: =VLOOKUP(CONCATENATE("OSUPREGECO_"&A9),Output!$C:$AQ,6,FALSE) -> 26356.8 | M9: =ROUND(VLOOKUP("OSUPJEUNEREGECO_"&A9,Output!$C:$AQ,7,FALSE)/VLOOKUP("OSUPREGECO_"&A9,Output!$C:$AQ,6,FALSE),3) -> 0.045 | N9: Faible | O9: =ROUND(VLOOKUP("OSUPJEUNEREGECO_"&$A9,Output!$C:$AQ,12,FALSE)/VLOOKUP("OSUPREGECO_"&A9,Output!$C:$AQ,6,FALSE),3) -> 0.085 | P9: Faible | R9: =ROUND(VLOOKUP("OSUPVIEUXTOTREGECO_"&$A9,Output!$C:$AQ,7,FALSE)/VLOOKUP("OSUPREGECO_"&A9,Output!$C:$AQ,6,FALSE),3) -> 0.234 | S9: Modéré | T9: =ROUND(VLOOKUP("OSUPVIEUXTOTREGECO_"&$A9,Output!$C:$AQ,12,FALSE)/VLOOKUP("OSUPREGECO_"&A9,Output!$C:$AQ,6,FALSE),3) -> 0.48 | U9: Faible | W9: UTA105 | X9: Modéré | Y9: Faible | AA9: =Tableaux!$O$33 -> 03771 | AB9: UTA105 | AC9: Modéré | AD9: Faible | AE9: COS sapinière
A10: UTA106 | B10: 0.174 | C10: 0.29 | D10: 0.3 | E10: 0.2 | G10: =VLOOKUP(CONCATENATE("OSUPVIEUXALERTEREGECO_"&A10),Output!$C:$AQ,6,FALSE) -> 7643.75 | H10: =VLOOKUP(CONCATENATE("OSUPVIEUXACCEPTREGECO_"&A10),Output!$C:$AQ,6,FALSE) -> 12739.58 | I10: =VLOOKUP(CONCATENATE("OSUPJEUNEALERTEREGECO_"&A10),Output!$C:$AQ,6,FALSE) -> 13178.88 | J10: =VLOOKUP(CONCATENATE("OSUPJEUNEACCEPTREGECO_"&A10),Output!$C:$AQ,6,FALSE) -> 8785.92 | K10: =VLOOKUP(CONCATENATE("OSUPREGECO_"&A10),Output!$C:$AQ,6,FALSE) -> 43929.6 | M10: =ROUND(VLOOKUP("OSUPJEUNEREGECO_"&A10,Output!$C:$AQ,7,FALSE)/VLOOKUP("OSUPREGECO_"&A10,Output!$C:$AQ,6,FALSE),3) -> 0.063 | N10: Faible | O10: =ROUND(VLOOKUP("OSUPJEUNEREGECO_"&$A10,Output!$C:$AQ,12,FALSE)/VLOOKUP("OSUPREGECO_"&A10,Output!$C:$AQ,6,FALSE),3) -> 0.122 | P10: Faible | R10: =ROUND(VLOOKUP("OSUPVIEUXTOTREGECO_"&$A10,Output!$C:$AQ,7,FALSE)/VLOOKUP("OSUPREGECO_"&A10,Output!$C:$AQ,6,FALSE),3) -> 0.303 | S10: Faible | T10: =ROUND(VLOOKUP("OSUPVIEUXTOTREGECO_"&$A10,Output!$C:$AQ,12,FALSE)/VLOOKUP("OSUPREGECO_"&A10,Output!$C:$AQ,6,FALSE),3) -> 0.46 | U10: Faible | W10: UTA106 | X10: Faible | Y10: Faible | AA10: =Tableaux!$O$33 -> 03771 | AB10: UTA106 | AC10: Faible | AD10: Faible | AE10: COS sapinière
A11: UTA107 | B11: 0.228 | C11: 0.38 | D11: 0.3 | E11: =ROUND(J11/$K11,3) -> 0.2 | G11: =VLOOKUP(CONCATENATE("OSUPVIEUXALERTEREGECO_"&A11),Output!$C:$AQ,6,FALSE) -> 4910.44 | H11: =VLOOKUP(CONCATENATE("OSUPVIEUXACCEPTREGECO_"&A11),Output!$C:$AQ,6,FALSE) -> 8184.06 | I11: =VLOOKUP(CONCATENATE("OSUPJEUNEALERTEREGECO_"&A11),Output!$C:$AQ,6,FALSE) -> 6461.1 | J11: =VLOOKUP(CONCATENATE("OSUPJEUNEACCEPTREGECO_"&A11),Output!$C:$AQ,6,FALSE) -> 4307.4 | K11: =VLOOKUP(CONCATENATE("OSUPREGECO_"&A11),Output!$C:$AQ,6,FALSE) -> 21537 | M11: =ROUND(VLOOKUP("OSUPJEUNEREGECO_"&A11,Output!$C:$AQ,7,FALSE)/VLOOKUP("OSUPREGECO_"&A11,Output!$C:$AQ,6,FALSE),3) -> 0.152 | N11: Faible | O11: =ROUND(VLOOKUP("OSUPJEUNEREGECO_"&$A11,Output!$C:$AQ,12,FALSE)/VLOOKUP("OSUPREGECO_"&A11,Output!$C:$AQ,6,FALSE),3) -> 0.072 | P11: Faible | R11: =ROUND(VLOOKUP("OSUPVIEUXTOTREGECO_"&$A11,Output!$C:$AQ,7,FALSE)/VLOOKUP("OSUPREGECO_"&A11,Output!$C:$AQ,6,FALSE),3) -> 0.341 | S11: Modéré | T11: =ROUND(VLOOKUP("OSUPVIEUXTOTREGECO_"&$A11,Output!$C:$AQ,12,FALSE)/VLOOKUP("OSUPREGECO_"&A11,Output!$C:$AQ,6,FALSE),3) -> 0.429 | U11: Faible | W11: UTA107 | X11: Modéré | Y11: Faible | AA11: =Tableaux!$O$33 -> 03771 | AB11: UTA107 | AC11: Modéré | AD11: Faible | AE11: COS sapinière
A12: UTA108 | B12: 0.228 | C12: 0.38 | D12: 0.3 | E12: 0.2 | G12: =VLOOKUP(CONCATENATE("OSUPVIEUXALERTEREGECO_"&A12),Output!$C:$AQ,6,FALSE) -> 6349.07 | H12: =VLOOKUP(CONCATENATE("OSUPVIEUXACCEPTREGECO_"&A12),Output!$C:$AQ,6,FALSE) -> 10581.78 | I12: =VLOOKUP(CONCATENATE("OSUPJEUNEALERTEREGECO_"&A12),Output!$C:$AQ,6,FALSE) -> 8354.04 | J12: =VLOOKUP(CONCATENATE("OSUPJEUNEACCEPTREGECO_"&A12),Output!$C:$AQ,6,FALSE) -> 5569.36 | K12: =VLOOKUP(CONCATENATE("OSUPREGECO_"&A12),Output!$C:$AQ,6,FALSE) -> 27846.8 | M12: =ROUND(VLOOKUP("OSUPJEUNEREGECO_"&A12,Output!$C:$AQ,7,FALSE)/VLOOKUP("OSUPREGECO_"&A12,Output!$C:$AQ,6,FALSE),3) -> 0.068 | N12: Faible | O12: =ROUND(VLOOKUP("OSUPJEUNEREGECO_"&$A12,Output!$C:$AQ,12,FALSE)/VLOOKUP("OSUPREGECO_"&A12,Output!$C:$AQ,6,FALSE),3) -> 0.016 | P12: Faible | R12: =ROUND(VLOOKUP("OSUPVIEUXTOTREGECO_"&$A12,Output!$C:$AQ,7,FALSE)/VLOOKUP("OSUPREGECO_"&A12,Output!$C:$AQ,6,FALSE),3) -> 0.406 | S12: Faible | T12: =ROUND(VLOOKUP("OSUPVIEUXTOTREGECO_"&$A12,Output!$C:$AQ,12,FALSE)/VLOOKUP("OSUPREGECO_"&A12,Output!$C:$AQ,6,FALSE),3) -> 0.608 | U12: Faible | W12: UTA108 | X12: Faible | Y12: Faible | AA12: =Tableaux!$O$33 -> 03771 | AB12: UTA108 | AC12: Faible | AD12: Faible | AE12: COS sapinière | AG12: Compléter cellules en jaune
A13: UTA109 | B13: 0.228 | C13: 0.38 | D13: 0.3 | E13: 0.2 | G13: =VLOOKUP(CONCATENATE("OSUPVIEUXALERTEREGECO_"&A13),Output!$C:$AQ,6,FALSE) -> 6531.72 | H13: =VLOOKUP(CONCATENATE("OSUPVIEUXACCEPTREGECO_"&A13),Output!$C:$AQ,6,FALSE) -> 10886.2 | I13: =VLOOKUP(CONCATENATE("OSUPJEUNEALERTEREGECO_"&A13),Output!$C:$AQ,6,FALSE) -> 8594.37 | J13: =VLOOKUP(CONCATENATE("OSUPJEUNEACCEPTREGECO_"&A13),Output!$C:$AQ,6,FALSE) -> 5729.58 | K13: =VLOOKUP(CONCATENATE("OSUPREGECO_"&A13),Output!$C:$AQ,6,FALSE) -> 28647.9 | M13: =ROUND(VLOOKUP("OSUPJEUNEREGECO_"&A13,Output!$C:$AQ,7,FALSE)/VLOOKUP("OSUPREGECO_"&A13,Output!$C:$AQ,6,FALSE),3) -> 0.078 | N13: Faible | O13: =ROUND(VLOOKUP("OSUPJEUNEREGECO_"&$A13,Output!$C:$AQ,12,FALSE)/VLOOKUP("OSUPREGECO_"&A13,Output!$C:$AQ,6,FALSE),3) -> 0.079 | P13: Faible | R13: =ROUND(VLOOKUP("OSUPVIEUXTOTREGECO_"&$A13,Output!$C:$AQ,7,FALSE)/VLOOKUP("OSUPREGECO_"&A13,Output!$C:$AQ,6,FALSE),3) -> 0.207 | S13: Supérieur | T13: =ROUND(VLOOKUP("OSUPVIEUXTOTREGECO_"&$A13,Output!$C:$AQ,12,FALSE)/VLOOKUP("OSUPREGECO_"&A13,Output!$C:$AQ,6,FALSE),3) -> 0.503 | U13: Faible | W13: UTA109 | X13: Supérieur | Y13: Faible | AA13: =Tableaux!$O$33 -> 03771 | AB13: UTA109 | AC13: Supérieur | AD13: Faible | AE13: COS sapinière
A14: UTA110 | B14: 0.228 | C14: 0.38 | D14: 0.3 | E14: 0.2 | G14: =VLOOKUP(CONCATENATE("OSUPVIEUXALERTEREGECO_"&A14),Output!$C:$AQ,6,FALSE) -> 6109.44 | H14: =VLOOKUP(CONCATENATE("OSUPVIEUXACCEPTREGECO_"&A14),Output!$C:$AQ,6,FALSE) -> 10182.4 | I14: =VLOOKUP(CONCATENATE("OSUPJEUNEALERTEREGECO_"&A14),Output!$C:$AQ,6,FALSE) -> 8038.74 | J14: =VLOOKUP(CONCATENATE("OSUPJEUNEACCEPTREGECO_"&A14),Output!$C:$AQ,6,FALSE) -> 5359.16 | K14: =VLOOKUP(CONCATENATE("OSUPREGECO_"&A14),Output!$C:$AQ,6,FALSE) -> 26795.8 | M14: =ROUND(VLOOKUP("OSUPJEUNEREGECO_"&A14,Output!$C:$AQ,7,FALSE)/VLOOKUP("OSUPREGECO_"&A14,Output!$C:$AQ,6,FALSE),3) -> 0.047 | N14: Faible | O14: =ROUND(VLOOKUP("OSUPJEUNEREGECO_"&$A14,Output!$C:$AQ,12,FALSE)/VLOOKUP("OSUPREGECO_"&A14,Output!$C:$AQ,6,FALSE),3) -> 0.164 | P14: Faible | R14: =ROUND(VLOOKUP("OSUPVIEUXTOTREGECO_"&$A14,Output!$C:$AQ,7,FALSE)/VLOOKUP("OSUPREGECO_"&A14,Output!$C:$AQ,6,FALSE),3) -> 0.175 | S14: Supérieur | T14: =ROUND(VLOOKUP("OSUPVIEUXTOTREGECO_"&$A14,Output!$C:$AQ,12,FALSE)/VLOOKUP("OSUPREGECO_"&A14,Output!$C:$AQ,6,FALSE),3) -> 0.46 | U14: Faible | W14: UTA110 | X14: Supérieur | Y14: Faible | AA14: =Tableaux!$O$33 -> 03771 | AB14: UTA110 | AC14: Supérieur | AD14: Faible | AE14: COS sapinière
A15: UTA111 | B15: 0.228 | C15: 0.38 | D15: 0.3 | E15: 0.2 | G15: =VLOOKUP(CONCATENATE("OSUPVIEUXALERTEREGECO_"&A15),Output!$C:$AQ,6,FALSE) -> 9076.09 | H15: =VLOOKUP(CONCATENATE("OSUPVIEUXACCEPTREGECO_"&A15),Output!$C:$AQ,6,FALSE) -> 15126.81 | I15: =VLOOKUP(CONCATENATE("OSUPJEUNEALERTEREGECO_"&A15),Output!$C:$AQ,6,FALSE) -> 11942.22 | J15: =VLOOKUP(CONCATENATE("OSUPJEUNEACCEPTREGECO_"&A15),Output!$C:$AQ,6,FALSE) -> 7961.48 | K15: =VLOOKUP(CONCATENATE("OSUPREGECO_"&A15),Output!$C:$AQ,6,FALSE) -> 39807.4 | M15: =ROUND(VLOOKUP("OSUPJEUNEREGECO_"&A15,Output!$C:$AQ,7,FALSE)/VLOOKUP("OSUPREGECO_"&A15,Output!$C:$AQ,6,FALSE),3) -> 0.081 | N15: Faible | O15: =ROUND(VLOOKUP("OSUPJEUNEREGECO_"&$A15,Output!$C:$AQ,12,FALSE)/VLOOKUP("OSUPREGECO_"&A15,Output!$C:$AQ,6,FALSE),3) -> 0.108 | P15: Faible | R15: =ROUND(VLOOKUP("OSUPVIEUXTOTREGECO_"&$A15,Output!$C:$AQ,7,FALSE)/VLOOKUP("OSUPREGECO_"&A15,Output!$C:$AQ,6,FALSE),3) -> 0.232 | S15: Modéré | T15: =ROUND(VLOOKUP("OSUPVIEUXTOTREGECO_"&$A15,Output!$C:$AQ,12,FALSE)/VLOOKUP("OSUPREGECO_"&A15,Output!$C:$AQ,6,FALSE),3) -> 0.483 | U15: Faible | W15: UTA111 | X15: Modéré | Y15: Faible | AA15: =Tableaux!$O$33 -> 03771 | AB15: UTA111 | AC15: Modéré | AD15: Faible | AE15: COS sapinière
G16: =VLOOKUP(CONCATENATE("OSUPVIEUXALERTEREGECO_"&A16),Output!$C:$AQ,6,FALSE) ->  | H16: =VLOOKUP(CONCATENATE("OSUPVIEUXACCEPTREGECO_"&A16),Output!$C:$AQ,6,FALSE) ->  | I16: =VLOOKUP(CONCATENATE("OSUPJEUNEALERTEREGECO_"&A16),Output!$C:$AQ,6,FALSE) ->  | J16: =VLOOKUP(CONCATENATE("OSUPJEUNEACCEPTREGECO_"&A16),Output!$C:$AQ,6,FALSE) ->  | K16: =VLOOKUP(CONCATENATE("OSUPREGECO_"&A16),Output!$C:$AQ,6,FALSE) ->  | M16: =ROUND(VLOOKUP("OSUPJEUNEREGECO_"&A16,Output!$C:$AQ,7,FALSE)/VLOOKUP("OSUPREGECO_"&A16,Output!$C:$AQ,6,FALSE),3) ->  | O16: =ROUND(VLOOKUP("OSUPJEUNEREGECO_"&$A16,Output!$C:$AQ,12,FALSE)/VLOOKUP("OSUPREGECO_"&A16,Output!$C:$AQ,6,FALSE),3) ->  | R16: =ROUND(VLOOKUP("OSUPVIEUXTOTREGECO_"&$A16,Output!$C:$AQ,7,FALSE)/VLOOKUP("OSUPREGECO_"&A16,Output!$C:$AQ,6,FALSE),3) ->  | T16: =ROUND(VLOOKUP("OSUPVIEUXTOTREGECO_"&$A16,Output!$C:$AQ,12,FALSE)/VLOOKUP("OSUPREGECO_"&A16,Output!$C:$AQ,6,FALSE),3) ->  | W16: 0 | AA16: =Tableaux!$O$33 -> 03771 | AB16: 0
G17: =VLOOKUP(CONCATENATE("OSUPVIEUXALERTEREGECO_"&A17),Output!$C:$AQ,6,FALSE) ->  | H17: =VLOOKUP(CONCATENATE("OSUPVIEUXACCEPTREGECO_"&A17),Output!$C:$AQ,6,FALSE) ->  | I17: =VLOOKUP(CONCATENATE("OSUPJEUNEALERTEREGECO_"&A17),Output!$C:$AQ,6,FALSE) ->  | J17: =VLOOKUP(CONCATENATE("OSUPJEUNEACCEPTREGECO_"&A17),Output!$C:$AQ,6,FALSE) ->  | K17: =VLOOKUP(CONCATENATE("OSUPREGECO_"&A17),Output!$C:$AQ,6,FALSE) ->  | M17: =ROUND(VLOOKUP("OSUPJEUNEREGECO_"&A17,Output!$C:$AQ,7,FALSE)/VLOOKUP("OSUPREGECO_"&A17,Output!$C:$AQ,6,FALSE),3) ->  | O17: =ROUND(VLOOKUP("OSUPJEUNEREGECO_"&$A17,Output!$C:$AQ,12,FALSE)/VLOOKUP("OSUPREGECO_"&A17,Output!$C:$AQ,6,FALSE),3) ->  | R17: =ROUND(VLOOKUP("OSUPVIEUXTOTREGECO_"&$A17,Output!$C:$AQ,7,FALSE)/VLOOKUP("OSUPREGECO_"&A17,Output!$C:$AQ,6,FALSE),3) ->  | T17: =ROUND(VLOOKUP("OSUPVIEUXTOTREGECO_"&$A17,Output!$C:$AQ,12,FALSE)/VLOOKUP("OSUPREGECO_"&A17,Output!$C:$AQ,6,FALSE),3) ->  | W17: 0 | AA17: =Tableaux!$O$33 -> 03771 | AB17: 0
G18: =VLOOKUP(CONCATENATE("OSUPVIEUXALERTEREGECO_"&A18),Output!$C:$AQ,6,FALSE) ->  | H18: =VLOOKUP(CONCATENATE("OSUPVIEUXACCEPTREGECO_"&A18),Output!$C:$AQ,6,FALSE) ->  | I18: =VLOOKUP(CONCATENATE("OSUPJEUNEALERTEREGECO_"&A18),Output!$C:$AQ,6,FALSE) ->  | J18: =VLOOKUP(CONCATENATE("OSUPJEUNEACCEPTREGECO_"&A18),Output!$C:$AQ,6,FALSE) ->  | K18: =VLOOKUP(CONCATENATE("OSUPREGECO_"&A18),Output!$C:$AQ,6,FALSE) ->  | M18: =ROUND(VLOOKUP("OSUPJEUNEREGECO_"&A18,Output!$C:$AQ,7,FALSE)/VLOOKUP("OSUPREGECO_"&A18,Output!$C:$AQ,6,FALSE),3) ->  | O18: =ROUND(VLOOKUP("OSUPJEUNEREGECO_"&$A18,Output!$C:$AQ,12,FALSE)/VLOOKUP("OSUPREGECO_"&A18,Output!$C:$AQ,6,FALSE),3) ->  | R18: =ROUND(VLOOKUP("OSUPVIEUXTOTREGECO_"&$A18,Output!$C:$AQ,7,FALSE)/VLOOKUP("OSUPREGECO_"&A18,Output!$C:$AQ,6,FALSE),3) ->  | T18: =ROUND(VLOOKUP("OSUPVIEUXTOTREGECO_"&$A18,Output!$C:$AQ,12,FALSE)/VLOOKUP("OSUPREGECO_"&A18,Output!$C:$AQ,6,FALSE),3) ->  | W18: 0 | AA18: =Tableaux!$O$33 -> 03771 | AB18: 0
G19: =VLOOKUP(CONCATENATE("OSUPVIEUXALERTEREGECO_"&A19),Output!$C:$AQ,6,FALSE) ->  | H19: =VLOOKUP(CONCATENATE("OSUPVIEUXACCEPTREGECO_"&A19),Output!$C:$AQ,6,FALSE) ->  | I19: =VLOOKUP(CONCATENATE("OSUPJEUNEALERTEREGECO_"&A19),Output!$C:$AQ,6,FALSE) ->  | J19: =VLOOKUP(CONCATENATE("OSUPJEUNEACCEPTREGECO_"&A19),Output!$C:$AQ,6,FALSE) ->  | K19: =VLOOKUP(CONCATENATE("OSUPREGECO_"&A19),Output!$C:$AQ,6,FALSE) ->  | M19: =ROUND(VLOOKUP("OSUPJEUNEREGECO_"&A19,Output!$C:$AQ,7,FALSE)/VLOOKUP("OSUPREGECO_"&A19,Output!$C:$AQ,6,FALSE),3) ->  | O19: =ROUND(VLOOKUP("OSUPJEUNEREGECO_"&$A19,Output!$C:$AQ,12,FALSE)/VLOOKUP("OSUPREGECO_"&A19,Output!$C:$AQ,6,FALSE),3) ->  | R19: =ROUND(VLOOKUP("OSUPVIEUXTOTREGECO_"&$A19,Output!$C:$AQ,7,FALSE)/VLOOKUP("OSUPREGECO_"&A19,Output!$C:$AQ,6,FALSE),3) ->  | T19: =ROUND(VLOOKUP("OSUPVIEUXTOTREGECO_"&$A19,Output!$C:$AQ,12,FALSE)/VLOOKUP("OSUPREGECO_"&A19,Output!$C:$AQ,6,FALSE),3) ->  | W19: 0 | AA19: =Tableaux!$O$33 -> 03771 | AB19: 0
G20: =VLOOKUP(CONCATENATE("OSUPVIEUXALERTEREGECO_"&A20),Output!$C:$AQ,6,FALSE) ->  | H20: =VLOOKUP(CONCATENATE("OSUPVIEUXACCEPTREGECO_"&A20),Output!$C:$AQ,6,FALSE) ->  | I20: =VLOOKUP(CONCATENATE("OSUPJEUNEALERTEREGECO_"&A20),Output!$C:$AQ,6,FALSE) ->  | J20: =VLOOKUP(CONCATENATE("OSUPJEUNEACCEPTREGECO_"&A20),Output!$C:$AQ,6,FALSE) ->  | K20: =VLOOKUP(CONCATENATE("OSUPREGECO_"&A20),Output!$C:$AQ,6,FALSE) ->  | M20: =ROUND(VLOOKUP("OSUPJEUNEREGECO_"&A20,Output!$C:$AQ,7,FALSE)/VLOOKUP("OSUPREGECO_"&A20,Output!$C:$AQ,6,FALSE),3) ->  | O20: =ROUND(VLOOKUP("OSUPJEUNEREGECO_"&$A20,Output!$C:$AQ,12,FALSE)/VLOOKUP("OSUPREGECO_"&A20,Output!$C:$AQ,6,FALSE),3) ->  | R20: =ROUND(VLOOKUP("OSUPVIEUXTOTREGECO_"&$A20,Output!$C:$AQ,7,FALSE)/VLOOKUP("OSUPREGECO_"&A20,Output!$C:$AQ,6,FALSE),3) ->  | T20: =ROUND(VLOOKUP("OSUPVIEUXTOTREGECO_"&$A20,Output!$C:$AQ,12,FALSE)/VLOOKUP("OSUPREGECO_"&A20,Output!$C:$AQ,6,FALSE),3) ->  | W20: 0 | AA20: =Tableaux!$O$33 -> 03771 | AB20: 0
B21: =ROUND(G21/$K21,2) ->  | C21: =H21/$K21 ->  | D21: =ROUND(I21/$K21,3) ->  | G21: =VLOOKUP(CONCATENATE("OSUPVIEUXALERTEREGECO_"&A21),Output!$C:$AQ,6,FALSE) ->  | H21: =VLOOKUP(CONCATENATE("OSUPVIEUXACCEPTREGECO_"&A21),Output!$C:$AQ,6,FALSE) ->  | I21: =VLOOKUP(CONCATENATE("OSUPJEUNEALERTEREGECO_"&A21),Output!$C:$AQ,6,FALSE) ->  | J21: =VLOOKUP(CONCATENATE("OSUPJEUNEACCEPTREGECO_"&A21),Output!$C:$AQ,6,FALSE) ->  | K21: =VLOOKUP(CONCATENATE("OSUPREGECO_"&A21),Output!$C:$AQ,6,FALSE) ->  | M21: =ROUND(VLOOKUP("OSUPJEUNEREGECO_"&A21,Output!$C:$AQ,7,FALSE)/VLOOKUP("OSUPREGECO_"&A21,Output!$C:$AQ,6,FALSE),3) ->  | O21: =ROUND(VLOOKUP("OSUPJEUNEREGECO_"&$A21,Output!$C:$AQ,12,FALSE)/VLOOKUP("OSUPREGECO_"&A21,Output!$C:$AQ,6,FALSE),3) ->  | R21: =ROUND(VLOOKUP("OSUPVIEUXTOTREGECO_"&$A21,Output!$C:$AQ,7,FALSE)/VLOOKUP("OSUPREGECO_"&A21,Output!$C:$AQ,6,FALSE),3) ->  | T21: =ROUND(VLOOKUP("OSUPVIEUXTOTREGECO_"&$A21,Output!$C:$AQ,12,FALSE)/VLOOKUP("OSUPREGECO_"&A21,Output!$C:$AQ,6,FALSE),3) ->  | W21: 0 | AA21: =Tableaux!$O$33 -> 03771 | AB21: 0
G22: =VLOOKUP(CONCATENATE("OSUPVIEUXALERTEREGECO_"&A22),Output!$C:$AQ,6,FALSE) ->  | H22: =VLOOKUP(CONCATENATE("OSUPVIEUXACCEPTREGECO_"&A22),Output!$C:$AQ,6,FALSE) ->  | I22: =VLOOKUP(CONCATENATE("OSUPJEUNEALERTEREGECO_"&A22),Output!$C:$AQ,6,FALSE) ->  | J22: =VLOOKUP(CONCATENATE("OSUPJEUNEACCEPTREGECO_"&A22),Output!$C:$AQ,6,FALSE) ->  | K22: =VLOOKUP(CONCATENATE("OSUPREGECO_"&A22),Output!$C:$AQ,6,FALSE) ->  | M22: =ROUND(VLOOKUP("OSUPJEUNEREGECO_"&A22,Output!$C:$AQ,7,FALSE)/VLOOKUP("OSUPREGECO_"&A22,Output!$C:$AQ,6,FALSE),3) ->  | O22: =ROUND(VLOOKUP("OSUPJEUNEREGECO_"&$A22,Output!$C:$AQ,12,FALSE)/VLOOKUP("OSUPREGECO_"&A22,Output!$C:$AQ,6,FALSE),3) ->  | R22: =ROUND(VLOOKUP("OSUPVIEUXTOTREGECO_"&$A22,Output!$C:$AQ,7,FALSE)/VLOOKUP("OSUPREGECO_"&A22,Output!$C:$AQ,6,FALSE),3) ->  | T22: =ROUND(VLOOKUP("OSUPVIEUXTOTREGECO_"&$A22,Output!$C:$AQ,12,FALSE)/VLOOKUP("OSUPREGECO_"&A22,Output!$C:$AQ,6,FALSE),3) ->  | W22: 0 | AA22: =Tableaux!$O$33 -> 03771 | AB22: 0
G23: =VLOOKUP(CONCATENATE("OSUPVIEUXALERTEREGECO_"&A23),Output!$C:$AQ,6,FALSE) ->  | H23: =VLOOKUP(CONCATENATE("OSUPVIEUXACCEPTREGECO_"&A23),Output!$C:$AQ,6,FALSE) ->  | I23: =VLOOKUP(CONCATENATE("OSUPJEUNEALERTEREGECO_"&A23),Output!$C:$AQ,6,FALSE) ->  | J23: =VLOOKUP(CONCATENATE("OSUPJEUNEACCEPTREGECO_"&A23),Output!$C:$AQ,6,FALSE) ->  | K23: =VLOOKUP(CONCATENATE("OSUPREGECO_"&A23),Output!$C:$AQ,6,FALSE) ->  | M23: =ROUND(VLOOKUP("OSUPJEUNEREGECO_"&A23,Output!$C:$AQ,7,FALSE)/VLOOKUP("OSUPREGECO_"&A23,Output!$C:$AQ,6,FALSE),3) ->  | O23: =ROUND(VLOOKUP("OSUPJEUNEREGECO_"&$A23,Output!$C:$AQ,12,FALSE)/VLOOKUP("OSUPREGECO_"&A23,Output!$C:$AQ,6,FALSE),3) ->  | R23: =ROUND(VLOOKUP("OSUPVIEUXTOTREGECO_"&$A23,Output!$C:$AQ,7,FALSE)/VLOOKUP("OSUPREGECO_"&A23,Output!$C:$AQ,6,FALSE),3) ->  | T23: =ROUND(VLOOKUP("OSUPVIEUXTOTREGECO_"&$A23,Output!$C:$AQ,12,FALSE)/VLOOKUP("OSUPREGECO_"&A23,Output!$C:$AQ,6,FALSE),3) ->  | W23: 0 | AA23: =Tableaux!$O$33 -> 03771 | AB23: 0
G24: =VLOOKUP(CONCATENATE("OSUPVIEUXALERTEREGECO_"&A24),Output!$C:$AQ,6,FALSE) ->  | H24: =VLOOKUP(CONCATENATE("OSUPVIEUXACCEPTREGECO_"&A24),Output!$C:$AQ,6,FALSE) ->  | I24: =VLOOKUP(CONCATENATE("OSUPJEUNEALERTEREGECO_"&A24),Output!$C:$AQ,6,FALSE) ->  | J24: =VLOOKUP(CONCATENATE("OSUPJEUNEACCEPTREGECO_"&A24),Output!$C:$AQ,6,FALSE) ->  | K24: =VLOOKUP(CONCATENATE("OSUPREGECO_"&A24),Output!$C:$AQ,6,FALSE) ->  | M24: =ROUND(VLOOKUP("OSUPJEUNEREGECO_"&A24,Output!$C:$AQ,7,FALSE)/VLOOKUP("OSUPREGECO_"&A24,Output!$C:$AQ,6,FALSE),3) ->  | O24: =ROUND(VLOOKUP("OSUPJEUNEREGECO_"&$A24,Output!$C:$AQ,12,FALSE)/VLOOKUP("OSUPREGECO_"&A24,Output!$C:$AQ,6,FALSE),3) ->  | R24: =ROUND(VLOOKUP("OSUPVIEUXTOTREGECO_"&$A24,Output!$C:$AQ,7,FALSE)/VLOOKUP("OSUPREGECO_"&A24,Output!$C:$AQ,6,FALSE),3) ->  | T24: =ROUND(VLOOKUP("OSUPVIEUXTOTREGECO_"&$A24,Output!$C:$AQ,12,FALSE)/VLOOKUP("OSUPREGECO_"&A24,Output!$C:$AQ,6,FALSE),3) ->  | W24: 0 | AA24: =Tableaux!$O$33 -> 03771 | AB24: 0
G25: =VLOOKUP(CONCATENATE("OSUPVIEUXALERTEREGECO_"&A25),Output!$C:$AQ,6,FALSE) ->  | H25: =VLOOKUP(CONCATENATE("OSUPVIEUXACCEPTREGECO_"&A25),Output!$C:$AQ,6,FALSE) ->  | I25: =VLOOKUP(CONCATENATE("OSUPJEUNEALERTEREGECO_"&A25),Output!$C:$AQ,6,FALSE) ->  | J25: =VLOOKUP(CONCATENATE("OSUPJEUNEACCEPTREGECO_"&A25),Output!$C:$AQ,6,FALSE) ->  | K25: =VLOOKUP(CONCATENATE("OSUPREGECO_"&A25),Output!$C:$AQ,6,FALSE) ->  | M25: =ROUND(VLOOKUP("OSUPJEUNEREGECO_"&A25,Output!$C:$AQ,7,FALSE)/VLOOKUP("OSUPREGECO_"&A25,Output!$C:$AQ,6,FALSE),3) ->  | O25: =ROUND(VLOOKUP("OSUPJEUNEREGECO_"&$A25,Output!$C:$AQ,12,FALSE)/VLOOKUP("OSUPREGECO_"&A25,Output!$C:$AQ,6,FALSE),3) ->  | R25: =ROUND(VLOOKUP("OSUPVIEUXTOTREGECO_"&$A25,Output!$C:$AQ,7,FALSE)/VLOOKUP("OSUPREGECO_"&A25,Output!$C:$AQ,6,FALSE),3) ->  | T25: =ROUND(VLOOKUP("OSUPVIEUXTOTREGECO_"&$A25,Output!$C:$AQ,12,FALSE)/VLOOKUP("OSUPREGECO_"&A25,Output!$C:$AQ,6,FALSE),3) ->  | W25: 0 | AA25: =Tableaux!$O$33 -> 03771 | AB25: 0
G26: =VLOOKUP(CONCATENATE("OSUPVIEUXALERTEREGECO_"&A26),Output!$C:$AQ,6,FALSE) ->  | H26: =VLOOKUP(CONCATENATE("OSUPVIEUXACCEPTREGECO_"&A26),Output!$C:$AQ,6,FALSE) ->  | I26: =VLOOKUP(CONCATENATE("OSUPJEUNEALERTEREGECO_"&A26),Output!$C:$AQ,6,FALSE) ->  | J26: =VLOOKUP(CONCATENATE("OSUPJEUNEACCEPTREGECO_"&A26),Output!$C:$AQ,6,FALSE) ->  | K26: =VLOOKUP(CONCATENATE("OSUPREGECO_"&A26),Output!$C:$AQ,6,FALSE) ->  | M26: =ROUND(VLOOKUP("OSUPJEUNEREGECO_"&A26,Output!$C:$AQ,7,FALSE)/VLOOKUP("OSUPREGECO_"&A26,Output!$C:$AQ,6,FALSE),3) ->  | O26: =ROUND(VLOOKUP("OSUPJEUNEREGECO_"&$A26,Output!$C:$AQ,12,FALSE)/VLOOKUP("OSUPREGECO_"&A26,Output!$C:$AQ,6,FALSE),3) ->  | R26: =ROUND(VLOOKUP("OSUPVIEUXTOTREGECO_"&$A26,Output!$C:$AQ,7,FALSE)/VLOOKUP("OSUPREGECO_"&A26,Output!$C:$AQ,6,FALSE),3) ->  | T26: =ROUND(VLOOKUP("OSUPVIEUXTOTREGECO_"&$A26,Output!$C:$AQ,12,FALSE)/VLOOKUP("OSUPREGECO_"&A26,Output!$C:$AQ,6,FALSE),3) ->  | W26: 0 | AA26: =Tableaux!$O$33 -> 03771 | AB26: 0
C27: =ROUND(H27/$K27,3) ->  | G27: =VLOOKUP(CONCATENATE("OSUPVIEUXALERTEREGECO_"&A27),Output!$C:$AQ,6,FALSE) ->  | H27: =VLOOKUP(CONCATENATE("OSUPVIEUXACCEPTREGECO_"&A27),Output!$C:$AQ,6,FALSE) ->  | I27: =VLOOKUP(CONCATENATE("OSUPJEUNEALERTEREGECO_"&A27),Output!$C:$AQ,6,FALSE) ->  | J27: =VLOOKUP(CONCATENATE("OSUPJEUNEACCEPTREGECO_"&A27),Output!$C:$AQ,6,FALSE) ->  | K27: =VLOOKUP(CONCATENATE("OSUPREGECO_"&A27),Output!$C:$AQ,6,FALSE) ->  | M27: =ROUND(VLOOKUP("OSUPJEUNEREGECO_"&A27,Output!$C:$AQ,7,FALSE)/VLOOKUP("OSUPREGECO_"&A27,Output!$C:$AQ,6,FALSE),3) ->  | O27: =ROUND(VLOOKUP("OSUPJEUNEREGECO_"&$A27,Output!$C:$AQ,12,FALSE)/VLOOKUP("OSUPREGECO_"&A27,Output!$C:$AQ,6,FALSE),3) ->  | R27: =ROUND(VLOOKUP("OSUPVIEUXTOTREGECO_"&$A27,Output!$C:$AQ,7,FALSE)/VLOOKUP("OSUPREGECO_"&A27,Output!$C:$AQ,6,FALSE),3) ->  | T27: =ROUND(VLOOKUP("OSUPVIEUXTOTREGECO_"&$A27,Output!$C:$AQ,12,FALSE)/VLOOKUP("OSUPREGECO_"&A27,Output!$C:$AQ,6,FALSE),3) ->  | W27: 0 | AA27: =Tableaux!$O$33 -> 03771 | AB27: 0
G28: =VLOOKUP(CONCATENATE("OSUPVIEUXALERTEREGECO_"&A28),Output!$C:$AQ,6,FALSE) ->  | H28: =VLOOKUP(CONCATENATE("OSUPVIEUXACCEPTREGECO_"&A28),Output!$C:$AQ,6,FALSE) ->  | I28: =VLOOKUP(CONCATENATE("OSUPJEUNEALERTEREGECO_"&A28),Output!$C:$AQ,6,FALSE) ->  | J28: =VLOOKUP(CONCATENATE("OSUPJEUNEACCEPTREGECO_"&A28),Output!$C:$AQ,6,FALSE) ->  | K28: =VLOOKUP(CONCATENATE("OSUPREGECO_"&A28),Output!$C:$AQ,6,FALSE) ->  | M28: =ROUND(VLOOKUP("OSUPJEUNEREGECO_"&A28,Output!$C:$AQ,7,FALSE)/VLOOKUP("OSUPREGECO_"&A28,Output!$C:$AQ,6,FALSE),3) ->  | O28: =ROUND(VLOOKUP("OSUPJEUNEREGECO_"&$A28,Output!$C:$AQ,12,FALSE)/VLOOKUP("OSUPREGECO_"&A28,Output!$C:$AQ,6,FALSE),3) ->  | R28: =ROUND(VLOOKUP("OSUPVIEUXTOTREGECO_"&$A28,Output!$C:$AQ,7,FALSE)/VLOOKUP("OSUPREGECO_"&A28,Output!$C:$AQ,6,FALSE),3) ->  | T28: =ROUND(VLOOKUP("OSUPVIEUXTOTREGECO_"&$A28,Output!$C:$AQ,12,FALSE)/VLOOKUP("OSUPREGECO_"&A28,Output!$C:$AQ,6,FALSE),3) ->  | W28: 0 | AA28: =Tableaux!$O$33 -> 03771 | AB28: 0
G29: =VLOOKUP(CONCATENATE("OSUPVIEUXALERTEREGECO_"&A29),Output!$C:$AQ,6,FALSE) ->  | H29: =VLOOKUP(CONCATENATE("OSUPVIEUXACCEPTREGECO_"&A29),Output!$C:$AQ,6,FALSE) ->  | I29: =VLOOKUP(CONCATENATE("OSUPJEUNEALERTEREGECO_"&A29),Output!$C:$AQ,6,FALSE) ->  | J29: =VLOOKUP(CONCATENATE("OSUPJEUNEACCEPTREGECO_"&A29),Output!$C:$AQ,6,FALSE) ->  | K29: =VLOOKUP(CONCATENATE("OSUPREGECO_"&A29),Output!$C:$AQ,6,FALSE) ->  | M29: =ROUND(VLOOKUP("OSUPJEUNEREGECO_"&A29,Output!$C:$AQ,7,FALSE)/VLOOKUP("OSUPREGECO_"&A29,Output!$C:$AQ,6,FALSE),3) ->  | O29: =ROUND(VLOOKUP("OSUPJEUNEREGECO_"&$A29,Output!$C:$AQ,12,FALSE)/VLOOKUP("OSUPREGECO_"&A29,Output!$C:$AQ,6,FALSE),3) ->  | R29: =ROUND(VLOOKUP("OSUPVIEUXTOTREGECO_"&$A29,Output!$C:$AQ,7,FALSE)/VLOOKUP("OSUPREGECO_"&A29,Output!$C:$AQ,6,FALSE),3) ->  | T29: =ROUND(VLOOKUP("OSUPVIEUXTOTREGECO_"&$A29,Output!$C:$AQ,12,FALSE)/VLOOKUP("OSUPREGECO_"&A29,Output!$C:$AQ,6,FALSE),3) ->  | W29: 0 | AA29: =Tableaux!$O$33 -> 03771 | AB29: 0
G30: =VLOOKUP(CONCATENATE("OSUPVIEUXALERTEREGECO_"&A30),Output!$C:$AQ,6,FALSE) ->  | H30: =VLOOKUP(CONCATENATE("OSUPVIEUXACCEPTREGECO_"&A30),Output!$C:$AQ,6,FALSE) ->  | I30: =VLOOKUP(CONCATENATE("OSUPJEUNEALERTEREGECO_"&A30),Output!$C:$AQ,6,FALSE) ->  | J30: =VLOOKUP(CONCATENATE("OSUPJEUNEACCEPTREGECO_"&A30),Output!$C:$AQ,6,FALSE) ->  | K30: =VLOOKUP(CONCATENATE("OSUPREGECO_"&A30),Output!$C:$AQ,6,FALSE) ->  | M30: =ROUND(VLOOKUP("OSUPJEUNEREGECO_"&A30,Output!$C:$AQ,7,FALSE)/VLOOKUP("OSUPREGECO_"&A30,Output!$C:$AQ,6,FALSE),3) ->  | O30: =ROUND(VLOOKUP("OSUPJEUNEREGECO_"&$A30,Output!$C:$AQ,12,FALSE)/VLOOKUP("OSUPREGECO_"&A30,Output!$C:$AQ,6,FALSE),3) ->  | R30: =ROUND(VLOOKUP("OSUPVIEUXTOTREGECO_"&$A30,Output!$C:$AQ,7,FALSE)/VLOOKUP("OSUPREGECO_"&A30,Output!$C:$AQ,6,FALSE),3) ->  | T30: =ROUND(VLOOKUP("OSUPVIEUXTOTREGECO_"&$A30,Output!$C:$AQ,12,FALSE)/VLOOKUP("OSUPREGECO_"&A30,Output!$C:$AQ,6,FALSE),3) ->  | W30: 0 | AA30: =Tableaux!$O$33 -> 03771 | AB30: 0
G31: =VLOOKUP(CONCATENATE("OSUPVIEUXALERTEREGECO_"&A31),Output!$C:$AQ,6,FALSE) ->  | H31: =VLOOKUP(CONCATENATE("OSUPVIEUXACCEPTREGECO_"&A31),Output!$C:$AQ,6,FALSE) ->  | I31: =VLOOKUP(CONCATENATE("OSUPJEUNEALERTEREGECO_"&A31),Output!$C:$AQ,6,FALSE) ->  | J31: =VLOOKUP(CONCATENATE("OSUPJEUNEACCEPTREGECO_"&A31),Output!$C:$AQ,6,FALSE) ->  | K31: =VLOOKUP(CONCATENATE("OSUPREGECO_"&A31),Output!$C:$AQ,6,FALSE) ->  | M31: =ROUND(VLOOKUP("OSUPJEUNEREGECO_"&A31,Output!$C:$AQ,7,FALSE)/VLOOKUP("OSUPREGECO_"&A31,Output!$C:$AQ,6,FALSE),3) ->  | O31: =ROUND(VLOOKUP("OSUPJEUNEREGECO_"&$A31,Output!$C:$AQ,12,FALSE)/VLOOKUP("OSUPREGECO_"&A31,Output!$C:$AQ,6,FALSE),3) ->  | R31: =ROUND(VLOOKUP("OSUPVIEUXTOTREGECO_"&$A31,Output!$C:$AQ,7,FALSE)/VLOOKUP("OSUPREGECO_"&A31,Output!$C:$AQ,6,FALSE),3) ->  | T31: =ROUND(VLOOKUP("OSUPVIEUXTOTREGECO_"&$A31,Output!$C:$AQ,12,FALSE)/VLOOKUP("OSUPREGECO_"&A31,Output!$C:$AQ,6,FALSE),3) ->  | W31: 0 | AA31: =Tableaux!$O$33 -> 03771 | AB31: 0
G32: =VLOOKUP(CONCATENATE("OSUPVIEUXALERTEREGECO_"&A32),Output!$C:$AQ,6,FALSE) ->  | H32: =VLOOKUP(CONCATENATE("OSUPVIEUXACCEPTREGECO_"&A32),Output!$C:$AQ,6,FALSE) ->  | I32: =VLOOKUP(CONCATENATE("OSUPJEUNEALERTEREGECO_"&A32),Output!$C:$AQ,6,FALSE) ->  | J32: =VLOOKUP(CONCATENATE("OSUPJEUNEACCEPTREGECO_"&A32),Output!$C:$AQ,6,FALSE) ->  | K32: =VLOOKUP(CONCATENATE("OSUPREGECO_"&A32),Output!$C:$AQ,6,FALSE) ->  | M32: =ROUND(VLOOKUP("OSUPJEUNEREGECO_"&A32,Output!$C:$AQ,7,FALSE)/VLOOKUP("OSUPREGECO_"&A32,Output!$C:$AQ,6,FALSE),3) ->  | O32: =ROUND(VLOOKUP("OSUPJEUNEREGECO_"&$A32,Output!$C:$AQ,12,FALSE)/VLOOKUP("OSUPREGECO_"&A32,Output!$C:$AQ,6,FALSE),3) ->  | R32: =ROUND(VLOOKUP("OSUPVIEUXTOTREGECO_"&$A32,Output!$C:$AQ,7,FALSE)/VLOOKUP("OSUPREGECO_"&A32,Output!$C:$AQ,6,FALSE),3) ->  | T32: =ROUND(VLOOKUP("OSUPVIEUXTOTREGECO_"&$A32,Output!$C:$AQ,12,FALSE)/VLOOKUP("OSUPREGECO_"&A32,Output!$C:$AQ,6,FALSE),3) ->  | W32: 0 | AA32: =Tableaux!$O$33 -> 03771 | AB32: 0
G33: =VLOOKUP(CONCATENATE("OSUPVIEUXALERTEREGECO_"&A33),Output!$C:$AQ,6,FALSE) ->  | H33: =VLOOKUP(CONCATENATE("OSUPVIEUXACCEPTREGECO_"&A33),Output!$C:$AQ,6,FALSE) ->  | I33: =VLOOKUP(CONCATENATE("OSUPJEUNEALERTEREGECO_"&A33),Output!$C:$AQ,6,FALSE) ->  | J33: =VLOOKUP(CONCATENATE("OSUPJEUNEACCEPTREGECO_"&A33),Output!$C:$AQ,6,FALSE) ->  | K33: =VLOOKUP(CONCATENATE("OSUPREGECO_"&A33),Output!$C:$AQ,6,FALSE) ->  | M33: =ROUND(VLOOKUP("OSUPJEUNEREGECO_"&A33,Output!$C:$AQ,7,FALSE)/VLOOKUP("OSUPREGECO_"&A33,Output!$C:$AQ,6,FALSE),3) ->  | O33: =ROUND(VLOOKUP("OSUPJEUNEREGECO_"&$A33,Output!$C:$AQ,12,FALSE)/VLOOKUP("OSUPREGECO_"&A33,Output!$C:$AQ,6,FALSE),3) ->  | R33: =ROUND(VLOOKUP("OSUPVIEUXTOTREGECO_"&$A33,Output!$C:$AQ,7,FALSE)/VLOOKUP("OSUPREGECO_"&A33,Output!$C:$AQ,6,FALSE),3) ->  | T33: =ROUND(VLOOKUP("OSUPVIEUXTOTREGECO_"&$A33,Output!$C:$AQ,12,FALSE)/VLOOKUP("OSUPREGECO_"&A33,Output!$C:$AQ,6,FALSE),3) ->  | W33: 0 | AA33: =Tableaux!$O$33 -> 03771 | AB33: =W33 -> 0
G34: =VLOOKUP(CONCATENATE("OSUPVIEUXALERTEREGECO_"&A34),Output!$C:$AQ,6,FALSE) ->  | H34: =VLOOKUP(CONCATENATE("OSUPVIEUXACCEPTREGECO_"&A34),Output!$C:$AQ,6,FALSE) ->  | I34: =VLOOKUP(CONCATENATE("OSUPJEUNEALERTEREGECO_"&A34),Output!$C:$AQ,6,FALSE) ->  | J34: =VLOOKUP(CONCATENATE("OSUPJEUNEACCEPTREGECO_"&A34),Output!$C:$AQ,6,FALSE) ->  | K34: =VLOOKUP(CONCATENATE("OSUPREGECO_"&A34),Output!$C:$AQ,6,FALSE) ->  | M34: =ROUND(VLOOKUP("OSUPJEUNEREGECO_"&A34,Output!$C:$AQ,7,FALSE)/VLOOKUP("OSUPREGECO_"&A34,Output!$C:$AQ,6,FALSE),3) ->  | O34: =ROUND(VLOOKUP("OSUPJEUNEREGECO_"&$A34,Output!$C:$AQ,12,FALSE)/VLOOKUP("OSUPREGECO_"&A34,Output!$C:$AQ,6,FALSE),3) ->  | R34: =ROUND(VLOOKUP("OSUPVIEUXTOTREGECO_"&$A34,Output!$C:$AQ,7,FALSE)/VLOOKUP("OSUPREGECO_"&A34,Output!$C:$AQ,6,FALSE),3) ->  | T34: =ROUND(VLOOKUP("OSUPVIEUXTOTREGECO_"&$A34,Output!$C:$AQ,12,FALSE)/VLOOKUP("OSUPREGECO_"&A34,Output!$C:$AQ,6,FALSE),3) ->  | W34: 0 | AA34: =Tableaux!$O$33 -> 03771 | AB34: 0
G35: =VLOOKUP(CONCATENATE("OSUPVIEUXALERTEREGECO_"&A35),Output!$C:$AQ,6,FALSE) ->  | H35: =VLOOKUP(CONCATENATE("OSUPVIEUXACCEPTREGECO_"&A35),Output!$C:$AQ,6,FALSE) ->  | I35: =VLOOKUP(CONCATENATE("OSUPJEUNEALERTEREGECO_"&A35),Output!$C:$AQ,6,FALSE) ->  | J35: =VLOOKUP(CONCATENATE("OSUPJEUNEACCEPTREGECO_"&A35),Output!$C:$AQ,6,FALSE) ->  | K35: =VLOOKUP(CONCATENATE("OSUPREGECO_"&A35),Output!$C:$AQ,6,FALSE) ->  | M35: =ROUND(VLOOKUP("OSUPJEUNEREGECO_"&A35,Output!$C:$AQ,7,FALSE)/VLOOKUP("OSUPREGECO_"&A35,Output!$C:$AQ,6,FALSE),3) ->  | O35: =ROUND(VLOOKUP("OSUPJEUNEREGECO_"&$A35,Output!$C:$AQ,12,FALSE)/VLOOKUP("OSUPREGECO_"&A35,Output!$C:$AQ,6,FALSE),3) ->  | R35: =ROUND(VLOOKUP("OSUPVIEUXTOTREGECO_"&$A35,Output!$C:$AQ,7,FALSE)/VLOOKUP("OSUPREGECO_"&A35,Output!$C:$AQ,6,FALSE),3) ->  | T35: =ROUND(VLOOKUP("OSUPVIEUXTOTREGECO_"&$A35,Output!$C:$AQ,12,FALSE)/VLOOKUP("OSUPREGECO_"&A35,Output!$C:$AQ,6,FALSE),3) ->  | W35: 0 | AA35: =Tableaux!$O$33 -> 03771 | AB35: 0
G36: =VLOOKUP(CONCATENATE("OSUPVIEUXALERTEREGECO_"&A36),Output!$C:$AQ,6,FALSE) ->  | H36: =VLOOKUP(CONCATENATE("OSUPVIEUXACCEPTREGECO_"&A36),Output!$C:$AQ,6,FALSE) ->  | I36: =VLOOKUP(CONCATENATE("OSUPJEUNEALERTEREGECO_"&A36),Output!$C:$AQ,6,FALSE) ->  | J36: =VLOOKUP(CONCATENATE("OSUPJEUNEACCEPTREGECO_"&A36),Output!$C:$AQ,6,FALSE) ->  | K36: =VLOOKUP(CONCATENATE("OSUPREGECO_"&A36),Output!$C:$AQ,6,FALSE) ->  | M36: =ROUND(VLOOKUP("OSUPJEUNEREGECO_"&A36,Output!$C:$AQ,7,FALSE)/VLOOKUP("OSUPREGECO_"&A36,Output!$C:$AQ,6,FALSE),3) ->  | O36: =ROUND(VLOOKUP("OSUPJEUNEREGECO_"&$A36,Output!$C:$AQ,12,FALSE)/VLOOKUP("OSUPREGECO_"&A36,Output!$C:$AQ,6,FALSE),3) ->  | R36: =ROUND(VLOOKUP("OSUPVIEUXTOTREGECO_"&$A36,Output!$C:$AQ,7,FALSE)/VLOOKUP("OSUPREGECO_"&A36,Output!$C:$AQ,6,FALSE),3) ->  | T36: =ROUND(VLOOKUP("OSUPVIEUXTOTREGECO_"&$A36,Output!$C:$AQ,12,FALSE)/VLOOKUP("OSUPREGECO_"&A36,Output!$C:$AQ,6,FALSE),3) ->  | W36: 0 | AA36: =Tableaux!$O$33 -> 03771 | AB36: 0
G37: =VLOOKUP(CONCATENATE("OSUPVIEUXALERTEREGECO_"&A37),Output!$C:$AQ,6,FALSE) ->  | H37: =VLOOKUP(CONCATENATE("OSUPVIEUXACCEPTREGECO_"&A37),Output!$C:$AQ,6,FALSE) ->  | I37: =VLOOKUP(CONCATENATE("OSUPJEUNEALERTEREGECO_"&A37),Output!$C:$AQ,6,FALSE) ->  | J37: =VLOOKUP(CONCATENATE("OSUPJEUNEACCEPTREGECO_"&A37),Output!$C:$AQ,6,FALSE) ->  | K37: =VLOOKUP(CONCATENATE("OSUPREGECO_"&A37),Output!$C:$AQ,6,FALSE) ->  | M37: =ROUND(VLOOKUP("OSUPJEUNEREGECO_"&A37,Output!$C:$AQ,7,FALSE)/VLOOKUP("OSUPREGECO_"&A37,Output!$C:$AQ,6,FALSE),3) ->  | O37: =ROUND(VLOOKUP("OSUPJEUNEREGECO_"&$A37,Output!$C:$AQ,12,FALSE)/VLOOKUP("OSUPREGECO_"&A37,Output!$C:$AQ,6,FALSE),3) ->  | R37: =ROUND(VLOOKUP("OSUPVIEUXTOTREGECO_"&$A37,Output!$C:$AQ,7,FALSE)/VLOOKUP("OSUPREGECO_"&A37,Output!$C:$AQ,6,FALSE),3) ->  | T37: =ROUND(VLOOKUP("OSUPVIEUXTOTREGECO_"&$A37,Output!$C:$AQ,12,FALSE)/VLOOKUP("OSUPREGECO_"&A37,Output!$C:$AQ,6,FALSE),3) ->  | W37: 0 | AA37: =Tableaux!$O$33 -> 03771 | AB37: 0
G38: =VLOOKUP(CONCATENATE("OSUPVIEUXALERTEREGECO_"&A38),Output!$C:$AQ,6,FALSE) ->  | H38: =VLOOKUP(CONCATENATE("OSUPVIEUXACCEPTREGECO_"&A38),Output!$C:$AQ,6,FALSE) ->  | I38: =VLOOKUP(CONCATENATE("OSUPJEUNEALERTEREGECO_"&A38),Output!$C:$AQ,6,FALSE) ->  | J38: =VLOOKUP(CONCATENATE("OSUPJEUNEACCEPTREGECO_"&A38),Output!$C:$AQ,6,FALSE) ->  | K38: =VLOOKUP(CONCATENATE("OSUPREGECO_"&A38),Output!$C:$AQ,6,FALSE) ->  | M38: =ROUND(VLOOKUP("OSUPJEUNEREGECO_"&A38,Output!$C:$AQ,7,FALSE)/VLOOKUP("OSUPREGECO_"&A38,Output!$C:$AQ,6,FALSE),3) ->  | O38: =ROUND(VLOOKUP("OSUPJEUNEREGECO_"&$A38,Output!$C:$AQ,12,FALSE)/VLOOKUP("OSUPREGECO_"&A38,Output!$C:$AQ,6,FALSE),3) ->  | R38: =ROUND(VLOOKUP("OSUPVIEUXTOTREGECO_"&$A38,Output!$C:$AQ,7,FALSE)/VLOOKUP("OSUPREGECO_"&A38,Output!$C:$AQ,6,FALSE),3) ->  | T38: =ROUND(VLOOKUP("OSUPVIEUXTOTREGECO_"&$A38,Output!$C:$AQ,12,FALSE)/VLOOKUP("OSUPREGECO_"&A38,Output!$C:$AQ,6,FALSE),3) ->  | W38: 0 | AA38: =Tableaux!$O$33 -> 03771 | AB38: 0
G39: =VLOOKUP(CONCATENATE("OSUPVIEUXALERTEREGECO_"&A39),Output!$C:$AQ,6,FALSE) ->  | H39: =VLOOKUP(CONCATENATE("OSUPVIEUXACCEPTREGECO_"&A39),Output!$C:$AQ,6,FALSE) ->  | I39: =VLOOKUP(CONCATENATE("OSUPJEUNEALERTEREGECO_"&A39),Output!$C:$AQ,6,FALSE) ->  | J39: =VLOOKUP(CONCATENATE("OSUPJEUNEACCEPTREGECO_"&A39),Output!$C:$AQ,6,FALSE) ->  | K39: =VLOOKUP(CONCATENATE("OSUPREGECO_"&A39),Output!$C:$AQ,6,FALSE) ->  | M39: =ROUND(VLOOKUP("OSUPJEUNEREGECO_"&A39,Output!$C:$AQ,7,FALSE)/VLOOKUP("OSUPREGECO_"&A39,Output!$C:$AQ,6,FALSE),3) ->  | O39: =ROUND(VLOOKUP("OSUPJEUNEREGECO_"&$A39,Output!$C:$AQ,12,FALSE)/VLOOKUP("OSUPREGECO_"&A39,Output!$C:$AQ,6,FALSE),3) ->  | R39: =ROUND(VLOOKUP("OSUPVIEUXTOTREGECO_"&$A39,Output!$C:$AQ,7,FALSE)/VLOOKUP("OSUPREGECO_"&A39,Output!$C:$AQ,6,FALSE),3) ->  | T39: =ROUND(VLOOKUP("OSUPVIEUXTOTREGECO_"&$A39,Output!$C:$AQ,12,FALSE)/VLOOKUP("OSUPREGECO_"&A39,Output!$C:$AQ,6,FALSE),3) ->  | W39: 0 | AA39: =Tableaux!$O$33 -> 03771 | AB39: 0
G40: =VLOOKUP(CONCATENATE("OSUPVIEUXALERTEREGECO_"&A40),Output!$C:$AQ,6,FALSE) ->  | H40: =VLOOKUP(CONCATENATE("OSUPVIEUXACCEPTREGECO_"&A40),Output!$C:$AQ,6,FALSE) ->  | I40: =VLOOKUP(CONCATENATE("OSUPJEUNEALERTEREGECO_"&A40),Output!$C:$AQ,6,FALSE) ->  | J40: =VLOOKUP(CONCATENATE("OSUPJEUNEACCEPTREGECO_"&A40),Output!$C:$AQ,6,FALSE) ->  | K40: =VLOOKUP(CONCATENATE("OSUPREGECO_"&A40),Output!$C:$AQ,6,FALSE) ->  | M40: =ROUND(VLOOKUP("OSUPJEUNEREGECO_"&A40,Output!$C:$AQ,7,FALSE)/VLOOKUP("OSUPREGECO_"&A40,Output!$C:$AQ,6,FALSE),3) ->  | O40: =ROUND(VLOOKUP("OSUPJEUNEREGECO_"&$A40,Output!$C:$AQ,12,FALSE)/VLOOKUP("OSUPREGECO_"&A40,Output!$C:$AQ,6,FALSE),3) ->  | R40: =ROUND(VLOOKUP("OSUPVIEUXTOTREGECO_"&$A40,Output!$C:$AQ,7,FALSE)/VLOOKUP("OSUPREGECO_"&A40,Output!$C:$AQ,6,FALSE),3) ->  | T40: =ROUND(VLOOKUP("OSUPVIEUXTOTREGECO_"&$A40,Output!$C:$AQ,12,FALSE)/VLOOKUP("OSUPREGECO_"&A40,Output!$C:$AQ,6,FALSE),3) ->  | W40: 0 | AA40: =Tableaux!$O$33 -> 03771 | AB40: 0
G41: =VLOOKUP(CONCATENATE("OSUPVIEUXALERTEREGECO_"&A41),Output!$C:$AQ,6,FALSE) ->  | H41: =VLOOKUP(CONCATENATE("OSUPVIEUXACCEPTREGECO_"&A41),Output!$C:$AQ,6,FALSE) ->  | I41: =VLOOKUP(CONCATENATE("OSUPJEUNEALERTEREGECO_"&A41),Output!$C:$AQ,6,FALSE) ->  | J41: =VLOOKUP(CONCATENATE("OSUPJEUNEACCEPTREGECO_"&A41),Output!$C:$AQ,6,FALSE) ->  | K41: =VLOOKUP(CONCATENATE("OSUPREGECO_"&A41),Output!$C:$AQ,6,FALSE) ->  | M41: =ROUND(VLOOKUP("OSUPJEUNEREGECO_"&A41,Output!$C:$AQ,7,FALSE)/VLOOKUP("OSUPREGECO_"&A41,Output!$C:$AQ,6,FALSE),3) ->  | O41: =ROUND(VLOOKUP("OSUPJEUNEREGECO_"&$A41,Output!$C:$AQ,12,FALSE)/VLOOKUP("OSUPREGECO_"&A41,Output!$C:$AQ,6,FALSE),3) ->  | R41: =ROUND(VLOOKUP("OSUPVIEUXTOTREGECO_"&$A41,Output!$C:$AQ,7,FALSE)/VLOOKUP("OSUPREGECO_"&A41,Output!$C:$AQ,6,FALSE),3) ->  | T41: =ROUND(VLOOKUP("OSUPVIEUXTOTREGECO_"&$A41,Output!$C:$AQ,12,FALSE)/VLOOKUP("OSUPREGECO_"&A41,Output!$C:$AQ,6,FALSE),3) ->  | W41: 0 | AA41: =Tableaux!$O$33 -> 03771 | AB41: 0
G42: =VLOOKUP(CONCATENATE("OSUPVIEUXALERTEREGECO_"&A42),Output!$C:$AQ,6,FALSE) ->  | H42: =VLOOKUP(CONCATENATE("OSUPVIEUXACCEPTREGECO_"&A42),Output!$C:$AQ,6,FALSE) ->  | I42: =VLOOKUP(CONCATENATE("OSUPJEUNEALERTEREGECO_"&A42),Output!$C:$AQ,6,FALSE) ->  | J42: =VLOOKUP(CONCATENATE("OSUPJEUNEACCEPTREGECO_"&A42),Output!$C:$AQ,6,FALSE) ->  | K42: =VLOOKUP(CONCATENATE("OSUPREGECO_"&A42),Output!$C:$AQ,6,FALSE) ->  | M42: =ROUND(VLOOKUP("OSUPJEUNEREGECO_"&A42,Output!$C:$AQ,7,FALSE)/VLOOKUP("OSUPREGECO_"&A42,Output!$C:$AQ,6,FALSE),3) ->  | O42: =ROUND(VLOOKUP("OSUPJEUNEREGECO_"&$A42,Output!$C:$AQ,12,FALSE)/VLOOKUP("OSUPREGECO_"&A42,Output!$C:$AQ,6,FALSE),3) ->  | R42: =ROUND(VLOOKUP("OSUPVIEUXTOTREGECO_"&$A42,Output!$C:$AQ,7,FALSE)/VLOOKUP("OSUPREGECO_"&A42,Output!$C:$AQ,6,FALSE),3) ->  | T42: =ROUND(VLOOKUP("OSUPVIEUXTOTREGECO_"&$A42,Output!$C:$AQ,12,FALSE)/VLOOKUP("OSUPREGECO_"&A42,Output!$C:$AQ,6,FALSE),3) ->  | W42: 0 | AA42: =Tableaux!$O$33 -> 03771 | AB42: 0

Sheet Output
C1: 1 | D1: 2 | E1: 3 | F1: 4 | G1: 5 | H1: 6 | I1: 7 | J1: 8 | K1: 9 | L1: 10 | M1: 11 | N1: 12 | O1: 13 | P1: 14 | Q1: 15 | R1: 16 | S1: 17 | T1: 18 | U1: 19 | V1: 20 | W1: 21 | X1: 22 | Y1: 23 | Z1: 24 | AA1: 25 | AB1: 26 | AC1: 27 | AD1: 28 | AE1: 29 | AF1: 30 | AG1: 31 | AH1: 32 | AI1: 33 | AJ1: 34 | AK1: 35 | AL1: 36 | AM1: 37 | AN1: 38 | AO1: 39 | AP1: 40 | AQ1: 41
A2: Record | B2: Group | C2: Name | D2: Description | E2: Attribute | F2: Minimum | G2: Maximum | H2: Period0 | I2: Period1 | J2: Period2 | K2: Period3 | L2: Period4 | M2: Period5 | N2: Period6 | O2: Period7 | P2: Period8 | Q2: Period9 | R2: Period10 | S2: Period11 | T2: Period12 | U2: Period13 | V2: Period14 | W2: Period15 | X2: Period16 | Y2: Period17 | Z2: Period18 | AA2: Period19 | AB2: Period20 | AC2: Period21 | AD2: Period22 | AE2: Period23 | AF2: Period24 | AG2: Period25 | AH2: Period26 | AI2: Period27 | AJ2: Period28 | AK2: Period29 | AL2: Period30 | AM2: Moyemme P2 à P6 | AN2: Moyenne P7 à P11 | AO2: Moyenne P12 à P20 | AP2: Moyenne P21 à P30 | AQ2: Moyenne P2 à P30
B3: <Non regroupÚ(s)> | C3: OSUPTOT | D3: Superficie Totale | F3: 354588.8 | G3: 354588.8 | H3: 354588.8 | I3: 354588.8 | J3: 354588.8 | K3: 354588.8 | L3: 354588.8 | M3: 354588.8 | N3: 354588.8 | O3: 354588.8 | P3: 354588.8 | Q3: 354588.8 | R3: 354588.8 | S3: 354588.8 | T3: 354588.8 | U3: 354588.8 | V3: 354588.8 | W3: 354588.8 | X3: 354588.8 | Y3: 354588.8 | Z3: 354588.8 | AA3: 354588.8 | AB3: 354588.8 | AC3: 354588.8 | AD3: 354588.8 | AE3: 354588.8 | AF3: 354588.8 | AG3: 354588.8 | AH3: 354588.8 | AI3: 354588.8 | AJ3: 354588.8 | AK3: 354588.8 | AL3: 354588.8 | AM3: =AVERAGE(J3:N3) -> 354588.8 | AN3: =AVERAGE(O3:S3) -> 354588.8 | AO3: =AVERAGE(T3:AB3) -> 354588.8 | AP3: =AVERAGE(AC3:AL3) -> 354588.8 | AQ3: =AVERAGE(J3:AL3) -> 354588.8
B4: <Non regroupÚ(s)> | C4: OSUPINC | D4: Superficie InclusActions par courbe | F4: 209667.54 | G4: 216319 | H4: 216319 | I4: 215837.96 | J4: 215240.63 | K4: 214634.19 | L4: 214061.34 | M4: 213585.33 | N4: 213143.34 | O4: 212650.38 | P4: 212189.68 | Q4: 211877.18 | R4: 211579.51 | S4: 211345.28 | T4: 210998.72 | U4: 210777.33 | V4: 210597.99 | W4: 210416.83 | X4: 210291.3 | Y4: 210150.89 | Z4: 209985.4 | AA4: 209923.76 | AB4: 209893.89 | AC4: 209883.87 | AD4: 209877.88 | AE4: 209858.52 | AF4: 209845.02 | AG4: 209810.25 | AH4: 209804.95 | AI4: 209790.99 | AJ4: 209697.75 | AK4: 209680.65 | AL4: 209667.54 | AM4: =AVERAGE(J4:N4) -> 214132.966 | AN4: =AVERAGE(O4:S4) -> 211928.406 | AO4: =AVERAGE(T4:AB4) -> 210337.3456 | AP4: =AVERAGE(AC4:AL4) -> 209791.742 | AQ4: =AVERAGE(J4:AL4) -> 211077.9445
B5: <Non regroupÚ(s)> | C5: OSUPregECO | D5: Superficie Disponible aux RÚsultats ╔cologiques | F5: 288041.64 | G5: 294693.1 | H5: 294693.1 | I5: 294212.06 | J5: 293614.73 | K5: 293008.29 | L5: 292435.44 | M5: 291959.43 | N5: 291517.44 | O5: 291024.48 | P5: 290563.78 | Q5: 290251.28 | R5: 289953.61 | S5: 289719.38 | T5: 289372.82 | U5: 289151.43 | V5: 288972.09 | W5: 288790.93 | X5: 288665.4 | Y5: 288524.99 | Z5: 288359.5 | AA5: 288297.86 | AB5: 288267.99 | AC5: 288257.97 | AD5: 288251.98 | AE5: 288232.62 | AF5: 288219.12 | AG5: 288184.35 | AH5: 288179.05 | AI5: 288165.09 | AJ5: 288071.85 | AK5: 288054.75 | AL5: 288041.64 | AM5: 292507.066 | AN5: 290302.506 | AO5: 288711.4456 | AP5: 288165.842 | AQ5: 289452.0445
B6: <Non regroupÚ(s)> | C6: OSUPEXIN | D6: Superficie ExcluActionsInclus | F6: 78374.1 | G6: 78374.1 | H6: 78374.1 | I6: 78374.1 | J6: 78374.1 | K6: 78374.1 | L6: 78374.1 | M6: 78374.1 | N6: 78374.1 | O6: 78374.1 | P6: 78374.1 | Q6: 78374.1 | R6: 78374.1 | S6: 78374.1 | T6: 78374.1 | U6: 78374.1 | V6: 78374.1 | W6: 78374.1 | X6: 78374.1 | Y6: 78374.1 | Z6: 78374.1 | AA6: 78374.1 | AB6: 78374.1 | AC6: 78374.1 | AD6: 78374.1 | AE6: 78374.1 | AF6: 78374.1 | AG6: 78374.1 | AH6: 78374.1 | AI6: 78374.1 | AJ6: 78374.1 | AK6: 78374.1 | AL6: 78374.1 | AM6: 78374.1 | AN6: 78374.1 | AO6: 78374.1 | AP6: 78374.1 | AQ6: 78374.1
B7: <Non regroupÚ(s)> | C7: OSUPEXTI | D7: Superficie Improductive | F7: 6270.9 | G7: 6270.9 | H7: 6270.9 | I7: 6270.9 | J7: 6270.9 | K7: 6270.9 | L7: 6270.9 | M7: 6270.9 | N7: 6270.9 | O7: 6270.9 | P7: 6270.9 | Q7: 6270.9 | R7: 6270.9 | S7: 6270.9 | T7: 6270.9 | U7: 6270.9 | V7: 6270.9 | W7: 6270.9 | X7: 6270.9 | Y7: 6270.9 | Z7: 6270.9 | AA7: 6270.9 | AB7: 6270.9 | AC7: 6270.9 | AD7: 6270.9 | AE7: 6270.9 | AF7: 6270.9 | AG7: 6270.9 | AH7: 6270.9 | AI7: 6270.9 | AJ7: 6270.9 | AK7: 6270.9 | AL7: 6270.9 | AM7: 6270.9 | AN7: 6270.9 | AO7: 6270.9 | AP7: 6270.9 | AQ7: 6270.9
B8: <Non regroupÚ(s)> | C8: OSUPLOCK | D8: Superficie Sous Verrous | F8: 17797.01 | G8: 90635.19 | H8: 88151.1 | I8: 90635.19 | J8: 62832.69 | K8: 60509.44 | L8: 57851.84 | M8: 22782.62 | N8: 21969.1 | O8: 23882.23 | P8: 24152.69 | Q8: 17797.01 | R8: 18677.83 | S8: 19931.64 | T8: 21727.6 | U8: 21897.85 | V8: 21573.03 | W8: 22920.84 | X8: 24447.15 | Y8: 27551.32 | Z8: 26096.13 | AA8: 22024.28 | AB8: 22241.4 | AC8: 22352.03 | AD8: 25112.68 | AE8: 23858.93 | AF8: 21324.92 | AG8: 20685.98 | AH8: 21086.35 | AI8: 24631.42 | AJ8: 24225.5 | AK8: 21269.22 | AL8: 21957.75 | AM8: 45189.138 | AN8: 20888.28 | AO8: 23386.62222 | AP8: 22650.478 | AQ8: 26461.08517
B9: Economique | C9: oSupTcsdDEG_1_T100% | D9: oSupTcsdDEG_1_T100% | F9: 0 | G9: 2205.52 | H9: 0 | I9: 1276.76 | J9: 1219.13 | K9: 1211.4 | L9: 1565.75 | M9: 1802.27 | N9: 2205.52 | O9: 1860.63 | P9: 1604.76 | Q9: 1677.42 | R9: 1872.65 | S9: 1603.7 | T9: 1873.71 | U9: 1728.1 | V9: 1555.29 | W9: 1399.76 | X9: 1259.78 | Y9: 1385.76 | Z9: 1524.34 | AA9: 1485.23 | AB9: 1548.61 | AC9: 1393.75 | AD9: 1522.52 | AE9: 1519.65 | AF9: 1417.61 | AG9: 1548.61 | AH9: 900.25 | AI9: 1486.72 | AJ9: 1393.75 | AK9: 1393.75 | AL9: 1393.75 | AM9: 1600.814 | AN9: 1723.832 | AO9: 1528.953333 | AP9: 1397.036 | AQ9: 1529.454138
B10: Economique | C10: oSupTcsdDEG_2_T100% | D10: oSupTcsdDEG_2_T100% | F10: 0 | G10: 3.5 | H10: 0 | I10: 0 | J10: 3.5 | K10: 0 | L10: 0 | M10: 0 | N10: 0 | O10: 0 | P10: 0 | Q10: 0 | R10: 0 | S10: 0 | T10: 0 | U10: 0 | V10: 0 | W10: 0 | X10: 0 | Y10: 0 | Z10: 0 | AA10: 0 | AB10: 0 | AC10: 0 | AD10: 0 | AE10: 0 | AF10: 0 | AG10: 0 | AH10: 0 | AI10: 0 | AJ10: 0 | AK10: 0 | AL10: 0 | AM10: 0.7 | AN10: 0 | AO10: 0 | AP10: 0 | AQ10: 0.1206896552
B11: Economique | C11: oSupDEG_1_T100% | D11: oSupDEG_1_T100% | F11: 0 | G11: 2205.52 | H11: 0 | I11: 1276.76 | J11: 1219.13 | K11: 1211.4 | L11: 1565.75 | M11: 1802.27 | N11: 2205.52 | O11: 1860.63 | P11: 1604.76 | Q11: 1677.42 | R11: 1872.65 | S11: 1603.7 | T11: 1873.71 | U11: 1728.1 | V11: 1555.29 | W11: 1399.76 | X11: 1259.78 | Y11: 1385.76 | Z11: 1524.34 | AA11: 1485.23 | AB11: 1548.61 | AC11: 1393.75 | AD11: 1522.52 | AE11: 1519.65 | AF11: 1417.61 | AG11: 1548.61 | AH11: 900.25 | AI11: 1486.72 | AJ11: 1393.75 | AK11: 1393.75 | AL11: 1393.75 | AM11: 1600.814 | AN11: 1723.832 | AO11: 1528.953333 | AP11: 1397.036 | AQ11: 1529.454138
B12: Economique | C12: oSupDEG_2_T100% | D12: oSupDEG_2_T100% | F12: 0 | G12: 3.5 | H12: 0 | I12: 0 | J12: 3.5 | K12: 0 | L12: 0 | M12: 0 | N12: 0 | O12: 0 | P12: 0 | Q12: 0 | R12: 0 | S12: 0 | T12: 0 | U12: 0 | V12: 0 | W12: 0 | X12: 0 | Y12: 0 | Z12: 0 | AA12: 0 | AB12: 0 | AC12: 0 | AD12: 0 | AE12: 0 | AF12: 0 | AG12: 0 | AH12: 0 | AI12: 0 | AJ12: 0 | AK12: 0 | AL12: 0 | AM12: 0.7 | AN12: 0 | AO12: 0 | AP12: 0 | AQ12: 0.1206896552
B13: Economique | C13: oSupDEG_1 | D13: oSupDEG_1 | F13: 0 | G13: 2205.52 | H13: 0 | I13: 1276.76 | J13: 1219.13 | K13: 1211.4 | L13: 1565.75 | M13: 1802.27 | N13: 2205.52 | O13: 1860.63 | P13: 1604.76 | Q13: 1677.42 | R13: 1872.65 | S13: 1603.7 | T13: 1873.71 | U13: 1728.1 | V13: 1555.29 | W13: 1399.76 | X13: 1259.78 | Y13: 1385.76 | Z13: 1524.34 | AA13: 1485.23 | AB13: 1548.61 | AC13: 1393.75 | AD13: 1522.52 | AE13: 1519.65 | AF13: 1417.61 | AG13: 1548.61 | AH13: 900.25 | AI13: 1486.72 | AJ13: 1393.75 | AK13: 1393.75 | AL13: 1393.75 | AM13: 1600.814 | AN13: 1723.832 | AO13: 1528.953333 | AP13: 1397.036 | AQ13: 1529.454138
B14: Economique | C14: oSupDEG_2 | D14: oSupDEG_2 | F14: 0 | G14: 3.5 | H14: 0 | I14: 0 | J14: 3.5 | K14: 0 | L14: 0 | M14: 0 | N14: 0 | O14: 0 | P14: 0 | Q14: 0 | R14: 0 | S14: 0 | T14: 0 | U14: 0 | V14: 0 | W14: 0 | X14: 0 | Y14: 0 | Z14: 0 | AA14: 0 | AB14: 0 | AC14: 0 | AD14: 0 | AE14: 0 | AF14: 0 | AG14: 0 | AH14: 0 | AI14: 0 | AJ14: 0 | AK14: 0 | AL14: 0 | AM14: 0.7 | AN14: 0 | AO14: 0 | AP14: 0 | AQ14: 0.1206896552
B15: Economique | C15: oSupTcsdSCA_PART_T100% | D15: oSupTcsdSCA_PART_T100% | F15: 0 | G15: 1040.61 | H15: 0 | I15: 719.4 | J15: 281.87 | K15: 603.98 | L15: 542.41 | M15: 487.17 | N15: 422.53 | O15: 786.84 | P15: 773.78 | Q15: 881.12 | R15: 761.22 | S15: 541.66 | T15: 710.93 | U15: 1020.51 | V15: 591.13 | W15: 906.51 | X15: 539.3 | Y15: 1003.88 | Z15: 979.25 | AA15: 803.1 | AB15: 499.62 | AC15: 543.03 | AD15: 745.51 | AE15: 989.03 | AF15: 675.23 | AG15: 1040.61 | AH15: 277.81 | AI15: 1031.2 | AJ15: 997.22 | AK15: 773.25 | AL15: 472.82 | AM15: 467.592 | AN15: 748.924 | AO15: 783.8033333 | AP15: 754.571 | AQ15: 713.1903448
B16: Economique | C16: oSupTcsdSCA_REG_T100% | D16: oSupTcsdSCA_REG_T100% | F16: 0 | G16: 3235.35 | H16: 0 | I16: 2653.24 | J16: 3235.35 | K16: 2769.13 | L16: 2344.07 | M16: 2640.33 | N16: 2526.46 | O16: 2272.87 | P16: 2148.82 | Q16: 1998.32 | R16: 2100.38 | S16: 2382.29 | T16: 2096.58 | U16: 1738.05 | V16: 1556.15 | W16: 1447.57 | X16: 1432.92 | Y16: 1385.76 | Z16: 1524.34 | AA16: 1485.23 | AB16: 1548.61 | AC16: 1705.38 | AD16: 1533.12 | AE16: 1677.45 | AF16: 1509.71 | AG16: 1548.61 | AH16: 2460.07 | AI16: 1818.78 | AJ16: 1393.75 | AK16: 1617.36 | AL16: 1962.27 | AM16: 2703.068 | AN16: 2180.536 | AO16: 1579.467778 | AP16: 1722.65 | AQ16: 1926.197586
B17: Economique | C17: oSupSCA_PART_T100% | D17: oSupSCA_PART_T100% | F17: 0 | G17: 1040.61 | H17: 0 | I17: 719.4 | J17: 281.87 | K17: 603.98 | L17: 542.41 | M17: 487.17 | N17: 422.53 | O17: 786.84 | P17: 773.78 | Q17: 881.12 | R17: 761.22 | S17: 541.66 | T17: 710.93 | U17: 1020.51 | V17: 591.13 | W17: 906.51 | X17: 539.3 | Y17: 1003.88 | Z17: 979.25 | AA17: 803.1 | AB17: 499.62 | AC17: 543.03 | AD17: 745.51 | AE17: 989.03 | AF17: 675.23 | AG17: 1040.61 | AH17: 277.81 | AI17: 1031.2 | AJ17: 997.22 | AK17: 773.25 | AL17: 472.82 | AM17: 467.592 | AN17: 748.924 | AO17: 783.8033333 | AP17: 754.571 | AQ17: 713.1903448
B18: Economique | C18: oSupSCA_REG_T100% | D18: oSupSCA_REG_T100% | F18: 0 | G18: 3235.35 | H18: 0 | I18: 2653.24 | J18: 3235.35 | K18: 2769.13 | L18: 2344.07 | M18: 2640.33 | N18: 2526.46 | O18: 2272.87 | P18: 2148.82 | Q18: 1998.32 | R18: 2100.38 | S18: 2382.29 | T18: 2096.58 | U18: 1738.05 | V18: 1556.15 | W18: 1447.57 | X18: 1432.92 | Y18: 1385.76 | Z18: 1524.34 | AA18: 1485.23 | AB18: 1548.61 | AC18: 1705.38 | AD18: 1533.12 | AE18: 1677.45 | AF18: 1509.71 | AG18: 1548.61 | AH18: 2460.07 | AI18: 1818.78 | AJ18: 1393.75 | AK18: 1617.36 | AL18: 1962.27 | AM18: 2703.068 | AN18: 2180.536 | AO18: 1579.467778 | AP18: 1722.65 | AQ18: 1926.197586
B19: Economique | C19: oSupSCA_PART | D19: oSupSCA_PART | F19: 0 | G19: 1040.61 | H19: 0 | I19: 719.4 | J19: 281.87 | K19: 603.98 | L19: 542.41 | M19: 487.17 | N19: 422.53 | O19: 786.84 | P19: 773.78 | Q19: 881.12 | R19: 761.22 | S19: 541.66 | T19: 710.93 | U19: 1020.51 | V19: 591.13 | W19: 906.51 | X19: 539.3 | Y19: 1003.88 | Z19: 979.25 | AA19: 803.1 | AB19: 499.62 | AC19: 543.03 | AD19: 745.51 | AE19: 989.03 | AF19: 675.23 | AG19: 1040.61 | AH19: 277.81 | AI19: 1031.2 | AJ19: 997.22 | AK19: 773.25 | AL19: 472.82 | AM19: 467.592 | AN19: 748.924 | AO19: 783.8033333 | AP19: 754.571 | AQ19: 713.1903448
B20: Economique | C20: oSupSCA_REG | D20: oSupSCA_REG | F20: 0 | G20: 3235.35 | H20: 0 | I20: 2653.24 | J20: 3235.35 | K20: 2769.13 | L20: 2344.07 | M20: 2640.33 | N20: 2526.46 | O20: 2272.87 | P20: 2148.82 | Q20: 1998.32 | R20: 2100.38 | S20: 2382.29 | T20: 2096.58 | U20: 1738.05 | V20: 1556.15 | W20: 1447.57 | X20: 1432.92 | Y20: 1385.76 | Z20: 1524.34 | AA20: 1485.23 | AB20: 1548.61 | AC20: 1705.38 | AD20: 1533.12 | AE20: 1677.45 | AF20: 1509.71 | AG20: 1548.61 | AH20: 2460.07 | AI20: 1818.78 | AJ20: 1393.75 | AK20: 1617.36 | AL20: 1962.27 | AM20: 2703.068 | AN20: 2180.536 | AO20: 1579.467778 | AP20: 1722.65 | AQ20: 1926.197586
B21: Economique | C21: oSupActREG_T100% | D21: oSupActREG_T100% | F21: 0 | G21: 505.77 | H21: 0 | I21: 0 | J21: 0 | K21: 0 | L21: 0 | M21: 0 | N21: 0 | O21: 0 | P21: 0 | Q21: 0 | R21: 0 | S21: 0 | T21: 0 | U21: 0 | V21: 0 | W21: 0 | X21: 505.77 | Y21: 0 | Z21: 0 | AA21: 0 | AB21: 0 | AC21: 0 | AD21: 0 | AE21: 0 | AF21: 0 | AG21: 0 | AH21: 0 | AI21: 0 | AJ21: 0 | AK21: 0 | AL21: 0 | AM21: 0 | AN21: 0 | AO21: 56.19666667 | AP21: 0 | AQ21: 17.44034483
B22: Economique | C22: oSupREG_T100% | D22: oSupREG_T100% | F22: 0 | G22: 505.77 | H22: 0 | I22: 0 | J22: 0 | K22: 0 | L22: 0 | M22: 0 | N22: 0 | O22: 0 | P22: 0 | Q22: 0 | R22: 0 | S22: 0 | T22: 0 | U22: 0 | V22: 0 | W22: 0 | X22: 505.77 | Y22: 0 | Z22: 0 | AA22: 0 | AB22: 0 | AC22: 0 | AD22: 0 | AE22: 0 | AF22: 0 | AG22: 0 | AH22: 0 | AI22: 0 | AJ22: 0 | AK22: 0 | AL22: 0 | AM22: 0 | AN22: 0 | AO22: 56.19666667 | AP22: 0 | AQ22: 17.44034483
B23: Economique | C23: oSupREG | D23: oSupREG | F23: 0 | G23: 505.77 | H23: 0 | I23: 0 | J23: 0 | K23: 0 | L23: 0 | M23: 0 | N23: 0 | O23: 0 | P23: 0 | Q23: 0 | R23: 0 | S23: 0 | T23: 0 | U23: 0 | V23: 0 | W23: 0 | X23: 505.77 | Y23: 0 | Z23: 0 | AA23: 0 | AB23: 0 | AC23: 0 | AD23: 0 | AE23: 0 | AF23: 0 | AG23: 0 | AH23: 0 | AI23: 0 | AJ23: 0 | AK23: 0 | AL23: 0 | AM23: 0 | AN23: 0 | AO23: 56.19666667 | AP23: 0 | AQ23: 17.44034483
B24: Economique | C24: oSupActCPICP_T100% | D24: oSupActCPICP_T100% | F24: 0 | G24: 3891.81 | H24: 0 | I24: 802.9 | J24: 1165.9 | K24: 825.09 | L24: 1207.41 | M24: 804 | N24: 591.56 | O24: 2379.38 | P24: 2324.07 | Q24: 2344.26 | R24: 2361.39 | S24: 129.17 | T24: 2847.01 | U24: 3891.81 | V24: 2432.18 | W24: 2714.73 | X24: 584.09 | Y24: 3268.67 | Z24: 3280.23 | AA24: 2792.17 | AB24: 3032.27 | AC24: 213.5 | AD24: 2811.69 | AE24: 3883.8 | AF24: 2435.89 | AG24: 2679.31 | AH24: 1579.54 | AI24: 3253.36 | AJ24: 3267.44 | AK24: 2779.39 | AL24: 2983.55 | AM24: 918.792 | AN24: 1907.654 | AO24: 2760.351111 | AP24: 2588.747 | AQ24: 2236.650345
B25: Economique | C25: oSupActCPIRL_FIN_T100% | D25: oSupActCPIRL_FIN_T100% | F25: 0 | G25: 1868.26 | H25: 0 | I25: 0 | J25: 0 | K25: 0 | L25: 0 | M25: 0 | N25: 0 | O25: 0 | P25: 92.33 | Q25: 0 | R25: 51.64 | S25: 585.37 | T25: 341.48 | U25: 572.62 | V25: 1286.25 | W25: 1147.2 | X25: 1601.67 | Y25: 716.85 | Z25: 530.21 | AA25: 975.19 | AB25: 1129.12 | AC25: 1868.26 | AD25: 734.5 | AE25: 606.42 | AF25: 674.69 | AG25: 532.69 | AH25: 1067.68 | AI25: 560.22 | AJ25: 42.2 | AK25: 347.3 | AL25: 93.05 | AM25: 0 | AN25: 145.868 | AO25: 922.2877778 | AP25: 652.701 | AQ25: 536.4462069
B26: Economique | C26: oSupActCPIRL_INI_T100% | D26: oSupActCPIRL_INI_T100% | F26: 0 | G26: 1805.53 | H26: 0 | I26: 1595.1 | J26: 434.1 | K26: 1774.91 | L26: 1192.59 | M26: 1496 | N26: 1408.44 | O26: 654.24 | P26: 634.03 | Q26: 1015.95 | R26: 918.7 | S26: 1805.53 | T26: 769.98 | U26: 336.42 | V26: 659.4 | W26: 484.1 | X26: 1065.94 | Y26: 688.48 | Z26: 939.87 | AA26: 347.3 | AB26: 93.05 | AC26: 1596.61 | AD26: 898.82 | AE26: 234.77 | AF26: 936.03 | AG26: 961.65 | AH26: 535.42 | AI26: 794.87 | AJ26: 1009.7 | AK26: 258.42 | AL26: 0 | AM26: 1261.208 | AN26: 1005.69 | AO26: 598.2822222 | AP26: 722.629 | AQ26: 825.7006897
B27: Economique | C27: oSupCPICP_T100% | D27: oSupCPICP_T100% | F27: 0 | G27: 3891.81 | H27: 0 | I27: 802.9 | J27: 1165.9 | K27: 825.09 | L27: 1207.41 | M27: 804 | N27: 591.56 | O27: 2379.38 | P27: 2324.07 | Q27: 2344.26 | R27: 2361.39 | S27: 129.17 | T27: 2847.01 | U27: 3891.81 | V27: 2432.18 | W27: 2714.73 | X27: 584.09 | Y27: 3268.67 | Z27: 3280.23 | AA27: 2792.17 | AB27: 3032.27 | AC27: 213.5 | AD27: 2811.69 | AE27: 3883.8 | AF27: 2435.89 | AG27: 2679.31 | AH27: 1579.54 | AI27: 3253.36 | AJ27: 3267.44 | AK27: 2779.39 | AL27: 2983.55 | AM27: 918.792 | AN27: 1907.654 | AO27: 2760.351111 | AP27: 2588.747 | AQ27: 2236.650345
B28: Economique | C28: oSupCPIRL_FIN_T100% | D28: oSupCPIRL_FIN_T100% | F28: 0 | G28: 1868.26 | H28: 0 | I28: 0 | J28: 0 | K28: 0 | L28: 0 | M28: 0 | N28: 0 | O28: 0 | P28: 92.33 | Q28: 0 | R28: 51.64 | S28: 585.37 | T28: 341.48 | U28: 572.62 | V28: 1286.25 | W28: 1147.2 | X28: 1601.67 | Y28: 716.85 | Z28: 530.21 | AA28: 975.19 | AB28: 1129.12 | AC28: 1868.26 | AD28: 734.5 | AE28: 606.42 | AF28: 674.69 | AG28: 532.69 | AH28: 1067.68 | AI28: 560.22 | AJ28: 42.2 | AK28: 347.3 | AL28: 93.05 | AM28: 0 | AN28: 145.868 | AO28: 922.2877778 | AP28: 652.701 | AQ28: 536.4462069
B29: Economique | C29: oSupCPIRL_INI_T100% | D29: oSupCPIRL_INI_T100% | F29: 0 | G29: 1805.53 | H29: 0 | I29: 1595.1 | J29: 434.1 | K29: 1774.91 | L29: 1192.59 | M29: 1496 | N29: 1408.44 | O29: 654.24 | P29: 634.03 | Q29: 1015.95 | R29: 918.7 | S29: 1805.53 | T29: 769.98 | U29: 336.42 | V29: 659.4 | W29: 484.1 | X29: 1065.94 | Y29: 688.48 | Z29: 939.87 | AA29: 347.3 | AB29: 93.05 | AC29: 1596.61 | AD29: 898.82 | AE29: 234.77 | AF29: 936.03 | AG29: 961.65 | AH29: 535.42 | AI29: 794.87 | AJ29: 1009.7 | AK29: 258.42 | AL29: 0 | AM29: 1261.208 | AN29: 1005.69 | AO29: 598.2822222 | AP29: 722.629 | AQ29: 825.7006897
B30: Economique | C30: oSupCPICP | D30: oSupCPICP | F30: 0 | G30: 3891.81 | H30: 0 | I30: 802.9 | J30: 1165.9 | K30: 825.09 | L30: 1207.41 | M30: 804 | N30: 591.56 | O30: 2379.38 | P30: 2324.07 | Q30: 2344.26 | R30: 2361.39 | S30: 129.17 | T30: 2847.01 | U30: 3891.81 | V30: 2432.18 | W30: 2714.73 | X30: 584.09 | Y30: 3268.67 | Z30: 3280.23 | AA30: 2792.17 | AB30: 3032.27 | AC30: 213.5 | AD30: 2811.69 | AE30: 3883.8 | AF30: 2435.89 | AG30: 2679.31 | AH30: 1579.54 | AI30: 3253.36 | AJ30: 3267.44 | AK30: 2779.39 | AL30: 2983.55 | AM30: 918.792 | AN30: 1907.654 | AO30: 2760.351111 | AP30: 2588.747 | AQ30: 2236.650345
B31: Economique | C31: oSupCPIRL_FIN | D31: oSupCPIRL_FIN | F31: 0 | G31: 1868.26 | H31: 0 | I31: 0 | J31: 0 | K31: 0 | L31: 0 | M31: 0 | N31: 0 | O31: 0 | P31: 92.33 | Q31: 0 | R31: 51.64 | S31: 585.37 | T31: 341.48 | U31: 572.62 | V31: 1286.25 | W31: 1147.2 | X31: 1601.67 | Y31: 716.85 | Z31: 530.21 | AA31: 975.19 | AB31: 1129.12 | AC31: 1868.26 | AD31: 734.5 | AE31: 606.42 | AF31: 674.69 | AG31: 532.69 | AH31: 1067.68 | AI31: 560.22 | AJ31: 42.2 | AK31: 347.3 | AL31: 93.05 | AM31: 0 | AN31: 145.868 | AO31: 922.2877778 | AP31: 652.701 | AQ31: 536.4462069
B32: Economique | C32: oSupCPIRL_INI | D32: oSupCPIRL_INI | F32: 0 | G32: 1805.53 | H32: 0 | I32: 1595.1 | J32: 434.1 | K32: 1774.91 | L32: 1192.59 | M32: 1496 | N32: 1408.44 | O32: 654.24 | P32: 634.03 | Q32: 1015.95 | R32: 918.7 | S32: 1805.53 | T32: 769.98 | U32: 336.42 | V32: 659.4 | W32: 484.1 | X32: 1065.94 | Y32: 688.48 | Z32: 939.87 | AA32: 347.3 | AB32: 93.05 | AC32: 1596.61 | AD32: 898.82 | AE32: 234.77 | AF32: 936.03 | AG32: 961.65 | AH32: 535.42 | AI32: 794.87 | AJ32: 1009.7 | AK32: 258.42 | AL32: 0 | AM32: 1261.208 | AN32: 1005.69 | AO32: 598.2822222 | AP32: 722.629 | AQ32: 825.7006897
B33: Economique | C33: oSupActCT_T100% | D33: oSupActCT_T100% | F33: 0 | G33: 11403.98 | H33: 0 | I33: 8337.89 | J33: 11021.08 | K33: 10216.12 | L33: 9874.24 | M33: 9766.51 | N33: 9811.41 | O33: 9624.73 | P33: 9352.46 | Q33: 8510.38 | R33: 8466.04 | S33: 8077.81 | T33: 8991.79 | U33: 8411.06 | V33: 7658.93 | W33: 7210.71 | X33: 7534.63 | Y33: 7552.91 | Z33: 7434.52 | AA33: 6907.32 | AB33: 6884.58 | AC33: 7748.88 | AD33: 9184.13 | AE33: 9897.91 | AF33: 8981.11 | AG33: 9526.98 | AH33: 9963.76 | AI33: 9400.71 | AJ33: 9824.91 | AK33: 10933.61 | AL33: 11403.98 | AM33: 10137.872 | AN33: 8806.284 | AO33: 7620.716667 | AP33: 9686.598 | AQ33: 8971.49
B34: Economique | C34: oSupCT_T100% | D34: oSupCT_T100% | F34: 0 | G34: 11403.98 | H34: 0 | I34: 8337.89 | J34: 11021.08 | K34: 10216.12 | L34: 9874.24 | M34: 9766.51 | N34: 9811.41 | O34: 9624.73 | P34: 9352.46 | Q34: 8510.38 | R34: 8466.04 | S34: 8077.81 | T34: 8991.79 | U34: 8411.06 | V34: 7658.93 | W34: 7210.71 | X34: 7534.63 | Y34: 7552.91 | Z34: 7434.52 | AA34: 6907.32 | AB34: 6884.58 | AC34: 7748.88 | AD34: 9184.13 | AE34: 9897.91 | AF34: 8981.11 | AG34: 9526.98 | AH34: 9963.76 | AI34: 9400.71 | AJ34: 9824.91 | AK34: 10933.61 | AL34: 11403.98 | AM34: 10137.872 | AN34: 8806.284 | AO34: 7620.716667 | AP34: 9686.598 | AQ34: 8971.49
B35: Economique | C35: oSupCT | D35: oSupCT | F35: 0 | G35: 11403.98 | H35: 0 | I35: 8337.89 | J35: 11021.08 | K35: 10216.12 | L35: 9874.24 | M35: 9766.51 | N35: 9811.41 | O35: 9624.73 | P35: 9352.46 | Q35: 8510.38 | R35: 8466.04 | S35: 8077.81 | T35: 8991.79 | U35: 8411.06 | V35: 7658.93 | W35: 7210.71 | X35: 7534.63 | Y35: 7552.91 | Z35: 7434.52 | AA35: 6907.32 | AB35: 6884.58 | AC35: 7748.88 | AD35: 9184.13 | AE35: 9897.91 | AF35: 8981.11 | AG35: 9526.98 | AH35: 9963.76 | AI35: 9400.71 | AJ35: 9824.91 | AK35: 10933.61 | AL35: 11403.98 | AM35: 10137.872 | AN35: 8806.284 | AO35: 7620.716667 | AP35: 9686.598 | AQ35: 8971.49
B36: Economique | C36: oSupActPL_SEPM_E_T100% | D36: oSupActPL_SEPM_E_T100% | F36: 0 | G36: 1654.92 | H36: 0 | I36: 434.64 | J36: 1195.92 | K36: 1126.34 | L36: 256.99 | M36: 575.92 | N36: 1654.92 | O36: 443.53 | P36: 23.91 | Q36: 92.1 | R36: 286.66 | S36: 1303.7 | T36: 734 | U36: 48.6 | V36: 0 | W36: 660.3 | X36: 14.55 | Y36: 0 | Z36: 130.59 | AA36: 91.48 | AB36: 154.86 | AC36: 0 | AD36: 139.37 | AE36: 283.7 | AF36: 115.96 | AG36: 154.86 | AH36: 0 | AI36: 139.37 | AJ36: 0 | AK36: 0 | AL36: 0 | AM36: 962.018 | AN36: 429.98 | AO36: 203.82 | AP36: 83.326 | AQ36: 331.9872414
B37: Economique | C37: oSupActPL_SEPM_I_T100% | D37: oSupActPL_SEPM_I_T100% | F37: 0 | G37: 1762.56 | H37: 0 | I37: 995.36 | J37: 310.48 | K37: 530.69 | L37: 1565.75 | M37: 1429.1 | N37: 550.6 | O37: 1541.44 | P37: 1762.56 | Q37: 1677.42 | R37: 1619.88 | S37: 793.5 | T37: 1186.11 | U37: 1679.5 | V37: 1555.29 | W37: 739.46 | X37: 739.46 | Y37: 1385.76 | Z37: 1393.75 | AA37: 1393.75 | AB37: 1393.75 | AC37: 1393.75 | AD37: 1393.75 | AE37: 1393.75 | AF37: 1393.75 | AG37: 1393.75 | AH37: 1393.75 | AI37: 1393.75 | AJ37: 1393.75 | AK37: 1393.75 | AL37: 1393.75 | AM37: 877.324 | AN37: 1478.96 | AO37: 1274.092222 | AP37: 1393.75 | AQ37: 1282.267241
B38: Economique | C38: oSupPL_SEPM_E_T100% | D38: oSupPL_SEPM_E_T100% | F38: 0 | G38: 1654.92 | H38: 0 | I38: 434.64 | J38: 1195.92 | K38: 1126.34 | L38: 256.99 | M38: 575.92 | N38: 1654.92 | O38: 443.53 | P38: 23.91 | Q38: 92.1 | R38: 286.66 | S38: 1303.7 | T38: 734 | U38: 48.6 | V38: 0 | W38: 660.3 | X38: 14.55 | Y38: 0 | Z38: 130.59 | AA38: 91.48 | AB38: 154.86 | AC38: 0 | AD38: 139.37 | AE38: 283.7 | AF38: 115.96 | AG38: 154.86 | AH38: 0 | AI38: 139.37 | AJ38: 0 | AK38: 0 | AL38: 0 | AM38: 962.018 | AN38: 429.98 | AO38: 203.82 | AP38: 83.326 | AQ38: 331.9872414
B39: Economique | C39: oSupPL_SEPM_I_T100% | D39: oSupPL_SEPM_I_T100% | F39: 0 | G39: 1762.56 | H39: 0 | I39: 995.36 | J39: 310.48 | K39: 530.69 | L39: 1565.75 | M39: 1429.1 | N39: 550.6 | O39: 1541.44 | P39: 1762.56 | Q39: 1677.42 | R39: 1619.88 | S39: 793.5 | T39: 1186.11 | U39: 1679.5 | V39: 1555.29 | W39: 739.46 | X39: 739.46 | Y39: 1385.76 | Z39: 1393.75 | AA39: 1393.75 | AB39: 1393.75 | AC39: 1393.75 | AD39: 1393.75 | AE39: 1393.75 | AF39: 1393.75 | AG39: 1393.75 | AH39: 1393.75 | AI39: 1393.75 | AJ39: 1393.75 | AK39: 1393.75 | AL39: 1393.75 | AM39: 877.324 | AN39: 1478.96 | AO39: 1274.092222 | AP39: 1393.75 | AQ39: 1282.267241
B40: Economique | C40: oSupPL_SEPM_E | D40: oSupPL_SEPM_E | F40: 0 | G40: 1654.92 | H40: 0 | I40: 434.64 | J40: 1195.92 | K40: 1126.34 | L40: 256.99 | M40: 575.92 | N40: 1654.92 | O40: 443.53 | P40: 23.91 | Q40: 92.1 | R40: 286.66 | S40: 1303.7 | T40: 734 | U40: 48.6 | V40: 0 | W40: 660.3 | X40: 14.55 | Y40: 0 | Z40: 130.59 | AA40: 91.48 | AB40: 154.86 | AC40: 0 | AD40: 139.37 | AE40: 283.7 | AF40: 115.96 | AG40: 154.86 | AH40: 0 | AI40: 139.37 | AJ40: 0 | AK40: 0 | AL40: 0 | AM40: 962.018 | AN40: 429.98 | AO40: 203.82 | AP40: 83.326 | AQ40: 331.9872414
B41: Economique | C41: oSupPL_SEPM_I | D41: oSupPL_SEPM_I | F41: 0 | G41: 1762.56 | H41: 0 | I41: 995.36 | J41: 310.48 | K41: 530.69 | L41: 1565.75 | M41: 1429.1 | N41: 550.6 | O41: 1541.44 | P41: 1762.56 | Q41: 1677.42 | R41: 1619.88 | S41: 793.5 | T41: 1186.11 | U41: 1679.5 | V41: 1555.29 | W41: 739.46 | X41: 739.46 | Y41: 1385.76 | Z41: 1393.75 | AA41: 1393.75 | AB41: 1393.75 | AC41: 1393.75 | AD41: 1393.75 | AE41: 1393.75 | AF41: 1393.75 | AG41: 1393.75 | AH41: 1393.75 | AI41: 1393.75 | AJ41: 1393.75 | AK41: 1393.75 | AL41: 1393.75 | AM41: 877.324 | AN41: 1478.96 | AO41: 1274.092222 | AP41: 1393.75 | AQ41: 1282.267241
B42: Economique | C42: oSupActEPC_1_T100% | D42: oSupActEPC_1_T100% | F42: 0 | G42: 0 | H42: 0 | I42: 0 | J42: 0 | K42: 0 | L42: 0 | M42: 0 | N42: 0 | O42: 0 | P42: 0 | Q42: 0 | R42: 0 | S42: 0 | T42: 0 | U42: 0 | V42: 0 | W42: 0 | X42: 0 | Y42: 0 | Z42: 0 | AA42: 0 | AB42: 0 | AC42: 0 | AD42: 0 | AE42: 0 | AF42: 0 | AG42: 0 | AH42: 0 | AI42: 0 | AJ42: 0 | AK42: 0 | AL42: 0 | AM42: 0 | AN42: 0 | AO42: 0 | AP42: 0 | AQ42: 0
B43: Economique | C43: oSupActEPC_2_T100% | D43: oSupActEPC_2_T100% | F43: 0 | G43: 283.68 | H43: 0 | I43: 0 | J43: 0 | K43: 0 | L43: 0 | M43: 0 | N43: 0 | O43: 0 | P43: 0 | Q43: 0 | R43: 0 | S43: 0 | T43: 0 | U43: 0 | V43: 0 | W43: 0 | X43: 97.27 | Y43: 0 | Z43: 0 | AA43: 0 | AB43: 0 | AC43: 0 | AD43: 0 | AE43: 0 | AF43: 283.68 | AG43: 26.49 | AH43: 0 | AI43: 0 | AJ43: 0 | AK43: 108.25 | AL43: 0 | AM43: 0 | AN43: 0 | AO43: 10.80777778 | AP43: 41.842 | AQ43: 17.78241379
B44: Economique | C44: oSupEPC_1_T100% | D44: oSupEPC_1_T100% | F44: 0 | G44: 0 | H44: 0 | I44: 0 | J44: 0 | K44: 0 | L44: 0 | M44: 0 | N44: 0 | O44: 0 | P44: 0 | Q44: 0 | R44: 0 | S44: 0 | T44: 0 | U44: 0 | V44: 0 | W44: 0 | X44: 0 | Y44: 0 | Z44: 0 | AA44: 0 | AB44: 0 | AC44: 0 | AD44: 0 | AE44: 0 | AF44: 0 | AG44: 0 | AH44: 0 | AI44: 0 | AJ44: 0 | AK44: 0 | AL44: 0 | AM44: 0 | AN44: 0 | AO44: 0 | AP44: 0 | AQ44: 0
B45: Economique | C45: oSupEPC_2_T100% | D45: oSupEPC_2_T100% | F45: 0 | G45: 283.68 | H45: 0 | I45: 0 | J45: 0 | K45: 0 | L45: 0 | M45: 0 | N45: 0 | O45: 0 | P45: 0 | Q45: 0 | R45: 0 | S45: 0 | T45: 0 | U45: 0 | V45: 0 | W45: 0 | X45: 97.27 | Y45: 0 | Z45: 0 | AA45: 0 | AB45: 0 | AC45: 0 | AD45: 0 | AE45: 0 | AF45: 283.68 | AG45: 26.49 | AH45: 0 | AI45: 0 | AJ45: 0 | AK45: 108.25 | AL45: 0 | AM45: 0 | AN45: 0 | AO45: 10.80777778 | AP45: 41.842 | AQ45: 17.78241379
B46: Economique | C46: oSupEPC_1 | D46: oSupEPC_1 | F46: 0 | G46: 0 | H46: 0 | I46: 0 | J46: 0 | K46: 0 | L46: 0 | M46: 0 | N46: 0 | O46: 0 | P46: 0 | Q46: 0 | R46: 0 | S46: 0 | T46: 0 | U46: 0 | V46: 0 | W46: 0 | X46: 0 | Y46: 0 | Z46: 0 | AA46: 0 | AB46: 0 | AC46: 0 | AD46: 0 | AE46: 0 | AF46: 0 | AG46: 0 | AH46: 0 | AI46: 0 | AJ46: 0 | AK46: 0 | AL46: 0 | AM46: 0 | AN46: 0 | AO46: 0 | AP46: 0 | AQ46: 0
B47: Economique | C47: oSupEPC_2 | D47: oSupEPC_2 | F47: 0 | G47: 283.68 | H47: 0 | I47: 0 | J47: 0 | K47: 0 | L47: 0 | M47: 0 | N47: 0 | O47: 0 | P47: 0 | Q47: 0 | R47: 0 | S47: 0 | T47: 0 | U47: 0 | V47: 0 | W47: 0 | X47: 97.27 | Y47: 0 | Z47: 0 | AA47: 0 | AB47: 0 | AC47: 0 | AD47: 0 | AE47: 0 | AF47: 283.68 | AG47: 26.49 | AH47: 0 | AI47: 0 | AJ47: 0 | AK47: 108.25 | AL47: 0 | AM47: 0 | AN47: 0 | AO47: 10.80777778 | AP47: 41.842 | AQ47: 17.78241379
B48: Economique | C48: oSupActEC_SEPM_T100% | D48: oSupActEC_SEPM_T100% | F48: 0 | G48: 3328.56 | H48: 0 | I48: 202 | J48: 990.91 | K48: 250 | L48: 250 | M48: 263.88 | N48: 757.84 | O48: 0 | P48: 286.55 | Q48: 310.48 | R48: 530.69 | S48: 1565.75 | T48: 535.93 | U48: 143 | V48: 1060.39 | W48: 1636.02 | X48: 3328.56 | Y48: 1248.23 | Z48: 579.7 | AA48: 756.5 | AB48: 1103.85 | AC48: 2215.75 | AD48: 859.69 | AE48: 49.24 | AF48: 250.2 | AG48: 277.63 | AH48: 1713.77 | AI48: 46.42 | AJ48: 0 | AK48: 502.3 | AL48: 422.07 | AM48: 502.526 | AN48: 538.694 | AO48: 1154.686667 | AP48: 633.707 | AQ48: 756.3913793
B49: Economique | C49: oSupEC_SEPM_T100% | D49: oSupEC_SEPM_T100% | F49: 0 | G49: 3328.56 | H49: 0 | I49: 202 | J49: 990.91 | K49: 250 | L49: 250 | M49: 263.88 | N49: 757.84 | O49: 0 | P49: 286.55 | Q49: 310.48 | R49: 530.69 | S49: 1565.75 | T49: 535.93 | U49: 143 | V49: 1060.39 | W49: 1636.02 | X49: 3328.56 | Y49: 1248.23 | Z49: 579.7 | AA49: 756.5 | AB49: 1103.85 | AC49: 2215.75 | AD49: 859.69 | AE49: 49.24 | AF49: 250.2 | AG49: 277.63 | AH49: 1713.77 | AI49: 46.42 | AJ49: 0 | AK49: 502.3 | AL49: 422.07 | AM49: 502.526 | AN49: 538.694 | AO49: 1154.686667 | AP49: 633.707 | AQ49: 756.3913793
B50: Economique | C50: oSupEC_SEPM | D50: oSupEC_SEPM | F50: 0 | G50: 3328.56 | H50: 0 | I50: 202 | J50: 990.91 | K50: 250 | L50: 250 | M50: 263.88 | N50: 757.84 | O50: 0 | P50: 286.55 | Q50: 310.48 | R50: 530.69 | S50: 1565.75 | T50: 535.93 | U50: 143 | V50: 1060.39 | W50: 1636.02 | X50: 3328.56 | Y50: 1248.23 | Z50: 579.7 | AA50: 756.5 | AB50: 1103.85 | AC50: 2215.75 | AD50: 859.69 | AE50: 49.24 | AF50: 250.2 | AG50: 277.63 | AH50: 1713.77 | AI50: 46.42 | AJ50: 0 | AK50: 502.3 | AL50: 422.07 | AM50: 502.526 | AN50: 538.694 | AO50: 1154.686667 | AP50: 633.707 | AQ50: 756.3913793
B51: Economique | C51: oSupActNETT_T100% | D51: oSupActNETT_T100% | F51: 0 | G51: 2897.65 | H51: 0 | I51: 0 | J51: 1954.91 | K51: 1573.6 | L51: 1562.12 | M51: 897.92 | N51: 0 | O51: 550.63 | P51: 369.9 | Q51: 635.89 | R51: 291.21 | S51: 0 | T51: 0 | U51: 973.37 | V51: 955.47 | W51: 771.13 | X51: 0 | Y51: 1121.8 | Z51: 1513.94 | AA51: 1856.88 | AB51: 1249.58 | AC51: 743.99 | AD51: 1208.17 | AE51: 1793.83 | AF51: 1954.15 | AG51: 1672.6 | AH51: 906.44 | AI51: 1398.69 | AJ51: 2897.65 | AK51: 1873.61 | AL51: 1876.4 | AM51: 1197.71 | AN51: 369.526 | AO51: 938.0188889 | AP51: 1632.553 | AQ51: 1124.271724
B52: Economique | C52: oSupTcsdNETT_T100% | D52: oSupTcsdNETT_T100% | F52: 0 | G52: 1732.45 | H52: 0 | I52: 1223.24 | J52: 1732.45 | K52: 1112.09 | L52: 521.32 | M52: 635.31 | N52: 320.94 | O52: 287.9 | P52: 362.35 | Q52: 228.8 | R52: 193.84 | S52: 285.09 | T52: 176.47 | U52: 9.96 | V52: 0.86 | W52: 47.8 | X52: 639.77 | Y52: 0 | Z52: 0 | AA52: 0 | AB52: 0 | AC52: 267.3 | AD52: 0 | AE52: 0 | AF52: 0 | AG52: 0 | AH52: 1066.32 | AI52: 285.66 | AJ52: 0 | AK52: 223.61 | AL52: 568.52 | AM52: 864.422 | AN52: 271.596 | AO52: 97.20666667 | AP52: 241.141 | AQ52: 309.1848276
B53: Economique | C53: oSupTcadNETT_T100% | D53: oSupTcadNETT_T100% | F53: 0 | G53: 2205.52 | H53: 0 | I53: 0 | J53: 0 | K53: 1276.76 | L53: 1219.13 | M53: 1211.4 | N53: 1565.75 | O53: 1802.27 | P53: 2205.52 | Q53: 1860.63 | R53: 1604.76 | S53: 1677.42 | T53: 1872.65 | U53: 1603.7 | V53: 1873.71 | W53: 1728.1 | X53: 1555.29 | Y53: 1399.76 | Z53: 1259.78 | AA53: 1385.76 | AB53: 1524.34 | AC53: 1485.23 | AD53: 1548.61 | AE53: 1393.75 | AF53: 1522.52 | AG53: 1519.65 | AH53: 1417.61 | AI53: 1548.61 | AJ53: 900.25 | AK53: 1486.72 | AL53: 1393.75 | AM53: 1054.608 | AN53: 1830.12 | AO53: 1578.121111 | AP53: 1421.67 | AQ53: 1477.359655
B54: Economique | C54: oSupNETT_T100% | D54: oSupNETT_T100% | F54: 0 | G54: 3962.46 | H54: 0 | I54: 1223.24 | J54: 3687.36 | K54: 3962.46 | L54: 3302.58 | M54: 2744.63 | N54: 1886.69 | O54: 2640.81 | P54: 2937.77 | Q54: 2725.31 | R54: 2089.81 | S54: 1962.52 | T54: 2049.12 | U54: 2587.02 | V54: 2830.04 | W54: 2547.04 | X54: 2195.06 | Y54: 2521.57 | Z54: 2773.72 | AA54: 3242.64 | AB54: 2773.92 | AC54: 2496.53 | AD54: 2756.78 | AE54: 3187.58 | AF54: 3476.67 | AG54: 3192.25 | AH54: 3390.37 | AI54: 3232.95 | AJ54: 3797.9 | AK54: 3583.95 | AL54: 3838.66 | AM54: 3116.744 | AN54: 2471.244 | AO54: 2613.347778 | AP54: 3295.364 | AQ54: 2910.817586
B55: Economique | C55: oSupNETT | D55: oSupNETT | F55: 0 | G55: 3962.46 | H55: 0 | I55: 1223.24 | J55: 3687.36 | K55: 3962.46 | L55: 3302.58 | M55: 2744.63 | N55: 1886.69 | O55: 2640.81 | P55: 2937.77 | Q55: 2725.31 | R55: 2089.81 | S55: 1962.52 | T55: 2049.12 | U55: 2587.02 | V55: 2830.04 | W55: 2547.04 | X55: 2195.06 | Y55: 2521.57 | Z55: 2773.72 | AA55: 3242.64 | AB55: 2773.92 | AC55: 2496.53 | AD55: 2756.78 | AE55: 3187.58 | AF55: 3476.67 | AG55: 3192.25 | AH55: 3390.37 | AI55: 3232.95 | AJ55: 3797.9 | AK55: 3583.95 | AL55: 3838.66 | AM55: 3116.744 | AN55: 2471.244 | AO55: 2613.347778 | AP55: 3295.364 | AQ55: 2910.817586
B56: Economique | C56: oBensDEG | D56: oBensDEG | F56: 0 | G56: 532279.58 | H56: 0 | I56: 308133.39 | J56: 295070.51 | K56: 292358.52 | L56: 377878.39 | M56: 434959.69 | N56: 532279.58 | O56: 449043.29 | P56: 387293.08 | Q56: 404828.94 | R56: 451945.3 | S56: 387036.25 | T56: 452201.23 | U56: 417059.46 | V56: 375353.52 | W56: 337818.16 | X56: 304036.35 | Y56: 334439.98 | Z56: 367883.98 | AA56: 358444.81 | AB56: 373740.58 | AC56: 336366.52 | AD56: 367444.97 | AE56: 366752.41 | AF56: 342124.86 | AG56: 373740.58 | AH56: 217265.23 | AI56: 358805 | AJ56: 336366.52 | AK56: 336366.52 | AL56: 336366.52 | AM56: 386509.338 | AN56: 416029.372 | AO56: 368997.5633 | AP56: 337159.913 | AQ56: 369147.2672
B57: Economique | C57: oBensSCA | D57: oBensSCA | F57: 0 | G57: 283521.44 | H57: 0 | I57: 283521.44 | J57: 281764.78 | K57: 280129.89 | L57: 240474.94 | M57: 257569.32 | N57: 241774.2 | O57: 261200.73 | P57: 250155.53 | Q57: 249987.85 | R57: 245040.66 | S57: 243365.86 | T57: 239343.11 | U57: 244731.9 | V57: 184464.61 | W57: 209905.91 | X57: 169317.82 | Y57: 215561.71 | Z57: 223687.68 | AA57: 201723.74 | AB57: 174047.24 | AC57: 190897.02 | AD57: 199259.73 | AE57: 236640.09 | AF57: 189889.34 | AG57: 232165.51 | AH57: 221065.76 | AI57: 252155.62 | AJ57: 215467.03 | AK57: 208787.46 | AL57: 203321.74 | AM57: 260342.626 | AN57: 249950.126 | AO57: 206975.9689 | AP57: 214964.93 | AQ57: 226341.2683
B58: Economique | C58: oBensREG | D58: oBensREG | F58: 0 | G58: 14637.05 | H58: 0 | I58: 0 | J58: 0 | K58: 0 | L58: 0 | M58: 0 | N58: 0 | O58: 0 | P58: 0 | Q58: 0 | R58: 0 | S58: 0 | T58: 0 | U58: 0 | V58: 0 | W58: 0 | X58: 14637.05 | Y58: 0 | Z58: 0 | AA58: 0 | AB58: 0 | AC58: 0 | AD58: 0 | AE58: 0 | AF58: 0 | AG58: 0 | AH58: 0 | AI58: 0 | AJ58: 0 | AK58: 0 | AL58: 0 | AM58: 0 | AN58: 0 | AO58: 1626.338889 | AP58: 0 | AQ58: 504.7258621
B59: Economique | C59: oBensPL | D59: oBensPL | F59: 0 | G59: 163248.1 | H59: 0 | I59: 115624.13 | J59: 109092.05 | K59: 123258.76 | L59: 152494.46 | M59: 162694.55 | N59: 161375.32 | O59: 163248.1 | P59: 153385.43 | Q59: 150752.16 | R59: 159197.96 | S59: 158098.03 | T59: 152662.81 | U59: 147935.17 | V59: 133894.85 | W59: 109134.98 | X59: 64662.3 | Y59: 119300.32 | Z59: 128981.53 | AA59: 126287.92 | AB59: 130652.79 | AC59: 119987.54 | AD59: 129586.27 | AE59: 139526.3 | AF59: 127973.7 | AG59: 130652.79 | AH59: 119987.54 | AI59: 129586.27 | AJ59: 119987.54 | AK59: 119987.54 | AL59: 119987.54 | AM59: 141783.028 | AN59: 156936.336 | AO59: 123723.63 | AP59: 125726.303 | AQ59: 133254.2248
B60: Economique | C60: oBensEPC | D60: oBensEPC | F60: 0 | G60: 38545.93 | H60: 0 | I60: 0 | J60: 0 | K60: 0 | L60: 0 | M60: 0 | N60: 0 | O60: 0 | P60: 0 | Q60: 0 | R60: 0 | S60: 0 | T60: 0 | U60: 0 | V60: 0 | W60: 0 | X60: 13216.82 | Y60: 0 | Z60: 0 | AA60: 0 | AB60: 0 | AC60: 0 | AD60: 0 | AE60: 0 | AF60: 38545.93 | AG60: 3599.14 | AH60: 0 | AI60: 0 | AJ60: 0 | AK60: 14708.51 | AL60: 0 | AM60: 0 | AN60: 0 | AO60: 1468.535556 | AP60: 5685.358 | AQ60: 2416.22069
B61: Economique | C61: oBensNET | D61: oBensNET | F61: 0 | G61: 387765.86 | H61: 0 | I61: 119706.21 | J61: 360845.03 | K61: 387765.86 | L61: 323190.6 | M61: 268589.54 | N61: 184631.72 | O61: 258429.24 | P61: 287490.38 | Q61: 266698.81 | R61: 204508.66 | S61: 192051.76 | T61: 200527.22 | U61: 253165.57 | V61: 276947.64 | W61: 249252.88 | X61: 214808.91 | Y61: 246760.35 | Z61: 271436.39 | AA61: 317324.66 | AB61: 271455.5 | AC61: 244309.95 | AD61: 269778.26 | AE61: 311936.29 | AF61: 340226.79 | AG61: 312393.89 | AH61: 331781.28 | AI61: 316376.81 | AJ61: 371662.02 | AK61: 350724.87 | AL61: 375651.48 | AM61: 305004.55 | AN61: 241835.77 | AO61: 255742.1244 | AP61: 322484.164 | AQ61: 284852.4952
B62: Economique | C62: oBensTOT | D62: oBensTOT | F62: 0 | G62: 1131921.36 | H62: 0 | I62: 826985.18 | J62: 1046772.37 | K62: 1083513.02 | L62: 1094038.39 | M62: 1123813.09 | N62: 1120060.82 | O62: 1131921.36 | P62: 1078324.42 | Q62: 1072267.77 | R62: 1060692.58 | S62: 980551.9 | T62: 1044734.37 | U62: 1062892.1 | V62: 970660.63 | W62: 906111.94 | X62: 780679.26 | Y62: 916062.36 | Z62: 991989.57 | AA62: 1003781.13 | AB62: 949896.11 | AC62: 891561.04 | AD62: 966069.23 | AE62: 1054855.09 | AF62: 1038760.62 | AG62: 1052551.91 | AH62: 890099.82 | AI62: 1056923.7 | AJ62: 1043483.11 | AK62: 1030574.9 | AL62: 1035327.29 | AM62: 1093639.538 | AN62: 1064751.606 | AO62: 958534.1633 | AP62: 1006020.671 | AQ62: 1016516.203
B63: Economique | C63: oRenscDEG | D63: oRenscDEG | F63: 0 | G63: 772151.66 | H63: 0 | I63: 446993.87 | J63: 428044.2 | K63: 424110.04 | L63: 548169.5 | M63: 630974.51 | N63: 772151.66 | O63: 651404.89 | P63: 561826.91 | Q63: 587265.32 | R63: 655614.69 | S63: 561454.34 | T63: 655985.95 | U63: 605007.53 | V63: 544506.78 | W63: 490056.1 | X63: 441050.49 | Y63: 485155.54 | Z63: 533671.09 | AA63: 519978.15 | AB63: 542166.97 | AC63: 487950.27 | AD63: 533034.24 | AE63: 532029.58 | AF63: 496303.62 | AG63: 542166.97 | AH63: 315175.92 | AI63: 520500.66 | AJ63: 487950.27 | AK63: 487950.27 | AL63: 487950.27 | AM63: 560689.982 | AN63: 603513.23 | AO63: 535286.5111 | AP63: 489101.207 | AQ63: 535503.6803
B64: Economique | C64: oRenscSCA | D64: oRenscSCA | F64: 0 | G64: 450073.94 | H64: 0 | I64: 388943.28 | J64: 450073.94 | K64: 399962.62 | L64: 339833.82 | M64: 377752.86 | N64: 359687.91 | O64: 340118.04 | P64: 322770.13 | Q64: 306729.4 | R64: 315692.64 | S64: 344985.59 | T64: 313133.35 | U64: 277111.61 | V64: 234996.71 | W64: 233096.16 | X64: 216183.33 | Y64: 228675.41 | Z64: 246461.15 | AA64: 233998.3 | AB64: 230254.04 | AC64: 253272.33 | AD64: 238150.12 | AE64: 267616.16 | AF64: 232118.84 | AG64: 252245.18 | AH64: 344804.22 | AI64: 288490.36 | AJ64: 229487 | AK64: 250697.9 | AL64: 285244.36 | AM64: 385462.23 | AN64: 326059.16 | AO64: 245990.0067 | AP64: 264212.647 | AQ64: 290125.6372
B65: Economique | C65: oRenscREG | D65: oRenscREG | F65: 0 | G65: 41802.07 | H65: 0 | I65: 0 | J65: 0 | K65: 0 | L65: 0 | M65: 0 | N65: 0 | O65: 0 | P65: 0 | Q65: 0 | R65: 0 | S65: 0 | T65: 0 | U65: 0 | V65: 0 | W65: 0 | X65: 41802.07 | Y65: 0 | Z65: 0 | AA65: 0 | AB65: 0 | AC65: 0 | AD65: 0 | AE65: 0 | AF65: 0 | AG65: 0 | AH65: 0 | AI65: 0 | AJ65: 0 | AK65: 0 | AL65: 0 | AM65: 0 | AN65: 0 | AO65: 4644.674444 | AP65: 0 | AQ65: 1441.45069
B66: Economique | C66: oRenscPL | D66: oRenscPL | F66: 0 | G66: 493671.34 | H66: 0 | I66: 349654.29 | J66: 329904.08 | K66: 372744.56 | L66: 461151.08 | M66: 491997.89 | N66: 488012.86 | O66: 493671.34 | P66: 463844.49 | Q66: 455881.62 | R66: 481422.9 | S66: 478100.77 | T66: 461662.12 | U66: 447362.76 | V66: 404904.01 | W66: 330031.73 | X66: 195541.75 | Y66: 360769.48 | Z66: 390046.41 | AA66: 381900.66 | AB66: 395100.5 | AC66: 362847.68 | AD66: 391875.22 | AE66: 421934.91 | AF66: 386998.65 | AG66: 395100.5 | AH66: 362847.68 | AI66: 391875.22 | AJ66: 362847.68 | AK66: 362847.68 | AL66: 362847.68 | AM66: 428762.094 | AN66: 474584.224 | AO66: 374146.6022 | AP66: 380202.29 | AQ66: 402968.0659
B67: Economique | C67: oRenscEPC | D67: oRenscEPC | F67: 0 | G67: 103371.62 | H67: 0 | I67: 0 | J67: 0 | K67: 0 | L67: 0 | M67: 0 | N67: 0 | O67: 0 | P67: 0 | Q67: 0 | R67: 0 | S67: 0 | T67: 0 | U67: 0 | V67: 0 | W67: 0 | X67: 35444.58 | Y67: 0 | Z67: 0 | AA67: 0 | AB67: 0 | AC67: 0 | AD67: 0 | AE67: 0 | AF67: 103371.62 | AG67: 9652.08 | AH67: 0 | AI67: 0 | AJ67: 0 | AK67: 39444.95 | AL67: 0 | AM67: 0 | AN67: 0 | AO67: 3938.286667 | AP67: 15246.865 | AQ67: 6479.766552
B68: Economique | C68: oRenscNET | D68: oRenscNET | F68: 0 | G68: 1039906.72 | H68: 0 | I68: 321026.96 | J68: 967710.7 | K68: 1039906.72 | L68: 866729.41 | M68: 720300.82 | N68: 495143.56 | O68: 693053.03 | P68: 770988.91 | Q68: 715230.29 | R68: 548449.34 | S68: 515042.54 | T68: 537771.96 | U68: 678936.96 | V68: 742715.51 | W68: 668443.96 | X68: 576072.46 | Y68: 661759.52 | Z68: 727935.47 | AA68: 850998.2 | AB68: 727986.73 | AC68: 655188.06 | AD68: 723488.73 | AE68: 836547.72 | AF68: 912416.9 | AG68: 837774.91 | AH68: 889767.82 | AI68: 848456.27 | AJ68: 996719.61 | AK68: 940570.56 | AL68: 1007418.5 | AM68: =AVERAGE(J68:N68) -> 817958.242 | AN68: =AVERAGE(O68:S68) -> 648552.822 | AO68: =AVERAGE(T68:AB68) -> 685846.7522 | AP68: =AVERAGE(AC68:AL68) -> 864834.908 | AQ68: =AVERAGE(J68:AL68) -> 763914.661
B69: Economique | C69: oRenscTOT | D69: oRenscTOT | F69: 0 | G69: 2236723.92 | H69: 0 | I69: 1506618.4 | J69: 2175732.92 | K69: 2236723.92 | L69: 2215883.81 | M69: 2221026.08 | N69: 2114995.99 | O69: 2178247.31 | P69: 2119430.45 | Q69: 2065106.63 | R69: 2001179.56 | S69: 1899583.24 | T69: 1968553.38 | U69: 2008418.86 | V69: 1927123.01 | W69: 1721627.94 | X69: 1506094.69 | Y69: 1736359.94 | Z69: 1898114.13 | AA69: 1986875.31 | AB69: 1895508.25 | AC69: 1759258.34 | AD69: 1886548.31 | AE69: 2058128.37 | AF69: 2131209.63 | AG69: 2036939.64 | AH69: 1912595.66 | AI69: 2049322.51 | AJ69: 2077004.57 | AK69: 2081511.36 | AL69: 2143460.82 | AM69: 2192872.544 | AN69: 2052709.438 | AO69: 1849852.834 | AP69: 2013597.921 | AQ69: 2000433.263
B70: Economique | C70: oTauxDEG | D70: oTauxDEG | F70: 0 | G70: 3793490.03 | H70: 0 | I70: 2196028.16 | J70: 2102930.65 | K70: 2083602.58 | L70: 2693092.07 | M70: 3099903.32 | N70: 3793490.03 | O70: 3200275.37 | P70: 2760189.35 | Q70: 2885165.26 | R70: 3220957.61 | S70: 2758358.93 | T70: 3222781.6 | U70: 2972330.64 | V70: 2675097.57 | W70: 2407587.82 | X70: 2166829.03 | Y70: 2383511.94 | Z70: 2621863.13 | AA70: 2554591.33 | AB70: 2663602.36 | AC70: 2397242.13 | AD70: 2618734.34 | AE70: 2613798.59 | AF70: 2438281.13 | AG70: 2663602.36 | AH70: 1548422.13 | AI70: 2557158.34 | AJ70: 2397242.13 | AK70: 2397242.13 | AL70: 2397242.13 | AM70: 2754603.73 | AN70: 2964989.304 | AO70: 2629799.491 | AP70: 2402896.541 | AQ70: 2630866.414
B71: Economique | C71: oTauxSCA | D71: oTauxSCA | F71: 0 | G71: 2017559.13 | H71: 0 | I71: 2010976.09 | J71: 2017559.13 | K71: 1991617.11 | L71: 1708633.4 | M71: 1834217.49 | N71: 1723264.9 | O71: 1847202.53 | P71: 1768202.51 | Q71: 1762274.81 | R71: 1731905.27 | S71: 1729493.74 | T71: 1693068.81 | U71: 1718279.63 | V71: 1302968.76 | W71: 1472390.84 | X71: 1196123.84 | Y71: 1508856.46 | Z71: 1568482.2 | AA71: 1417990.24 | AB71: 1231941.42 | AC71: 1351425.46 | AD71: 1402770.68 | AE71: 1661366.66 | AF71: 1338352.76 | AG71: 1626862.2 | AH71: 1580436.32 | AI71: 1771293.06 | AJ71: 1508467.01 | AK71: 1470192.86 | AL71: 1444025.86 | AM71: 1855058.406 | AN71: 1767815.772 | AO71: 1456678.022 | AP71: 1515519.287 | AQ71: 1599298.826
B72: Economique | C72: oTauxREG | D72: oTauxREG | F72: 0 | G72: 268059.25 | H72: 0 | I72: 0 | J72: 0 | K72: 0 | L72: 0 | M72: 0 | N72: 0 | O72: 0 | P72: 0 | Q72: 0 | R72: 0 | S72: 0 | T72: 0 | U72: 0 | V72: 0 | W72: 0 | X72: 268059.25 | Y72: 0 | Z72: 0 | AA72: 0 | AB72: 0 | AC72: 0 | AD72: 0 | AE72: 0 | AF72: 0 | AG72: 0 | AH72: 0 | AI72: 0 | AJ72: 0 | AK72: 0 | AL72: 0 | AM72: 0 | AN72: 0 | AO72: 29784.36111 | AP72: 0 | AQ72: 9243.422414
B73: Economique | C73: oTauxCPI | D73: oTauxCPI | F73: 0 | G73: 1808879.65 | H73: 0 | I73: 983287 | J73: 674977 | K73: 1064752.78 | L73: 996222.36 | M73: 944120.15 | N73: 817746.84 | O73: 1284831.41 | P73: 1252962.97 | Q73: 1414411.29 | R73: 1382878.96 | S73: 777754.65 | T73: 1532207.82 | U73: 1808045.99 | V73: 1309599.09 | W73: 1360975.71 | X73: 677534.44 | Y73: 1680921.03 | Z73: 1786446.96 | AA73: 1339554.63 | AB73: 1341095.37 | AC73: 730448.85 | AD73: 1568552.37 | AE73: 1763943.81 | AF73: 1421844.03 | AG73: 1536764.85 | AH73: 893369.54 | AI73: 1716893.94 | AJ73: 1808879.65 | AK73: 1298504.19 | AL73: 1282925.94 | AM73: 899563.826 | AN73: 1222567.856 | AO73: 1426264.56 | AP73: 1402212.717 | AQ73: 1292040.228
B74: Economique | C74: oTauxCT | D74: oTauxCT | F74: 0 | G74: 0 | H74: 0 | I74: 0 | J74: 0 | K74: 0 | L74: 0 | M74: 0 | N74: 0 | O74: 0 | P74: 0 | Q74: 0 | R74: 0 | S74: 0 | T74: 0 | U74: 0 | V74: 0 | W74: 0 | X74: 0 | Y74: 0 | Z74: 0 | AA74: 0 | AB74: 0 | AC74: 0 | AD74: 0 | AE74: 0 | AF74: 0 | AG74: 0 | AH74: 0 | AI74: 0 | AJ74: 0 | AK74: 0 | AL74: 0 | AM74: 0 | AN74: 0 | AO74: 0 | AP74: 0 | AQ74: 0
B75: Economique | C75: oTauxPL | D75: oTauxPL | F75: 0 | G75: 3049429.75 | H75: 0 | I75: 2158867.51 | J75: 2030647.04 | K75: 2296137.76 | L75: 2849807.27 | M75: 3038023.32 | N75: 3004760.35 | O75: 3049429.75 | P75: 2868325.71 | Q75: 2818536.88 | R75: 2974935.69 | S75: 2946267.22 | T75: 2849157.47 | U75: 2766201.8 | V75: 2504015.75 | W75: 2035714.78 | X75: 1209157.08 | Y75: 2231078.03 | Z75: 2411089.95 | AA75: 2361027.22 | AB75: 2442151.7 | AC75: 2243930.13 | AD75: 2422329.54 | AE75: 2607072.42 | AF75: 2392358.78 | AG75: 2442151.7 | AH75: 2243930.13 | AI75: 2422329.54 | AJ75: 2243930.13 | AK75: 2243930.13 | AL75: 2243930.13 | AM75: 2643875.148 | AN75: 2931499.05 | AO75: 2312177.087 | AP75: 2350589.263 | AQ75: 2489391.634
B76: Economique | C76: oTauxEPC | D76: oTauxEPC | F76: 0 | G76: 442534.93 | H76: 0 | I76: 0 | J76: 0 | K76: 0 | L76: 0 | M76: 0 | N76: 0 | O76: 0 | P76: 0 | Q76: 0 | R76: 0 | S76: 0 | T76: 0 | U76: 0 | V76: 0 | W76: 0 | X76: 151738.62 | Y76: 0 | Z76: 0 | AA76: 0 | AB76: 0 | AC76: 0 | AD76: 0 | AE76: 0 | AF76: 442534.93 | AG76: 41320.67 | AH76: 0 | AI76: 0 | AJ76: 0 | AK76: 168864.21 | AL76: 0 | AM76: 0 | AN76: 0 | AO76: 16859.84667 | AP76: 65271.981 | AQ76: 27739.94586
B77: Economique | C77: oTauxEC | D77: oTauxEC | F77: 0 | G77: 4260559.67 | H77: 0 | I77: 258560 | J77: 1268363.64 | K77: 320000 | L77: 320000 | M77: 337770.24 | N77: 970036.22 | O77: 0 | P77: 366789.76 | Q77: 397410.78 | R77: 679289.14 | S77: 2004161.54 | T77: 685993.16 | U77: 183040 | V77: 1357300.51 | W77: 2094108.06 | X77: 4260559.67 | Y77: 1597738.28 | Z77: 742016 | AA77: 968320.54 | AB77: 1412922.14 | AC77: 2836157.5 | AD77: 1100407.24 | AE77: 63028.74 | AF77: 320256 | AG77: 355366.49 | AH77: 2193620.9 | AI77: 59423.24 | AJ77: 0 | AK77: 642944 | AL77: 540251.46 | AM77: 643234.02 | AN77: 689530.244 | AO77: 1477999.818 | AP77: 811145.557 | AQ77: 968181.9052
B78: Economique | C78: oTauxNET | D78: oTauxNET | F78: 0 | G78: 4873819.77 | H78: 0 | I78: 1504584.51 | J78: 4535452.54 | K78: 4873819.77 | L78: 4062174.9 | M78: 3375895.49 | N78: 2320631.66 | O78: 3248190.94 | P78: 3613459.69 | Q78: 3352130.98 | R78: 2570464.44 | S78: 2413893.93 | T78: 2520421.84 | U78: 3182031.95 | V78: 3480948.32 | W78: 3132853.49 | X78: 2699928.07 | Y78: 3101524.95 | Z78: 3411677.45 | AA78: 3988446.05 | AB78: 3411917.71 | AC78: 3070725.94 | AD78: 3390836.53 | AE78: 3920719.78 | AF78: 4276302.36 | AG78: 3926471.34 | AH78: 4170150.99 | AI78: 3976532.58 | AJ78: 4671411.09 | AK78: 4408252.49 | AL78: 4721554.47 | AM78: 3833594.872 | AN78: 3039627.996 | AO78: 3214416.648 | AP78: 4053295.757 | AQ78: 3580304.198
B79: Economique | C79: oSupRealDEG | D79: oSupRealDEG | F79: 0 | G79: 2205.52 | H79: 0 | I79: 1276.76 | J79: 1222.63 | K79: 1211.4 | L79: 1565.75 | M79: 1802.27 | N79: 2205.52 | O79: 1860.63 | P79: 1604.76 | Q79: 1677.42 | R79: 1872.65 | S79: 1603.7 | T79: 1873.71 | U79: 1728.1 | V79: 1555.29 | W79: 1399.76 | X79: 1259.78 | Y79: 1385.76 | Z79: 1524.34 | AA79: 1485.23 | AB79: 1548.61 | AC79: 1393.75 | AD79: 1522.52 | AE79: 1519.65 | AF79: 1417.61 | AG79: 1548.61 | AH79: 900.25 | AI79: 1486.72 | AJ79: 1393.75 | AK79: 1393.75 | AL79: 1393.75 | AM79: 1601.514 | AN79: 1723.832 | AO79: 1528.953333 | AP79: 1397.036 | AQ79: 1529.574828
B80: Economique | C80: oSupRealSCA | D80: oSupRealSCA | F80: 0 | G80: 3517.22 | H80: 0 | I80: 3372.64 | J80: 3517.22 | K80: 3373.11 | L80: 2886.47 | M80: 3127.5 | N80: 2948.99 | O80: 3059.71 | P80: 2922.61 | Q80: 2879.44 | R80: 2861.6 | S80: 2923.95 | T80: 2807.52 | U80: 2758.56 | V80: 2147.28 | W80: 2354.08 | X80: 1972.22 | Y80: 2389.64 | Z80: 2503.59 | AA80: 2288.33 | AB80: 2048.23 | AC80: 2248.41 | AD80: 2278.63 | AE80: 2666.48 | AF80: 2184.94 | AG80: 2589.21 | AH80: 2737.87 | AI80: 2849.98 | AJ80: 2390.96 | AK80: 2390.61 | AL80: 2435.08 | AM80: 3170.658 | AN80: 2929.462 | AO80: 2363.272222 | AP80: 2477.217 | AQ80: 2639.386897
B81: Economique | C81: oSupRealREG | D81: oSupRealREG | F81: 0 | G81: 505.77 | H81: 0 | I81: 0 | J81: 0 | K81: 0 | L81: 0 | M81: 0 | N81: 0 | O81: 0 | P81: 0 | Q81: 0 | R81: 0 | S81: 0 | T81: 0 | U81: 0 | V81: 0 | W81: 0 | X81: 505.77 | Y81: 0 | Z81: 0 | AA81: 0 | AB81: 0 | AC81: 0 | AD81: 0 | AE81: 0 | AF81: 0 | AG81: 0 | AH81: 0 | AI81: 0 | AJ81: 0 | AK81: 0 | AL81: 0 | AM81: 0 | AN81: 0 | AO81: 56.19666667 | AP81: 0 | AQ81: 17.44034483
B82: Economique | C82: oSupRealCPI | D82: oSupRealCPI | F82: 0 | G82: 4800.85 | H82: 0 | I82: 2398 | J82: 1600 | K82: 2600 | L82: 2400 | M82: 2300 | N82: 2000 | O82: 3033.62 | P82: 3050.43 | Q82: 3360.21 | R82: 3331.73 | S82: 2520.07 | T82: 3958.47 | U82: 4800.85 | V82: 4377.84 | W82: 4346.03 | X82: 3251.7 | Y82: 4674 | Z82: 4750.31 | AA82: 4114.67 | AB82: 4254.44 | AC82: 3678.37 | AD82: 4445.01 | AE82: 4724.99 | AF82: 4046.61 | AG82: 4173.65 | AH82: 3182.64 | AI82: 4608.45 | AJ82: 4319.34 | AK82: 3385.11 | AL82: 3076.59 | AM82: 2180 | AN82: 3059.212 | AO82: 4280.923333 | AP82: 3964.076 | AQ82: 3598.797586
B83: Economique | C83: oSupRealCT | D83: oSupRealCT | F83: 0 | G83: 11403.98 | H83: 0 | I83: 8337.89 | J83: 11021.08 | K83: 10216.12 | L83: 9874.24 | M83: 9766.51 | N83: 9811.41 | O83: 9624.73 | P83: 9352.46 | Q83: 8510.38 | R83: 8466.04 | S83: 8077.81 | T83: 8991.79 | U83: 8411.06 | V83: 7658.93 | W83: 7210.71 | X83: 7534.63 | Y83: 7552.91 | Z83: 7434.52 | AA83: 6907.32 | AB83: 6884.58 | AC83: 7748.88 | AD83: 9184.13 | AE83: 9897.91 | AF83: 8981.11 | AG83: 9526.98 | AH83: 9963.76 | AI83: 9400.71 | AJ83: 9824.91 | AK83: 10933.61 | AL83: 11403.98 | AM83: 10137.872 | AN83: 8806.284 | AO83: 7620.716667 | AP83: 9686.598 | AQ83: 8971.49
B84: Economique | C84: oSupRealPL | D84: oSupRealPL | F84: 0 | G84: 2205.52 | H84: 0 | I84: 1430 | J84: 1506.4 | K84: 1657.04 | L84: 1822.74 | M84: 2005.02 | N84: 2205.52 | O84: 1984.97 | P84: 1786.47 | Q84: 1769.52 | R84: 1906.54 | S84: 2097.2 | T84: 1920.11 | U84: 1728.1 | V84: 1555.29 | W84: 1399.76 | X84: 754.01 | Y84: 1385.76 | Z84: 1524.34 | AA84: 1485.23 | AB84: 1548.61 | AC84: 1393.75 | AD84: 1533.12 | AE84: 1677.45 | AF84: 1509.71 | AG84: 1548.61 | AH84: 1393.75 | AI84: 1533.12 | AJ84: 1393.75 | AK84: 1393.75 | AL84: 1393.75 | AM84: 1839.344 | AN84: 1908.94 | AO84: 1477.912222 | AP84: 1477.076 | AQ84: 1614.254828
B85: Economique | C85: oSupRealEPC | D85: oSupRealEPC | F85: 0 | G85: 283.68 | H85: 0 | I85: 0 | J85: 0 | K85: 0 | L85: 0 | M85: 0 | N85: 0 | O85: 0 | P85: 0 | Q85: 0 | R85: 0 | S85: 0 | T85: 0 | U85: 0 | V85: 0 | W85: 0 | X85: 97.27 | Y85: 0 | Z85: 0 | AA85: 0 | AB85: 0 | AC85: 0 | AD85: 0 | AE85: 0 | AF85: 283.68 | AG85: 26.49 | AH85: 0 | AI85: 0 | AJ85: 0 | AK85: 108.25 | AL85: 0 | AM85: 0 | AN85: 0 | AO85: 10.80777778 | AP85: 41.842 | AQ85: 17.78241379
B86: Economique | C86: oSupRealEC | D86: oSupRealEC | F86: 0 | G86: 3328.56 | H86: 0 | I86: 202 | J86: 990.91 | K86: 250 | L86: 250 | M86: 263.88 | N86: 757.84 | O86: 0 | P86: 286.55 | Q86: 310.48 | R86: 530.69 | S86: 1565.75 | T86: 535.93 | U86: 143 | V86: 1060.39 | W86: 1636.02 | X86: 3328.56 | Y86: 1248.23 | Z86: 579.7 | AA86: 756.5 | AB86: 1103.85 | AC86: 2215.75 | AD86: 859.69 | AE86: 49.24 | AF86: 250.2 | AG86: 277.63 | AH86: 1713.77 | AI86: 46.42 | AJ86: 0 | AK86: 502.3 | AL86: 422.07 | AM86: 502.526 | AN86: 538.694 | AO86: 1154.686667 | AP86: 633.707 | AQ86: 756.3913793
B87: Economique | C87: oSupRealNET | D87: oSupRealNET | F87: 0 | G87: 3962.46 | H87: 0 | I87: 1223.24 | J87: 3687.36 | K87: 3962.46 | L87: 3302.58 | M87: 2744.63 | N87: 1886.69 | O87: 2640.81 | P87: 2937.77 | Q87: 2725.31 | R87: 2089.81 | S87: 1962.52 | T87: 2049.12 | U87: 2587.02 | V87: 2830.04 | W87: 2547.04 | X87: 2195.06 | Y87: 2521.57 | Z87: 2773.72 | AA87: 3242.64 | AB87: 2773.92 | AC87: 2496.53 | AD87: 2756.78 | AE87: 3187.58 | AF87: 3476.67 | AG87: 3192.25 | AH87: 3390.37 | AI87: 3232.95 | AJ87: 3797.9 | AK87: 3583.95 | AL87: 3838.66 | AM87: 3116.744 | AN87: 2471.244 | AO87: 2613.347778 | AP87: 3295.364 | AQ87: 2910.817586
B88: Economique | C88: oCoutProdPlants | D88: oCoutProdPlants | F88: 0 | G88: 0 | H88: 0 | I88: 0 | J88: 0 | K88: 0 | L88: 0 | M88: 0 | N88: 0 | O88: 0 | P88: 0 | Q88: 0 | R88: 0 | S88: 0 | T88: 0 | U88: 0 | V88: 0 | W88: 0 | X88: 0 | Y88: 0 | Z88: 0 | AA88: 0 | AB88: 0 | AC88: 0 | AD88: 0 | AE88: 0 | AF88: 0 | AG88: 0 | AH88: 0 | AI88: 0 | AJ88: 0 | AK88: 0 | AL88: 0 | AM88: 0 | AN88: 0 | AO88: 0 | AP88: 0 | AQ88: 0
B89: Economique | C89: oCoutTransPlants | D89: oCoutTransPlants | F89: 0 | G89: 0 | H89: 0 | I89: 0 | J89: 0 | K89: 0 | L89: 0 | M89: 0 | N89: 0 | O89: 0 | P89: 0 | Q89: 0 | R89: 0 | S89: 0 | T89: 0 | U89: 0 | V89: 0 | W89: 0 | X89: 0 | Y89: 0 | Z89: 0 | AA89: 0 | AB89: 0 | AC89: 0 | AD89: 0 | AE89: 0 | AF89: 0 | AG89: 0 | AH89: 0 | AI89: 0 | AJ89: 0 | AK89: 0 | AL89: 0 | AM89: 0 | AN89: 0 | AO89: 0 | AP89: 0 | AQ89: 0
B90: Economique | C90: o$InvestisTS | D90: o$InvestisTS | F90: 0 | G90: 12629930 | H90: 0 | I90: 9112303.27 | J90: 12629930 | K90: 12629930 | L90: 12629930 | M90: 12629930 | N90: 12629930 | O90: 12629930 | P90: 12629930 | Q90: 12629930 | R90: 12560431.12 | S90: 12629930 | T90: 12503630.7 | U90: 12629930 | V90: 12629930 | W90: 12503630.7 | X90: 12629930 | Y90: 12503630.7 | Z90: 12541575.69 | AA90: 12629930 | AB90: 12503630.7 | AC90: 12629930 | AD90: 12503630.7 | AE90: 12629930 | AF90: 12629930 | AG90: 12592539.61 | AH90: 12629930 | AI90: 12503630.7 | AJ90: 12629930 | AK90: 12629930 | AL90: 12629930 | AM90: 12629930 | AN90: 12616030.22 | AO90: 12563979.83 | AP90: 12600931.1 | AQ90: 12597066.57
B91: Economique | C91: oEmpProdPlants | D91: oEmpProdPlants | F91: 0 | G91: 0 | H91: 0 | I91: 0 | J91: 0 | K91: 0 | L91: 0 | M91: 0 | N91: 0 | O91: 0 | P91: 0 | Q91: 0 | R91: 0 | S91: 0 | T91: 0 | U91: 0 | V91: 0 | W91: 0 | X91: 0 | Y91: 0 | Z91: 0 | AA91: 0 | AB91: 0 | AC91: 0 | AD91: 0 | AE91: 0 | AF91: 0 | AG91: 0 | AH91: 0 | AI91: 0 | AJ91: 0 | AK91: 0 | AL91: 0 | AM91: 0 | AN91: 0 | AO91: 0 | AP91: 0 | AQ91: 0
B92: Economique | C92: oEmpTransPlants | D92: oEmpTransPlants | F92: 0 | G92: 0 | H92: 0 | I92: 0 | J92: 0 | K92: 0 | L92: 0 | M92: 0 | N92: 0 | O92: 0 | P92: 0 | Q92: 0 | R92: 0 | S92: 0 | T92: 0 | U92: 0 | V92: 0 | W92: 0 | X92: 0 | Y92: 0 | Z92: 0 | AA92: 0 | AB92: 0 | AC92: 0 | AD92: 0 | AE92: 0 | AF92: 0 | AG92: 0 | AH92: 0 | AI92: 0 | AJ92: 0 | AK92: 0 | AL92: 0 | AM92: 0 | AN92: 0 | AO92: 0 | AP92: 0 | AQ92: 0
B93: Economique | C93: oEmpDEG | D93: oEmpDEG | F93: 0 | G93: 58175.71 | H93: 0 | I93: 33677.56 | J93: 32249.85 | K93: 31953.44 | L93: 41300.37 | M93: 47539.09 | N93: 58175.71 | O93: 49078.37 | P93: 42329.35 | Q93: 44245.94 | R93: 49395.54 | S93: 42301.28 | T93: 49423.51 | U93: 45582.68 | V93: 41024.41 | W93: 36921.97 | X93: 33229.77 | Y93: 36552.75 | Z93: 40208.03 | AA93: 39176.37 | AB93: 40848.13 | AC93: 36763.31 | AD93: 40160.05 | AE93: 40084.35 | AF93: 37392.67 | AG93: 40848.13 | AH93: 23746.09 | AI93: 39215.74 | AJ93: 36763.31 | AK93: 36763.31 | AL93: 36763.31 | AM93: 42243.692 | AN93: 45470.096 | AO93: 40329.73556 | AP93: 36850.027 | AQ93: 40346.09759
B94: Economique | C94: oEmpSCA | D94: oEmpSCA | F94: 0 | G94: 9807.59 | H94: 0 | I94: 9775.59 | J94: 9807.59 | K94: 9681.49 | L94: 8305.87 | M94: 8916.35 | N94: 8376.99 | O94: 8979.47 | P94: 8595.44 | Q94: 8566.63 | R94: 8419 | S94: 8407.27 | T94: 8230.21 | U94: 8352.76 | V94: 6333.88 | W94: 7157.47 | X94: 5814.5 | Y94: 7334.73 | Z94: 7624.58 | AA94: 6893.02 | AB94: 5988.61 | AC94: 6569.44 | AD94: 6819.03 | AE94: 8076.1 | AF94: 6505.89 | AG94: 7908.37 | AH94: 7682.69 | AI94: 8610.46 | AJ94: 7332.84 | AK94: 7146.78 | AL94: 7019.58 | AM94: 9017.658 | AN94: 8593.562 | AO94: 7081.084444 | AP94: 7367.118 | AQ94: 7774.38069
B95: Economique | C95: oEmpREG | D95: oEmpREG | F95: 0 | G95: 3283.52 | H95: 0 | I95: 0 | J95: 0 | K95: 0 | L95: 0 | M95: 0 | N95: 0 | O95: 0 | P95: 0 | Q95: 0 | R95: 0 | S95: 0 | T95: 0 | U95: 0 | V95: 0 | W95: 0 | X95: 3283.52 | Y95: 0 | Z95: 0 | AA95: 0 | AB95: 0 | AC95: 0 | AD95: 0 | AE95: 0 | AF95: 0 | AG95: 0 | AH95: 0 | AI95: 0 | AJ95: 0 | AK95: 0 | AL95: 0 | AM95: 0 | AN95: 0 | AO95: 364.8355556 | AP95: 0 | AQ95: 113.2248276
B96: Economique | C96: oEmpCPI | D96: oEmpCPI | F96: 0 | G96: 0 | H96: 0 | I96: 0 | J96: 0 | K96: 0 | L96: 0 | M96: 0 | N96: 0 | O96: 0 | P96: 0 | Q96: 0 | R96: 0 | S96: 0 | T96: 0 | U96: 0 | V96: 0 | W96: 0 | X96: 0 | Y96: 0 | Z96: 0 | AA96: 0 | AB96: 0 | AC96: 0 | AD96: 0 | AE96: 0 | AF96: 0 | AG96: 0 | AH96: 0 | AI96: 0 | AJ96: 0 | AK96: 0 | AL96: 0 | AM96: 0 | AN96: 0 | AO96: 0 | AP96: 0 | AQ96: 0
B97: Economique | C97: oEmpCT | D97: oEmpCT | F97: 0 | G97: 0 | H97: 0 | I97: 0 | J97: 0 | K97: 0 | L97: 0 | M97: 0 | N97: 0 | O97: 0 | P97: 0 | Q97: 0 | R97: 0 | S97: 0 | T97: 0 | U97: 0 | V97: 0 | W97: 0 | X97: 0 | Y97: 0 | Z97: 0 | AA97: 0 | AB97: 0 | AC97: 0 | AD97: 0 | AE97: 0 | AF97: 0 | AG97: 0 | AH97: 0 | AI97: 0 | AJ97: 0 | AK97: 0 | AL97: 0 | AM97: 0 | AN97: 0 | AO97: 0 | AP97: 0 | AQ97: 0
B98: Economique | C98: oEmpPL | D98: oEmpPL | F98: 0 | G98: 37353.21 | H98: 0 | I98: 26444.5 | J98: 24873.89 | K98: 28125.96 | L98: 34907.99 | M98: 37213.49 | N98: 36806.05 | O98: 37353.21 | P98: 35134.83 | Q98: 34524.95 | R98: 36440.72 | S98: 36089.55 | T98: 34900.03 | U98: 33883.89 | V98: 30672.3 | W98: 24935.97 | X98: 14811.26 | Y98: 27329.02 | Z98: 29534.03 | AA98: 28920.8 | AB98: 29914.52 | AC98: 27486.45 | AD98: 29671.71 | AE98: 31934.67 | AF98: 29304.59 | AG98: 29914.52 | AH98: 27486.45 | AI98: 29671.71 | AJ98: 27486.45 | AK98: 27486.45 | AL98: 27486.45 | AM98: 32385.476 | AN98: 35908.652 | AO98: 28322.42444 | AP98: 28792.945 | AQ98: 30493.16931
B99: Economique | C99: oEmpEPC | D99: oEmpEPC | F99: 0 | G99: 6786.57 | H99: 0 | I99: 0 | J99: 0 | K99: 0 | L99: 0 | M99: 0 | N99: 0 | O99: 0 | P99: 0 | Q99: 0 | R99: 0 | S99: 0 | T99: 0 | U99: 0 | V99: 0 | W99: 0 | X99: 2327.01 | Y99: 0 | Z99: 0 | AA99: 0 | AB99: 0 | AC99: 0 | AD99: 0 | AE99: 0 | AF99: 6786.57 | AG99: 633.68 | AH99: 0 | AI99: 0 | AJ99: 0 | AK99: 2589.65 | AL99: 0 | AM99: 0 | AN99: 0 | AO99: 258.5566667 | AP99: 1000.99 | AQ99: 425.4106897
B100: Economique | C100: oEmpEC | D100: oEmpEC | F100: 0 | G100: 0 | H100: 0 | I100: 0 | J100: 0 | K100: 0 | L100: 0 | M100: 0 | N100: 0 | O100: 0 | P100: 0 | Q100: 0 | R100: 0 | S100: 0 | T100: 0 | U100: 0 | V100: 0 | W100: 0 | X100: 0 | Y100: 0 | Z100: 0 | AA100: 0 | AB100: 0 | AC100: 0 | AD100: 0 | AE100: 0 | AF100: 0 | AG100: 0 | AH100: 0 | AI100: 0 | AJ100: 0 | AK100: 0 | AL100: 0 | AM100: 0 | AN100: 0 | AO100: 0 | AP100: 0 | AQ100: 0
B101: Economique | C101: oEmpNET | D101: oEmpNET | F101: 0 | G101: 74743.29 | H101: 0 | I101: 23073.81 | J101: 69554.2 | K101: 74743.29 | L101: 62296.17 | M101: 51771.62 | N101: 35588.44 | O101: 49813.18 | P101: 55414.82 | Q101: 51407.17 | R101: 39419.79 | S101: 37018.68 | T101: 38652.36 | U101: 48798.59 | V101: 53382.67 | W101: 48044.41 | X101: 41405.21 | Y101: 47563.96 | Z101: 52320.36 | AA101: 61165.49 | AB101: 52324.04 | AC101: 47091.64 | AD101: 52000.75 | AE101: 60126.86 | AF101: 65579.96 | AG101: 60215.07 | AH101: 63952.06 | AI101: 60982.79 | AJ101: 71639.22 | AK101: 67603.5 | AL101: 72408.2 | AM101: 58790.744 | AN101: 46614.728 | AO101: 49295.23222 | AP101: 62160.005 | AQ101: 54906.36207
B102: Economique | C102: oEmpSylviTOT | D102: oEmpSylviTOT | F102: 0 | G102: 146810.4 | H102: 0 | I102: 92971.47 | J102: 136485.54 | K102: 144504.17 | L102: 146810.4 | M102: 145440.55 | N102: 138947.19 | O102: 145224.23 | P102: 141474.45 | Q102: 138744.69 | R102: 133675.05 | S102: 123816.79 | T102: 131206.11 | U102: 136617.92 | V102: 131413.28 | W102: 117059.82 | X102: 100871.28 | Y102: 118780.47 | Z102: 129687 | AA102: 136155.68 | AB102: 129075.3 | AC102: 117910.84 | AD102: 128651.54 | AE102: 140221.99 | AF102: 145569.69 | AG102: 139519.76 | AH102: 122867.29 | AI102: 138480.7 | AJ102: 143221.82 | AK102: 141589.7 | AL102: 143677.55 | AM102: 142437.57 | AN102: 136587.042 | AO102: 125651.8733 | AP102: 136171.088 | AQ102: 134058.6483
B103: Economique | C103: oAjueAufPositif | D103: oAjueAufPositif | F103: 0 | G103: 0 | H103: 0 | I103: 0 | J103: 0 | K103: 0 | L103: 0 | M103: 0 | N103: 0 | O103: 0 | P103: 0 | Q103: 0 | R103: 0 | S103: 0 | T103: 0 | U103: 0 | V103: 0 | W103: 0 | X103: 0 | Y103: 0 | Z103: 0 | AA103: 0 | AB103: 0 | AC103: 0 | AD103: 0 | AE103: 0 | AF103: 0 | AG103: 0 | AH103: 0 | AI103: 0 | AJ103: 0 | AK103: 0 | AL103: 0 | AM103: 0 | AN103: 0 | AO103: 0 | AP103: 0 | AQ103: 0
B104: Economique | C104: oAjueBOJPositif | D104: oAjueBOJPositif | F104: 0 | G104: 180.23 | H104: 0 | I104: 0 | J104: 0 | K104: 0 | L104: 0 | M104: 0 | N104: 0 | O104: 0 | P104: 0 | Q104: 0 | R104: 0 | S104: 0 | T104: 0 | U104: 0 | V104: 0 | W104: 0 | X104: 0 | Y104: 0 | Z104: 0 | AA104: 0 | AB104: 0 | AC104: 0 | AD104: 0 | AE104: 180.23 | AF104: 0 | AG104: 0 | AH104: 0 | AI104: 0 | AJ104: 0 | AK104: 0 | AL104: 0 | AM104: 0 | AN104: 0 | AO104: 0 | AP104: 18.023 | AQ104: 6.214827586
B105: Economique | C105: oAjueBOPPositif | D105: oAjueBOPPositif | F105: 0 | G105: 3609.23 | H105: 0 | I105: 0 | J105: 0 | K105: 0 | L105: 28.92 | M105: 183.05 | N105: 0 | O105: 43.01 | P105: 142.38 | Q105: 30.58 | R105: 1455.19 | S105: 0 | T105: 1753.48 | U105: 2388.66 | V105: 0 | W105: 0 | X105: 0 | Y105: 0 | Z105: 50.02 | AA105: 3.98 | AB105: 13.04 | AC105: 0 | AD105: 60.14 | AE105: 3609.23 | AF105: 0 | AG105: 0 | AH105: 0 | AI105: 0 | AJ105: 0 | AK105: 0 | AL105: 0 | AM105: 42.394 | AN105: 334.232 | AO105: 467.6866667 | AP105: 366.937 | AQ105: 336.6096552
B106: Economique | C106: oAjueChCePositif | D106: oAjueChCePositif | F106: 0 | G106: 0 | H106: 0 | I106: 0 | J106: 0 | K106: 0 | L106: 0 | M106: 0 | N106: 0 | O106: 0 | P106: 0 | Q106: 0 | R106: 0 | S106: 0 | T106: 0 | U106: 0 | V106: 0 | W106: 0 | X106: 0 | Y106: 0 | Z106: 0 | AA106: 0 | AB106: 0 | AC106: 0 | AD106: 0 | AE106: 0 | AF106: 0 | AG106: 0 | AH106: 0 | AI106: 0 | AJ106: 0 | AK106: 0 | AL106: 0 | AM106: 0 | AN106: 0 | AO106: 0 | AP106: 0 | AQ106: 0
B107: Economique | C107: oAjueEpxPositif | D107: oAjueEpxPositif | F107: 0 | G107: 2855619.84 | H107: 0 | I107: 0 | J107: 0 | K107: 0 | L107: 9362.13 | M107: 154100.69 | N107: 103290.82 | O107: 73515.78 | P107: 807609.14 | Q107: 366642.42 | R107: 51005.17 | S107: 0 | T107: 79770.1 | U107: 92555.71 | V107: 74048.08 | W107: 0 | X107: 75588.79 | Y107: 346582.17 | Z107: 404789.23 | AA107: 830266.36 | AB107: 1659156.18 | AC107: 1325839.33 | AD107: 2524982.61 | AE107: 2173378.67 | AF107: 2855619.84 | AG107: 1637802.75 | AH107: 1765611.62 | AI107: 997130.44 | AJ107: 1779198.47 | AK107: 767489.16 | AL107: 346719.99 | AM107: 53350.728 | AN107: 259754.502 | AO107: 395861.8467 | AP107: 1617377.288 | AQ107: 734553.6431
B108: Economique | C108: oAjueEpxNegatif | D108: oAjueEpxNegatif | F108: 0 | G108: 814081.6 | H108: 0 | I108: 0 | J108: 1005.29 | K108: 800.98 | L108: 725.07 | M108: 1136.24 | N108: 0 | O108: 0 | P108: 26259.26 | Q108: 42554.89 | R108: 56074.11 | S108: 120829.89 | T108: 51510.33 | U108: 27302.36 | V108: 517661.09 | W108: 473755.16 | X108: 814081.6 | Y108: 240249.36 | Z108: 119982.18 | AA108: 106678.84 | AB108: 236835.65 | AC108: 252924.03 | AD108: 105418.85 | AE108: 44996.14 | AF108: 16050.63 | AG108: 55831.28 | AH108: 206027.68 | AI108: 26810.06 | AJ108: 21002.3 | AK108: 364696.9 | AL108: 298047.19 | AM108: 733.516 | AN108: 49143.63 | AO108: 287561.8411 | AP108: 139180.506 | AQ108: 145836.1159
B109: Economique | C109: oAjueEroPositif | D109: oAjueEroPositif | F109: 0 | G109: 152.73 | H109: 0 | I109: 0 | J109: 0 | K109: 0 | L109: 0.81 | M109: 6.91 | N109: 0 | O109: 2.34 | P109: 8.74 | Q109: 0.23 | R109: 10.65 | S109: 0 | T109: 0 | U109: 0 | V109: 0 | W109: 0 | X109: 0 | Y109: 0 | Z109: 0 | AA109: 0 | AB109: 0 | AC109: 0 | AD109: 0 | AE109: 152.73 | AF109: 0 | AG109: 0 | AH109: 0 | AI109: 0 | AJ109: 0 | AK109: 0 | AL109: 0 | AM109: 1.544 | AN109: 4.392 | AO109: 0 | AP109: 15.273 | AQ109: 6.29
B110: Economique | C110: oAjueERSPositif | D110: oAjueERSPositif | F110: 0 | G110: 0 | H110: 0 | I110: 0 | J110: 0 | K110: 0 | L110: 0 | M110: 0 | N110: 0 | O110: 0 | P110: 0 | Q110: 0 | R110: 0 | S110: 0 | T110: 0 | U110: 0 | V110: 0 | W110: 0 | X110: 0 | Y110: 0 | Z110: 0 | AA110: 0 | AB110: 0 | AC110: 0 | AD110: 0 | AE110: 0 | AF110: 0 | AG110: 0 | AH110: 0 | AI110: 0 | AJ110: 0 | AK110: 0 | AL110: 0 | AM110: 0 | AN110: 0 | AO110: 0 | AP110: 0 | AQ110: 0
B111: Economique | C111: oAjueMlPositif | D111: oAjueMlPositif | F111: 0 | G111: 20461.64 | H111: 0 | I111: 0 | J111: 0 | K111: 0 | L111: 2.08 | M111: 14.61 | N111: 0 | O111: 3.39 | P111: 11.3 | Q111: 4.61 | R111: 268.01 | S111: 0 | T111: 361.01 | U111: 523.26 | V111: 0 | W111: 0 | X111: 0 | Y111: 0 | Z111: 232.97 | AA111: 19.4 | AB111: 67.42 | AC111: 0 | AD111: 13810.41 | AE111: 20461.64 | AF111: 9248.32 | AG111: 7296.24 | AH111: 0 | AI111: 4093.18 | AJ111: 860.37 | AK111: 0 | AL111: 845.44 | AM111: 3.338 | AN111: 57.462 | AO111: 133.7844444 | AP111: 5661.56 | AQ111: 2004.264138
B112: Economique | C112: oAjueMlNegatif | D112: oAjueMlNegatif | F112: 0 | G112: 22.78 | H112: 0 | I112: 0 | J112: 0 | K112: 0 | L112: 0 | M112: 0 | N112: 0 | O112: 0 | P112: 0 | Q112: 0 | R112: 0 | S112: 0 | T112: 0 | U112: 0 | V112: 0 | W112: 15.2 | X112: 14.3 | Y112: 22.78 | Z112: 15.22 | AA112: 14.96 | AB112: 0 | AC112: 0 | AD112: 0 | AE112: 0 | AF112: 0.09 | AG112: 11.99 | AH112: 8.44 | AI112: 12.85 | AJ112: 8.53 | AK112: 7.69 | AL112: 0 | AM112: 0 | AN112: 0 | AO112: 9.162222222 | AP112: 4.959 | AQ112: 4.553448276
B113: Economique | C113: oAjuePeuPositif | D113: oAjuePeuPositif | F113: 0 | G113: 691.86 | H113: 0 | I113: 0 | J113: 0 | K113: 0 | L113: 3.29 | M113: 20.67 | N113: 0 | O113: 4.86 | P113: 16.05 | Q113: 10.75 | R113: 334.83 | S113: 0 | T113: 572.47 | U113: 691.86 | V113: 0 | W113: 0 | X113: 0 | Y113: 0 | Z113: 26.15 | AA113: 2.05 | AB113: 6.78 | AC113: 0 | AD113: 31.25 | AE113: 153.74 | AF113: 0 | AG113: 0 | AH113: 0 | AI113: 0 | AJ113: 0 | AK113: 0 | AL113: 0 | AM113: 4.792 | AN113: 73.298 | AO113: 144.3677778 | AP113: 18.499 | AQ113: 64.64655172
